Workbook

Sheet LDC Info
AA3: Algoma Power Inc.
AA4: Atikokan Hydro Inc.
AA5: Attawapiskat Power Corporation
AA6: Bluewater Power Distribution Corp.
AA7: Brant County Power
AA8: Brantford Power Inc.
AA9: Burlington Hydro Inc.
AA10: Cambridge and North Dumfries Hydro
AA11: Canadian Niagara Power Inc. – Eastern Ontario Power/Fort Erie/Port Colborne
AA12: Centre Wellington Hydro Ltd.
N13: Version 1.1 | AA13: Chapleau Public Utilities Corporation
D14: Utility Name | E14: Welland Hydro Electric System Corp. | AA14: COLLUS Power Corp.
AA15: Cooperative Hydro Embrun Inc.
D16: Service Territory | E16: City of Welland | AA16: E.L.K. Energy Inc.
AA17: Enersource Hydro Mississauga Inc.
D18: Assigned EB Number | E18: EB-2012-0173 | AA18: Entegrus Powerlines Inc.
AA19: ENWIN Utilities Ltd.
D20: Name of Contact and Title | E20: Wayne Armstrong-Director of Finance | AA20: Erie Thames Powerlines Corp.
AA21: Espanola Regional Hydro Distribution Corporation
D22: Phone Number | E22: 905-732-1381 Ext 234 | AA22: Essex Powerlines Corporation
AA23: Festival Hydro Inc.
D24: Email Address | E24: warmstrong@wellandhydro.com | AA24: Fort Albany Power Corporation
AA25: Fort Frances Power Corporation
D26: Bridge Year | E26: 2012 | AA26: Greater Sudbury Hydro Inc.
AA27: Grimsby Power Inc.
D28: Test Year | E28: 2013 | AA28: Guelph Hydro Electric Systems Inc.
AA29: Haldimand County Hydro Inc.
D30: Last Rebasing Year | E30: 2009 | AA30: Guelph Hydro Electric Systems Inc.
AA31: Halton Hills Hydro Inc.
B32: Notes | AA32: Hearst Power Distribution Co. Ltd.
AA33: Horizon Utilities Corporation
C34: Pale green cells represent input cells. | AA34: Hydro 2000 Inc.
AA35: Hydro Hawkesbury Inc.
C36: Pale blue cells represent drop-down lists. The applicant should select the appropriate item from the drop-down list. | AA36: Hydro One Brampton Networks Inc.
AA37: Hydro One Networks Inc.
C38: White cells contain fixed values, automatically generated values or formulae. | AA38: Hydro One Remote Communities Inc.
AA39: Hydro Ottawa Limited
AA40: Innisfil Hydro Dist. Systems Limited
AA41: Kashechewan Power Corporation
AA42: Kenora Hydro Electric Corporation Ltd.
AA43: Kingston Hydro Corporation
AA44: Kitchener-Wilmot Hydro Inc.
AA45: Lakefront Utilities Inc.
AA46: Lakeland Power Distribution Ltd.
AA47: London Hydro Inc.
AA48: Midland Power Utility Corporation
AA49: Milton Hydro Distribution Inc.
AA50: Newmarket – Tay Power Distribution Ltd.
AA51: Niagara Peninsula Energy Inc.
AA52: Niagara-on-the-Lake Hydro Inc.
AA53: Norfolk Power Distribution Ltd.
AA54: North Bay Hydro Distribution Limited
AA55: Northern Ontario Wires Inc.
AA56: Oakville Hydro Distribution Inc.
AA57: Orangeville Hydro Limited
AA58: Orillia Power Distribution Corp.
AA59: Oshawa PUC Networks Inc.
AA60: Ottawa River Power Corporation
AA61: Parry Sound Power Corporation
AA62: Peterborough Distribution Inc.
AA63: PowerStream Inc.
AA64: PUC Distribution Inc.
AA65: Renfrew Hydro Inc.
AA66: Rideau St. Lawrence Distribution Inc.
AA67: St. Thomas Energy Inc.
AA68: Sioux Lookout Hydro Inc.
AA69: Thunder Bay Hydro Electricity Distribution
AA70: Tillsonburg Hydro Inc.
AA71: Toronto Hydro-Electric System Limited
AA72: Veridian Connections Inc.
AA73: Wasaga Distribution Inc.
AA74: Waterloo North Hydro Inc.
AA75: Welland Hydro Electric System Corp.
AA76: Wellington North Power Inc.
AA77: West Coast Huron Energy Inc.
AA78: Westario Power Inc.
AA79: Whitby Hydro Electric Corporation
AA80: Woodstock Hydro Services Inc.

Sheet Index
A15: 1 | B15: LDC Information Sheet | E15: 19 | F15: Appendix 2-H OM&A Detailed Analysis
A16: 2 | B16: Index | E16: 20 | F16: Appendix 2-I OM&A Summary Analysis
A17: 3 | B17: Appendix 2-A Capital Projects | E17: 21 | F17: Appendix 2-J OM&A Cost Drivers
A18: 4 | B18: Appendix 2-B Fixed Asset Continuity | E18: 22 | F18: Appendix 2-K Employee Costs
A19: 5 | B19: Appendix 2-CA CGAAP Depreciation Expense 2011 | E19: 23 | F19: Appendix 2-L OM&A per Cust FTEE
A20: 6 | B20: Appendix 2-CB MIFRS Depreciation Expense 2011 | E20: 24 | F20: Appendix 2-M Regulatory Costs
A21: 7 | B21: Appendix 2-CC MIFRS Depreciation Expense 2012 | E21: 25 | F21: Appendix 2-N Corp Cost Allocation
A22: 8 | B22: Appendix 2-CD MIFRS Depreciation Expense 2013 | E22: 26 | F22: Appendix 2-OA Capital Structure and Cost of Capital
A23: 9 | B23: Appendix 2-CE CGAAP Depreciation Expense 2011 | E23: 27 | F23: Appendix 2-OB Debt Instruments
A24: 10 | B24: Appendix 2-CF CGAAP Depreciation Expense 2012 | E24: 28 | F24: Appendix 2-P Cost Allocation
A25: 11 | B25: Appendix 2-CG MIFRS Depreciation Expense 2012 | E25: 29 | F25: Appendix 2-Q Cost of Service Embedded Distributor
A26: 12 | B26: Appendix 2-CH MIFRS Depreciation Expense 2013 | E26: 30 | F26: Appendix 2-R Loss Factors
A27: 13 | B27: Appendix 2-CI Alternative Accounting Standards Depreciation Expense | E27: 31 | F27: Appendix 2-S Stranded Meters
A28: 14 | B28: Appendix 2-D Overhead | E28: 32 | F28: Appendix 2-T 1592 Tax Variance
A29: 15 | B29: Appendix 2-EA PP&E Deferral Account - 2012 IFRS Adopters | E29: 33 | F29: Appendix 2-U IFRS Transition Costs
A30: 16 | B30: Appendix 2-EB PP&E Deferral Account - 2013 IFRS Adopters | E30: 34 | F30: Appendix 2-V Rev Reconciliation
A31: 17 | B31: Appendix 2-F Other Operating Revenue | E31: 35 | F31: Appendix 2-W Bill Impacts
A32: 18 | B32: Appendix 2-G Detailed OM&A Expenses | E32: 36 | F32: Appendix 2-X CoS Flowchart

Sheet App.2-A_Capital Projects
G1: File Number: | H1: ='LDC Info'!$E$18 -> EB-2012-0173
G2: Exhibit: | H2: 2
G3: Tab: | H3: 3
G4: Schedule: | H4: 2
G5: Page: | H5: 2 & 3 of 12
G7: Date: | H7: Aug 31, 2012
A9: Appendix 2-A
A10: Capital Projects Table
A13: Projects | B13: =IF(ISBLANK('LDC Info'!E26), "Year 1", 'LDC Info'!E26-5) -> 2007 | C13: =IF(ISBLANK('LDC Info'!E26), "Year 2", 'LDC Info'!E26-4) -> 2008 | D13: =IF(ISBLANK('LDC Info'!E26), "Year 3", 'LDC Info'!E26-3) -> 2009 | E13: =IF(ISBLANK('LDC Info'!E26), "Year 4", 'LDC Info'!E26-2) -> 2010 | F13: =IF(ISBLANK('LDC Info'!E26), "Year 5", 'LDC Info'!E26-1) -> 2011 | G13: ='LDC Info'!E26 & " Bridge Year" -> 2012 Bridge Year | H13: ='LDC Info'!E28 & " Test Year" -> 2013 Test Year
A14: Reporting Basis | B14: CGAAP | C14: CGAAP | D14: CGAAP | E14: CGAAP | F14: CGAAP | G14: MIFRS | H14: MIFRS
A16: Wholesale Metering-TS | B16: 0 | C16: 0 | D16: 5485 | E16: 433700 | F16: 28174 | G16: 0
A21: Sub-Total TS>50 kV | B21: =SUM(B16:B20) -> 0 | C21: =SUM(C16:C20) -> 0 | D21: 5485 | E21: 433700 | F21: 28174 | G21: 0 | H21: 0
A23: Substations
A24: Rebuild MS#11 Darby Road | B24: 157516 | C24: 175258 | D24: 24523 | E24: 0 | F24: 0 | G24: 0 | H24: 0
A25: Rebuild MS#2 McMaster Ave | B25: 0 | C25: 0 | D25: 133385 | E25: 249644 | F25: 0 | G25: 0 | H25: 0
A26: Primary Cabling MS#7 Fitch St | B26: 0 | C26: 0 | D26: 0 | E26: 0 | F26: 30541 | G26: 0 | H26: 0
A27: MS#6 Transformer/Underground | B27: 0 | C27: 0 | D27: 0 | E27: 0 | F27: 0 | G27: 106634 | H27: 0
A29: Sub-Total DS<50 kV | B29: =SUM(B24:B28) -> 157516 | C29: 175258 | D29: 157908 | E29: 249644 | F29: 30541 | G29: 106634 | H29: 0
A31: Overhead/Underground
A32: Major Street Rebuild | B32: 146419 | C32: 31800 | D32: 0 | E32: 0 | F32: 0 | G32: 0 | H32: 0
A33: Towline Tunnel Rebuild | B33: 177138 | C33: 0 | D33: 0 | E33: 0 | F33: 0 | G33: 0 | H33: 0
A34: Load Transfer Hydro One | B34: 144267 | C34: 84178 | D34: 0 | E34: 0 | F34: 0 | G34: 0 | H34: 0
A35: Niagara Street 27.6 | B35: 243729 | C35: 0 | D35: 0 | E35: 0 | F35: 0 | G35: 0 | H35: 0
A36: Colbeck Drive 27.6 | B36: 0 | C36: 217031 | D36: 0 | E36: 0 | F36: 0 | G36: 0 | H36: 0
A37: Churchhill Ave 27.6 | B37: 0 | C37: 76862 | D37: 9982 | E37: 0 | F37: 0 | G37: 0 | H37: 0
A38: Lincoln to Cartier 4.16 | B38: 0 | C38: 52388 | D38: 0 | E38: 0 | F38: 0 | G38: 0 | H38: 0
A39: Cartier Court Underground | B39: 0 | C39: 50029 | D39: 0 | E39: 0 | F39: 0 | G39: 0 | H39: 0
A40: Harold to Major 4.16 | B40: 0 | C40: 81771 | D40: 0 | E40: 0 | F40: 0 | G40: 0 | H40: 0
A41: Barrington to Fairlawn Undergrd | B41: 0 | C41: 151481 | D41: 0 | E41: 0 | F41: 0 | G41: 0 | H41: 0
A42: Mill Street Rebuild | B42: 0 | C42: 171307 | D42: 186228 | E42: 0 | F42: 0 | G42: 0 | H42: 0
A43: Darby Road Rebuild | B43: 0 | C43: 0 | D43: 64647 | E43: 0 | F43: 0 | G43: 0 | H43: 0
A44: Ontario Road 27.6 | B44: 0 | C44: 0 | D44: 67892 | E44: 0 | F44: 0 | G44: 0 | H44: 0
A45: Wilton,Oakwood, Elmwood 27.6 | B45: 0 | C45: 0 | D45: 145132 | E45: 392452 | F45: 0 | G45: 0 | H45: 0
A46: Burgar Street Rebuild 4.16 | B46: 0 | C46: 0 | D46: 173526 | E46: 0 | F46: 0 | G46: 0 | H46: 0
A47: Shotwell & Church 4.16 | B47: 0 | C47: 0 | D47: 106635 | E47: 4241 | F47: 0 | G47: 0 | H47: 0
A48: Smith Street Rebuild | B48: 0 | C48: 0 | D48: 72002 | E48: 0 | F48: 0 | G48: 0 | H48: 0
A49: Margaret,Nye, Thorold 4.16 | B49: 0 | C49: 0 | D49: 123222 | E49: 0 | F49: 0 | G49: 0 | H49: 0
A50: Relocate Poles Thorold & Clare | B50: 0 | C50: 0 | D50: 82824 | E50: 2155 | F50: 0 | G50: 0 | H50: 0
A51: King Street & Merritt 27.6 | B51: 0 | C51: 0 | D51: 66713 | E51: 0 | F51: 0 | G51: 0 | H51: 0
A52: Acadia Ave Underground | B52: 0 | C52: 0 | D52: 203172 | E52: 0 | F52: 0 | G52: 0 | H52: 0
A53: McMaster Ave Rebuild | B53: 0 | C53: 0 | D53: 0 | E53: 282900 | F53: 0 | G53: 0 | H53: 0
A54: Marc Blvd Underground | B54: 0 | C54: 0 | D54: 0 | E54: 172543 | F54: 112754 | G54: 0 | H54: 0
A55: Pole Replace First Ave | B55: 0 | C55: 0 | D55: 0 | E55: 73458 | F55: 0 | G55: 0 | H55: 0
A56: Pole Replace Wavel Court | B56: 0 | C56: 0 | D56: 0 | E56: 64166 | F56: 0 | G56: 0 | H56: 0
A57: East Main to Centre 27.6 | B57: 0 | C57: 0 | D57: 0 | E57: 67183 | F57: 0 | G57: 0 | H57: 0
A58: Rolling Acres Drive Underground | B58: 0 | C58: 0 | D58: 0 | E58: 177533 | F58: 0 | G58: 0 | H58: 0
A59: East Main to Wellington 4.16 | B59: 0 | C59: 0 | D59: 0 | E59: 0 | F59: 73383 | G59: 0 | H59: 0
A60: Pole Replacement Scholfield | B60: 0 | C60: 0 | D60: 0 | E60: 0 | F60: 42966 | G60: 0 | H60: 0
A61: Mayfair Estates 27.6 Rebuild | B61: 0 | C61: 0 | D61: 0 | E61: 0 | F61: 228756 | G61: 83778 | H61: 0
A62: Mayfair Estates Underground | B62: 0 | C62: 0 | D62: 0 | E62: 0 | F62: 238254 | G62: 0 | H62: 0
A63: Pole Replacement East Main | B63: 0 | C63: 0 | D63: 0 | E63: 0 | F63: 40978 | G63: 0 | H63: 0
A64: Federal Road 27.6 | B64: 0 | C64: 0 | D64: 0 | E64: 0 | F64: 129453 | G64: 0 | H64: 0
A65: Pole Replacement Cozy/Empire | B65: 0 | C65: 0 | D65: 0 | E65: 0 | F65: 50587 | G65: 0 | H65: 0
A66: Highway 406 Woodlawn/E Main | B66: 0 | C66: 0 | D66: 0 | E66: 0 | F66: 108735 | G66: 0 | H66: 0
A67: Townline Road/Dain City 27.6 | B67: 0 | C67: 0 | D67: 0 | E67: 0 | F67: 132433 | G67: 0 | H67: 0
A68: Relocate Poles Rice to Woodlawn | B68: 0 | C68: 0 | D68: 0 | E68: 0 | F68: 0 | G68: 111404 | H68: 0
A69: Champlain Ave Underground | B69: 0 | C69: 0 | D69: 0 | E69: 0 | F69: 0 | G69: 86000 | H69: 0
A70: Regent Street 27.6 | B70: 0 | C70: 0 | D70: 0 | E70: 0 | F70: 0 | G70: 209074 | H70: 0
A71: PCB Transformer Replacements | B71: 0 | C71: 0 | D71: 0 | E71: 0 | F71: 0 | G71: 41534 | H71: 0
A72: Dennistoun, Maple, Bald Rebuild | B72: 0 | C72: 0 | D72: 0 | E72: 0 | F72: 0 | G72: 313610 | H72: 0
A73: Acqeduct, Beechwood Rebuild | B73: 0 | C73: 0 | D73: 0 | E73: 0 | F73: 0 | G73: =125444+54015 -> 179459 | H73: 0
A74: Wilson, Riverside Drive Rebuild | B74: 0 | C74: 0 | D74: 0 | E74: 0 | F74: 0 | G74: 0 | H74: 167000
A75: McCormick & Dufferin Rebuild | B75: 0 | C75: 0 | D75: 0 | E75: 0 | F75: 0 | G75: 0 | H75: 83000
A76: Garner Ave Rebuild | B76: 0 | C76: 0 | D76: 0 | E76: 0 | F76: 0 | G76: 0 | H76: 63000
A77: Cady Street Rebuild | B77: 0 | C77: 0 | D77: 0 | E77: 0 | F77: 0 | G77: 0 | H77: 30000
A78: Major to Schofield Rebuild | B78: 0 | C78: 0 | D78: 0 | E78: 0 | F78: 0 | G78: 0 | H78: 139000
A79: Southworth Street Rebuild | B79: 0 | C79: 0 | D79: 0 | E79: 0 | F79: 0 | G79: 0 | H79: =126000+84000 -> 210000
A80: Ridge Road Expansion-Solar | B80: 0 | C80: 0 | D80: 0 | E80: 0 | F80: 0 | G80: 0 | H80: 0
A81: Lancaster Rebuild | B81: 0 | C81: 0 | D81: 0 | E81: 0 | F81: 0 | G81: 0 | H81: 84000
A82: Preston & Wiltshire Underground | B82: 0 | C82: 0 | D82: 0 | E82: 0 | F82: 0 | G82: 0 | H82: 172000
A83: Bettes Avenue Underground | B83: 0 | C83: 0 | D83: 0 | E83: 0 | F83: 0 | G83: 0 | H83: 60000
A84: Claremount Circle Underground | B84: 0 | C84: 0 | D84: 0 | E84: 0 | F84: 0 | G84: 0 | H84: 68000
A85: Change Transformer Inventory | B85: 436139 | C85: 76329 | D85: -109366 | E85: -399 | F85: 65026 | G85: 0 | H85: 0
A86: Misc Pole Replacement | B86: 172247 | C86: 239746 | D86: 146453 | E86: 90495 | F86: =85817+97384 -> 183201 | G86: 84426 | H86: =87000+29000 -> 116000
A87: Misc Underground Rebuild | B87: 122131 | C87: 60224 | D87: 85939 | E87: 23022 | F87: 26234 | G87: 25800 | H87: =27000+21000 -> 48000
A88: Misc Overhead Primary | B88: 62950 | C88: 155309 | D88: 15901 | E88: 63531 | F88: 28413 | G88: 29095 | H88: 30000
A89: Misc Transformer Replacement | B89: 117577 | C89: 190861 | D89: 67514 | E89: 70480 | F89: 33797 | G89: 62301 | H89: 64200
A90: Sub-Total Overhead/Underground | B90: =SUM(B32:B89) -> 1622597 | C90: 1639316 | D90: 1508416 | E90: 1483760 | F90: 1494970 | G90: 1226481 | H90: 1334200
A92: Other
A93: Contributed Capital | B93: 137723 | C93: -72017 | D93: 11503 | E93: -24288 | F93: 58762 | G93: 50000 | H93: 50000
A94: Scada Upgrade | B94: 84584 | C94: 0 | D94: 0 | E94: 0 | F94: 0 | G94: 0 | H94: 0
A95: Scada Switches | B95: 0 | C95: 0 | D95: 0 | E95: 104364 | F95: 0 | G95: 27500 | H95: 52500
A96: Back Up Generator | B96: 24019 | C96: 109380 | D96: 144796 | E96: 0 | F96: 0 | G96: 0 | H96: 0
A97: Single Bucket Truck | B97: 0 | C97: 195126 | D97: 29804 | E97: 0 | F97: 0 | G97: 0 | H97: 0
A98: Pickup Trucks/Vans | B98: 29551 | C98: 0 | D98: 0 | E98: 25545 | F98: 66729 | G98: 0 | H98: 0
A99: Double Bucket Truck | B99: 0 | C99: 0 | D99: 0 | E99: 0 | F99: 0 | G99: 0 | H99: 325165
A100: New CIS/Financial System | B100: 0 | C100: 0 | D100: 0 | E100: 330030 | F100: 235589 | G100: 65000 | H100: 0
A101: Atrium Replacement/Building Ext | B101: 0 | C101: 0 | D101: 0 | E101: 0 | F101: 292812 | G101: 155000 | H101: 0
A102: Conference Room Renovations | B102: 0 | C102: 0 | D102: 0 | E102: 0 | F102: 0 | G102: 100000 | H102: 0
A103: Building & Fixtures | B103: =59294 -> 59294 | C103: 28972 | D103: 29920 | E103: 10200 | F103: 0 | G103: 20000 | H103: 20000
A104: Meters | B104: 25511 | C104: 23826 | D104: 16417 | E104: 84374 | F104: 26046 | G104: 12000 | H104: 50000
A105: Furniture & Equipment | B105: 59294 | C105: 16527 | D105: 6564 | E105: 0 | F105: 5735 | G105: 17500 | H105: 0
A106: Computer Hardware | B106: =7160+9554 -> 16714 | C106: 11096 | D106: 20314 | E106: 16315 | F106: 20247 | G106: 35000 | H106: 46000
A107: Computer Software | B107: 41442 | C107: 57068 | D107: 2500 | E107: 2985 | F107: 5345 | G107: 25000 | H107: 58500
A108: Sub-Total Other | B108: =SUM(B93:B107) -> 478132 | C108: 369978 | D108: 261818 | E108: 549525 | F108: 711265 | G108: 507000 | H108: 602165
A110: Miscellaneous | B110: =2293024-2228694-29551 -> 34779 | C110: =2274217-2184552 -> 89665 | D110: =2015220-1933627 -> 81593 | E110: =2752184-2716629 -> 35555 | F110: =2316425-2167566-97384 -> 51475 | G110: =1833000-1786100 -> 46900 | H110: =2001200-1943700-17500 -> 40000
A111: Total | B111: =B110+B108+B90+B29+B21 -> 2293024 | C111: 2274217 | D111: 2015220 | E111: 2752184 | F111: 2316425 | G111: 1887015 | H111: 1976365
A115: Notes:
A117: 1 Please provide a breakdown of the major components of each capital project. Please ensure that all projects below the materiality threshold are included in the miscellaneous line. Add more projects as required.
A119: 2 Amounts should be reported on a MIFRS basis for the adoption year and any subsequent years, only.

Sheet App.2-A_to Ass Plan
A1: Appendix 2-A
A2: Capital Projects vs Asset Management
A5: Projects | B5: =IF(ISBLANK('LDC Info'!E26), "Year 1", 'LDC Info'!E26-5) -> 2007 | C5: =IF(ISBLANK('LDC Info'!E26), "Year 2", 'LDC Info'!E26-4) -> 2008 | D5: =IF(ISBLANK('LDC Info'!E26), "Year 3", 'LDC Info'!E26-3) -> 2009 | E5: =IF(ISBLANK('LDC Info'!E26), "Year 4", 'LDC Info'!E26-2) -> 2010 | F5: =IF(ISBLANK('LDC Info'!E26), "Year 5", 'LDC Info'!E26-1) -> 2011 | G5: ='LDC Info'!E26 & " Bridge Year" -> 2012 Bridge Year | H5: ='LDC Info'!E28 & " Test Year" -> 2013 Test Year | I5: Asset Management Plan
A6: Reporting Basis | B6: CGAAP | C6: CGAAP | D6: CGAAP | E6: CGAAP | F6: CGAAP | G6: MIFRS | H6: MIFRS | I6: MIFRS
A8: Wholesale Metering-TS | B8: 0 | C8: 0 | D8: 5485 | E8: 433700 | F8: 28174 | G8: 0
A13: Sub-Total TS>50 kV | B13: =SUM(B8:B12) -> 0 | C13: =SUM(C8:C12) -> 0 | D13: 5485 | E13: 433700 | F13: 28174 | G13: 0 | H13: 0 | I13: =SUM(I8:I12) -> 0
A15: Substations
A16: Rebuild MS#11 Darby Road | B16: 157516 | C16: 175258 | D16: 24523 | E16: 0 | F16: 0 | G16: 0 | H16: 0 | I16: 0
A17: Rebuild MS#2 McMaster Ave | B17: 0 | C17: 0 | D17: 133385 | E17: 249644 | F17: 0 | G17: 0 | H17: 0 | I17: 0
A18: Primary Cabling MS#7 Fitch St | B18: 0 | C18: 0 | D18: 0 | E18: 0 | F18: 30541 | G18: 0 | H18: 0 | I18: 0
A19: MS#6 Transformer/Underground | B19: 0 | C19: 0 | D19: 0 | E19: 0 | F19: 0 | G19: 106634 | H19: 0 | I19: 0
A21: Sub-Total DS<50 kV | B21: =SUM(B16:B20) -> 157516 | C21: 175258 | D21: 157908 | E21: 249644 | F21: 30541 | G21: 106634 | H21: 0 | I21: =SUM(I16:I20) -> 0
A23: Overhead/Underground
A24: Major Street Rebuild | B24: 146419 | C24: 31800 | D24: 0 | E24: 0 | F24: 0 | G24: 0 | H24: 0 | I24: 0
A25: Towline Tunnel Rebuild | B25: 177138 | C25: 0 | D25: 0 | E25: 0 | F25: 0 | G25: 0 | H25: 0 | I25: 0
A26: Load Transfer Hydro One | B26: 144267 | C26: 84178 | D26: 0 | E26: 0 | F26: 0 | G26: 0 | H26: 0 | I26: 0
A27: Niagara Street 27.6 | B27: 243729 | C27: 0 | D27: 0 | E27: 0 | F27: 0 | G27: 0 | H27: 0 | I27: 0
A28: Colbeck Drive 27.6 | B28: 0 | C28: 217031 | D28: 0 | E28: 0 | F28: 0 | G28: 0 | H28: 0 | I28: 0
A29: Churchhill Ave 27.6 | B29: 0 | C29: 76862 | D29: 9982 | E29: 0 | F29: 0 | G29: 0 | H29: 0 | I29: 0
A30: Lincoln to Cartier 4.16 | B30: 0 | C30: 52388 | D30: 0 | E30: 0 | F30: 0 | G30: 0 | H30: 0 | I30: 0
A31: Cartier Court Underground | B31: 0 | C31: 50029 | D31: 0 | E31: 0 | F31: 0 | G31: 0 | H31: 0 | I31: 0
A32: Harold to Major 4.16 | B32: 0 | C32: 81771 | D32: 0 | E32: 0 | F32: 0 | G32: 0 | H32: 0 | I32: 0
A33: Barrington to Fairlawn Undergrd | B33: 0 | C33: 151481 | D33: 0 | E33: 0 | F33: 0 | G33: 0 | H33: 0 | I33: 0
A34: Mill Street Rebuild | B34: 0 | C34: 171307 | D34: 186228 | E34: 0 | F34: 0 | G34: 0 | H34: 0 | I34: 0
A35: Darby Road Rebuild | B35: 0 | C35: 0 | D35: 64647 | E35: 0 | F35: 0 | G35: 0 | H35: 0 | I35: 0
A36: Ontario Road 27.6 | B36: 0 | C36: 0 | D36: 67892 | E36: 0 | F36: 0 | G36: 0 | H36: 0 | I36: 0
A37: Wilton,Oakwood, Elmwood 27.6 | B37: 0 | C37: 0 | D37: 145132 | E37: 392452 | F37: 0 | G37: 0 | H37: 0 | I37: 0
A38: Burgar Street Rebuild 4.16 | B38: 0 | C38: 0 | D38: 173526 | E38: 0 | F38: 0 | G38: 0 | H38: 0 | I38: 0
A39: Shotwell & Church 4.16 | B39: 0 | C39: 0 | D39: 106635 | E39: 4241 | F39: 0 | G39: 0 | H39: 0 | I39: 0
A40: Smith Street Rebuild | B40: 0 | C40: 0 | D40: 72002 | E40: 0 | F40: 0 | G40: 0 | H40: 0 | I40: 0
A41: Margaret,Nye, Thorold 4.16 | B41: 0 | C41: 0 | D41: 123222 | E41: 0 | F41: 0 | G41: 0 | H41: 0 | I41: 0
A42: Relocate Poles Thorold & Clare | B42: 0 | C42: 0 | D42: 82824 | E42: 2155 | F42: 0 | G42: 0 | H42: 0 | I42: 0
A43: King Street & Merritt 27.6 | B43: 0 | C43: 0 | D43: 66713 | E43: 0 | F43: 0 | G43: 0 | H43: 0 | I43: 0
A44: Acadia Ave Underground | B44: 0 | C44: 0 | D44: 203172 | E44: 0 | F44: 0 | G44: 0 | H44: 0 | I44: 0
A45: McMaster Ave Rebuild | B45: 0 | C45: 0 | D45: 0 | E45: 282900 | F45: 0 | G45: 0 | H45: 0 | I45: 0
A46: Marc Blvd Underground | B46: 0 | C46: 0 | D46: 0 | E46: 172543 | F46: 112754 | G46: 0 | H46: 0 | I46: 0
A47: Pole Replace First Ave | B47: 0 | C47: 0 | D47: 0 | E47: 73458 | F47: 0 | G47: 0 | H47: 0 | I47: 0
A48: Pole Replace Wavel Court | B48: 0 | C48: 0 | D48: 0 | E48: 64166 | F48: 0 | G48: 0 | H48: 0 | I48: 0
A49: East Main to Centre 27.6 | B49: 0 | C49: 0 | D49: 0 | E49: 67183 | F49: 0 | G49: 0 | H49: 0 | I49: 0
A50: Rolling Acres Drive Underground | B50: 0 | C50: 0 | D50: 0 | E50: 177533 | F50: 0 | G50: 0 | H50: 0 | I50: 0
A51: East Main to Wellington 4.16 | B51: 0 | C51: 0 | D51: 0 | E51: 0 | F51: 73383 | G51: 0 | H51: 0 | I51: 0
A52: Pole Replacement Scholfield | B52: 0 | C52: 0 | D52: 0 | E52: 0 | F52: 42966 | G52: 0 | H52: 0 | I52: 0
A53: Mayfair Estates 27.6 Rebuild | B53: 0 | C53: 0 | D53: 0 | E53: 0 | F53: 228756 | G53: 83778 | H53: 0 | I53: 0
A54: Mayfair Estates Underground | B54: 0 | C54: 0 | D54: 0 | E54: 0 | F54: 238254 | G54: 0 | H54: 0 | I54: 0
A55: Pole Replacement East Main | B55: 0 | C55: 0 | D55: 0 | E55: 0 | F55: 40978 | G55: 0 | H55: 0 | I55: 0
A56: Federal Road 27.6 | B56: 0 | C56: 0 | D56: 0 | E56: 0 | F56: 129453 | G56: 0 | H56: 0 | I56: 0
A57: Pole Replacement Cozy/Empire | B57: 0 | C57: 0 | D57: 0 | E57: 0 | F57: 50587 | G57: 0 | H57: 0 | I57: 0
A58: Highway 406 Woodlawn/E Main | B58: 0 | C58: 0 | D58: 0 | E58: 0 | F58: 108735 | G58: 0 | H58: 0 | I58: 0
A59: Townline Road/Dain City 27.6 | B59: 0 | C59: 0 | D59: 0 | E59: 0 | F59: 132433 | G59: 0 | H59: 0 | I59: 0
A60: Relocate Poles Rice to Woodlawn | B60: 0 | C60: 0 | D60: 0 | E60: 0 | F60: 0 | G60: 111404 | H60: 0 | I60: 0
A61: Champlain Ave Underground | B61: 0 | C61: 0 | D61: 0 | E61: 0 | F61: 0 | G61: 86000 | H61: 0 | I61: 0
A62: Regent Street 27.6 | B62: 0 | C62: 0 | D62: 0 | E62: 0 | F62: 0 | G62: 209074 | H62: 0 | I62: 0
A63: PCB Transformer Replacements | B63: 0 | C63: 0 | D63: 0 | E63: 0 | F63: 0 | G63: 41534 | H63: 0 | I63: 0
A64: Dennistoun, Maple, Bald Rebuild | B64: 0 | C64: 0 | D64: 0 | E64: 0 | F64: 0 | G64: 313610 | H64: 0 | I64: 0
A65: Acqeduct, Beechwood Rebuild | B65: 0 | C65: 0 | D65: 0 | E65: 0 | F65: 0 | G65: 125444 | H65: 0 | I65: 0
A66: Wilson, Riverside Drive Rebuild | B66: 0 | C66: 0 | D66: 0 | E66: 0 | F66: 0 | G66: 0 | H66: 167000 | I66: 167000 | J66: 9.1.1 Project 1
A67: McCormick & Dufferin Rebuild | B67: 0 | C67: 0 | D67: 0 | E67: 0 | F67: 0 | G67: 0 | H67: 83000 | I67: 83000 | J67: 9.1.1 Project 2
A68: Garner Ave Rebuild | B68: 0 | C68: 0 | D68: 0 | E68: 0 | F68: 0 | G68: 0 | H68: 63000 | I68: 63000 | J68: 9.1.1 Project 3
A69: Cady Street Rebuild | B69: 0 | C69: 0 | D69: 0 | E69: 0 | F69: 0 | G69: 0 | H69: 30000 | I69: 30000 | J69: 9.1.1 Project 4
A70: Major to Schofield Rebuild | B70: 0 | C70: 0 | D70: 0 | E70: 0 | F70: 0 | G70: 0 | H70: 139000 | I70: 139000 | J70: 9.1.1 Project 6
A71: Southworth Street Rebuild | B71: 0 | C71: 0 | D71: 0 | E71: 0 | F71: 0 | G71: 0 | H71: =126000+84000 -> 210000 | I71: =126000+84000 -> 210000 | J71: 9.1.2 Project 7
A72: Ridge Road Expansion-Solar | B72: 0 | C72: 0 | D72: 0 | E72: 0 | F72: 0 | G72: 0 | H72: 0 | I72: 0 | J72: 9.1.3 Project 8
A73: Lancaster Rebuild | B73: 0 | C73: 0 | D73: 0 | E73: 0 | F73: 0 | G73: 0 | H73: 84000 | I73: 84000 | J73: 9.1.4 Project 9
A74: Preston & Wiltshire Underground | B74: 0 | C74: 0 | D74: 0 | E74: 0 | F74: 0 | G74: 0 | H74: 172000 | I74: 172000 | J74: 9.2.1 Project 10
A75: Bettes Avenue Underground | B75: 0 | C75: 0 | D75: 0 | E75: 0 | F75: 0 | G75: 0 | H75: 60000 | I75: 60000 | J75: 9.2.1 Project 12
A76: Claremount Circle Underground | B76: 0 | C76: 0 | D76: 0 | E76: 0 | F76: 0 | G76: 0 | H76: 68000 | I76: 68000 | J76: 9.2.1 Project 13
J78: 9.1.1 Misc Pole $87,000
J79: 9.1.1 Project 5 $29,000
A80: Misc Pole Replacement | B80: 172247 | C80: 239746 | D80: 146453 | E80: 90495 | F80: =85817+97384 -> 183201 | G80: 84426 | H80: =87000+29000 -> 116000 | I80: =87000+29000 -> 116000
J82: 9.2.1 Minor Under $27,000
J83: 9.2.1 Project 11 $21,000
A84: Misc Underground Rebuild | B84: 122131 | C84: 60224 | D84: 85939 | E84: 23022 | F84: 26234 | G84: 25800 | H84: =27000+21000 -> 48000 | I84: =27000+21000 -> 48000
A86: Misc Overhead Primary | B86: 62950 | C86: 155309 | D86: 15901 | E86: 63531 | F86: 28413 | G86: 29095 | H86: 30000 | I86: 30000 | J86: 9.1.1 Misc Overhead
A87: Misc Transformer Replacement | B87: 117577 | C87: 190861 | D87: 67514 | E87: 70480 | F87: 33797 | G87: 62301 | H87: 64200 | I87: 64200 | J87: 9.1.1 Misc Transformer
A88: Sub-Total Overhead/Underground | B88: =SUM(B24:B87) -> 1186458 | C88: 1562987 | D88: 1617782 | E88: 1484159 | F88: 1429944 | G88: 1172466 | H88: 1334200 | I88: =SUM(I24:I87) -> 1334200
A90: Other
A91: Contributed Capital | B91: 137723 | C91: -72017 | D91: 11503 | E91: -24288 | F91: 58762 | G91: 50000 | H91: 50000 | I91: 50000 | J91: 9.2.2 Developer Contribution
A92: Scada Switches | B92: 0 | C92: 0 | D92: 0 | E92: 104364 | F92: 0 | G92: 27500 | H92: 52500 | I92: 52500 | J92: 9.4.3 SCADA
A93: Double Bucket Truck | B93: 0 | C93: 0 | D93: 0 | E93: 0 | F93: 0 | G93: 0 | H93: 325165 | I93: 325165 | J93: 9.3 Fleet Replacement
A94: Building & Fixtures | B94: =59294 -> 59294 | C94: 28972 | D94: 29920 | E94: 10200 | F94: 0 | G94: 20000 | H94: 20000 | I94: 20000 | J94: 9.4.1 Buildings
A95: Meters | B95: 25511 | C95: 23826 | D95: 16417 | E95: 84374 | F95: 26046 | G95: 12000 | H95: 50000 | I95: 50000 | J95: 9.4.4 Meters
A96: Computer Hardware | B96: =7160+9554 -> 16714 | C96: 11096 | D96: 20314 | E96: 16315 | F96: 20247 | G96: 35000 | H96: 46000 | I96: 46000 | J96: 9.4.2 Computer Hardware
A97: Computer Software | B97: 41442 | C97: 57068 | D97: 2500 | E97: 2985 | F97: 5345 | G97: 25000 | H97: 58500 | I97: 58500 | J97: 9.4.2 Computer Software
A98: Sub-Total Other | B98: =SUM(B91:B97) -> 280684 | C98: 48945 | D98: 80654 | E98: 193950 | F98: 110400 | G98: 169500 | H98: 602165 | I98: =SUM(I91:I97) -> 602165
J100: 9.1.1 Misc Services $35,000
J101: 9.4.5 Tools $5,000
A102: Miscellaneous | B102: =2293024-2228694-29551 -> 34779 | C102: =2274217-2184552 -> 89665 | D102: =2015220-1933627 -> 81593 | E102: =2752184-2716629 -> 35555 | F102: =2316425-2167566-97384 -> 51475 | G102: =1833000-1786100 -> 46900 | H102: =2001200-1943700-17500 -> 40000 | I102: =2001200-1943700-17500 -> 40000
A103: Total | B103: =B102+B98+B88+B21+B13 -> 1659437 | C103: 1876855 | D103: 1943422 | E103: 2397008 | F103: 1650534 | G103: 1495500 | H103: 1976365 | I103: 1976365

Sheet App.2-B_FA Cont 2009 CGAAP
M1: File Number: | N1: ='LDC Info'!$E$18 -> EB-2012-0173
M2: Exhibit: | N2: 2
M3: Tab: | N3: 2
M4: Schedule: | N4: 1
M5: Page: | N5: 2 of 11
M7: Date: | N7: Aug 31, 2012
A9: Appendix 2-B
A10: Fixed Asset Continuity Schedule-CGAAP
F12: Year | G12: 2009
E14: Cost | K14: Accumulated Depreciation
A15: CCA Class | B15: OEB | C15: Description | D15: Depreciation Rate | E15: Opening Balance | F15: Additions | G15: Disposals | H15: Closing Balance | J15: Opening Balance | K15: Additions | L15: Disposals | M15: Closing Balance | N15: Net Book Value
A16: 12 | B16: 1611 | C16: Computer Software (Formally known as Account 1925) | H16: =E16+F16+G16 -> 0 | M16: =J16+K16+L16 -> 0 | N16: =H16+M16 -> 0
A17: CEC | B17: 1612 | C17: Land Rights (Formally known as Account 1906) | H17: =E17+F17+G17 -> 0 | M17: =J17+K17+L17 -> 0 | N17: =H17+M17 -> 0
A18: N/A | B18: 1805 | C18: Land | E18: 158686 | H18: =E18+F18+G18 -> 158686 | M18: =J18+K18+L18 -> 0 | N18: =H18+M18 -> 158686
B19: 1806 | C19: Land Rights | E19: 70296 | H19: =E19+F19+G19 -> 70296 | J19: -57597 | K19: -464 | M19: =J19+K19+L19 -> -58061 | N19: =H19+M19 -> 12235
A20: 47 | B20: 1808 | C20: Buildings | E20: 96567 | H20: 96567 | J20: -52635 | K20: -2040 | M20: -54675 | N20: 41892
A21: 13 | B21: 1810 | C21: Leasehold Improvements | H21: 0 | M21: 0 | N21: 0
A22: 47 | B22: 1815 | C22: Transformer Station Equipment >50 kV | F22: 5485 | H22: 5485 | M22: 0 | N22: 5485
A23: 47 | B23: 1820 | C23: Distribution Station Equipment <50 kV | E23: 3862200 | F23: 164711 | H23: 4026911 | J23: -2141766 | K23: -113325 | M23: -2255091 | N23: 1771820
A24: 47 | B24: 1825 | C24: Storage Battery Equipment | H24: 0 | M24: 0 | N24: 0
A25: 47 | B25: 1830 | C25: Poles, Towers & Fixtures | E25: 3596853 | F25: 1019194 | H25: 4616047 | J25: -421269 | K25: -184642 | M25: -605911 | N25: 4010136
A26: 47 | B26: 1835 | C26: Overhead Conductors & Devices | E26: 12119533 | F26: 152334 | H26: 12271867 | J26: -6871963 | K26: -442744 | M26: -7314707 | N26: 4957160
A27: 47 | B27: 1840 | C27: Underground Conduit | E27: 386610 | F27: 100369 | H27: 486979 | J27: -39343 | K27: -19479 | M27: -58822 | N27: 428157
A28: 47 | B28: 1845 | C28: Underground Conductors & Devices | E28: 10626540 | F28: 171940 | H28: 10798480 | J28: -5994598 | K28: -408152 | M28: -6402750 | N28: 4395730
A29: 47 | B29: 1850 | C29: Line Transformers | E29: 5954195 | F29: 130919 | G29: -30345 | H29: 6054769 | J29: -2615858 | K29: -242711 | L29: 21486 | M29: -2837083 | N29: 3217686
A30: 47 | B30: 1855 | C30: Services (Overhead & Underground) | E30: 346546 | F30: 69887 | H30: 416433 | J30: -48010 | K30: -16657 | M30: -64667 | N30: 351766
A31: 47 | B31: 1860 | C31: Meters | E31: 2288712 | F31: 16417 | H31: 2305129 | J31: -1431635 | K31: -87695 | M31: -1519330 | N31: 785799
A32: 47 | B32: 1860 | C32: Meters (Smart Meters) | H32: 0 | M32: 0 | N32: 0
B33: 1870 | C33: Other Installations-Customer Premises | E33: 8010 | H33: 8010 | J33: -1922 | K33: -320 | M33: -2242 | N33: 5768
A34: N/A | B34: 1905 | C34: Land | H34: 0 | M34: 0 | N34: 0
A35: 47 | B35: 1908 | C35: Buildings & Fixtures | E35: 1834723 | F35: 29920 | H35: 1864643 | J35: -818014 | K35: -46133 | M35: -864147 | N35: 1000496
A36: 13 | B36: 1910 | C36: Leasehold Improvements | H36: 0 | M36: 0 | N36: 0
A37: 8 | B37: 1915 | C37: Office Furniture & Equipment (10 years) | E37: 240687 | F37: 6564 | H37: 247251 | J37: -135673 | K37: -18845 | M37: -154518 | N37: 92733
A38: 8 | B38: 1915 | C38: Office Furniture & Equipment (5 years) | H38: 0 | M38: 0 | N38: 0
A39: 10 | B39: 1920 | C39: Computer Equipment - Hardware | E39: 348682 | F39: 20314 | H39: 368996 | J39: -307999 | K39: -23222 | M39: -331221 | N39: 37775
A40: 45 | B40: 1920 | C40: Computer Equip.-Hardware(Post Mar. 22/04) | H40: 0 | M40: 0 | N40: 0
A41: 45.1 | B41: 1920 | C41: Computer Equip.-Hardware(Post Mar. 19/07) | H41: 0 | M41: 0 | N41: 0
B42: 1925 | C42: Computer Software | E42: 619325 | F42: 2500 | H42: 621825 | J42: -473173 | K42: -67069 | M42: -540242 | N42: 81583
A43: 10 | B43: 1930 | C43: Transportation Equipment | E43: 1579871 | F43: 29803 | G43: -161927 | H43: 1447747 | J43: -1325484 | K43: -40306 | L43: 161927 | M43: -1203863 | N43: 243884
A44: 8 | B44: 1935 | C44: Stores Equipment | E44: 30023 | H44: 30023 | J44: -24810 | K44: -761 | M44: -25571 | N44: 4452
A45: 8 | B45: 1940 | C45: Tools, Shop & Garage Equipment | E45: 320268 | F45: 7521 | H45: 327789 | J45: -264236 | K45: -10237 | M45: -274473 | N45: 53316
A46: 8 | B46: 1945 | C46: Measurement & Testing Equipment | E46: 152441 | G46: -134055 | H46: 18386 | J46: -145654 | K46: -1349 | L46: 134055 | M46: -12948 | N46: 5438
A47: 8 | B47: 1950 | C47: Power Operated Equipment | H47: 0 | M47: 0 | N47: 0
A48: 8 | B48: 1955 | C48: Communications Equipment | E48: 110718 | F48: 15938 | H48: 126656 | J48: -96899 | K48: -5432 | M48: -102331 | N48: 24325
A49: 8 | B49: 1955 | C49: Communication Equipment (Smart Meters) | H49: 0 | M49: 0 | N49: 0
A50: 8 | B50: 1960 | C50: Miscellaneous Equipment | E50: 170439 | F50: 144796 | H50: 315235 | J50: -37040 | K50: -11128 | M50: -48168 | N50: 267067
A51: 47 | B51: 1975 | C51: Load Management Controls Utility Premises | H51: 0 | M51: 0 | N51: 0
A52: 47 | B52: 1980 | C52: System Supervisor Equipment | E52: 1030381 | H52: 1030381 | J52: -703486 | K52: -50197 | M52: -753683 | N52: 276698
A53: 47 | B53: 1985 | C53: Miscellaneous Fixed Assets | H53: 0 | M53: 0 | N53: 0
A54: 47 | B54: 1995 | C54: Contributions & Grants | E54: -1444763 | F54: -73392 | H54: -1518155 | J54: 161576 | K54: 60727 | M54: 222303 | N54: -1295852
B55: etc. | H55: 0 | M55: 0 | N55: 0
H56: 0 | M56: 0 | N56: 0
C57: Total | E57: =SUM(E16:E56) -> 44507543 | F57: =SUM(F16:F56) -> 2015220 | G57: -326327 | H57: 46196436 | J57: =SUM(J16:J56) -> -23847488 | K57: =SUM(K16:K56) -> -1732181 | L57: 317468 | M57: -25262201 | N57: 20934235
J59: Less: Fully Allocated Depreciation
A60: 10 | C60: Transportation | J60: Transportation
A61: 8 | C61: Stores Equipment | J61: Stores Equipment
J62: Net Depreciation | L62: =K57 -> -1732181
A64: Notes:
A66: 1 | B66: Tables in the format outlined above covering all fixed asset accounts should be submitted for the Test Year, Bridge Year and all relevant historical years. At a minimum , the applicant must provide data for the earlier of: 1) all historical years back to its last rebasing; or 2) at least three years of historical actuals, in addition to Bridge Year and Test Year forecasts.
A69: 2 | B69: The "CCA Class" for fixed assets should agree with the CCA Class used for tax purposes in Tax Returns. Fixed Assets sub-components may be used where the underlying asset components are classified under multiple CCA Classes for tax purposes. If an applicant uses any different classes from those shown in the table, an explanation should be provided. (also see note 3 below).
A72: 3 | B72: The table may need to be customized for a utility's asset categories or for any new asset accounts announced or authorized by the Board.
A74: 4 | B74: The depreciation column (D) is not required as the relevant information will be provided in the following 2-C series of appendices.

Sheet App.2-B_FA Cont 2010 CGAAP
M1: File Number: | N1: ='LDC Info'!$E$18 -> EB-2012-0173
M2: Exhibit: | N2: 2
M3: Tab: | N3: 2
M4: Schedule: | N4: 1
M5: Page: | N5: 3 of 11
M7: Date: | N7: Aug 31, 2012
A9: Appendix 2-B
A10: Fixed Asset Continuity Schedule-CGAAP
F12: Year | G12: 2010
E14: Cost | K14: Accumulated Depreciation
A15: CCA Class | B15: OEB | C15: Description | D15: Depreciation Rate | E15: Opening Balance | F15: Additions | G15: Disposals | H15: Closing Balance | J15: Opening Balance | K15: Additions | L15: Disposals | M15: Closing Balance | N15: Net Book Value
A16: 12 | B16: 1611 | C16: Computer Software (Formally known as Account 1925) | H16: =E16+F16+G16 -> 0 | M16: =J16+K16+L16 -> 0 | N16: =H16+M16 -> 0
A17: CEC | B17: 1612 | C17: Land Rights (Formally known as Account 1906) | H17: =E17+F17+G17 -> 0 | M17: =J17+K17+L17 -> 0 | N17: =H17+M17 -> 0
A18: N/A | B18: 1805 | C18: Land | E18: ='App.2-B_FA Cont 2009 CGAAP'!H18 -> 158686 | H18: =E18+F18+G18 -> 158686 | J18: ='App.2-B_FA Cont 2009 CGAAP'!M18 -> 0 | M18: =J18+K18+L18 -> 0 | N18: =H18+M18 -> 158686
B19: 1806 | C19: Land Rights | E19: ='App.2-B_FA Cont 2009 CGAAP'!H19 -> 70296 | H19: =E19+F19+G19 -> 70296 | J19: ='App.2-B_FA Cont 2009 CGAAP'!M19 -> -58061 | K19: -465 | M19: =J19+K19+L19 -> -58526 | N19: =H19+M19 -> 11770
A20: 47 | B20: 1808 | C20: Buildings | E20: ='App.2-B_FA Cont 2009 CGAAP'!H20 -> 96567 | H20: 96567 | J20: ='App.2-B_FA Cont 2009 CGAAP'!M20 -> -54675 | K20: -2040 | M20: -56715 | N20: 39852
A21: 13 | B21: 1810 | C21: Leasehold Improvements | E21: ='App.2-B_FA Cont 2009 CGAAP'!H21 -> 0 | H21: 0 | J21: ='App.2-B_FA Cont 2009 CGAAP'!M21 -> 0 | M21: 0 | N21: 0
A22: 47 | B22: 1815 | C22: Transformer Station Equipment >50 kV | E22: ='App.2-B_FA Cont 2009 CGAAP'!H22 -> 5485 | F22: 433700 | H22: 439185 | J22: ='App.2-B_FA Cont 2009 CGAAP'!M22 -> 0 | K22: -7411 | M22: -7411 | N22: 431774
A23: 47 | B23: 1820 | C23: Distribution Station Equipment <50 kV | E23: ='App.2-B_FA Cont 2009 CGAAP'!H23 -> 4026911 | F23: 439 | G23: -16145 | H23: 4011205 | J23: ='App.2-B_FA Cont 2009 CGAAP'!M23 -> -2255091 | K23: -118208 | L23: 12378 | M23: -2360921 | N23: 1650284
A24: 47 | B24: 1825 | C24: Storage Battery Equipment | E24: ='App.2-B_FA Cont 2009 CGAAP'!H24 -> 0 | H24: 0 | J24: ='App.2-B_FA Cont 2009 CGAAP'!M24 -> 0 | M24: 0 | N24: 0
A25: 47 | B25: 1830 | C25: Poles, Towers & Fixtures | E25: ='App.2-B_FA Cont 2009 CGAAP'!H25 -> 4616047 | F25: 965206 | H25: 5581253 | J25: ='App.2-B_FA Cont 2009 CGAAP'!M25 -> -605911 | K25: -203946 | M25: -809857 | N25: 4771396
A26: 47 | B26: 1835 | C26: Overhead Conductors & Devices | E26: ='App.2-B_FA Cont 2009 CGAAP'!H26 -> 12271867 | F26: 202390 | H26: 12474257 | J26: ='App.2-B_FA Cont 2009 CGAAP'!M26 -> -7314707 | K26: -437889 | M26: -7752596 | N26: 4721661
A27: 47 | B27: 1840 | C27: Underground Conduit | E27: ='App.2-B_FA Cont 2009 CGAAP'!H27 -> 486979 | F27: 228724 | H27: 715703 | J27: ='App.2-B_FA Cont 2009 CGAAP'!M27 -> -58822 | K27: -24054 | M27: -82876 | N27: 632827
A28: 47 | B28: 1845 | C28: Underground Conductors & Devices | E28: ='App.2-B_FA Cont 2009 CGAAP'!H28 -> 10798480 | F28: 256382 | H28: 11054862 | J28: ='App.2-B_FA Cont 2009 CGAAP'!M28 -> -6402750 | K28: -413281 | M28: -6816031 | N28: 4238831
A29: 47 | B29: 1850 | C29: Line Transformers | E29: ='App.2-B_FA Cont 2009 CGAAP'!H29 -> 6054769 | F29: 206802 | G29: -21451 | H29: 6240120 | J29: ='App.2-B_FA Cont 2009 CGAAP'!M29 -> -2837083 | K29: -264953 | L29: 12672 | M29: -3089364 | N29: 3150756
A30: 47 | B30: 1855 | C30: Services (Overhead & Underground) | E30: ='App.2-B_FA Cont 2009 CGAAP'!H30 -> 416433 | F30: 83294 | H30: 499727 | J30: ='App.2-B_FA Cont 2009 CGAAP'!M30 -> -64667 | K30: -18323 | M30: -82990 | N30: 416737
A31: 47 | B31: 1860 | C31: Meters | E31: ='App.2-B_FA Cont 2009 CGAAP'!H31 -> 2305129 | F31: 84374 | H31: 2389503 | J31: ='App.2-B_FA Cont 2009 CGAAP'!M31 -> -1519330 | K31: -136945 | M31: -1656275 | N31: 733228
A32: 47 | B32: 1860 | C32: Meters (Smart Meters) | E32: ='App.2-B_FA Cont 2009 CGAAP'!H32 -> 0 | H32: 0 | J32: ='App.2-B_FA Cont 2009 CGAAP'!M32 -> 0 | M32: 0 | N32: 0
B33: 1870 | C33: Other Installations-Customer Premises | E33: ='App.2-B_FA Cont 2009 CGAAP'!H33 -> 8010 | H33: 8010 | J33: ='App.2-B_FA Cont 2009 CGAAP'!M33 -> -2242 | K33: -320 | M33: -2562 | N33: 5448
A34: N/A | B34: 1905 | C34: Land | E34: ='App.2-B_FA Cont 2009 CGAAP'!H34 -> 0 | H34: 0 | J34: ='App.2-B_FA Cont 2009 CGAAP'!M34 -> 0 | M34: 0 | N34: 0
A35: 47 | B35: 1908 | C35: Buildings & Fixtures | E35: ='App.2-B_FA Cont 2009 CGAAP'!H35 -> 1864643 | F35: 10200 | H35: 1874843 | J35: ='App.2-B_FA Cont 2009 CGAAP'!M35 -> -864147 | K35: -45852 | M35: -909999 | N35: 964844
A36: 13 | B36: 1910 | C36: Leasehold Improvements | E36: ='App.2-B_FA Cont 2009 CGAAP'!H36 -> 0 | H36: 0 | J36: ='App.2-B_FA Cont 2009 CGAAP'!M36 -> 0 | M36: 0 | N36: 0
A37: 8 | B37: 1915 | C37: Office Furniture & Equipment (10 years) | E37: ='App.2-B_FA Cont 2009 CGAAP'!H37 -> 247251 | G37: -162667 | H37: 84584 | J37: ='App.2-B_FA Cont 2009 CGAAP'!M37 -> -154518 | K37: -49619 | L37: 162667 | M37: -41470 | N37: 43114
A38: 8 | B38: 1915 | C38: Office Furniture & Equipment (5 years) | E38: ='App.2-B_FA Cont 2009 CGAAP'!H38 -> 0 | H38: 0 | J38: ='App.2-B_FA Cont 2009 CGAAP'!M38 -> 0 | M38: 0 | N38: 0
A39: 10 | B39: 1920 | C39: Computer Equipment - Hardware | E39: ='App.2-B_FA Cont 2009 CGAAP'!H39 -> 368996 | F39: 16315 | G39: -159687 | H39: 225624 | J39: ='App.2-B_FA Cont 2009 CGAAP'!M39 -> -331221 | K39: -21102 | L39: 159687 | M39: -192636 | N39: 32988
A40: 45 | B40: 1920 | C40: Computer Equip.-Hardware(Post Mar. 22/04) | E40: ='App.2-B_FA Cont 2009 CGAAP'!H40 -> 0 | H40: 0 | J40: ='App.2-B_FA Cont 2009 CGAAP'!M40 -> 0 | M40: 0 | N40: 0
A41: 45.1 | B41: 1920 | C41: Computer Equip.-Hardware(Post Mar. 19/07) | E41: ='App.2-B_FA Cont 2009 CGAAP'!H41 -> 0 | H41: 0 | J41: ='App.2-B_FA Cont 2009 CGAAP'!M41 -> 0 | M41: 0 | N41: 0
B42: 1925 | C42: Computer Software | E42: ='App.2-B_FA Cont 2009 CGAAP'!H42 -> 621825 | F42: 333015 | G42: -213229 | H42: 741611 | J42: ='App.2-B_FA Cont 2009 CGAAP'!M42 -> -540242 | K42: -63832 | L42: 213229 | M42: -390845 | N42: 350766
A43: 10 | B43: 1930 | C43: Transportation Equipment | E43: ='App.2-B_FA Cont 2009 CGAAP'!H43 -> 1447747 | F43: 25545 | H43: 1473292 | J43: ='App.2-B_FA Cont 2009 CGAAP'!M43 -> -1203863 | K43: -32499 | M43: -1236362 | N43: 236930
A44: 8 | B44: 1935 | C44: Stores Equipment | E44: ='App.2-B_FA Cont 2009 CGAAP'!H44 -> 30023 | H44: 30023 | J44: ='App.2-B_FA Cont 2009 CGAAP'!M44 -> -25571 | K44: -761 | M44: -26332 | N44: 3691
A45: 8 | B45: 1940 | C45: Tools, Shop & Garage Equipment | E45: ='App.2-B_FA Cont 2009 CGAAP'!H45 -> 327789 | F45: 11698 | G45: -224537 | H45: 114950 | J45: ='App.2-B_FA Cont 2009 CGAAP'!M45 -> -274473 | K45: -22020 | L45: 224540 | M45: -71953 | N45: 42997
A46: 8 | B46: 1945 | C46: Measurement & Testing Equipment | E46: ='App.2-B_FA Cont 2009 CGAAP'!H46 -> 18386 | H46: 18386 | J46: ='App.2-B_FA Cont 2009 CGAAP'!M46 -> -12948 | K46: -1349 | M46: -14297 | N46: 4089
A47: 8 | B47: 1950 | C47: Power Operated Equipment | E47: ='App.2-B_FA Cont 2009 CGAAP'!H47 -> 0 | H47: 0 | J47: ='App.2-B_FA Cont 2009 CGAAP'!M47 -> 0 | M47: 0 | N47: 0
A48: 8 | B48: 1955 | C48: Communications Equipment | E48: ='App.2-B_FA Cont 2009 CGAAP'!H48 -> 126656 | G48: -53404 | H48: 73252 | J48: ='App.2-B_FA Cont 2009 CGAAP'!M48 -> -102331 | K48: -5369 | L48: 53401 | M48: -54299 | N48: 18953
A49: 8 | B49: 1955 | C49: Communication Equipment (Smart Meters) | E49: ='App.2-B_FA Cont 2009 CGAAP'!H49 -> 0 | H49: 0 | J49: ='App.2-B_FA Cont 2009 CGAAP'!M49 -> 0 | M49: 0 | N49: 0
A50: 8 | B50: 1960 | C50: Miscellaneous Equipment | E50: ='App.2-B_FA Cont 2009 CGAAP'!H50 -> 315235 | H50: 315235 | J50: ='App.2-B_FA Cont 2009 CGAAP'!M50 -> -48168 | K50: -11128 | M50: -59296 | N50: 255939
A51: 47 | B51: 1975 | C51: Load Management Controls Utility Premises | E51: ='App.2-B_FA Cont 2009 CGAAP'!H51 -> 0 | H51: 0 | J51: ='App.2-B_FA Cont 2009 CGAAP'!M51 -> 0 | M51: 0 | N51: 0
A52: 47 | B52: 1980 | C52: System Supervisor Equipment | E52: ='App.2-B_FA Cont 2009 CGAAP'!H52 -> 1030381 | F52: 104364 | H52: 1134745 | J52: ='App.2-B_FA Cont 2009 CGAAP'!M52 -> -753683 | K52: -53677 | M52: -807360 | N52: 327385
A53: 47 | B53: 1985 | C53: Miscellaneous Fixed Assets | E53: ='App.2-B_FA Cont 2009 CGAAP'!H53 -> 0 | H53: 0 | J53: ='App.2-B_FA Cont 2009 CGAAP'!M53 -> 0 | M53: 0 | N53: 0
A54: 47 | B54: 1995 | C54: Contributions & Grants | E54: ='App.2-B_FA Cont 2009 CGAAP'!H54 -> -1518155 | F54: -210264 | H54: -1728419 | J54: ='App.2-B_FA Cont 2009 CGAAP'!M54 -> 222303 | K54: 64932 | M54: 287235 | N54: -1441184
B55: etc. | E55: ='App.2-B_FA Cont 2009 CGAAP'!H55 -> 0 | H55: 0 | J55: ='App.2-B_FA Cont 2009 CGAAP'!M55 -> 0 | M55: 0 | N55: 0
E56: ='App.2-B_FA Cont 2009 CGAAP'!H56 -> 0 | H56: 0 | J56: ='App.2-B_FA Cont 2009 CGAAP'!M56 -> 0 | M56: 0 | N56: 0
C57: Total | E57: =SUM(E16:E56) -> 46196436 | F57: =SUM(F16:F56) -> 2752184 | G57: -851120 | H57: 48097500 | J57: =SUM(J16:J56) -> -25262201 | K57: =SUM(K16:K56) -> -1870111 | L57: 838574 | M57: -26293738 | N57: 21803762
J59: Less: Fully Allocated Depreciation
A60: 10 | C60: Transportation | J60: Transportation
A61: 8 | C61: Stores Equipment | J61: Stores Equipment
J62: Net Depreciation | L62: =K57 -> -1870111
A64: Notes:
A66: 1 | B66: Tables in the format outlined above covering all fixed asset accounts should be submitted for the Test Year, Bridge Year and all relevant historical years. At a minimum , the applicant must provide data for the earlier of: 1) all historical years back to its last rebasing; or 2) at least three years of historical actuals, in addition to Bridge Year and Test Year forecasts.
A69: 2 | B69: The "CCA Class" for fixed assets should agree with the CCA Class used for tax purposes in Tax Returns. Fixed Assets sub-components may be used where the underlying asset components are classified under multiple CCA Classes for tax purposes. If an applicant uses any different classes from those shown in the table, an explanation should be provided. (also see note 3 below).
A72: 3 | B72: The table may need to be customized for a utility's asset categories or for any new asset accounts announced or authorized by the Board.
A74: 4 | B74: The depreciation column (D) is not required as the relevant information will be provided in the following 2-C series of appendices.

Sheet App.2-B_FA Cont 2011 CGAAP
M1: File Number: | N1: ='LDC Info'!$E$18 -> EB-2012-0173
M2: Exhibit: | N2: 2
M3: Tab: | N3: 2
M4: Schedule: | N4: 1
M5: Page: | N5: 4 of 11
M7: Date: | N7: Aug 31, 2012
A9: Appendix 2-B
A10: Fixed Asset Continuity Schedule-CGAAP
F12: Year | G12: 2011
E14: Cost | K14: Accumulated Depreciation
A15: CCA Class | B15: OEB | C15: Description | D15: Depreciation Rate | E15: Opening Balance | F15: Additions | G15: Disposals | H15: Closing Balance | J15: Opening Balance | K15: Additions | L15: Disposals | M15: Closing Balance | N15: Net Book Value
A16: 12 | B16: 1611 | C16: Computer Software (Formally known as Account 1925) | H16: =E16+F16+G16 -> 0 | M16: =J16+K16+L16 -> 0 | N16: =H16+M16 -> 0
A17: CEC | B17: 1612 | C17: Land Rights (Formally known as Account 1906) | H17: =E17+F17+G17 -> 0 | M17: =J17+K17+L17 -> 0 | N17: =H17+M17 -> 0
A18: N/A | B18: 1805 | C18: Land | E18: ='App.2-B_FA Cont 2010 CGAAP '!H18 -> 158686 | H18: =E18+F18+G18 -> 158686 | J18: ='App.2-B_FA Cont 2010 CGAAP '!M18 -> 0 | M18: =J18+K18+L18 -> 0 | N18: =H18+M18 -> 158686
B19: 1806 | C19: Land Rights | E19: ='App.2-B_FA Cont 2010 CGAAP '!H19 -> 70296 | H19: =E19+F19+G19 -> 70296 | J19: ='App.2-B_FA Cont 2010 CGAAP '!M19 -> -58526 | K19: -465 | M19: =J19+K19+L19 -> -58991 | N19: =H19+M19 -> 11305
A20: 47 | B20: 1808 | C20: Buildings | E20: ='App.2-B_FA Cont 2010 CGAAP '!H20 -> 96567 | H20: 96567 | J20: ='App.2-B_FA Cont 2010 CGAAP '!M20 -> -56715 | K20: -2040 | M20: -58755 | N20: 37812
A21: 13 | B21: 1810 | C21: Leasehold Improvements | E21: ='App.2-B_FA Cont 2010 CGAAP '!H21 -> 0 | H21: 0 | J21: ='App.2-B_FA Cont 2010 CGAAP '!M21 -> 0 | M21: 0 | N21: 0
A22: 47 | B22: 1815 | C22: Transformer Station Equipment >50 kV | E22: ='App.2-B_FA Cont 2010 CGAAP '!H22 -> 439185 | F22: 28174 | H22: 467359 | J22: ='App.2-B_FA Cont 2010 CGAAP '!M22 -> -7411 | K22: -15579 | M22: -22990 | N22: 444369
A23: 47 | B23: 1820 | C23: Distribution Station Equipment <50 kV | E23: ='App.2-B_FA Cont 2010 CGAAP '!H23 -> 4011205 | F23: 30541 | H23: 4041746 | J23: ='App.2-B_FA Cont 2010 CGAAP '!M23 -> -2360921 | K23: -110295 | M23: -2471216 | N23: 1570530
A24: 47 | B24: 1825 | C24: Storage Battery Equipment | E24: ='App.2-B_FA Cont 2010 CGAAP '!H24 -> 0 | H24: 0 | J24: ='App.2-B_FA Cont 2010 CGAAP '!M24 -> 0 | M24: 0 | N24: 0
A25: 47 | B25: 1830 | C25: Poles, Towers & Fixtures | E25: ='App.2-B_FA Cont 2010 CGAAP '!H25 -> 5581253 | F25: 870254 | H25: 6451507 | J25: ='App.2-B_FA Cont 2010 CGAAP '!M25 -> -809857 | K25: -240658 | M25: -1050515 | N25: 5400992
A26: 47 | B26: 1835 | C26: Overhead Conductors & Devices | E26: ='App.2-B_FA Cont 2010 CGAAP '!H26 -> 12474257 | F26: 114952 | H26: 12589209 | J26: ='App.2-B_FA Cont 2010 CGAAP '!M26 -> -7752596 | K26: -433779 | M26: -8186375 | N26: 4402834
A27: 47 | B27: 1840 | C27: Underground Conduit | E27: ='App.2-B_FA Cont 2010 CGAAP '!H27 -> 715703 | F27: 110951 | H27: 826654 | J27: ='App.2-B_FA Cont 2010 CGAAP '!M27 -> -82876 | K27: -30847 | M27: -113723 | N27: 712931
A28: 47 | B28: 1845 | C28: Underground Conductors & Devices | E28: ='App.2-B_FA Cont 2010 CGAAP '!H28 -> 11054862 | F28: 404033 | H28: 11458895 | J28: ='App.2-B_FA Cont 2010 CGAAP '!M28 -> -6816031 | K28: -419922 | M28: -7235953 | N28: 4222942
A29: 47 | B29: 1850 | C29: Line Transformers | E29: ='App.2-B_FA Cont 2010 CGAAP '!H29 -> 6240120 | F29: 260447 | G29: -32834 | H29: 6467733 | J29: ='App.2-B_FA Cont 2010 CGAAP '!M29 -> -3089364 | K29: -245651 | L29: 32794 | M29: -3302221 | N29: 3165512
A30: 47 | B30: 1855 | C30: Services (Overhead & Underground) | E30: ='App.2-B_FA Cont 2010 CGAAP '!H30 -> 499727 | F30: 147746 | H30: 647473 | J30: ='App.2-B_FA Cont 2010 CGAAP '!M30 -> -82990 | K30: -22944 | M30: -105934 | N30: 541539
A31: 47 | B31: 1860 | C31: Meters | E31: ='App.2-B_FA Cont 2010 CGAAP '!H31 -> 2389503 | F31: 26046 | H31: 2415549 | J31: ='App.2-B_FA Cont 2010 CGAAP '!M31 -> -1656275 | K31: -63385 | M31: -1719660 | N31: 695889
A32: 47 | B32: 1860 | C32: Meters (Smart Meters) | E32: ='App.2-B_FA Cont 2010 CGAAP '!H32 -> 0 | H32: 0 | J32: ='App.2-B_FA Cont 2010 CGAAP '!M32 -> 0 | M32: 0 | N32: 0
B33: 1870 | C33: Other Installations-Customer Premises | E33: ='App.2-B_FA Cont 2010 CGAAP '!H33 -> 8010 | H33: 8010 | J33: ='App.2-B_FA Cont 2010 CGAAP '!M33 -> -2562 | K33: -320 | M33: -2882 | N33: 5128
A34: N/A | B34: 1905 | C34: Land | E34: ='App.2-B_FA Cont 2010 CGAAP '!H34 -> 0 | H34: 0 | J34: ='App.2-B_FA Cont 2010 CGAAP '!M34 -> 0 | M34: 0 | N34: 0
A35: 47 | B35: 1908 | C35: Buildings & Fixtures | E35: ='App.2-B_FA Cont 2010 CGAAP '!H35 -> 1874843 | F35: 292812 | H35: 2167655 | J35: ='App.2-B_FA Cont 2010 CGAAP '!M35 -> -909999 | K35: -46098 | M35: -956097 | N35: 1211558
A36: 13 | B36: 1910 | C36: Leasehold Improvements | E36: ='App.2-B_FA Cont 2010 CGAAP '!H36 -> 0 | H36: 0 | J36: ='App.2-B_FA Cont 2010 CGAAP '!M36 -> 0 | M36: 0 | N36: 0
A37: 8 | B37: 1915 | C37: Office Furniture & Equipment (10 years) | E37: ='App.2-B_FA Cont 2010 CGAAP '!H37 -> 84584 | F37: 5735 | H37: 90319 | J37: ='App.2-B_FA Cont 2010 CGAAP '!M37 -> -41470 | K37: -8134 | M37: -49604 | N37: 40715
A38: 8 | B38: 1915 | C38: Office Furniture & Equipment (5 years) | E38: ='App.2-B_FA Cont 2010 CGAAP '!H38 -> 0 | H38: 0 | J38: ='App.2-B_FA Cont 2010 CGAAP '!M38 -> 0 | M38: 0 | N38: 0
A39: 10 | B39: 1920 | C39: Computer Equipment - Hardware | E39: ='App.2-B_FA Cont 2010 CGAAP '!H39 -> 225624 | F39: 20247 | H39: 245871 | J39: ='App.2-B_FA Cont 2010 CGAAP '!M39 -> -192636 | K39: -15978 | M39: -208614 | N39: 37257
A40: 45 | B40: 1920 | C40: Computer Equip.-Hardware(Post Mar. 22/04) | E40: ='App.2-B_FA Cont 2010 CGAAP '!H40 -> 0 | H40: 0 | J40: ='App.2-B_FA Cont 2010 CGAAP '!M40 -> 0 | M40: 0 | N40: 0
A41: 45.1 | B41: 1920 | C41: Computer Equip.-Hardware(Post Mar. 19/07) | E41: ='App.2-B_FA Cont 2010 CGAAP '!H41 -> 0 | H41: 0 | J41: ='App.2-B_FA Cont 2010 CGAAP '!M41 -> 0 | M41: 0 | N41: 0
B42: 1925 | C42: Computer Software | E42: ='App.2-B_FA Cont 2010 CGAAP '!H42 -> 741611 | F42: 240934 | H42: 982545 | J42: ='App.2-B_FA Cont 2010 CGAAP '!M42 -> -390845 | K42: -44794 | M42: -435639 | N42: 546906
A43: 10 | B43: 1930 | C43: Transportation Equipment | E43: ='App.2-B_FA Cont 2010 CGAAP '!H43 -> 1473292 | F43: 66729 | G43: -148571 | H43: 1391450 | J43: ='App.2-B_FA Cont 2010 CGAAP '!M43 -> -1236362 | K43: -37337 | L43: 148574 | M43: -1125125 | N43: 266325
A44: 8 | B44: 1935 | C44: Stores Equipment | E44: ='App.2-B_FA Cont 2010 CGAAP '!H44 -> 30023 | H44: 30023 | J44: ='App.2-B_FA Cont 2010 CGAAP '!M44 -> -26332 | K44: -761 | M44: -27093 | N44: 2930
A45: 8 | B45: 1940 | C45: Tools, Shop & Garage Equipment | E45: ='App.2-B_FA Cont 2010 CGAAP '!H45 -> 114950 | H45: 114950 | J45: ='App.2-B_FA Cont 2010 CGAAP '!M45 -> -71953 | K45: -7886 | M45: -79839 | N45: 35111
A46: 8 | B46: 1945 | C46: Measurement & Testing Equipment | E46: ='App.2-B_FA Cont 2010 CGAAP '!H46 -> 18386 | F46: 2005 | H46: 20391 | J46: ='App.2-B_FA Cont 2010 CGAAP '!M46 -> -14297 | K46: -1449 | M46: -15746 | N46: 4645
A47: 8 | B47: 1950 | C47: Power Operated Equipment | E47: ='App.2-B_FA Cont 2010 CGAAP '!H47 -> 0 | H47: 0 | J47: ='App.2-B_FA Cont 2010 CGAAP '!M47 -> 0 | M47: 0 | N47: 0
A48: 8 | B48: 1955 | C48: Communications Equipment | E48: ='App.2-B_FA Cont 2010 CGAAP '!H48 -> 73252 | H48: 73252 | J48: ='App.2-B_FA Cont 2010 CGAAP '!M48 -> -54299 | K48: -14932 | M48: -69231 | N48: 4021
A49: 8 | B49: 1955 | C49: Communication Equipment (Smart Meters) | E49: ='App.2-B_FA Cont 2010 CGAAP '!H49 -> 0 | H49: 0 | J49: ='App.2-B_FA Cont 2010 CGAAP '!M49 -> 0 | M49: 0 | N49: 0
A50: 8 | B50: 1960 | C50: Miscellaneous Equipment | E50: ='App.2-B_FA Cont 2010 CGAAP '!H50 -> 315235 | H50: 315235 | J50: ='App.2-B_FA Cont 2010 CGAAP '!M50 -> -59296 | K50: -11128 | M50: -70424 | N50: 244811
A51: 47 | B51: 1975 | C51: Load Management Controls Utility Premises | E51: ='App.2-B_FA Cont 2010 CGAAP '!H51 -> 0 | H51: 0 | J51: ='App.2-B_FA Cont 2010 CGAAP '!M51 -> 0 | M51: 0 | N51: 0
A52: 47 | B52: 1980 | C52: System Supervisor Equipment | E52: ='App.2-B_FA Cont 2010 CGAAP '!H52 -> 1134745 | H52: 1134745 | J52: ='App.2-B_FA Cont 2010 CGAAP '!M52 -> -807360 | K52: -51998 | M52: -859358 | N52: 275387
A53: 47 | B53: 1985 | C53: Miscellaneous Fixed Assets | E53: ='App.2-B_FA Cont 2010 CGAAP '!H53 -> 0 | H53: 0 | J53: ='App.2-B_FA Cont 2010 CGAAP '!M53 -> 0 | M53: 0 | N53: 0
A54: 47 | B54: 1995 | C54: Contributions & Grants | E54: ='App.2-B_FA Cont 2010 CGAAP '!H54 -> -1728419 | F54: -305181 | H54: -2033600 | J54: ='App.2-B_FA Cont 2010 CGAAP '!M54 -> 287235 | K54: 75240 | M54: 362475 | N54: -1671125
B55: etc. | E55: ='App.2-B_FA Cont 2010 CGAAP '!H55 -> 0 | H55: 0 | J55: ='App.2-B_FA Cont 2010 CGAAP '!M55 -> 0 | M55: 0 | N55: 0
E56: ='App.2-B_FA Cont 2010 CGAAP '!H56 -> 0 | H56: 0 | J56: ='App.2-B_FA Cont 2010 CGAAP '!M56 -> 0 | M56: 0 | N56: 0
C57: Total | E57: =SUM(E16:E56) -> 48097500 | F57: =SUM(F16:F56) -> 2316425 | G57: -181405 | H57: 50232520 | J57: =SUM(J16:J56) -> -26293738 | K57: =SUM(K16:K56) -> -1751140 | L57: 181368 | M57: -27863510 | N57: 22369010
C59: Transfer Smart Meters from 1555 to Various Accounts | H59: 3032864 | M59: -458210 | N59: =H59+M59 -> 2574654
C60: Transfer Stranded Meters from 1860 to 1555 | H60: -2191404 | M60: 1635495 | N60: =H60+M60 -> -555909
C61: Revised Closing Blance Forward | H61: =H57+H59+H60 -> 51073980 | M61: =M57+M59+M60 -> -26686225 | N61: =N57+N59+N60 -> 24387755
J63: Less: Fully Allocated Depreciation
A64: 10 | C64: Transportation | J64: Transportation
A65: 8 | C65: Stores Equipment | J65: Stores Equipment
J66: Net Depreciation | L66: =K57 -> -1751140
A68: Notes:
A70: 1 | B70: Tables in the format outlined above covering all fixed asset accounts should be submitted for the Test Year, Bridge Year and all relevant historical years. At a minimum , the applicant must provide data for the earlier of: 1) all historical years back to its last rebasing; or 2) at least three years of historical actuals, in addition to Bridge Year and Test Year forecasts.
A73: 2 | B73: The "CCA Class" for fixed assets should agree with the CCA Class used for tax purposes in Tax Returns. Fixed Assets sub-components may be used where the underlying asset components are classified under multiple CCA Classes for tax purposes. If an applicant uses any different classes from those shown in the table, an explanation should be provided. (also see note 3 below).
A76: 3 | B76: The table may need to be customized for a utility's asset categories or for any new asset accounts announced or authorized by the Board.
A78: 4 | B78: The depreciation column (D) is not required as the relevant information will be provided in the following 2-C series of appendices.

Sheet App.2-B_FA Cont 2012 CGAAP
M1: File Number: | N1: ='LDC Info'!$E$18 -> EB-2012-0173
M2: Exhibit: | N2: 2
M3: Tab: | N3: 2
M4: Schedule: | N4: 1
M5: Page: | N5: 5 of 11
M7: Date: | N7: Aug 31, 2012
A9: Appendix 2-B
A10: Fixed Asset Continuity Schedule-CGAAP
F12: Year | G12: 2012
E14: Cost | K14: Accumulated Depreciation
A15: CCA Class | B15: OEB | C15: Description | D15: Depreciation Rate | E15: Opening Balance | F15: Additions | G15: Disposals | H15: Closing Balance | J15: Opening Balance | K15: Additions | L15: Disposals | M15: Closing Balance | N15: Net Book Value
A16: 12 | B16: 1611 | C16: Computer Software (Formally known as Account 1925) | H16: =E16+F16+G16 -> 0 | M16: =J16+K16+L16 -> 0 | N16: =H16+M16 -> 0
A17: CEC | B17: 1612 | C17: Land Rights (Formally known as Account 1906) | H17: =E17+F17+G17 -> 0 | M17: =J17+K17+L17 -> 0 | N17: =H17+M17 -> 0
A18: N/A | B18: 1805 | C18: Land | E18: ='App.2-B_FA Cont 2011 CGAAP '!H18 -> 158686 | H18: =E18+F18+G18 -> 158686 | J18: ='App.2-B_FA Cont 2011 CGAAP '!M18 -> 0 | M18: =J18+K18+L18 -> 0 | N18: =H18+M18 -> 158686
B19: 1806 | C19: Land Rights | E19: ='App.2-B_FA Cont 2011 CGAAP '!H19 -> 70296 | H19: =E19+F19+G19 -> 70296 | J19: ='App.2-B_FA Cont 2011 CGAAP '!M19 -> -58991 | K19: -465 | M19: =J19+K19+L19 -> -59456 | N19: =H19+M19 -> 10840
A20: 47 | B20: 1808 | C20: Buildings | E20: ='App.2-B_FA Cont 2011 CGAAP '!H20 -> 96567 | H20: 96567 | J20: ='App.2-B_FA Cont 2011 CGAAP '!M20 -> -58755 | K20: -2041 | M20: -60796 | N20: 35771
A21: 13 | B21: 1810 | C21: Leasehold Improvements | E21: ='App.2-B_FA Cont 2011 CGAAP '!H21 -> 0 | H21: 0 | J21: ='App.2-B_FA Cont 2011 CGAAP '!M21 -> 0 | M21: 0 | N21: 0
A22: 47 | B22: 1815 | C22: Transformer Station Equipment >50 kV | E22: ='App.2-B_FA Cont 2011 CGAAP '!H22 -> 467359 | H22: 467359 | J22: ='App.2-B_FA Cont 2011 CGAAP '!M22 -> -22990 | K22: -15579 | M22: -38569 | N22: 428790
A23: 47 | B23: 1820 | C23: Distribution Station Equipment <50 kV | E23: ='App.2-B_FA Cont 2011 CGAAP '!H23 -> 4041746 | H23: 4041746 | J23: ='App.2-B_FA Cont 2011 CGAAP '!M23 -> -2471216 | K23: -106654 | M23: -2577870 | N23: 1463876
A24: 47 | B24: 1825 | C24: Storage Battery Equipment | E24: ='App.2-B_FA Cont 2011 CGAAP '!H24 -> 0 | H24: 0 | J24: ='App.2-B_FA Cont 2011 CGAAP '!M24 -> 0 | M24: 0 | N24: 0
A25: 47 | B25: 1830 | C25: Poles, Towers & Fixtures | E25: ='App.2-B_FA Cont 2011 CGAAP '!H25 -> 6451507 | F25: =610000+68085 -> 678085 | H25: 7129592 | J25: ='App.2-B_FA Cont 2011 CGAAP '!M25 -> -1050515 | K25: =-270260-1362 -> -271622 | M25: -1322137 | N25: 5807455
A26: 47 | B26: 1835 | C26: Overhead Conductors & Devices | E26: ='App.2-B_FA Cont 2011 CGAAP '!H26 -> 12589209 | F26: 367500 | H26: 12956709 | J26: ='App.2-B_FA Cont 2011 CGAAP '!M26 -> -8186375 | K26: -431813 | M26: -8618188 | N26: 4338521
A27: 47 | B27: 1840 | C27: Underground Conduit | E27: ='App.2-B_FA Cont 2011 CGAAP '!H27 -> 826654 | F27: 90000 | H27: 916654 | J27: ='App.2-B_FA Cont 2011 CGAAP '!M27 -> -113723 | K27: -34866 | M27: -148589 | N27: 768065
A28: 47 | B28: 1845 | C28: Underground Conductors & Devices | E28: ='App.2-B_FA Cont 2011 CGAAP '!H28 -> 11458895 | F28: 195000 | H28: 11653895 | J28: ='App.2-B_FA Cont 2011 CGAAP '!M28 -> -7235953 | K28: -414305 | M28: -7650258 | N28: 4003637
A29: 47 | B29: 1850 | C29: Line Transformers | E29: ='App.2-B_FA Cont 2011 CGAAP '!H29 -> 6467733 | F29: 427500 | H29: 6895233 | J29: ='App.2-B_FA Cont 2011 CGAAP '!M29 -> -3302221 | K29: -252266 | M29: -3554487 | N29: 3340746
A30: 47 | B30: 1855 | C30: Services (Overhead & Underground) | E30: ='App.2-B_FA Cont 2011 CGAAP '!H30 -> 647473 | F30: 40000 | H30: 687473 | J30: ='App.2-B_FA Cont 2011 CGAAP '!M30 -> -105934 | K30: -26699 | M30: -132633 | N30: 554840
A31: 47 | B31: 1860 | C31: Meters | E31: 224145 | H31: 224145 | J31: -84165 | K31: -8475 | M31: -92640 | N31: 131505
A32: 47 | B32: 1860 | C32: Meters (Smart Meters) | E32: 2755384 | F32: 12000 | H32: 2767384 | J32: -386894 | K32: -184092 | M32: -570986 | N32: 2196398
B33: 1870 | C33: Other Installations-Customer Premises | E33: ='App.2-B_FA Cont 2011 CGAAP '!H33 -> 8010 | H33: 8010 | J33: ='App.2-B_FA Cont 2011 CGAAP '!M33 -> -2882 | K33: -320 | M33: -3202 | N33: 4808
A34: N/A | B34: 1905 | C34: Land | E34: ='App.2-B_FA Cont 2011 CGAAP '!H34 -> 0 | H34: 0 | J34: ='App.2-B_FA Cont 2011 CGAAP '!M34 -> 0 | M34: 0 | N34: 0
A35: 47 | B35: 1908 | C35: Buildings & Fixtures | E35: 2169785 | F35: 275000 | H35: 2444785 | J35: -956310 | K35: -60650 | M35: -1016960 | N35: 1427825
A36: 13 | B36: 1910 | C36: Leasehold Improvements | E36: ='App.2-B_FA Cont 2011 CGAAP '!H36 -> 0 | H36: 0 | J36: ='App.2-B_FA Cont 2011 CGAAP '!M36 -> 0 | M36: 0 | N36: 0
A37: 8 | B37: 1915 | C37: Office Furniture & Equipment (10 years) | E37: ='App.2-B_FA Cont 2011 CGAAP '!H37 -> 90319 | F37: 17500 | H37: 107819 | J37: ='App.2-B_FA Cont 2011 CGAAP '!M37 -> -49604 | K37: -9250 | M37: -58854 | N37: 48965
A38: 8 | B38: 1915 | C38: Office Furniture & Equipment (5 years) | E38: ='App.2-B_FA Cont 2011 CGAAP '!H38 -> 0 | H38: 0 | J38: ='App.2-B_FA Cont 2011 CGAAP '!M38 -> 0 | M38: 0 | N38: 0
A39: 10 | B39: 1920 | C39: Computer Equipment - Hardware | E39: 287608 | F39: 35000 | H39: 322608 | J39: -223707 | K39: -25442 | M39: -249149 | N39: 73459
A40: 45 | B40: 1920 | C40: Computer Equip.-Hardware(Post Mar. 22/04) | E40: ='App.2-B_FA Cont 2011 CGAAP '!H40 -> 0 | H40: 0 | J40: ='App.2-B_FA Cont 2011 CGAAP '!M40 -> 0 | M40: 0 | N40: 0
A41: 45.1 | B41: 1920 | C41: Computer Equip.-Hardware(Post Mar. 19/07) | E41: ='App.2-B_FA Cont 2011 CGAAP '!H41 -> 0 | H41: 0 | J41: ='App.2-B_FA Cont 2011 CGAAP '!M41 -> 0 | M41: 0 | N41: 0
B42: 1925 | C42: Computer Software | E42: 1010405 | F42: 90000 | H42: 1100405 | J42: -441749 | K42: -138101 | M42: -579850 | N42: 520555
A43: 10 | B43: 1930 | C43: Transportation Equipment | E43: ='App.2-B_FA Cont 2011 CGAAP '!H43 -> 1391450 | H43: 1391450 | J43: ='App.2-B_FA Cont 2011 CGAAP '!M43 -> -1125125 | K43: -40898 | M43: -1166023 | N43: 225427
A44: 8 | B44: 1935 | C44: Stores Equipment | E44: ='App.2-B_FA Cont 2011 CGAAP '!H44 -> 30023 | H44: 30023 | J44: ='App.2-B_FA Cont 2011 CGAAP '!M44 -> -27093 | K44: -761 | M44: -27854 | N44: 2169
A45: 8 | B45: 1940 | C45: Tools, Shop & Garage Equipment | E45: ='App.2-B_FA Cont 2011 CGAAP '!H45 -> 114950 | F45: 13000 | H45: 127950 | J45: ='App.2-B_FA Cont 2011 CGAAP '!M45 -> -79839 | K45: -8121 | M45: -87960 | N45: 39990
A46: 8 | B46: 1945 | C46: Measurement & Testing Equipment | E46: ='App.2-B_FA Cont 2011 CGAAP '!H46 -> 20391 | H46: 20391 | J46: ='App.2-B_FA Cont 2011 CGAAP '!M46 -> -15746 | K46: -1035 | M46: -16781 | N46: 3610
A47: 8 | B47: 1950 | C47: Power Operated Equipment | E47: ='App.2-B_FA Cont 2011 CGAAP '!H47 -> 0 | H47: 0 | J47: ='App.2-B_FA Cont 2011 CGAAP '!M47 -> 0 | M47: 0 | N47: 0
A48: 8 | B48: 1955 | C48: Communications Equipment | E48: 279005 | H48: 279005 | J48: -119132 | K48: -24857 | M48: -143989 | N48: 135016
A49: 8 | B49: 1955 | C49: Communication Equipment (Smart Meters) | E49: ='App.2-B_FA Cont 2011 CGAAP '!H49 -> 0 | H49: 0 | J49: ='App.2-B_FA Cont 2011 CGAAP '!M49 -> 0 | M49: 0 | N49: 0
A50: 8 | B50: 1960 | C50: Miscellaneous Equipment | E50: ='App.2-B_FA Cont 2011 CGAAP '!H50 -> 315235 | H50: 315235 | J50: ='App.2-B_FA Cont 2011 CGAAP '!M50 -> -70424 | K50: -11128 | M50: -81552 | N50: 233683
A51: 47 | B51: 1975 | C51: Load Management Controls Utility Premises | E51: ='App.2-B_FA Cont 2011 CGAAP '!H51 -> 0 | H51: 0 | J51: ='App.2-B_FA Cont 2011 CGAAP '!M51 -> 0 | M51: 0 | N51: 0
A52: 47 | B52: 1980 | C52: System Supervisor Equipment | E52: ='App.2-B_FA Cont 2011 CGAAP '!H52 -> 1134745 | F52: 27500 | H52: 1162245 | J52: ='App.2-B_FA Cont 2011 CGAAP '!M52 -> -859358 | K52: -53094 | M52: -912452 | N52: 249793
A53: 47 | B53: 1985 | C53: Miscellaneous Fixed Assets | E53: ='App.2-B_FA Cont 2011 CGAAP '!H53 -> 0 | H53: 0 | J53: ='App.2-B_FA Cont 2011 CGAAP '!M53 -> 0 | M53: 0 | N53: 0
A54: 47 | B54: 1995 | C54: Contributions & Grants | E54: ='App.2-B_FA Cont 2011 CGAAP '!H54 -> -2033600 | F54: -100000 | H54: -2133600 | J54: ='App.2-B_FA Cont 2011 CGAAP '!M54 -> 362475 | K54: 83343 | M54: 445818 | N54: -1687782
B55: etc. | E55: ='App.2-B_FA Cont 2011 CGAAP '!H55 -> 0 | H55: 0 | J55: ='App.2-B_FA Cont 2011 CGAAP '!M55 -> 0 | M55: 0 | N55: 0
E56: ='App.2-B_FA Cont 2011 CGAAP '!H56 -> 0 | H56: 0 | J56: ='App.2-B_FA Cont 2011 CGAAP '!M56 -> 0 | M56: 0 | N56: 0
C57: Total | E57: =SUM(E16:E56) -> 51073980 | F57: =SUM(F16:F56) -> 2168085 | G57: 0 | H57: 53242065 | J57: =SUM(J16:J56) -> -26686226 | K57: =SUM(K16:K56) -> -2039191 | L57: 0 | M57: -28725417 | N57: 24516648
J59: Less: Fully Allocated Depreciation
A60: 10 | C60: Transportation | J60: Transportation
A61: 8 | C61: Stores Equipment | J61: Stranded Meters | L61: -75669
J62: Net Depreciation | L62: =K57+L60+L61 -> -2114860
A64: Notes:
A66: 1 | B66: Tables in the format outlined above covering all fixed asset accounts should be submitted for the Test Year, Bridge Year and all relevant historical years. At a minimum , the applicant must provide data for the earlier of: 1) all historical years back to its last rebasing; or 2) at least three years of historical actuals, in addition to Bridge Year and Test Year forecasts.
A69: 2 | B69: The "CCA Class" for fixed assets should agree with the CCA Class used for tax purposes in Tax Returns. Fixed Assets sub-components may be used where the underlying asset components are classified under multiple CCA Classes for tax purposes. If an applicant uses any different classes from those shown in the table, an explanation should be provided. (also see note 3 below).
A72: 3 | B72: The table may need to be customized for a utility's asset categories or for any new asset accounts announced or authorized by the Board.
A74: 4 | B74: The depreciation column (D) is not required as the relevant information will be provided in the following 2-C series of appendices.

Sheet App.2-B_FA Cont 2012 MIFRS
M1: File Number: | N1: ='LDC Info'!$E$18 -> EB-2012-0173
M2: Exhibit: | N2: 2
M3: Tab: | N3: 2
M4: Schedule: | N4: 1
M5: Page: | N5: 6 of 11
M7: Date: | N7: Aug 31, 2012
A9: Appendix 2-B
A10: Fixed Asset Continuity Schedule-MIFRS
F12: Year | G12: 2012
E14: Cost | K14: Accumulated Depreciation
A15: CCA Class | B15: OEB | C15: Description | D15: Depreciation Rate | E15: Opening Balance | F15: Additions | G15: Disposals | H15: Closing Balance | J15: Opening Balance | K15: Additions | L15: Disposals | M15: Closing Balance | N15: Net Book Value
A16: 12 | B16: 1611 | C16: Computer Software (Formally known as Account 1925) | H16: =E16+F16+G16 -> 0 | M16: =J16+K16+L16 -> 0 | N16: =H16+M16 -> 0
A17: CEC | B17: 1612 | C17: Land Rights (Formally known as Account 1906) | H17: =E17+F17+G17 -> 0 | M17: =J17+K17+L17 -> 0 | N17: =H17+M17 -> 0
A18: N/A | B18: 1805 | C18: Land | E18: ='App.2-B_FA Cont 2012 CGAAP '!E18 -> 158686 | H18: =E18+F18+G18 -> 158686 | J18: ='App.2-B_FA Cont 2012 CGAAP '!J18 -> 0 | M18: =J18+K18+L18 -> 0 | N18: =H18+M18 -> 158686
B19: 1806 | C19: Land Rights | E19: ='App.2-B_FA Cont 2012 CGAAP '!E19 -> 70296 | H19: =E19+F19+G19 -> 70296 | J19: ='App.2-B_FA Cont 2012 CGAAP '!J19 -> -58991 | K19: -640 | M19: =J19+K19+L19 -> -59631 | N19: =H19+M19 -> 10665
A20: 47 | B20: 1808 | C20: Buildings | E20: ='App.2-B_FA Cont 2012 CGAAP '!E20 -> 96567 | H20: 96567 | J20: ='App.2-B_FA Cont 2012 CGAAP '!J20 -> -58755 | K20: -1236 | M20: -59991 | N20: 36576
A21: 13 | B21: 1810 | C21: Leasehold Improvements | E21: ='App.2-B_FA Cont 2012 CGAAP '!E21 -> 0 | H21: 0 | J21: ='App.2-B_FA Cont 2012 CGAAP '!J21 -> 0 | M21: 0 | N21: 0
A22: 47 | B22: 1815 | C22: Transformer Station Equipment >50 kV | E22: ='App.2-B_FA Cont 2012 CGAAP '!E22 -> 467359 | H22: 467359 | J22: ='App.2-B_FA Cont 2012 CGAAP '!J22 -> -22990 | K22: -14857 | M22: -37847 | N22: 429512
A23: 47 | B23: 1820 | C23: Distribution Station Equipment <50 kV | E23: ='App.2-B_FA Cont 2012 CGAAP '!E23 -> 4041746 | H23: 4041746 | J23: ='App.2-B_FA Cont 2012 CGAAP '!J23 -> -2471216 | K23: -71683 | M23: -2542899 | N23: 1498847
A24: 47 | B24: 1825 | C24: Storage Battery Equipment | E24: ='App.2-B_FA Cont 2012 CGAAP '!E24 -> 0 | H24: 0 | J24: ='App.2-B_FA Cont 2012 CGAAP '!J24 -> 0 | M24: 0 | N24: 0
A25: 47 | B25: 1830 | C25: Poles, Towers & Fixtures | E25: ='App.2-B_FA Cont 2012 CGAAP '!E25 -> 6451507 | F25: =515000+54015 -> 569015 | H25: 7020522 | J25: ='App.2-B_FA Cont 2012 CGAAP '!J25 -> -1050515 | K25: =-122350-540 -> -122890 | M25: -1173405 | N25: 5847117
A26: 47 | B26: 1835 | C26: Overhead Conductors & Devices | E26: ='App.2-B_FA Cont 2012 CGAAP '!E26 -> 12589209 | F26: 305500 | H26: 12894709 | J26: ='App.2-B_FA Cont 2012 CGAAP '!J26 -> -8186375 | K26: -120862 | M26: -8307237 | N26: 4587472
A27: 47 | B27: 1840 | C27: Underground Conduit | E27: ='App.2-B_FA Cont 2012 CGAAP '!E27 -> 826654 | F27: 79000 | H27: 905654 | J27: ='App.2-B_FA Cont 2012 CGAAP '!J27 -> -113723 | K27: -16054 | M27: -129777 | N27: 775877
A28: 47 | B28: 1845 | C28: Underground Conductors & Devices | E28: ='App.2-B_FA Cont 2012 CGAAP '!E28 -> 11458895 | F28: 171000 | H28: 11629895 | J28: ='App.2-B_FA Cont 2012 CGAAP '!J28 -> -7235953 | K28: -205480 | M28: -7441433 | N28: 4188462
A29: 47 | B29: 1850 | C29: Line Transformers | E29: ='App.2-B_FA Cont 2012 CGAAP '!E29 -> 6467733 | F29: 358500 | H29: 6826233 | J29: ='App.2-B_FA Cont 2012 CGAAP '!J29 -> -3302221 | K29: -111060 | M29: -3413281 | N29: 3412952
A30: 47 | B30: 1855 | C30: Services (Overhead & Underground) | E30: ='App.2-B_FA Cont 2012 CGAAP '!E30 -> 647473 | F30: 34000 | H30: 681473 | J30: ='App.2-B_FA Cont 2012 CGAAP '!J30 -> -105934 | K30: -15428 | M30: -121362 | N30: 560111
A31: 47 | B31: 1860 | C31: Meters | E31: ='App.2-B_FA Cont 2012 CGAAP '!E31 -> 224145 | H31: 224145 | J31: ='App.2-B_FA Cont 2012 CGAAP '!J31 -> -84165 | K31: -8475 | M31: -92640 | N31: 131505
A32: 47 | B32: 1860 | C32: Meters (Smart Meters) | E32: ='App.2-B_FA Cont 2012 CGAAP '!E32 -> 2755384 | F32: 12000 | H32: 2767384 | J32: ='App.2-B_FA Cont 2012 CGAAP '!J32 -> -386894 | K32: -184092 | M32: -570986 | N32: 2196398
B33: 1870 | C33: Other Installations-Customer Premises | E33: ='App.2-B_FA Cont 2012 CGAAP '!E33 -> 8010 | H33: 8010 | J33: ='App.2-B_FA Cont 2012 CGAAP '!J33 -> -2882 | K33: -2564 | M33: -5446 | N33: 2564
A34: N/A | B34: 1905 | C34: Land | E34: ='App.2-B_FA Cont 2012 CGAAP '!E34 -> 0 | H34: 0 | J34: ='App.2-B_FA Cont 2012 CGAAP '!J34 -> 0 | M34: 0 | N34: 0
A35: 47 | B35: 1908 | C35: Buildings & Fixtures | E35: ='App.2-B_FA Cont 2012 CGAAP '!E35 -> 2169785 | F35: 275000 | H35: 2444785 | J35: ='App.2-B_FA Cont 2012 CGAAP '!J35 -> -956310 | K35: -61319 | M35: -1017629 | N35: 1427156
A36: 13 | B36: 1910 | C36: Leasehold Improvements | E36: ='App.2-B_FA Cont 2012 CGAAP '!E36 -> 0 | H36: 0 | J36: ='App.2-B_FA Cont 2012 CGAAP '!J36 -> 0 | M36: 0 | N36: 0
A37: 8 | B37: 1915 | C37: Office Furniture & Equipment (10 years) | E37: ='App.2-B_FA Cont 2012 CGAAP '!E37 -> 90319 | F37: 17500 | H37: 107819 | J37: ='App.2-B_FA Cont 2012 CGAAP '!J37 -> -49604 | K37: -9250 | M37: -58854 | N37: 48965
A38: 8 | B38: 1915 | C38: Office Furniture & Equipment (5 years) | E38: ='App.2-B_FA Cont 2012 CGAAP '!E38 -> 0 | H38: 0 | J38: ='App.2-B_FA Cont 2012 CGAAP '!J38 -> 0 | M38: 0 | N38: 0
A39: 10 | B39: 1920 | C39: Computer Equipment - Hardware | E39: ='App.2-B_FA Cont 2012 CGAAP '!E39 -> 287608 | F39: 35000 | H39: 322608 | J39: ='App.2-B_FA Cont 2012 CGAAP '!J39 -> -223707 | K39: -39126 | M39: -262833 | N39: 59775
A40: 45 | B40: 1920 | C40: Computer Equip.-Hardware(Post Mar. 22/04) | E40: ='App.2-B_FA Cont 2012 CGAAP '!E40 -> 0 | H40: 0 | J40: ='App.2-B_FA Cont 2012 CGAAP '!J40 -> 0 | M40: 0 | N40: 0
A41: 45.1 | B41: 1920 | C41: Computer Equip.-Hardware(Post Mar. 19/07) | E41: ='App.2-B_FA Cont 2012 CGAAP '!E41 -> 0 | H41: 0 | J41: ='App.2-B_FA Cont 2012 CGAAP '!J41 -> 0 | M41: 0 | N41: 0
B42: 1925 | C42: Computer Software | E42: ='App.2-B_FA Cont 2012 CGAAP '!E42 -> 1010405 | F42: 90000 | H42: 1100405 | J42: ='App.2-B_FA Cont 2012 CGAAP '!J42 -> -441749 | K42: -138101 | M42: -579850 | N42: 520555
A43: 10 | B43: 1930 | C43: Transportation Equipment | E43: ='App.2-B_FA Cont 2012 CGAAP '!E43 -> 1391450 | H43: 1391450 | J43: ='App.2-B_FA Cont 2012 CGAAP '!J43 -> -1125125 | K43: -29819 | M43: -1154944 | N43: 236506
A44: 8 | B44: 1935 | C44: Stores Equipment | E44: ='App.2-B_FA Cont 2012 CGAAP '!E44 -> 30023 | H44: 30023 | J44: ='App.2-B_FA Cont 2012 CGAAP '!J44 -> -27093 | K44: -759 | M44: -27852 | N44: 2171
A45: 8 | B45: 1940 | C45: Tools, Shop & Garage Equipment | E45: ='App.2-B_FA Cont 2012 CGAAP '!E45 -> 114950 | F45: 13000 | H45: 127950 | J45: ='App.2-B_FA Cont 2012 CGAAP '!J45 -> -79839 | K45: -8121 | M45: -87960 | N45: 39990
A46: 8 | B46: 1945 | C46: Measurement & Testing Equipment | E46: ='App.2-B_FA Cont 2012 CGAAP '!E46 -> 20391 | H46: 20391 | J46: ='App.2-B_FA Cont 2012 CGAAP '!J46 -> -15746 | K46: -1299 | M46: -17045 | N46: 3346
A47: 8 | B47: 1950 | C47: Power Operated Equipment | E47: ='App.2-B_FA Cont 2012 CGAAP '!E47 -> 0 | H47: 0 | J47: ='App.2-B_FA Cont 2012 CGAAP '!J47 -> 0 | M47: 0 | N47: 0
A48: 8 | B48: 1955 | C48: Communications Equipment | E48: ='App.2-B_FA Cont 2012 CGAAP '!E48 -> 279005 | H48: 279005 | J48: ='App.2-B_FA Cont 2012 CGAAP '!J48 -> -119132 | K48: -24143 | M48: -143275 | N48: 135730
A49: 8 | B49: 1955 | C49: Communication Equipment (Smart Meters) | E49: ='App.2-B_FA Cont 2012 CGAAP '!E49 -> 0 | H49: 0 | J49: ='App.2-B_FA Cont 2012 CGAAP '!J49 -> 0 | M49: 0 | N49: 0
A50: 8 | B50: 1960 | C50: Miscellaneous Equipment | E50: ='App.2-B_FA Cont 2012 CGAAP '!E50 -> 315235 | H50: 315235 | J50: ='App.2-B_FA Cont 2012 CGAAP '!J50 -> -70424 | K50: -11128 | M50: -81552 | N50: 233683
A51: 47 | B51: 1975 | C51: Load Management Controls Utility Premises | E51: ='App.2-B_FA Cont 2012 CGAAP '!E51 -> 0 | H51: 0 | J51: ='App.2-B_FA Cont 2012 CGAAP '!J51 -> 0 | M51: 0 | N51: 0
A52: 47 | B52: 1980 | C52: System Supervisor Equipment | E52: ='App.2-B_FA Cont 2012 CGAAP '!E52 -> 1134745 | F52: 27500 | H52: 1162245 | J52: ='App.2-B_FA Cont 2012 CGAAP '!J52 -> -859358 | K52: -49204 | M52: -908562 | N52: 253683
A53: 47 | B53: 1985 | C53: Miscellaneous Fixed Assets | E53: ='App.2-B_FA Cont 2012 CGAAP '!E53 -> 0 | H53: 0 | J53: ='App.2-B_FA Cont 2012 CGAAP '!J53 -> 0 | M53: 0 | N53: 0
A54: 47 | B54: 1995 | C54: Contributions & Grants | E54: ='App.2-B_FA Cont 2012 CGAAP '!E54 -> -2033600 | F54: -100000 | H54: -2133600 | J54: ='App.2-B_FA Cont 2012 CGAAP '!J54 -> 362475 | K54: 63000 | M54: 425475 | N54: -1708125
B55: etc. | E55: ='App.2-B_FA Cont 2012 CGAAP '!E55 -> 0 | H55: 0 | J55: ='App.2-B_FA Cont 2012 CGAAP '!J55 -> 0 | M55: 0 | N55: 0
E56: ='App.2-B_FA Cont 2012 CGAAP '!E56 -> 0 | H56: 0 | J56: ='App.2-B_FA Cont 2012 CGAAP '!J56 -> 0 | M56: 0 | N56: 0
C57: Total | E57: =SUM(E16:E56) -> 51073980 | F57: =SUM(F16:F56) -> 1887015 | G57: 0 | H57: 52960995 | J57: =SUM(J16:J56) -> -26686226 | K57: =SUM(K16:K56) -> -1184590 | L57: 0 | M57: -27870816 | N57: 25090179
J59: Less: Fully Allocated Depreciation
A60: 10 | C60: Transportation | J60: Transportation
A61: 8 | C61: Stores Equipment | J61: Stranded Meters | L61: -75669
J62: Net Depreciation | L62: =K57+L60+L61 -> -1260259
A64: Notes:
A66: 1 | B66: Tables in the format outlined above covering all fixed asset accounts should be submitted for the Test Year, Bridge Year and all relevant historical years. At a minimum , the applicant must provide data for the earlier of: 1) all historical years back to its last rebasing; or 2) at least three years of historical actuals, in addition to Bridge Year and Test Year forecasts.
A69: 2 | B69: The "CCA Class" for fixed assets should agree with the CCA Class used for tax purposes in Tax Returns. Fixed Assets sub-components may be used where the underlying asset components are classified under multiple CCA Classes for tax purposes. If an applicant uses any different classes from those shown in the table, an explanation should be provided. (also see note 3 below).
A72: 3 | B72: The table may need to be customized for a utility's asset categories or for any new asset accounts announced or authorized by the Board.
A74: 4 | B74: The depreciation column (D) is not required as the relevant information will be provided in the following 2-C series of appendices.

Sheet App.2-B_FA Cont 2013 MIFRS
M1: File Number: | N1: ='LDC Info'!$E$18 -> EB-2012-0173
M2: Exhibit: | N2: 2
M3: Tab: | N3: 2
M4: Schedule: | N4: 1
M5: Page: | N5: 7 of 11
M7: Date: | N7: Aug 31, 2012
A9: Appendix 2-B
A10: Fixed Asset Continuity Schedule-MIFRS
F12: Year | G12: 2013
E14: Cost | K14: Accumulated Depreciation
A15: CCA Class | B15: OEB | C15: Description | D15: Depreciation Rate | E15: Opening Balance | F15: Additions | G15: Disposals | H15: Closing Balance | J15: Opening Balance | K15: Additions | L15: Disposals | M15: Closing Balance | N15: Net Book Value
A16: 12 | B16: 1611 | C16: Computer Software (Formally known as Account 1925) | H16: =E16+F16+G16 -> 0 | M16: =J16+K16+L16 -> 0 | N16: =H16+M16 -> 0
A17: CEC | B17: 1612 | C17: Land Rights (Formally known as Account 1906) | H17: =E17+F17+G17 -> 0 | M17: =J17+K17+L17 -> 0 | N17: =H17+M17 -> 0
A18: N/A | B18: 1805 | C18: Land | E18: ='App.2-B_FA Cont 2012 MIFRS'!H18 -> 158686 | H18: =E18+F18+G18 -> 158686 | J18: ='App.2-B_FA Cont 2012 MIFRS'!M18 -> 0 | M18: =J18+K18+L18 -> 0 | N18: =H18+M18 -> 158686
B19: 1806 | C19: Land Rights | E19: ='App.2-B_FA Cont 2012 MIFRS'!H19 -> 70296 | H19: =E19+F19+G19 -> 70296 | J19: ='App.2-B_FA Cont 2012 MIFRS'!M19 -> -59631 | K19: -640 | M19: =J19+K19+L19 -> -60271 | N19: =H19+M19 -> 10025
A20: 47 | B20: 1808 | C20: Buildings | E20: ='App.2-B_FA Cont 2012 MIFRS'!H20 -> 96567 | H20: 96567 | J20: ='App.2-B_FA Cont 2012 MIFRS'!M20 -> -59991 | K20: -1236 | M20: -61227 | N20: 35340
A21: 13 | B21: 1810 | C21: Leasehold Improvements | E21: ='App.2-B_FA Cont 2012 MIFRS'!H21 -> 0 | H21: 0 | J21: ='App.2-B_FA Cont 2012 MIFRS'!M21 -> 0 | M21: 0 | N21: 0
A22: 47 | B22: 1815 | C22: Transformer Station Equipment >50 kV | E22: ='App.2-B_FA Cont 2012 MIFRS'!H22 -> 467359 | H22: 467359 | J22: ='App.2-B_FA Cont 2012 MIFRS'!M22 -> -37847 | K22: -14857 | M22: -52704 | N22: 414655
A23: 47 | B23: 1820 | C23: Distribution Station Equipment <50 kV | E23: ='App.2-B_FA Cont 2012 MIFRS'!H23 -> 4041746 | H23: 4041746 | J23: ='App.2-B_FA Cont 2012 MIFRS'!M23 -> -2542899 | K23: -71683 | M23: -2614582 | N23: 1427164
A24: 47 | B24: 1825 | C24: Storage Battery Equipment | E24: ='App.2-B_FA Cont 2012 MIFRS'!H24 -> 0 | H24: 0 | J24: ='App.2-B_FA Cont 2012 MIFRS'!M24 -> 0 | M24: 0 | N24: 0
A25: 47 | B25: 1830 | C25: Poles, Towers & Fixtures | E25: ='App.2-B_FA Cont 2012 MIFRS'!H25 -> 7020522 | F25: 625000 | H25: 7645522 | J25: ='App.2-B_FA Cont 2012 MIFRS'!M25 -> -1173405 | K25: =-133751-540-540 -> -134831 | M25: -1308236 | N25: 6337286
A26: 47 | B26: 1835 | C26: Overhead Conductors & Devices | E26: ='App.2-B_FA Cont 2012 MIFRS'!H26 -> 12894709 | F26: 133600 | H26: 13028309 | J26: ='App.2-B_FA Cont 2012 MIFRS'!M26 -> -8307237 | K26: -125253 | M26: -8432490 | N26: 4595819
A27: 47 | B27: 1840 | C27: Underground Conduit | E27: ='App.2-B_FA Cont 2012 MIFRS'!H27 -> 905654 | F27: 116200 | H27: 1021854 | J27: ='App.2-B_FA Cont 2012 MIFRS'!M27 -> -129777 | K27: -18006 | M27: -147783 | N27: 874071
A28: 47 | B28: 1845 | C28: Underground Conductors & Devices | E28: ='App.2-B_FA Cont 2012 MIFRS'!H28 -> 11629895 | F28: 192100 | H28: 11821995 | J28: ='App.2-B_FA Cont 2012 MIFRS'!M28 -> -7441433 | K28: -211532 | M28: -7652965 | N28: 4169030
A29: 47 | B29: 1850 | C29: Line Transformers | E29: ='App.2-B_FA Cont 2012 MIFRS'!H29 -> 6826233 | F29: 317300 | H29: 7143533 | J29: ='App.2-B_FA Cont 2012 MIFRS'!M29 -> -3413281 | K29: -119507 | M29: -3532788 | N29: 3610745
A30: 47 | B30: 1855 | C30: Services (Overhead & Underground) | E30: ='App.2-B_FA Cont 2012 MIFRS'!H30 -> 681473 | F30: 35000 | H30: 716473 | J30: ='App.2-B_FA Cont 2012 MIFRS'!M30 -> -121362 | K30: -16290 | M30: -137652 | N30: 578821
A31: 47 | B31: 1860 | C31: Meters | E31: ='App.2-B_FA Cont 2012 MIFRS'!H31 -> 224145 | H31: 224145 | J31: ='App.2-B_FA Cont 2012 MIFRS'!M31 -> -92640 | K31: -8475 | M31: -101115 | N31: 123030
A32: 47 | B32: 1860 | C32: Meters (Smart Meters) | E32: ='App.2-B_FA Cont 2012 MIFRS'!H32 -> 2767384 | F32: 50000 | H32: 2817384 | J32: ='App.2-B_FA Cont 2012 MIFRS'!M32 -> -570986 | K32: -186159 | M32: -757145 | N32: 2060239
B33: 1870 | C33: Other Installations-Customer Premises | E33: ='App.2-B_FA Cont 2012 MIFRS'!H33 -> 8010 | H33: 8010 | J33: ='App.2-B_FA Cont 2012 MIFRS'!M33 -> -5446 | K33: -2564 | M33: -8010 | N33: 0
A34: N/A | B34: 1905 | C34: Land | E34: ='App.2-B_FA Cont 2012 MIFRS'!H34 -> 0 | H34: 0 | J34: ='App.2-B_FA Cont 2012 MIFRS'!M34 -> 0 | M34: 0 | N34: 0
A35: 47 | B35: 1908 | C35: Buildings & Fixtures | E35: ='App.2-B_FA Cont 2012 MIFRS'!H35 -> 2444785 | F35: 20000 | H35: 2464785 | J35: ='App.2-B_FA Cont 2012 MIFRS'!M35 -> -1017629 | K35: -65006 | M35: -1082635 | N35: 1382150
A36: 13 | B36: 1910 | C36: Leasehold Improvements | E36: ='App.2-B_FA Cont 2012 MIFRS'!H36 -> 0 | H36: 0 | J36: ='App.2-B_FA Cont 2012 MIFRS'!M36 -> 0 | M36: 0 | N36: 0
A37: 8 | B37: 1915 | C37: Office Furniture & Equipment (10 years) | E37: ='App.2-B_FA Cont 2012 MIFRS'!H37 -> 107819 | H37: 107819 | J37: ='App.2-B_FA Cont 2012 MIFRS'!M37 -> -58854 | K37: -9591 | M37: -68445 | N37: 39374
A38: 8 | B38: 1915 | C38: Office Furniture & Equipment (5 years) | E38: ='App.2-B_FA Cont 2012 MIFRS'!H38 -> 0 | H38: 0 | J38: ='App.2-B_FA Cont 2012 MIFRS'!M38 -> 0 | M38: 0 | N38: 0
A39: 10 | B39: 1920 | C39: Computer Equipment - Hardware | E39: ='App.2-B_FA Cont 2012 MIFRS'!H39 -> 322608 | F39: 46000 | H39: 368608 | J39: ='App.2-B_FA Cont 2012 MIFRS'!M39 -> -262833 | K39: -27988 | M39: -290821 | N39: 77787
A40: 45 | B40: 1920 | C40: Computer Equip.-Hardware(Post Mar. 22/04) | E40: ='App.2-B_FA Cont 2012 MIFRS'!H40 -> 0 | H40: 0 | J40: ='App.2-B_FA Cont 2012 MIFRS'!M40 -> 0 | M40: 0 | N40: 0
A41: 45.1 | B41: 1920 | C41: Computer Equip.-Hardware(Post Mar. 19/07) | E41: ='App.2-B_FA Cont 2012 MIFRS'!H41 -> 0 | H41: 0 | J41: ='App.2-B_FA Cont 2012 MIFRS'!M41 -> 0 | M41: 0 | N41: 0
B42: 1925 | C42: Computer Software | E42: ='App.2-B_FA Cont 2012 MIFRS'!H42 -> 1100405 | F42: 58500 | H42: 1158905 | J42: ='App.2-B_FA Cont 2012 MIFRS'!M42 -> -579850 | K42: -144712 | M42: -724562 | N42: 434343
A43: 10 | B43: 1930 | C43: Transportation Equipment | E43: ='App.2-B_FA Cont 2012 MIFRS'!H43 -> 1391450 | F43: 325165 | G43: -132851 | H43: 1583764 | J43: ='App.2-B_FA Cont 2012 MIFRS'!M43 -> -1154944 | K43: =-41485+828 -> -40657 | L43: 132851 | M43: -1062750 | N43: 521014
A44: 8 | B44: 1935 | C44: Stores Equipment | E44: ='App.2-B_FA Cont 2012 MIFRS'!H44 -> 30023 | H44: 30023 | J44: ='App.2-B_FA Cont 2012 MIFRS'!M44 -> -27852 | K44: -759 | M44: -28611 | N44: 1412
A45: 8 | B45: 1940 | C45: Tools, Shop & Garage Equipment | E45: ='App.2-B_FA Cont 2012 MIFRS'!H45 -> 127950 | F45: 5000 | H45: 132950 | J45: ='App.2-B_FA Cont 2012 MIFRS'!M45 -> -87960 | K45: -8298 | M45: -96258 | N45: 36692
A46: 8 | B46: 1945 | C46: Measurement & Testing Equipment | E46: ='App.2-B_FA Cont 2012 MIFRS'!H46 -> 20391 | H46: 20391 | J46: ='App.2-B_FA Cont 2012 MIFRS'!M46 -> -17045 | K46: -1168 | M46: -18213 | N46: 2178
A47: 8 | B47: 1950 | C47: Power Operated Equipment | E47: ='App.2-B_FA Cont 2012 MIFRS'!H47 -> 0 | H47: 0 | J47: ='App.2-B_FA Cont 2012 MIFRS'!M47 -> 0 | M47: 0 | N47: 0
A48: 8 | B48: 1955 | C48: Communications Equipment | E48: ='App.2-B_FA Cont 2012 MIFRS'!H48 -> 279005 | H48: 279005 | J48: ='App.2-B_FA Cont 2012 MIFRS'!M48 -> -143275 | K48: -21373 | M48: -164648 | N48: 114357
A49: 8 | B49: 1955 | C49: Communication Equipment (Smart Meters) | E49: ='App.2-B_FA Cont 2012 MIFRS'!H49 -> 0 | H49: 0 | J49: ='App.2-B_FA Cont 2012 MIFRS'!M49 -> 0 | M49: 0 | N49: 0
A50: 8 | B50: 1960 | C50: Miscellaneous Equipment | E50: ='App.2-B_FA Cont 2012 MIFRS'!H50 -> 315235 | H50: 315235 | J50: ='App.2-B_FA Cont 2012 MIFRS'!M50 -> -81552 | K50: -11128 | M50: -92680 | N50: 222555
A51: 47 | B51: 1975 | C51: Load Management Controls Utility Premises | E51: ='App.2-B_FA Cont 2012 MIFRS'!H51 -> 0 | H51: 0 | J51: ='App.2-B_FA Cont 2012 MIFRS'!M51 -> 0 | M51: 0 | N51: 0
A52: 47 | B52: 1980 | C52: System Supervisor Equipment | E52: ='App.2-B_FA Cont 2012 MIFRS'!H52 -> 1162245 | F52: 52500 | H52: 1214745 | J52: ='App.2-B_FA Cont 2012 MIFRS'!M52 -> -908562 | K52: -50852 | M52: -959414 | N52: 255331
A53: 47 | B53: 1985 | C53: Miscellaneous Fixed Assets | E53: ='App.2-B_FA Cont 2012 MIFRS'!H53 -> 0 | H53: 0 | J53: ='App.2-B_FA Cont 2012 MIFRS'!M53 -> 0 | M53: 0 | N53: 0
A54: 47 | B54: 1995 | C54: Contributions & Grants | E54: ='App.2-B_FA Cont 2012 MIFRS'!H54 -> -2133600 | H54: -2133600 | J54: ='App.2-B_FA Cont 2012 MIFRS'!M54 -> 425475 | K54: 64000 | M54: 489475 | N54: -1644125
B55: etc. | E55: ='App.2-B_FA Cont 2012 MIFRS'!H55 -> 0 | H55: 0 | J55: ='App.2-B_FA Cont 2012 MIFRS'!M55 -> 0 | M55: 0 | N55: 0
E56: ='App.2-B_FA Cont 2012 MIFRS'!H56 -> 0 | H56: 0 | J56: ='App.2-B_FA Cont 2012 MIFRS'!M56 -> 0 | M56: 0 | N56: 0
C57: Total | E57: =SUM(E16:E56) -> 52960995 | F57: =SUM(F16:F56) -> 1976365 | G57: -132851 | H57: 54804509 | J57: =SUM(J16:J56) -> -27870816 | K57: =SUM(K16:K56) -> -1228565 | L57: 132851 | M57: -28966530 | N57: 25837979
J59: Less: Fully Allocated Depreciation
J60: Account 1576 | L60: 143383
J61: Net Depreciation | L61: =K57+L60 -> -1085182
A63: Notes:
A65: 1 | B65: Tables in the format outlined above covering all fixed asset accounts should be submitted for the Test Year, Bridge Year and all relevant historical years. At a minimum , the applicant must provide data for the earlier of: 1) all historical years back to its last rebasing; or 2) at least three years of historical actuals, in addition to Bridge Year and Test Year forecasts.
A68: 2 | B68: The "CCA Class" for fixed assets should agree with the CCA Class used for tax purposes in Tax Returns. Fixed Assets sub-components may be used where the underlying asset components are classified under multiple CCA Classes for tax purposes. If an applicant uses any different classes from those shown in the table, an explanation should be provided. (also see note 3 below).
A71: 3 | B71: The table may need to be customized for a utility's asset categories or for any new asset accounts announced or authorized by the Board.
A73: 4 | B73: The depreciation column (D) is not required as the relevant information will be provided in the following 2-C series of appendices.

Sheet App.2-CE_CGAAP_DepExp_2011
K1: File Number: | L1: ='LDC Info'!$E$18 -> EB-2012-0173
K2: Exhibit: | L2: 2
K3: Tab: | L3: 2
K4: Schedule: | L4: 1
K5: Page: | L5: 8 of 11
K7: Date: | L7: Aug 31, 2012
A9: Appendix 2-CE
A10: Depreciation and Amortization Expense
A11: Assumes the applicant adopted IFRS for financial reporting purposes January 1, 2013
C12: Year | D12: 2011 | E12: CGAAP
A14: Account | B14: Description | C14: Opening Regulatory Gross PP&E as at Jan 1, 2011 | D14: Less Fully Depreciated | E14: Net for Depreciation | F14: Additions | G14: Total for Depreciation | H14: Years | I14: Depreciation Rate | J14: 2011 Depreciation Expense | K14: 2011 Depreciation Expense per Appendix 2-B Fixed Assets, Column K (l) | L14: Variance 2
C15: (a) | D15: (b) | E15: (c) | F15: (d) | G15: (e) = (c) + ½ x (d) 1 | H15: (f) | I15: (g) = 1 / (f) | J15: (h) = (e) / (f) | L15: (m) = (h) - (l)
A16: 1611 | B16: Computer Software (Formally known as Account 1925) | E16: =C16-D16 -> 0 | G16: =E16+0.5*F16 -> 0 | I16: =IF(H16=0,"",1/H16) ->  | J16: =IF(H16=0,0,G16/H16) -> 0 | L16: =IF(ISERROR(+J16-K16), "", +J16-K16) -> 0
A17: 1612 | B17: Land Rights (Formally known as Account 1906) | E17: =C17-D17 -> 0 | G17: =E17+0.5*F17 -> 0 | J17: 0 | L17: =IF(ISERROR(+J17-K17), "", +J17-K17) -> 0
A18: 1805 | B18: Land | C18: ='App.2-B_FA Cont 2011 CGAAP '!E18 -> 158686 | E18: 158686 | F18: ='App.2-B_FA Cont 2011 CGAAP '!F18 -> 0 | G18: 158686 | J18: 0 | K18: ='App.2-B_FA Cont 2011 CGAAP '!K18 -> 0 | L18: 0
A19: 1806 | B19: Land Rights | C19: ='App.2-B_FA Cont 2011 CGAAP '!E19 -> 70296 | D19: 55355 | E19: 14941 | F19: ='App.2-B_FA Cont 2011 CGAAP '!F19 -> 0 | G19: 14941 | H19: =G19/K19 -> 32.1311828 | I19: =IF(H19=0,"",1/H19) -> 0.03112241483 | J19: =IF(H19=0,0,G19/H19) -> 465 | K19: =-'App.2-B_FA Cont 2011 CGAAP '!K19 -> 465 | L19: =IF(ISERROR(+J19-K19), "", +J19-K19) -> 0
A20: 1808 | B20: Buildings | C20: ='App.2-B_FA Cont 2011 CGAAP '!E20 -> 96567 | E20: 96567 | F20: ='App.2-B_FA Cont 2011 CGAAP '!F20 -> 0 | G20: 96567 | H20: =G20/K20 -> 47.33676471 | I20: 0.02112522912 | J20: 2040 | K20: =-'App.2-B_FA Cont 2011 CGAAP '!K20 -> 2040 | L20: 0
A21: 1810 | B21: Leasehold Improvements | C21: ='App.2-B_FA Cont 2011 CGAAP '!E21 -> 0 | E21: 0 | F21: ='App.2-B_FA Cont 2011 CGAAP '!F21 -> 0 | G21: 0 | J21: 0 | K21: =-'App.2-B_FA Cont 2011 CGAAP '!K21 -> 0 | L21: 0
A22: 1815 | B22: Transformer Station Equipment >50 kV | C22: ='App.2-B_FA Cont 2011 CGAAP '!E22 -> 439185 | E22: 439185 | F22: ='App.2-B_FA Cont 2011 CGAAP '!F22 -> 28174 | G22: 453272 | H22: =G22/K22 -> 29.09506387 | I22: 0.03437009125 | J22: 15579 | K22: =-'App.2-B_FA Cont 2011 CGAAP '!K22 -> 15579 | L22: 0
A23: 1820 | B23: Distribution Station Equipment <50 kV | C23: ='App.2-B_FA Cont 2011 CGAAP '!E23 -> 4011205 | D23: 454198 | E23: 3557007 | F23: ='App.2-B_FA Cont 2011 CGAAP '!F23 -> 30541 | G23: 3572277.5 | H23: =G23/K23 -> 32.38839023 | I23: 0.03087526095 | J23: 110295 | K23: =-'App.2-B_FA Cont 2011 CGAAP '!K23 -> 110295 | L23: -1.455191523e-11
A24: 1825 | B24: Storage Battery Equipment | C24: ='App.2-B_FA Cont 2011 CGAAP '!E24 -> 0 | E24: 0 | F24: ='App.2-B_FA Cont 2011 CGAAP '!F24 -> 0 | G24: 0 | J24: 0 | K24: =-'App.2-B_FA Cont 2011 CGAAP '!K24 -> 0 | L24: 0
A25: 1830 | B25: Poles, Towers & Fixtures | C25: ='App.2-B_FA Cont 2011 CGAAP '!E25 -> 5581253 | E25: 5581253 | F25: ='App.2-B_FA Cont 2011 CGAAP '!F25 -> 870254 | G25: 6016380 | H25: =G25/K25 -> 24.99970913 | I25: 0.0400004654 | J25: 240658 | K25: =-'App.2-B_FA Cont 2011 CGAAP '!K25 -> 240658 | L25: 2.910383046e-11
A26: 1835 | B26: Overhead Conductors & Devices | C26: ='App.2-B_FA Cont 2011 CGAAP '!E26 -> 12474257 | D26: 1688531 | E26: 10785726 | F26: ='App.2-B_FA Cont 2011 CGAAP '!F26 -> 114952 | G26: 10843202 | H26: 24.99706533 | I26: 0.04000469603 | J26: 433779 | K26: =-'App.2-B_FA Cont 2011 CGAAP '!K26 -> 433779 | L26: 0
A27: 1840 | B27: Underground Conduit | C27: ='App.2-B_FA Cont 2011 CGAAP '!E27 -> 715703 | E27: 715703 | F27: ='App.2-B_FA Cont 2011 CGAAP '!F27 -> 110951 | G27: 771178.5 | H27: 25.00011346 | I27: 0.03999981846 | J27: 30847 | K27: =-'App.2-B_FA Cont 2011 CGAAP '!K27 -> 30847 | L27: -3.637978807e-12
A28: 1845 | B28: Underground Conductors & Devices | C28: ='App.2-B_FA Cont 2011 CGAAP '!E28 -> 11054862 | E28: 11054862 | F28: ='App.2-B_FA Cont 2011 CGAAP '!F28 -> 404033 | G28: 11256878.5 | H28: 26.80707012 | I28: 0.03730359176 | J28: 419922 | K28: =-'App.2-B_FA Cont 2011 CGAAP '!K28 -> 419922 | L28: 0
A29: 1850 | B29: Line Transformers | C29: ='App.2-B_FA Cont 2011 CGAAP '!E29 -> 6240120 | D29: 299221 | E29: 5940899 | F29: ='App.2-B_FA Cont 2011 CGAAP '!F29 -> 260447 | G29: 6071122.5 | H29: 24.71442209 | I29: 0.04046220448 | J29: 245651 | K29: =-'App.2-B_FA Cont 2011 CGAAP '!K29 -> 245651 | L29: 0
A30: 1855 | B30: Services (Overhead & Underground) | C30: ='App.2-B_FA Cont 2011 CGAAP '!E30 -> 499727 | E30: 499727 | F30: ='App.2-B_FA Cont 2011 CGAAP '!F30 -> 147746 | G30: 573600 | H30: 25 | I30: 0.04 | J30: 22944 | K30: =-'App.2-B_FA Cont 2011 CGAAP '!K30 -> 22944 | L30: 0
A31: 1860 | B31: Meters | C31: ='App.2-B_FA Cont 2011 CGAAP '!E31 -> 2389503 | D31: 641581 | E31: 1747922 | F31: ='App.2-B_FA Cont 2011 CGAAP '!F31 -> 26046 | G31: 1760945 | H31: 27.78173069 | I31: 0.03599487775 | J31: 63385 | K31: =-'App.2-B_FA Cont 2011 CGAAP '!K31 -> 63385 | L31: 0
A32: 1860 | B32: Meters (Smart Meters) | C32: ='App.2-B_FA Cont 2011 CGAAP '!E32 -> 0 | E32: 0 | F32: ='App.2-B_FA Cont 2011 CGAAP '!F32 -> 0 | G32: 0 | J32: 0 | K32: =-'App.2-B_FA Cont 2011 CGAAP '!K32 -> 0 | L32: 0
A33: 1870 | B33: Lease Property on Customer Premises | C33: ='App.2-B_FA Cont 2011 CGAAP '!E33 -> 8010 | E33: 8010 | F33: ='App.2-B_FA Cont 2011 CGAAP '!F33 -> 0 | G33: 8010 | H33: =G33/K33 -> 25.03125 | I33: 0.03995006242 | J33: 320 | K33: =-'App.2-B_FA Cont 2011 CGAAP '!K33 -> 320 | L33: 0
A34: 1905 | B34: Land | C34: ='App.2-B_FA Cont 2011 CGAAP '!E34 -> 0 | E34: 0 | F34: ='App.2-B_FA Cont 2011 CGAAP '!F34 -> 0 | G34: 0 | J34: 0 | K34: =-'App.2-B_FA Cont 2011 CGAAP '!K34 -> 0 | L34: 0
A35: 1908 | B35: Buildings & Fixtures | C35: ='App.2-B_FA Cont 2011 CGAAP '!E35 -> 1874843 | E35: 1874843 | F35: ='App.2-B_FA Cont 2011 CGAAP '!F35 -> 292812 | G35: 2021249 | H35: =G35/K35 -> 43.84678294 | I35: 0.02280669032 | J35: 46098 | K35: =-'App.2-B_FA Cont 2011 CGAAP '!K35 -> 46098 | L35: 0
A36: 1910 | B36: Leasehold Improvements | C36: ='App.2-B_FA Cont 2011 CGAAP '!E36 -> 0 | E36: 0 | F36: ='App.2-B_FA Cont 2011 CGAAP '!F36 -> 0 | G36: 0 | J36: 0 | K36: =-'App.2-B_FA Cont 2011 CGAAP '!K36 -> 0 | L36: 0
A37: 1915 | B37: Office Furniture & Equipment (10 years) | C37: ='App.2-B_FA Cont 2011 CGAAP '!E37 -> 84584 | D37: 6502 | E37: 78082 | F37: ='App.2-B_FA Cont 2011 CGAAP '!F37 -> 5735 | G37: 80949.5 | H37: =G37/K37 -> 9.95199164 | I37: 0.1004823995 | J37: 8134 | K37: =-'App.2-B_FA Cont 2011 CGAAP '!K37 -> 8134 | L37: 0
A38: 1915 | B38: Office Furniture & Equipment (5 years) | C38: ='App.2-B_FA Cont 2011 CGAAP '!E38 -> 0 | E38: 0 | F38: ='App.2-B_FA Cont 2011 CGAAP '!F38 -> 0 | G38: 0 | J38: 0 | K38: =-'App.2-B_FA Cont 2011 CGAAP '!K38 -> 0 | L38: 0
A39: 1920 | B39: Computer Equipment - Hardware | C39: ='App.2-B_FA Cont 2011 CGAAP '!E39 -> 225624 | D39: 169507 | E39: 56117 | F39: ='App.2-B_FA Cont 2011 CGAAP '!F39 -> 20247 | G39: 66240.5 | H39: =G39/K39 -> 4.145731631 | I39: 0.2412119474 | J39: 15978 | K39: =-'App.2-B_FA Cont 2011 CGAAP '!K39 -> 15978 | L39: -1.818989404e-12
A40: 1920 | B40: Computer Equip.-Hardware(Post Mar. 22/04) | C40: ='App.2-B_FA Cont 2011 CGAAP '!E40 -> 0 | E40: 0 | F40: ='App.2-B_FA Cont 2011 CGAAP '!F40 -> 0 | G40: 0 | J40: 0 | K40: =-'App.2-B_FA Cont 2011 CGAAP '!K40 -> 0 | L40: 0
A41: 1920 | B41: Computer Equip.-Hardware(Post Mar. 19/07) | C41: ='App.2-B_FA Cont 2011 CGAAP '!E41 -> 0 | E41: 0 | F41: ='App.2-B_FA Cont 2011 CGAAP '!F41 -> 0 | G41: 0 | J41: 0 | K41: =-'App.2-B_FA Cont 2011 CGAAP '!K41 -> 0 | L41: 0
A42: 1925 | B42: Computer Software | C42: ='App.2-B_FA Cont 2011 CGAAP '!E42 -> 741611 | D42: 364897 | E42: 376714 | F42: ='App.2-B_FA Cont 2011 CGAAP '!F42 -> 240934 | G42: 497181 | H42: =G42/K42 -> 11.09927669 | I42: 0.09009596103 | J42: 44794 | K42: =-'App.2-B_FA Cont 2011 CGAAP '!K42 -> 44794 | L42: 0
A43: 1930 | B43: Transportation Equipment | C43: ='App.2-B_FA Cont 2011 CGAAP '!E43 -> 1473292 | D43: 1142814 | E43: 330478 | F43: ='App.2-B_FA Cont 2011 CGAAP '!F43 -> 66729 | G43: 363842.5 | H43: =G43/K43 -> 9.744824169 | I43: 0.1026185781 | J43: 37337 | K43: =-'App.2-B_FA Cont 2011 CGAAP '!K43 -> 37337 | L43: 0
A44: 1935 | B44: Stores Equipment | C44: ='App.2-B_FA Cont 2011 CGAAP '!E44 -> 30023 | D44: 22418 | E44: 7605 | F44: ='App.2-B_FA Cont 2011 CGAAP '!F44 -> 0 | G44: 7605 | H44: =G44/K44 -> 9.993429698 | I44: 0.1000657462 | J44: 761 | K44: =-'App.2-B_FA Cont 2011 CGAAP '!K44 -> 761 | L44: 1.136868377e-13
A45: 1940 | B45: Tools, Shop & Garage Equipment | C45: ='App.2-B_FA Cont 2011 CGAAP '!E45 -> 114950 | D45: 34748 | E45: 80202 | F45: ='App.2-B_FA Cont 2011 CGAAP '!F45 -> 0 | G45: 80202 | H45: =G45/K45 -> 10.17017499 | I45: 0.09832672502 | J45: 7886 | K45: =-'App.2-B_FA Cont 2011 CGAAP '!K45 -> 7886 | L45: 0
A46: 1945 | B46: Measurement & Testing Equipment | C46: ='App.2-B_FA Cont 2011 CGAAP '!E46 -> 18386 | D46: 4896 | E46: 13490 | F46: ='App.2-B_FA Cont 2011 CGAAP '!F46 -> 2005 | G46: 14492.5 | H46: =G46/K46 -> 10.00172533 | I46: 0.0999827497 | J46: 1449 | K46: =-'App.2-B_FA Cont 2011 CGAAP '!K46 -> 1449 | L46: 0
A47: 1950 | B47: Power Operated Equipment | C47: ='App.2-B_FA Cont 2011 CGAAP '!E47 -> 0 | E47: 0 | F47: ='App.2-B_FA Cont 2011 CGAAP '!F47 -> 0 | G47: 0 | J47: 0 | K47: =-'App.2-B_FA Cont 2011 CGAAP '!K47 -> 0 | L47: 0
A48: 1955 | B48: Communications Equipment | C48: ='App.2-B_FA Cont 2011 CGAAP '!E48 -> 73252 | D48: 20574 | E48: 52678 | F48: ='App.2-B_FA Cont 2011 CGAAP '!F48 -> 0 | G48: 52678 | H48: =G48/K48 -> 3.52785963 | I48: 0.2834579901 | J48: 14932 | K48: =-'App.2-B_FA Cont 2011 CGAAP '!K48 -> 14932 | L48: 0
A49: 1955 | B49: Communication Equipment (Smart Meters) | C49: ='App.2-B_FA Cont 2011 CGAAP '!E49 -> 0 | E49: 0 | F49: ='App.2-B_FA Cont 2011 CGAAP '!F49 -> 0 | G49: 0 | J49: 0 | K49: =-'App.2-B_FA Cont 2011 CGAAP '!K49 -> 0 | L49: 0
A50: 1960 | B50: Miscellaneous Equipment | C50: ='App.2-B_FA Cont 2011 CGAAP '!E50 -> 315235 | D50: 37040 | E50: 278195 | F50: ='App.2-B_FA Cont 2011 CGAAP '!F50 -> 0 | G50: 278195 | H50: =G50/K50 -> 24.99955068 | I50: 0.04000071892 | J50: 11128 | K50: =-'App.2-B_FA Cont 2011 CGAAP '!K50 -> 11128 | L50: 0
A51: 1975 | B51: Load Management Controls Utility Premises | C51: ='App.2-B_FA Cont 2011 CGAAP '!E51 -> 0 | E51: 0 | F51: ='App.2-B_FA Cont 2011 CGAAP '!F51 -> 0 | G51: 0 | J51: 0 | K51: =-'App.2-B_FA Cont 2011 CGAAP '!K51 -> 0 | L51: 0
A52: 1980 | B52: System Supervisor Equipment | C52: ='App.2-B_FA Cont 2011 CGAAP '!E52 -> 1134745 | D52: 221166 | E52: 913579 | F52: ='App.2-B_FA Cont 2011 CGAAP '!F52 -> 0 | G52: 913579 | H52: =G52/K52 -> 17.56950267 | I52: 0.05691680741 | J52: 51998 | K52: =-'App.2-B_FA Cont 2011 CGAAP '!K52 -> 51998 | L52: 0
A53: 1985 | B53: Miscellaneous Fixed Assets | C53: ='App.2-B_FA Cont 2011 CGAAP '!E53 -> 0 | E53: 0 | F53: ='App.2-B_FA Cont 2011 CGAAP '!F53 -> 0 | G53: 0 | J53: 0 | K53: =-'App.2-B_FA Cont 2011 CGAAP '!K53 -> 0 | L53: 0
A54: 1995 | B54: Contributions & Grants | C54: ='App.2-B_FA Cont 2011 CGAAP '!E54 -> -1728419 | E54: -1728419 | F54: ='App.2-B_FA Cont 2011 CGAAP '!F54 -> -305181 | G54: -1881009.5 | H54: =G54/K54 -> 25.00012626 | I54: 0.03999979798 | J54: -75240 | K54: =-'App.2-B_FA Cont 2011 CGAAP '!K54 -> -75240 | L54: 0
A55: etc. | E55: 0 | F55: ='App.2-B_FA Cont 2011 CGAAP '!F55 -> 0 | G55: 0 | J55: 0 | K55: =-'App.2-B_FA Cont 2011 CGAAP '!K55 -> 0 | L55: 0
E56: 0 | F56: ='App.2-B_FA Cont 2011 CGAAP '!F56 -> 0 | G56: 0 | J56: 0 | K56: =-'App.2-B_FA Cont 2011 CGAAP '!K56 -> 0 | L56: 0
B57: Total | C57: =SUM(C16:C56) -> 48097500 | D57: =SUM(D16:D56) -> 5163448 | E57: =SUM(E16:E56) -> 42934052 | F57: =SUM(F16:F56) -> 2316425 | G57: =SUM(G16:G56) -> 44092264.5 | J57: =SUM(J16:J56) -> 1751140 | K57: =SUM(K16:K56) -> 1751140 | L57: =SUM(L16:L56) -> 9.208633855e-12
A59: Notes:
A60: 1 | B60: Board policy of the "half-year" rule - the applicant must ensure that additions in the year attract a half-year depreciation expense in the first year. Deviations from this standard practice must be supported in the application.
A61: 2 | B61: The applicant must provide an explanation of material variances in evidence
A62: General: | B62: Applicants must provide a breakdown of depreciation and amortization expense in the above format for all relevant accounts. Asset Retirement Obligations (AROs), depreciation and accretion expense should be disclosed separately consistent with the Notes of historical Audited Financial Statements.

Sheet App.2-CF_CGAAP_DepExp_2012
K1: File Number: | L1: ='LDC Info'!$E$18 -> EB-2012-0173
K2: Exhibit: | L2: 2
K3: Tab: | L3: 2
K4: Schedule: | L4: 1
K5: Page: | L5: 9 of 11
K7: Date: | L7: Aug 31, 2012
A9: Appendix 2-CF
A10: Depreciation and Amortization Expense
A11: Assumes the applicant adopted IFRS for financial reporting purposes January 1, 2013
C12: Year | D12: 2012 | E12: CGAAP
A14: Account | B14: Description | C14: Opening Regulatory Gross PP&E as at Jan 1, 2012 | D14: Less Fully Depreciated | E14: Net for Depreciation | F14: Additions | G14: Total for Depreciation | H14: Years | I14: Depreciation Rate | J14: 2012 Depreciation Expense | K14: 2012 Depreciation Expense per Appendix 2-B Fixed Assets, Column K (l) | L14: Variance 2
C15: (a) | D15: (b) | E15: (c) | F15: (d) | G15: (e) = (c) + ½ x (d) 1 | H15: (f) | I15: (g) = 1 / (f) | J15: (h) = (e) / (f) | L15: (m) = (h) - (l)
A16: 1611 | B16: Computer Software (Formally known as Account 1925) | E16: =C16-D16 -> 0 | G16: =E16+0.5*F16 -> 0 | I16: =IF(H16=0,0,1/H16) -> 0 | J16: =IF(H16=0,0,G16/H16) -> 0 | L16: =IF(ISERROR(+J16-K16), 0, +J16-K16) -> 0
A17: 1612 | B17: Land Rights (Formally known as Account 1906) | E17: =C17-D17 -> 0 | G17: =E17+0.5*F17 -> 0 | I17: 0 | J17: 0 | L17: 0
A18: 1805 | B18: Land | C18: ='App.2-B_FA Cont 2012 CGAAP '!E18 -> 158686 | E18: =C18-D18 -> 158686 | F18: ='App.2-B_FA Cont 2012 CGAAP '!F18 -> 0 | G18: =E18+0.5*F18 -> 158686 | I18: =IF(H18=0,0,1/H18) -> 0 | J18: =IF(H18=0,0,G18/H18) -> 0 | K18: ='App.2-B_FA Cont 2012 CGAAP '!K18 -> 0 | L18: =IF(ISERROR(+J18-K18), 0, +J18-K18) -> 0
A19: 1806 | B19: Land Rights | C19: ='App.2-B_FA Cont 2012 CGAAP '!E19 -> 70296 | D19: 55355 | E19: 14941 | F19: ='App.2-B_FA Cont 2012 CGAAP '!F19 -> 0 | G19: 14941 | H19: =G19/K19 -> 32.1311828 | I19: 0.03112241483 | J19: 465 | K19: =-'App.2-B_FA Cont 2012 CGAAP '!K19 -> 465 | L19: 0
A20: 1808 | B20: Buildings | C20: ='App.2-B_FA Cont 2012 CGAAP '!E20 -> 96567 | E20: 96567 | F20: ='App.2-B_FA Cont 2012 CGAAP '!F20 -> 0 | G20: 96567 | H20: =G20/K20 -> 47.31357178 | I20: 0.02113558462 | J20: 2041 | K20: =-'App.2-B_FA Cont 2012 CGAAP '!K20 -> 2041 | L20: 0
A21: 1810 | B21: Leasehold Improvements | C21: ='App.2-B_FA Cont 2012 CGAAP '!E21 -> 0 | E21: 0 | F21: ='App.2-B_FA Cont 2012 CGAAP '!F21 -> 0 | G21: 0 | I21: 0 | J21: 0 | K21: =-'App.2-B_FA Cont 2012 CGAAP '!K21 -> 0 | L21: 0
A22: 1815 | B22: Transformer Station Equipment >50 kV | C22: ='App.2-B_FA Cont 2012 CGAAP '!E22 -> 467359 | E22: 467359 | F22: ='App.2-B_FA Cont 2012 CGAAP '!F22 -> 0 | G22: 467359 | H22: =G22/K22 -> 29.99929392 | I22: 0.03333411788 | J22: 15579 | K22: =-'App.2-B_FA Cont 2012 CGAAP '!K22 -> 15579 | L22: 0
A23: 1820 | B23: Distribution Station Equipment <50 kV | C23: ='App.2-B_FA Cont 2012 CGAAP '!E23 -> 4041746 | D23: 587215 | E23: 3454531 | F23: ='App.2-B_FA Cont 2012 CGAAP '!F23 -> 0 | G23: 3454531 | H23: =G23/K23 -> 32.39007445 | I23: 0.0308736555 | J23: 106654 | K23: =-'App.2-B_FA Cont 2012 CGAAP '!K23 -> 106654 | L23: -1.455191523e-11
A24: 1825 | B24: Storage Battery Equipment | C24: ='App.2-B_FA Cont 2012 CGAAP '!E24 -> 0 | E24: 0 | F24: ='App.2-B_FA Cont 2012 CGAAP '!F24 -> 0 | G24: 0 | I24: 0 | J24: 0 | K24: =-'App.2-B_FA Cont 2012 CGAAP '!K24 -> 0 | L24: 0
A25: 1830 | B25: Poles, Towers & Fixtures | C25: ='App.2-B_FA Cont 2012 CGAAP '!E25 -> 6451507 | E25: 6451507 | F25: ='App.2-B_FA Cont 2012 CGAAP '!F25 -> 678085 | G25: 6790549.5 | H25: =G25/K25 -> 24.99999816 | I25: 0.04000000295 | J25: 271622 | K25: =-'App.2-B_FA Cont 2012 CGAAP '!K25 -> 271622 | L25: 0
A26: 1835 | B26: Overhead Conductors & Devices | C26: ='App.2-B_FA Cont 2012 CGAAP '!E26 -> 12589209 | D26: 1977606 | E26: 10611603 | F26: ='App.2-B_FA Cont 2012 CGAAP '!F26 -> 367500 | G26: 10795353 | H26: 25.00006484 | I26: 0.03999989625 | J26: 431813 | K26: =-'App.2-B_FA Cont 2012 CGAAP '!K26 -> 431813 | L26: 0
A27: 1840 | B27: Underground Conduit | C27: ='App.2-B_FA Cont 2012 CGAAP '!E27 -> 826654 | E27: 826654 | F27: ='App.2-B_FA Cont 2012 CGAAP '!F27 -> 90000 | G27: 871654 | H27: 25.00011472 | I27: 0.03999981644 | J27: 34866 | K27: =-'App.2-B_FA Cont 2012 CGAAP '!K27 -> 34866 | L27: 0
A28: 1845 | B28: Underground Conductors & Devices | C28: ='App.2-B_FA Cont 2012 CGAAP '!E28 -> 11458895 | D28: 482983 | E28: 10975912 | F28: ='App.2-B_FA Cont 2012 CGAAP '!F28 -> 195000 | G28: 11073412 | H28: 26.7276813 | I28: 0.03741439405 | J28: 414305 | K28: =-'App.2-B_FA Cont 2012 CGAAP '!K28 -> 414305 | L28: 0
A29: 1850 | B29: Line Transformers | C29: ='App.2-B_FA Cont 2012 CGAAP '!E29 -> 6467733 | D29: 299221 | E29: 6168512 | F29: ='App.2-B_FA Cont 2012 CGAAP '!F29 -> 427500 | G29: 6382262 | H29: 25.29973124 | I29: 0.03952611159 | J29: 252266 | K29: =-'App.2-B_FA Cont 2012 CGAAP '!K29 -> 252266 | L29: 0
A30: 1855 | B30: Services (Overhead & Underground) | C30: ='App.2-B_FA Cont 2012 CGAAP '!E30 -> 647473 | E30: 647473 | F30: ='App.2-B_FA Cont 2012 CGAAP '!F30 -> 40000 | G30: 667473 | H30: 24.99992509 | I30: 0.04000011986 | J30: 26699 | K30: =-'App.2-B_FA Cont 2012 CGAAP '!K30 -> 26699 | L30: 0
A31: 1860 | B31: Meters | C31: ='App.2-B_FA Cont 2012 CGAAP '!E31 -> 224145 | D31: 97020 | E31: 127125 | F31: ='App.2-B_FA Cont 2012 CGAAP '!F31 -> 0 | G31: 127125 | H31: 15 | I31: 0.06666666667 | J31: 8475 | K31: =-'App.2-B_FA Cont 2012 CGAAP '!K31 -> 8475 | L31: 0
A32: 1860 | B32: Meters (Smart Meters) | C32: ='App.2-B_FA Cont 2012 CGAAP '!E32 -> 2755384 | E32: 2755384 | F32: ='App.2-B_FA Cont 2012 CGAAP '!F32 -> 12000 | G32: 2761384 | H32: 15.00002173 | I32: 0.0666665701 | J32: 184092 | K32: =-'App.2-B_FA Cont 2012 CGAAP '!K32 -> 184092 | L32: 0
A33: 1870 | B33: Leased Property on Customer Premises | C33: ='App.2-B_FA Cont 2012 CGAAP '!E33 -> 8010 | E33: 8010 | F33: ='App.2-B_FA Cont 2012 CGAAP '!F33 -> 0 | G33: 8010 | H33: 25.03125 | I33: 0.03995006242 | J33: 320 | K33: =-'App.2-B_FA Cont 2012 CGAAP '!K33 -> 320 | L33: 0
A34: 1905 | B34: Land | C34: ='App.2-B_FA Cont 2012 CGAAP '!E34 -> 0 | E34: 0 | F34: ='App.2-B_FA Cont 2012 CGAAP '!F34 -> 0 | G34: 0 | I34: 0 | J34: 0 | K34: =-'App.2-B_FA Cont 2012 CGAAP '!K34 -> 0 | L34: 0
A35: 1908 | B35: Buildings & Fixtures | C35: ='App.2-B_FA Cont 2012 CGAAP '!E35 -> 2169785 | E35: 2169785 | F35: ='App.2-B_FA Cont 2012 CGAAP '!F35 -> 275000 | G35: 2307285 | H35: =G35/K35 -> 38.0426216 | I35: 0.0262863062 | J35: 60650 | K35: =-'App.2-B_FA Cont 2012 CGAAP '!K35 -> 60650 | L35: 0
A36: 1910 | B36: Leasehold Improvements | C36: ='App.2-B_FA Cont 2012 CGAAP '!E36 -> 0 | E36: 0 | F36: ='App.2-B_FA Cont 2012 CGAAP '!F36 -> 0 | G36: 0 | I36: 0 | J36: 0 | K36: =-'App.2-B_FA Cont 2012 CGAAP '!K36 -> 0 | L36: 0
A37: 1915 | B37: Office Furniture & Equipment (10 years) | C37: ='App.2-B_FA Cont 2012 CGAAP '!E37 -> 90319 | D37: 6961 | E37: 83358 | F37: ='App.2-B_FA Cont 2012 CGAAP '!F37 -> 17500 | G37: 92108 | H37: =G37/K37 -> 9.957621622 | I37: 0.1004255874 | J37: 9250 | K37: =-'App.2-B_FA Cont 2012 CGAAP '!K37 -> 9250 | L37: 0
A38: 1915 | B38: Office Furniture & Equipment (5 years) | C38: ='App.2-B_FA Cont 2012 CGAAP '!E38 -> 0 | E38: 0 | F38: ='App.2-B_FA Cont 2012 CGAAP '!F38 -> 0 | G38: 0 | I38: 0 | J38: 0 | K38: =-'App.2-B_FA Cont 2012 CGAAP '!K38 -> 0 | L38: 0
A39: 1920 | B39: Computer Equipment - Hardware | C39: ='App.2-B_FA Cont 2012 CGAAP '!E39 -> 287608 | D39: 177898 | E39: 109710 | F39: ='App.2-B_FA Cont 2012 CGAAP '!F39 -> 35000 | G39: 127210 | H39: =G39/K39 -> 5 | I39: 0.2 | J39: 25442 | K39: =-'App.2-B_FA Cont 2012 CGAAP '!K39 -> 25442 | L39: 0
A40: 1920 | B40: Computer Equip.-Hardware(Post Mar. 22/04) | C40: ='App.2-B_FA Cont 2012 CGAAP '!E40 -> 0 | E40: 0 | F40: ='App.2-B_FA Cont 2012 CGAAP '!F40 -> 0 | G40: 0 | I40: 0 | J40: 0 | K40: =-'App.2-B_FA Cont 2012 CGAAP '!K40 -> 0 | L40: 0
A41: 1920 | B41: Computer Equip.-Hardware(Post Mar. 19/07) | C41: ='App.2-B_FA Cont 2012 CGAAP '!E41 -> 0 | E41: 0 | F41: ='App.2-B_FA Cont 2012 CGAAP '!F41 -> 0 | G41: 0 | I41: 0 | J41: 0 | K41: =-'App.2-B_FA Cont 2012 CGAAP '!K41 -> 0 | L41: 0
A42: 1925 | B42: Computer Software | C42: ='App.2-B_FA Cont 2012 CGAAP '!E42 -> 1010405 | D42: 364897 | E42: 645508 | F42: ='App.2-B_FA Cont 2012 CGAAP '!F42 -> 90000 | G42: 690508 | H42: =G42/K42 -> 5.000021723 | I42: 0.1999991311 | J42: 138101 | K42: =-'App.2-B_FA Cont 2012 CGAAP '!K42 -> 138101 | L42: 0
A43: 1930 | B43: Transportation Equipment | C43: ='App.2-B_FA Cont 2012 CGAAP '!E43 -> 1391450 | D43: 994242 | E43: 397208 | F43: ='App.2-B_FA Cont 2012 CGAAP '!F43 -> 0 | G43: 397208 | H43: =G43/K43 -> 9.712161964 | I43: 0.1029636865 | J43: 40898 | K43: =-'App.2-B_FA Cont 2012 CGAAP '!K43 -> 40898 | L43: 0
A44: 1935 | B44: Stores Equipment | C44: ='App.2-B_FA Cont 2012 CGAAP '!E44 -> 30023 | D44: 22418 | E44: 7605 | F44: ='App.2-B_FA Cont 2012 CGAAP '!F44 -> 0 | G44: 7605 | H44: =G44/K44 -> 9.993429698 | I44: 0.1000657462 | J44: 761 | K44: =-'App.2-B_FA Cont 2012 CGAAP '!K44 -> 761 | L44: 1.136868377e-13
A45: 1940 | B45: Tools, Shop & Garage Equipment | C45: ='App.2-B_FA Cont 2012 CGAAP '!E45 -> 114950 | D45: 40241 | E45: 74709 | F45: ='App.2-B_FA Cont 2012 CGAAP '!F45 -> 13000 | G45: 81209 | H45: =G45/K45 -> 9.999876862 | I45: 0.1000012314 | J45: 8121 | K45: =-'App.2-B_FA Cont 2012 CGAAP '!K45 -> 8121 | L45: 0
A46: 1945 | B46: Measurement & Testing Equipment | C46: ='App.2-B_FA Cont 2012 CGAAP '!E46 -> 20391 | D46: 9371 | E46: 11020 | F46: ='App.2-B_FA Cont 2012 CGAAP '!F46 -> 0 | G46: 11020 | H46: =G46/K46 -> 10.647343 | I46: 0.09392014519 | J46: 1035 | K46: =-'App.2-B_FA Cont 2012 CGAAP '!K46 -> 1035 | L46: 0
A47: 1950 | B47: Power Operated Equipment | C47: ='App.2-B_FA Cont 2012 CGAAP '!E47 -> 0 | E47: 0 | F47: ='App.2-B_FA Cont 2012 CGAAP '!F47 -> 0 | G47: 0 | I47: 0 | J47: 0 | K47: =-'App.2-B_FA Cont 2012 CGAAP '!K47 -> 0 | L47: 0
A48: 1955 | B48: Communications Equipment | C48: ='App.2-B_FA Cont 2012 CGAAP '!E48 -> 279005 | D48: 28621 | E48: 250384 | F48: ='App.2-B_FA Cont 2012 CGAAP '!F48 -> 0 | G48: 250384 | H48: =G48/K48 -> 10.07297743 | I48: 0.09927551281 | J48: 24857 | K48: =-'App.2-B_FA Cont 2012 CGAAP '!K48 -> 24857 | L48: 0
A49: 1955 | B49: Communication Equipment (Smart Meters) | C49: ='App.2-B_FA Cont 2012 CGAAP '!E49 -> 0 | E49: 0 | F49: ='App.2-B_FA Cont 2012 CGAAP '!F49 -> 0 | G49: 0 | I49: 0 | J49: 0 | K49: =-'App.2-B_FA Cont 2012 CGAAP '!K49 -> 0 | L49: 0
A50: 1960 | B50: Miscellaneous Equipment | C50: ='App.2-B_FA Cont 2012 CGAAP '!E50 -> 315235 | D50: 37040 | E50: 278195 | F50: ='App.2-B_FA Cont 2012 CGAAP '!F50 -> 0 | G50: 278195 | H50: =G50/K50 -> 24.99955068 | I50: 0.04000071892 | J50: 11128 | K50: =-'App.2-B_FA Cont 2012 CGAAP '!K50 -> 11128 | L50: 0
A51: 1975 | B51: Load Management Controls Utility Premises | C51: ='App.2-B_FA Cont 2012 CGAAP '!E51 -> 0 | E51: 0 | F51: ='App.2-B_FA Cont 2012 CGAAP '!F51 -> 0 | G51: 0 | I51: 0 | J51: 0 | K51: =-'App.2-B_FA Cont 2012 CGAAP '!K51 -> 0 | L51: 0
A52: 1980 | B52: System Supervisor Equipment | C52: ='App.2-B_FA Cont 2012 CGAAP '!E52 -> 1134745 | D52: 232221 | E52: 902524 | F52: ='App.2-B_FA Cont 2012 CGAAP '!F52 -> 27500 | G52: 916274 | H52: =G52/K52 -> 17.25758089 | I52: 0.05794554904 | J52: 53094 | K52: =-'App.2-B_FA Cont 2012 CGAAP '!K52 -> 53094 | L52: 7.275957614e-12
A53: 1985 | B53: Miscellaneous Fixed Assets | C53: ='App.2-B_FA Cont 2012 CGAAP '!E53 -> 0 | E53: 0 | F53: ='App.2-B_FA Cont 2012 CGAAP '!F53 -> 0 | G53: 0 | I53: 0 | J53: 0 | K53: =-'App.2-B_FA Cont 2012 CGAAP '!K53 -> 0 | L53: 0
A54: 1995 | B54: Contributions & Grants | C54: ='App.2-B_FA Cont 2012 CGAAP '!E54 -> -2033600 | E54: -2033600 | F54: ='App.2-B_FA Cont 2012 CGAAP '!F54 -> -100000 | G54: -2083600 | H54: =G54/K54 -> 25.00029997 | I54: 0.03999952006 | J54: -83343 | K54: =-'App.2-B_FA Cont 2012 CGAAP '!K54 -> -83343 | L54: 0
A55: etc. | E55: 0 | F55: ='App.2-B_FA Cont 2012 CGAAP '!F55 -> 0 | G55: 0 | I55: 0 | J55: 0 | K55: =-'App.2-B_FA Cont 2012 CGAAP '!K55 -> 0 | L55: 0
E56: 0 | F56: ='App.2-B_FA Cont 2012 CGAAP '!F56 -> 0 | G56: 0 | I56: 0 | J56: 0 | K56: =-'App.2-B_FA Cont 2012 CGAAP '!K56 -> 0 | L56: 0
B57: Total | C57: =SUM(C16:C56) -> 51073980 | D57: =SUM(D16:D56) -> 5413310 | E57: =SUM(E16:E56) -> 45660670 | F57: =SUM(F16:F56) -> 2168085 | G57: =SUM(G16:G56) -> 46744712.5 | J57: =SUM(J16:J56) -> 2039191 | K57: =SUM(K16:K56) -> 2039191 | L57: =SUM(L16:L56) -> -7.162270776e-12
A59: Notes:
A60: 1 | B60: Board policy of the "half-year" rule - the applicant must ensure that additions in the year attract a half-year depreciation expense in the first year. Deviations from this standard practice must be supported in the application.
A61: 2 | B61: The applicant must provide an explanation of material variances in evidence
A63: General: | B63: Applicants must provide a breakdown of depreciation and amortization expense in the above format for all relevant accounts. Asset Retirement Obligations (AROs), depreciation and accretion expense should be disclosed separately consistent with the Notes of historical Audited Financial Statements.

Sheet App.2-CG_MIFRS_DepExp_2012
N1: File Number: | O1: ='LDC Info'!$E$18 -> EB-2012-0173
N2: Exhibit: | O2: 2
N3: Tab: | O3: 2
N4: Schedule: | O4: 1
N5: Page: | O5: 10 of 11
N7: Date: | O7: Aug 31, 2012
A9: Appendix 2-CG
A10: Depreciation and Amortization Expense
A11: Assumes the applicant adopted IFRS for financial reporting purposes January 1, 2013
C12: Year | D12: 2012 | E12: MIFRS
A14: Account | B14: Description | C14: Opening NBV as at Jan 1, 2012 5 | D14: Additions | E14: Average Remaining Life of Opening NBV 4 | F14: Years (new additions only) 3 | G14: Depreciation Rate on New Additions | H14: Depreciation Expense on Opening NBV | I14: Depreciation Expense on Additions 1 | J14: 2012 Depreciation Expense | K14: 2012 Depreciation Expense per Appendix 2-B Fixed Assets, Column K (l) | L14: Variance 2 | M14: Depreciation Expense on 2012 Full Year Additions | N14: Less Depreciation Expense on Assets Fully Depreciated during the year (o) | O14: 2012 Full Year Depreciation 6
C15: (a) | D15: (d) | E15: (i) | F15: (f) | G15: (g) = 1 / (f) | H15: (j) = (a) / (i) | I15: (h)=((d)*0.5)/(f) | J15: (k) = (j) + (h) | L15: (m) = (k) - (l) | M15: (n)=((d))/(f) | O15: (p) = (j) + (n) - (o)
A16: 1611 | B16: Computer Software (Formally known as Account 1925) | G16: =IF(F16=0,0,1/F16) -> 0 | H16: =IF(E16=0,0,+C16/E16) -> 0 | I16: =IF(F16=0,0,+(D16*0.5)/F16) -> 0 | J16: =IF(ISERROR(+H16+I16), 0, +H16+I16) -> 0 | L16: =IF(ISERROR(+J16-K16), 0, +J16-K16) -> 0 | M16: =IF(F16=0,0,+(D16)/F16) -> 0 | O16: =IF(ISERROR(+M16+H16-N16), 0, +M16+H16-N16) -> 0
A17: 1612 | B17: Land Rights (Formally known as Account 1906) | G17: 0 | H17: 0 | I17: 0 | J17: 0 | L17: 0 | M17: 0 | O17: =IF(ISERROR(+M17+H17-N17), 0, +M17+H17-N17) -> 0
A18: 1805 | B18: Land | C18: ='App.2-B_FA Cont 2012 MIFRS'!E18+'App.2-B_FA Cont 2012 MIFRS'!J18 -> 158686 | D18: ='App.2-B_FA Cont 2012 MIFRS'!F18 -> 0 | G18: 0 | H18: 0 | I18: 0 | J18: 0 | K18: =-'App.2-B_FA Cont 2012 MIFRS'!K18 -> 0 | L18: 0 | M18: 0 | O18: 0
A19: 1806 | B19: Land Rights | C19: ='App.2-B_FA Cont 2012 MIFRS'!E19+'App.2-B_FA Cont 2012 MIFRS'!J19 -> 11305 | D19: ='App.2-B_FA Cont 2012 MIFRS'!F19 -> 0 | E19: =C19/640 -> 17.6640625 | G19: =IF(F19=0,0,1/F19) -> 0 | H19: =IF(E19=0,0,+C19/E19) -> 640 | I19: =IF(F19=0,0,+(D19*0.5)/F19) -> 0 | J19: =IF(ISERROR(+H19+I19), 0, +H19+I19) -> 640 | K19: =-'App.2-B_FA Cont 2012 MIFRS'!K19 -> 640 | L19: =IF(ISERROR(+J19-K19), 0, +J19-K19) -> 0 | M19: =IF(F19=0,0,+(D19)/F19) -> 0 | O19: =IF(ISERROR(+M19+H19-N19), 0, +M19+H19-N19) -> 640
A20: 1808 | B20: Buildings | C20: ='App.2-B_FA Cont 2012 MIFRS'!E20+'App.2-B_FA Cont 2012 MIFRS'!J20 -> 37812 | D20: ='App.2-B_FA Cont 2012 MIFRS'!F20 -> 0 | E20: =C20/1236 -> 30.59223301 | G20: 0 | H20: 1236 | I20: 0 | J20: 1236 | K20: =-'App.2-B_FA Cont 2012 MIFRS'!K20 -> 1236 | L20: 0 | M20: 0 | O20: 1236
A21: 1810 | B21: Leasehold Improvements | C21: ='App.2-B_FA Cont 2012 MIFRS'!E21+'App.2-B_FA Cont 2012 MIFRS'!J21 -> 0 | D21: ='App.2-B_FA Cont 2012 MIFRS'!F21 -> 0 | G21: 0 | H21: 0 | I21: 0 | J21: 0 | K21: =-'App.2-B_FA Cont 2012 MIFRS'!K21 -> 0 | L21: 0 | M21: 0 | O21: 0
A22: 1815 | B22: Transformer Station Equipment >50 kV | C22: ='App.2-B_FA Cont 2012 MIFRS'!E22+'App.2-B_FA Cont 2012 MIFRS'!J22 -> 444369 | D22: ='App.2-B_FA Cont 2012 MIFRS'!F22 -> 0 | E22: =C22/14857 -> 29.90973952 | G22: 0 | H22: 14857 | I22: 0 | J22: 14857 | K22: =-'App.2-B_FA Cont 2012 MIFRS'!K22 -> 14857 | L22: 0 | M22: 0 | O22: 14857
A23: 1820 | B23: Distribution Station Equipment <50 kV | C23: ='App.2-B_FA Cont 2012 MIFRS'!E23+'App.2-B_FA Cont 2012 MIFRS'!J23 -> 1570530 | D23: ='App.2-B_FA Cont 2012 MIFRS'!F23 -> 0 | E23: =C23/71683 -> 21.90937879 | G23: 0 | H23: 71683 | I23: 0 | J23: 71683 | K23: =-'App.2-B_FA Cont 2012 MIFRS'!K23 -> 71683 | L23: 0 | M23: 0 | O23: 71683
A24: 1825 | B24: Storage Battery Equipment | C24: ='App.2-B_FA Cont 2012 MIFRS'!E24+'App.2-B_FA Cont 2012 MIFRS'!J24 -> 0 | D24: ='App.2-B_FA Cont 2012 MIFRS'!F24 -> 0 | G24: 0 | H24: 0 | I24: 0 | J24: 0 | K24: =-'App.2-B_FA Cont 2012 MIFRS'!K24 -> 0 | L24: 0 | M24: 0 | O24: 0
A25: 1830 | B25: Poles, Towers & Fixtures | C25: ='App.2-B_FA Cont 2012 MIFRS'!E25+'App.2-B_FA Cont 2012 MIFRS'!J25 -> 5400992 | D25: ='App.2-B_FA Cont 2012 MIFRS'!F25 -> 569015 | E25: =C25/117200 -> 46.08354949 | F25: 50 | G25: 0.02 | H25: 117200 | I25: 5690.15 | J25: 122890.15 | K25: =-'App.2-B_FA Cont 2012 MIFRS'!K25 -> 122890 | L25: 0.15 | M25: 11380.3 | O25: 128580.3
A26: 1835 | B26: Overhead Conductors & Devices | C26: ='App.2-B_FA Cont 2012 MIFRS'!E26+'App.2-B_FA Cont 2012 MIFRS'!J26 -> 4402834 | D26: ='App.2-B_FA Cont 2012 MIFRS'!F26 -> 305500 | E26: =C26/117807 -> 37.37328003 | F26: 50 | G26: 0.02 | H26: 117807 | I26: 3055 | J26: 120862 | K26: =-'App.2-B_FA Cont 2012 MIFRS'!K26 -> 120862 | L26: 0 | M26: 6110 | O26: 123917
A27: 1840 | B27: Underground Conduit | C27: ='App.2-B_FA Cont 2012 MIFRS'!E27+'App.2-B_FA Cont 2012 MIFRS'!J27 -> 712931 | D27: ='App.2-B_FA Cont 2012 MIFRS'!F27 -> 79000 | E27: =C27/15264 -> 46.70669549 | F27: 50 | G27: 0.02 | H27: 15264 | I27: 790 | J27: 16054 | K27: =-'App.2-B_FA Cont 2012 MIFRS'!K27 -> 16054 | L27: 0 | M27: 1580 | O27: 16844
A28: 1845 | B28: Underground Conductors & Devices | C28: ='App.2-B_FA Cont 2012 MIFRS'!E28+'App.2-B_FA Cont 2012 MIFRS'!J28 -> 4222942 | D28: ='App.2-B_FA Cont 2012 MIFRS'!F28 -> 171000 | E28: =C28/202630 -> 20.84065538 | F28: 30 | G28: 0.03333333333 | H28: 202630 | I28: 2850 | J28: 205480 | K28: =-'App.2-B_FA Cont 2012 MIFRS'!K28 -> 205480 | L28: 0 | M28: 5700 | O28: 208330
A29: 1850 | B29: Line Transformers | C29: ='App.2-B_FA Cont 2012 MIFRS'!E29+'App.2-B_FA Cont 2012 MIFRS'!J29 -> 3165512 | D29: ='App.2-B_FA Cont 2012 MIFRS'!F29 -> 358500 | E29: =C29/106579 -> 29.70108558 | F29: 40 | G29: 0.025 | H29: 106579 | I29: 4481.25 | J29: 111060.25 | K29: =-'App.2-B_FA Cont 2012 MIFRS'!K29 -> 111060 | L29: 0.25 | M29: 8962.5 | O29: 115541.5
A30: 1855 | B30: Services (Overhead & Underground) | C30: ='App.2-B_FA Cont 2012 MIFRS'!E30+'App.2-B_FA Cont 2012 MIFRS'!J30 -> 541539 | D30: ='App.2-B_FA Cont 2012 MIFRS'!F30 -> 34000 | E30: =C30/15003 -> 36.09538092 | F30: 40 | G30: 0.025 | H30: 15003 | I30: 425 | J30: 15428 | K30: =-'App.2-B_FA Cont 2012 MIFRS'!K30 -> 15428 | L30: 1.818989404e-12 | M30: 850 | O30: 15853
A31: 1860 | B31: Meters | C31: ='App.2-B_FA Cont 2012 MIFRS'!E31+'App.2-B_FA Cont 2012 MIFRS'!J31 -> 139980 | D31: ='App.2-B_FA Cont 2012 MIFRS'!F31 -> 0 | E31: =C31/8475 -> 16.51681416 | G31: 0 | H31: 8475 | I31: 0 | J31: 8475 | K31: =-'App.2-B_FA Cont 2012 MIFRS'!K31 -> 8475 | L31: 0 | M31: 0 | O31: 8475
A32: 1860 | B32: Meters (Smart Meters) | C32: ='App.2-B_FA Cont 2012 MIFRS'!E32+'App.2-B_FA Cont 2012 MIFRS'!J32 -> 2368490 | D32: ='App.2-B_FA Cont 2012 MIFRS'!F32 -> 12000 | E32: =C32/183692 -> 12.89381138 | F32: 15 | G32: 0.06666666667 | H32: 183692 | I32: 400 | J32: 184092 | K32: =-'App.2-B_FA Cont 2012 MIFRS'!K32 -> 184092 | L32: 0 | M32: 800 | O32: 184492
A33: 1870 | B33: Leased Property Customer Premises | C33: ='App.2-B_FA Cont 2012 MIFRS'!E33+'App.2-B_FA Cont 2012 MIFRS'!J33 -> 5128 | D33: ='App.2-B_FA Cont 2012 MIFRS'!F33 -> 0 | E33: =C33/2564 -> 2 | G33: 0 | H33: 2564 | I33: 0 | J33: 2564 | K33: =-'App.2-B_FA Cont 2012 MIFRS'!K33 -> 2564 | L33: 0 | M33: 0 | O33: 2564
A34: 1905 | B34: Land | C34: ='App.2-B_FA Cont 2012 MIFRS'!E34+'App.2-B_FA Cont 2012 MIFRS'!J34 -> 0 | D34: ='App.2-B_FA Cont 2012 MIFRS'!F34 -> 0 | G34: 0 | H34: 0 | I34: 0 | J34: 0 | K34: =-'App.2-B_FA Cont 2012 MIFRS'!K34 -> 0 | L34: 0 | M34: 0 | O34: 0
A35: 1908 | B35: Buildings & Fixtures | C35: ='App.2-B_FA Cont 2012 MIFRS'!E35+'App.2-B_FA Cont 2012 MIFRS'!J35 -> 1213475 | D35: ='App.2-B_FA Cont 2012 MIFRS'!F35 -> 275000 | E35: =C35/57881.5 -> 20.96481605 | F35: 40 | G35: 0.025 | H35: 57881.5 | I35: 3437.5 | J35: 61319 | K35: =-'App.2-B_FA Cont 2012 MIFRS'!K35 -> 61319 | L35: 0 | M35: 6875 | O35: 64756.5
A36: 1910 | B36: Leasehold Improvements | C36: ='App.2-B_FA Cont 2012 MIFRS'!E36+'App.2-B_FA Cont 2012 MIFRS'!J36 -> 0 | D36: ='App.2-B_FA Cont 2012 MIFRS'!F36 -> 0 | G36: 0 | H36: 0 | I36: 0 | J36: 0 | K36: =-'App.2-B_FA Cont 2012 MIFRS'!K36 -> 0 | L36: 0 | M36: 0 | O36: 0
A37: 1915 | B37: Office Furniture & Equipment (10 years) | C37: ='App.2-B_FA Cont 2012 MIFRS'!E37+'App.2-B_FA Cont 2012 MIFRS'!J37 -> 40715 | D37: ='App.2-B_FA Cont 2012 MIFRS'!F37 -> 17500 | E37: =C37/8375 -> 4.861492537 | F37: 10 | G37: 0.1 | H37: 8375 | I37: 875 | J37: 9250 | K37: =-'App.2-B_FA Cont 2012 MIFRS'!K37 -> 9250 | L37: 0 | M37: 1750 | N37: 534 | O37: 9591
A38: 1915 | B38: Office Furniture & Equipment (5 years) | C38: ='App.2-B_FA Cont 2012 MIFRS'!E38+'App.2-B_FA Cont 2012 MIFRS'!J38 -> 0 | D38: ='App.2-B_FA Cont 2012 MIFRS'!F38 -> 0 | G38: 0 | H38: 0 | I38: 0 | J38: 0 | K38: =-'App.2-B_FA Cont 2012 MIFRS'!K38 -> 0 | L38: 0 | M38: 0 | O38: 0
A39: 1920 | B39: Computer Equipment - Hardware | C39: ='App.2-B_FA Cont 2012 MIFRS'!E39+'App.2-B_FA Cont 2012 MIFRS'!J39 -> 63901 | D39: ='App.2-B_FA Cont 2012 MIFRS'!F39 -> 35000 | E39: =C39/34751 -> 1.838824782 | F39: 4 | G39: 0.25 | H39: 34751 | I39: 4375 | J39: 39126 | K39: =-'App.2-B_FA Cont 2012 MIFRS'!K39 -> 39126 | L39: 0 | M39: 8750 | N39: 21263 | O39: 22238
A40: 1920 | B40: Computer Equip.-Hardware(Post Mar. 22/04) | C40: ='App.2-B_FA Cont 2012 MIFRS'!E40+'App.2-B_FA Cont 2012 MIFRS'!J40 -> 0 | D40: ='App.2-B_FA Cont 2012 MIFRS'!F40 -> 0 | G40: 0 | H40: 0 | I40: 0 | J40: 0 | K40: =-'App.2-B_FA Cont 2012 MIFRS'!K40 -> 0 | L40: 0 | M40: 0 | O40: 0
A41: 1920 | B41: Computer Equip.-Hardware(Post Mar. 19/07) | C41: ='App.2-B_FA Cont 2012 MIFRS'!E41+'App.2-B_FA Cont 2012 MIFRS'!J41 -> 0 | D41: ='App.2-B_FA Cont 2012 MIFRS'!F41 -> 0 | G41: 0 | H41: 0 | I41: 0 | J41: 0 | K41: =-'App.2-B_FA Cont 2012 MIFRS'!K41 -> 0 | L41: 0 | M41: 0 | O41: 0
A42: 1925 | B42: Computer Software | C42: ='App.2-B_FA Cont 2012 MIFRS'!E42+'App.2-B_FA Cont 2012 MIFRS'!J42 -> 568656 | D42: ='App.2-B_FA Cont 2012 MIFRS'!F42 -> 90000 | E42: =C42/129101 -> 4.404737376 | F42: 5 | G42: 0.2 | H42: 129101 | I42: 9000 | J42: 138101 | K42: =-'App.2-B_FA Cont 2012 MIFRS'!K42 -> 138101 | L42: 0 | M42: 18000 | N42: 8239 | O42: 138862
A43: 1930 | B43: Transportation Equipment | C43: ='App.2-B_FA Cont 2012 MIFRS'!E43+'App.2-B_FA Cont 2012 MIFRS'!J43 -> 266325 | D43: ='App.2-B_FA Cont 2012 MIFRS'!F43 -> 0 | E43: =C43/29819 -> 8.931386029 | G43: 0 | H43: 29819 | I43: 0 | J43: 29819 | K43: =-'App.2-B_FA Cont 2012 MIFRS'!K43 -> 29819 | L43: 3.637978807e-12 | M43: 0 | O43: 29819
A44: 1935 | B44: Stores Equipment | C44: ='App.2-B_FA Cont 2012 MIFRS'!E44+'App.2-B_FA Cont 2012 MIFRS'!J44 -> 2930 | D44: ='App.2-B_FA Cont 2012 MIFRS'!F44 -> 0 | E44: =C44/759 -> 3.860342556 | G44: 0 | H44: 759 | I44: 0 | J44: 759 | K44: =-'App.2-B_FA Cont 2012 MIFRS'!K44 -> 759 | L44: 0 | M44: 0 | O44: 759
A45: 1940 | B45: Tools, Shop & Garage Equipment | C45: ='App.2-B_FA Cont 2012 MIFRS'!E45+'App.2-B_FA Cont 2012 MIFRS'!J45 -> 35111 | D45: ='App.2-B_FA Cont 2012 MIFRS'!F45 -> 13000 | E45: =C45/7471 -> 4.699638603 | F45: 10 | G45: 0.1 | H45: 7471 | I45: 650 | J45: 8121 | K45: =-'App.2-B_FA Cont 2012 MIFRS'!K45 -> 8121 | L45: 9.094947018e-13 | M45: 1300 | N45: 723 | O45: 8048
A46: 1945 | B46: Measurement & Testing Equipment | C46: ='App.2-B_FA Cont 2012 MIFRS'!E46+'App.2-B_FA Cont 2012 MIFRS'!J46 -> 4645 | D46: ='App.2-B_FA Cont 2012 MIFRS'!F46 -> 0 | E46: =C46/1299 -> 3.57582756 | G46: 0 | H46: 1299 | I46: 0 | J46: 1299 | K46: =-'App.2-B_FA Cont 2012 MIFRS'!K46 -> 1299 | L46: 0 | M46: 0 | N46: 131 | O46: 1168
A47: 1950 | B47: Power Operated Equipment | C47: ='App.2-B_FA Cont 2012 MIFRS'!E47+'App.2-B_FA Cont 2012 MIFRS'!J47 -> 0 | D47: ='App.2-B_FA Cont 2012 MIFRS'!F47 -> 0 | G47: 0 | H47: 0 | I47: 0 | J47: 0 | K47: =-'App.2-B_FA Cont 2012 MIFRS'!K47 -> 0 | L47: 0 | M47: 0 | O47: 0
A48: 1955 | B48: Communications Equipment | C48: ='App.2-B_FA Cont 2012 MIFRS'!E48+'App.2-B_FA Cont 2012 MIFRS'!J48 -> 159873 | D48: ='App.2-B_FA Cont 2012 MIFRS'!F48 -> 0 | E48: =C48/24143 -> 6.621919397 | G48: 0 | H48: 24143 | I48: 0 | J48: 24143 | K48: =-'App.2-B_FA Cont 2012 MIFRS'!K48 -> 24143 | L48: 0 | M48: 0 | N48: 2770 | O48: 21373
A49: 1955 | B49: Communication Equipment (Smart Meters) | C49: ='App.2-B_FA Cont 2012 MIFRS'!E49+'App.2-B_FA Cont 2012 MIFRS'!J49 -> 0 | D49: ='App.2-B_FA Cont 2012 MIFRS'!F49 -> 0 | G49: 0 | H49: 0 | I49: 0 | J49: 0 | K49: =-'App.2-B_FA Cont 2012 MIFRS'!K49 -> 0 | L49: 0 | M49: 0 | O49: 0
A50: 1960 | B50: Miscellaneous Equipment | C50: ='App.2-B_FA Cont 2012 MIFRS'!E50+'App.2-B_FA Cont 2012 MIFRS'!J50 -> 244811 | D50: ='App.2-B_FA Cont 2012 MIFRS'!F50 -> 0 | E50: =C50/11128 -> 21.99955068 | G50: 0 | H50: 11128 | I50: 0 | J50: 11128 | K50: =-'App.2-B_FA Cont 2012 MIFRS'!K50 -> 11128 | L50: 0 | M50: 0 | O50: 11128
A51: 1975 | B51: Load Management Controls Utility Premises | C51: ='App.2-B_FA Cont 2012 MIFRS'!E51+'App.2-B_FA Cont 2012 MIFRS'!J51 -> 0 | D51: ='App.2-B_FA Cont 2012 MIFRS'!F51 -> 0 | G51: 0 | H51: 0 | I51: 0 | J51: 0 | K51: =-'App.2-B_FA Cont 2012 MIFRS'!K51 -> 0 | L51: 0 | M51: 0 | O51: 0
A52: 1980 | B52: System Supervisor Equipment | C52: ='App.2-B_FA Cont 2012 MIFRS'!E52+'App.2-B_FA Cont 2012 MIFRS'!J52 -> 275387 | D52: ='App.2-B_FA Cont 2012 MIFRS'!F52 -> 27500 | E52: =C52/48516.5 -> 5.676151412 | F52: 20 | G52: 0.05 | H52: 48516.5 | I52: 687.5 | J52: 49204 | K52: =-'App.2-B_FA Cont 2012 MIFRS'!K52 -> 49204 | L52: 0 | M52: 1375 | N52: 352 | O52: 49539.5
A53: 1985 | B53: Miscellaneous Fixed Assets | C53: ='App.2-B_FA Cont 2012 MIFRS'!E53+'App.2-B_FA Cont 2012 MIFRS'!J53 -> 0 | D53: ='App.2-B_FA Cont 2012 MIFRS'!F53 -> 0 | G53: 0 | H53: 0 | I53: 0 | J53: 0 | K53: =-'App.2-B_FA Cont 2012 MIFRS'!K53 -> 0 | L53: 0 | M53: 0 | O53: 0
A54: 1995 | B54: Contributions & Grants | C54: ='App.2-B_FA Cont 2012 MIFRS'!E54+'App.2-B_FA Cont 2012 MIFRS'!J54 -> -1671125 | D54: ='App.2-B_FA Cont 2012 MIFRS'!F54 -> -100000 | E54: =C54/-62000 -> 26.95362903 | F54: 50 | G54: 0.02 | H54: -62000 | I54: -1000 | J54: -63000 | K54: =-'App.2-B_FA Cont 2012 MIFRS'!K54 -> -63000 | L54: 0 | M54: -2000 | O54: -64000
A55: etc. | G55: 0 | H55: 0 | I55: 0 | J55: 0 | K55: =-'App.2-B_FA Cont 2012 MIFRS'!K55 -> 0 | L55: 0 | M55: 0 | O55: 0
G56: 0 | H56: 0 | I56: 0 | J56: 0 | K56: =-'App.2-B_FA Cont 2012 MIFRS'!K56 -> 0 | L56: 0 | M56: 0 | O56: 0
B57: Total | C57: =SUM(C16:C56) -> 24387754 | D57: =SUM(D16:D56) -> 1887015 | H57: =SUM(H16:H56) -> 1148874 | I57: 35716.4 | J57: 1184590.4 | K57: 1184590 | L57: 0.4 | M57: 71432.8 | N57: =SUM(N16:N56) -> 34012 | O57: 1186294.8
A59: Notes:
A61: 1 | B61: Board policy of the "half-year" rule - the applicant must ensure that additions in the year attract a half-year depreciation expense in the first year. Deviations from this standard practice must be supported in the application.
A62: 2 | B62: The applicant must provide an explanation of material variances in evidence
A63: 3 | B63: The applicant should ensure that the years for new additions of assets are the asset useful lives determined by management in accordance with IFRS.
A64: 4 | B64: A recalculation should be performed to determine the average remaining life of opening balance of assets (i.e. excluding 2012 additions) under IFRS. For example, Asset A had a useful life of 20 years under CGAAP. On January 1, 2012, the date of transition, Asset A was 3 years depreciated. As a result, Asset A would have a remaining service life of 17 years (20 years less 3 years) under CGAAP as of January 1, 2012. Due to the transition to IFRS, management re-assessed the asset useful lives under IFRS principles and concluded that the revised useful life of Asset A is now 30 years. Therefore, the average remaining useful life of opening balance of Asset A is determined to be 27 years (30 years less 3 years) under IFRS as of January 1, 2012.
A65: 5 | B65: NBV must exclude assets still on the books but which have been fully amortized or depreciated.
A66: 6 | B66: This column refers to the calculated full year depreciation but excludes the depreciation expense on assets fully depreciated during the year. This column is used for the purpose of calculating depreciation expense in the following year on the next worksheet.
A68: General: | B68: Applicants must provide a breakdown of depreciation and amortization expense in the above format for all relevant accounts. Asset Retirement Obligations (AROs), depreciation and accretion expense should be disclosed separately consistent with the Notes of historical Audited Financial Statements.

Sheet App.2-CH_MIFRS_DepExp_2013
I1: File Number: | J1: ='LDC Info'!$E$18 -> EB-2012-0173
I2: Exhibit: | J2: 2
I3: Tab: | J3: 2
I4: Schedule: | J4: 1
I5: Page: | J5: 11 of 11
I7: Date: | J7: Aug 31, 2012
A9: Appendix 2-CH
A10: Depreciation and Amortization Expense
A11: Assumes the applicant adopted IFRS for financial reporting purposes January 1, 2013
C12: Year | D12: 2013 | E12: MIFRS
A14: Account | B14: Description | C14: Additions | D14: Years (new additions only) | E14: Depreciation Rate on New Additions | F14: 2013 Depreciation Expense 1 | G14: 2013 Depreciation Expense per Appendix 2-B Fixed Assets, Column K (l) | H14: Variance 2
C15: (d) | D15: (f) | E15: (g) = 1 / (f) | F15: (h)=2012 Full Year Depreciation + ((d)*0.5)/(f) | H15: (m) = (h) - (l)
A16: 1611 | B16: Computer Software (Formally known as Account 1925) | E16: =IF(D16=0,0,1/D16) -> 0 | F16: =IF(D16=0,'App.2-CG_MIFRS_DepExp_2012'!O16,+'App.2-CG_MIFRS_DepExp_2012'!O16+((C16*0.5)/D16)) -> 0 | H16: =IF(ISERROR(+F16-G16), 0, +F16-G16) -> 0
A17: 1612 | B17: Land Rights (Formally known as Account 1906) | E17: 0 | F17: =IF(D17=0,'App.2-CG_MIFRS_DepExp_2012'!O17,+'App.2-CG_MIFRS_DepExp_2012'!O17+((C17*0.5)/D17)) -> 0 | H17: 0
A18: 1805 | B18: Land | C18: ='App.2-B_FA Cont 2013 MIFRS '!F18 -> 0 | E18: =IF(D18=0,0,1/D18) -> 0 | F18: =IF(D18=0,'App.2-CG_MIFRS_DepExp_2012'!O18,+'App.2-CG_MIFRS_DepExp_2012'!O18+((C18*0.5)/D18)) -> 0 | G18: =-'App.2-B_FA Cont 2013 MIFRS '!K18 -> 0 | H18: =IF(ISERROR(+F18-G18), 0, +F18-G18) -> 0
A19: 1806 | B19: Land Rights | C19: ='App.2-B_FA Cont 2013 MIFRS '!F19 -> 0 | E19: 0 | F19: =IF(D19=0,'App.2-CG_MIFRS_DepExp_2012'!O19,+'App.2-CG_MIFRS_DepExp_2012'!O19+((C19*0.5)/D19)) -> 640 | G19: =-'App.2-B_FA Cont 2013 MIFRS '!K19 -> 640 | H19: 0
A20: 1808 | B20: Buildings | C20: ='App.2-B_FA Cont 2013 MIFRS '!F20 -> 0 | E20: 0 | F20: =IF(D20=0,'App.2-CG_MIFRS_DepExp_2012'!O20,+'App.2-CG_MIFRS_DepExp_2012'!O20+((C20*0.5)/D20)) -> 1236 | G20: =-'App.2-B_FA Cont 2013 MIFRS '!K20 -> 1236 | H20: 0
A21: 1810 | B21: Leasehold Improvements | C21: ='App.2-B_FA Cont 2013 MIFRS '!F21 -> 0 | E21: 0 | F21: =IF(D21=0,'App.2-CG_MIFRS_DepExp_2012'!O21,+'App.2-CG_MIFRS_DepExp_2012'!O21+((C21*0.5)/D21)) -> 0 | G21: =-'App.2-B_FA Cont 2013 MIFRS '!K21 -> 0 | H21: 0
A22: 1815 | B22: Transformer Station Equipment >50 kV | C22: ='App.2-B_FA Cont 2013 MIFRS '!F22 -> 0 | E22: 0 | F22: =IF(D22=0,'App.2-CG_MIFRS_DepExp_2012'!O22,+'App.2-CG_MIFRS_DepExp_2012'!O22+((C22*0.5)/D22)) -> 14857 | G22: =-'App.2-B_FA Cont 2013 MIFRS '!K22 -> 14857 | H22: 0
A23: 1820 | B23: Distribution Station Equipment <50 kV | C23: ='App.2-B_FA Cont 2013 MIFRS '!F23 -> 0 | E23: 0 | F23: =IF(D23=0,'App.2-CG_MIFRS_DepExp_2012'!O23,+'App.2-CG_MIFRS_DepExp_2012'!O23+((C23*0.5)/D23)) -> 71683 | G23: =-'App.2-B_FA Cont 2013 MIFRS '!K23 -> 71683 | H23: 0
A24: 1825 | B24: Storage Battery Equipment | C24: ='App.2-B_FA Cont 2013 MIFRS '!F24 -> 0 | E24: 0 | F24: =IF(D24=0,'App.2-CG_MIFRS_DepExp_2012'!O24,+'App.2-CG_MIFRS_DepExp_2012'!O24+((C24*0.5)/D24)) -> 0 | G24: =-'App.2-B_FA Cont 2013 MIFRS '!K24 -> 0 | H24: 0
A25: 1830 | B25: Poles, Towers & Fixtures | C25: ='App.2-B_FA Cont 2013 MIFRS '!F25 -> 625000 | D25: 50 | E25: 0.02 | F25: =IF(D25=0,'App.2-CG_MIFRS_DepExp_2012'!O25,+'App.2-CG_MIFRS_DepExp_2012'!O25+((C25*0.5)/D25)) -> 134830.3 | G25: =-'App.2-B_FA Cont 2013 MIFRS '!K25 -> 134831 | H25: -0.7
A26: 1835 | B26: Overhead Conductors & Devices | C26: ='App.2-B_FA Cont 2013 MIFRS '!F26 -> 133600 | D26: 50 | E26: 0.02 | F26: =IF(D26=0,'App.2-CG_MIFRS_DepExp_2012'!O26,+'App.2-CG_MIFRS_DepExp_2012'!O26+((C26*0.5)/D26)) -> 125253 | G26: =-'App.2-B_FA Cont 2013 MIFRS '!K26 -> 125253 | H26: 0
A27: 1840 | B27: Underground Conduit | C27: ='App.2-B_FA Cont 2013 MIFRS '!F27 -> 116200 | D27: 50 | E27: 0.02 | F27: =IF(D27=0,'App.2-CG_MIFRS_DepExp_2012'!O27,+'App.2-CG_MIFRS_DepExp_2012'!O27+((C27*0.5)/D27)) -> 18006 | G27: =-'App.2-B_FA Cont 2013 MIFRS '!K27 -> 18006 | H27: 0
A28: 1845 | B28: Underground Conductors & Devices | C28: ='App.2-B_FA Cont 2013 MIFRS '!F28 -> 192100 | D28: 30 | E28: 0.03333333333 | F28: =IF(D28=0,'App.2-CG_MIFRS_DepExp_2012'!O28,+'App.2-CG_MIFRS_DepExp_2012'!O28+((C28*0.5)/D28)) -> 211531.6667 | G28: =-'App.2-B_FA Cont 2013 MIFRS '!K28 -> 211532 | H28: -0.3333333333
A29: 1850 | B29: Line Transformers | C29: ='App.2-B_FA Cont 2013 MIFRS '!F29 -> 317300 | D29: 40 | E29: 0.025 | F29: =IF(D29=0,'App.2-CG_MIFRS_DepExp_2012'!O29,+'App.2-CG_MIFRS_DepExp_2012'!O29+((C29*0.5)/D29)) -> 119507.75 | G29: =-'App.2-B_FA Cont 2013 MIFRS '!K29 -> 119507 | H29: 0.75
A30: 1855 | B30: Services (Overhead & Underground) | C30: ='App.2-B_FA Cont 2013 MIFRS '!F30 -> 35000 | D30: 40 | E30: 0.025 | F30: =IF(D30=0,'App.2-CG_MIFRS_DepExp_2012'!O30,+'App.2-CG_MIFRS_DepExp_2012'!O30+((C30*0.5)/D30)) -> 16290.5 | G30: =-'App.2-B_FA Cont 2013 MIFRS '!K30 -> 16290 | H30: 0.5
A31: 1860 | B31: Meters | C31: ='App.2-B_FA Cont 2013 MIFRS '!F31 -> 0 | E31: 0 | F31: =IF(D31=0,'App.2-CG_MIFRS_DepExp_2012'!O31,+'App.2-CG_MIFRS_DepExp_2012'!O31+((C31*0.5)/D31)) -> 8475 | G31: =-'App.2-B_FA Cont 2013 MIFRS '!K31 -> 8475 | H31: 0
A32: 1860 | B32: Meters (Smart Meters) | C32: ='App.2-B_FA Cont 2013 MIFRS '!F32 -> 50000 | D32: 15 | E32: 0.06666666667 | F32: =IF(D32=0,'App.2-CG_MIFRS_DepExp_2012'!O32,+'App.2-CG_MIFRS_DepExp_2012'!O32+((C32*0.5)/D32)) -> 186158.6667 | G32: =-'App.2-B_FA Cont 2013 MIFRS '!K32 -> 186159 | H32: -0.3333333333
A33: 1870 | B33: Leased Property on Customer Premises | C33: ='App.2-B_FA Cont 2013 MIFRS '!F33 -> 0 | E33: 0 | F33: =IF(D33=0,'App.2-CG_MIFRS_DepExp_2012'!O33,+'App.2-CG_MIFRS_DepExp_2012'!O33+((C33*0.5)/D33)) -> 2564 | G33: =-'App.2-B_FA Cont 2013 MIFRS '!K33 -> 2564 | H33: 0
A34: 1905 | B34: Land | C34: ='App.2-B_FA Cont 2013 MIFRS '!F34 -> 0 | E34: 0 | F34: =IF(D34=0,'App.2-CG_MIFRS_DepExp_2012'!O34,+'App.2-CG_MIFRS_DepExp_2012'!O34+((C34*0.5)/D34)) -> 0 | G34: =-'App.2-B_FA Cont 2013 MIFRS '!K34 -> 0 | H34: 0
A35: 1908 | B35: Buildings & Fixtures | C35: ='App.2-B_FA Cont 2013 MIFRS '!F35 -> 20000 | D35: 40 | E35: 0.025 | F35: =IF(D35=0,'App.2-CG_MIFRS_DepExp_2012'!O35,+'App.2-CG_MIFRS_DepExp_2012'!O35+((C35*0.5)/D35)) -> 65006.5 | G35: =-'App.2-B_FA Cont 2013 MIFRS '!K35 -> 65006 | H35: 0.5
A36: 1910 | B36: Leasehold Improvements | C36: ='App.2-B_FA Cont 2013 MIFRS '!F36 -> 0 | E36: 0 | F36: =IF(D36=0,'App.2-CG_MIFRS_DepExp_2012'!O36,+'App.2-CG_MIFRS_DepExp_2012'!O36+((C36*0.5)/D36)) -> 0 | G36: =-'App.2-B_FA Cont 2013 MIFRS '!K36 -> 0 | H36: 0
A37: 1915 | B37: Office Furniture & Equipment (10 years) | C37: ='App.2-B_FA Cont 2013 MIFRS '!F37 -> 0 | E37: 0 | F37: =IF(D37=0,'App.2-CG_MIFRS_DepExp_2012'!O37,+'App.2-CG_MIFRS_DepExp_2012'!O37+((C37*0.5)/D37)) -> 9591 | G37: =-'App.2-B_FA Cont 2013 MIFRS '!K37 -> 9591 | H37: 0
A38: 1915 | B38: Office Furniture & Equipment (5 years) | C38: ='App.2-B_FA Cont 2013 MIFRS '!F38 -> 0 | E38: 0 | F38: =IF(D38=0,'App.2-CG_MIFRS_DepExp_2012'!O38,+'App.2-CG_MIFRS_DepExp_2012'!O38+((C38*0.5)/D38)) -> 0 | G38: =-'App.2-B_FA Cont 2013 MIFRS '!K38 -> 0 | H38: 0
A39: 1920 | B39: Computer Equipment - Hardware | C39: ='App.2-B_FA Cont 2013 MIFRS '!F39 -> 46000 | D39: 4 | E39: 0.25 | F39: =IF(D39=0,'App.2-CG_MIFRS_DepExp_2012'!O39,+'App.2-CG_MIFRS_DepExp_2012'!O39+((C39*0.5)/D39)) -> 27988 | G39: =-'App.2-B_FA Cont 2013 MIFRS '!K39 -> 27988 | H39: 0
A40: 1920 | B40: Computer Equip.-Hardware(Post Mar. 22/04) | C40: ='App.2-B_FA Cont 2013 MIFRS '!F40 -> 0 | E40: 0 | F40: =IF(D40=0,'App.2-CG_MIFRS_DepExp_2012'!O40,+'App.2-CG_MIFRS_DepExp_2012'!O40+((C40*0.5)/D40)) -> 0 | G40: =-'App.2-B_FA Cont 2013 MIFRS '!K40 -> 0 | H40: 0
A41: 1920 | B41: Computer Equip.-Hardware(Post Mar. 19/07) | C41: ='App.2-B_FA Cont 2013 MIFRS '!F41 -> 0 | E41: 0 | F41: =IF(D41=0,'App.2-CG_MIFRS_DepExp_2012'!O41,+'App.2-CG_MIFRS_DepExp_2012'!O41+((C41*0.5)/D41)) -> 0 | G41: =-'App.2-B_FA Cont 2013 MIFRS '!K41 -> 0 | H41: 0
A42: 1925 | B42: Computer Software | C42: ='App.2-B_FA Cont 2013 MIFRS '!F42 -> 58500 | D42: 5 | E42: 0.2 | F42: =IF(D42=0,'App.2-CG_MIFRS_DepExp_2012'!O42,+'App.2-CG_MIFRS_DepExp_2012'!O42+((C42*0.5)/D42)) -> 144712 | G42: =-'App.2-B_FA Cont 2013 MIFRS '!K42 -> 144712 | H42: 0
A43: 1930 | B43: Transportation Equipment | C43: ='App.2-B_FA Cont 2013 MIFRS '!F43 -> 325165 | D43: 15 | E43: 0.06666666667 | F43: =IF(D43=0,'App.2-CG_MIFRS_DepExp_2012'!O43,+'App.2-CG_MIFRS_DepExp_2012'!O43+((C43*0.5)/D43)) -> 40657.83333 | G43: =-'App.2-B_FA Cont 2013 MIFRS '!K43 -> 40657 | H43: 0.8333333333
A44: 1935 | B44: Stores Equipment | C44: ='App.2-B_FA Cont 2013 MIFRS '!F44 -> 0 | E44: 0 | F44: =IF(D44=0,'App.2-CG_MIFRS_DepExp_2012'!O44,+'App.2-CG_MIFRS_DepExp_2012'!O44+((C44*0.5)/D44)) -> 759 | G44: =-'App.2-B_FA Cont 2013 MIFRS '!K44 -> 759 | H44: 0
A45: 1940 | B45: Tools, Shop & Garage Equipment | C45: ='App.2-B_FA Cont 2013 MIFRS '!F45 -> 5000 | D45: 10 | E45: 0.1 | F45: =IF(D45=0,'App.2-CG_MIFRS_DepExp_2012'!O45,+'App.2-CG_MIFRS_DepExp_2012'!O45+((C45*0.5)/D45)) -> 8298 | G45: =-'App.2-B_FA Cont 2013 MIFRS '!K45 -> 8298 | H45: 0
A46: 1945 | B46: Measurement & Testing Equipment | C46: ='App.2-B_FA Cont 2013 MIFRS '!F46 -> 0 | E46: 0 | F46: =IF(D46=0,'App.2-CG_MIFRS_DepExp_2012'!O46,+'App.2-CG_MIFRS_DepExp_2012'!O46+((C46*0.5)/D46)) -> 1168 | G46: =-'App.2-B_FA Cont 2013 MIFRS '!K46 -> 1168 | H46: 0
A47: 1950 | B47: Power Operated Equipment | C47: ='App.2-B_FA Cont 2013 MIFRS '!F47 -> 0 | E47: 0 | F47: =IF(D47=0,'App.2-CG_MIFRS_DepExp_2012'!O47,+'App.2-CG_MIFRS_DepExp_2012'!O47+((C47*0.5)/D47)) -> 0 | G47: =-'App.2-B_FA Cont 2013 MIFRS '!K47 -> 0 | H47: 0
A48: 1955 | B48: Communications Equipment | C48: ='App.2-B_FA Cont 2013 MIFRS '!F48 -> 0 | E48: 0 | F48: =IF(D48=0,'App.2-CG_MIFRS_DepExp_2012'!O48,+'App.2-CG_MIFRS_DepExp_2012'!O48+((C48*0.5)/D48)) -> 21373 | G48: =-'App.2-B_FA Cont 2013 MIFRS '!K48 -> 21373 | H48: 0
A49: 1955 | B49: Communication Equipment (Smart Meters) | C49: ='App.2-B_FA Cont 2013 MIFRS '!F49 -> 0 | E49: 0 | F49: =IF(D49=0,'App.2-CG_MIFRS_DepExp_2012'!O49,+'App.2-CG_MIFRS_DepExp_2012'!O49+((C49*0.5)/D49)) -> 0 | G49: =-'App.2-B_FA Cont 2013 MIFRS '!K49 -> 0 | H49: 0
A50: 1960 | B50: Miscellaneous Equipment | C50: ='App.2-B_FA Cont 2013 MIFRS '!F50 -> 0 | E50: 0 | F50: =IF(D50=0,'App.2-CG_MIFRS_DepExp_2012'!O50,+'App.2-CG_MIFRS_DepExp_2012'!O50+((C50*0.5)/D50)) -> 11128 | G50: =-'App.2-B_FA Cont 2013 MIFRS '!K50 -> 11128 | H50: 0
A51: 1975 | B51: Load Management Controls Utility Premises | C51: ='App.2-B_FA Cont 2013 MIFRS '!F51 -> 0 | E51: 0 | F51: =IF(D51=0,'App.2-CG_MIFRS_DepExp_2012'!O51,+'App.2-CG_MIFRS_DepExp_2012'!O51+((C51*0.5)/D51)) -> 0 | G51: =-'App.2-B_FA Cont 2013 MIFRS '!K51 -> 0 | H51: 0
A52: 1980 | B52: System Supervisor Equipment | C52: ='App.2-B_FA Cont 2013 MIFRS '!F52 -> 52500 | D52: 20 | E52: 0.05 | F52: =IF(D52=0,'App.2-CG_MIFRS_DepExp_2012'!O52,+'App.2-CG_MIFRS_DepExp_2012'!O52+((C52*0.5)/D52)) -> 50852 | G52: =-'App.2-B_FA Cont 2013 MIFRS '!K52 -> 50852 | H52: 0
A53: 1985 | B53: Miscellaneous Fixed Assets | C53: ='App.2-B_FA Cont 2013 MIFRS '!F53 -> 0 | E53: 0 | F53: =IF(D53=0,'App.2-CG_MIFRS_DepExp_2012'!O53,+'App.2-CG_MIFRS_DepExp_2012'!O53+((C53*0.5)/D53)) -> 0 | G53: =-'App.2-B_FA Cont 2013 MIFRS '!K53 -> 0 | H53: 0
A54: 1995 | B54: Contributions & Grants | C54: ='App.2-B_FA Cont 2013 MIFRS '!F54 -> 0 | E54: 0 | F54: =IF(D54=0,'App.2-CG_MIFRS_DepExp_2012'!O54,+'App.2-CG_MIFRS_DepExp_2012'!O54+((C54*0.5)/D54)) -> -64000 | G54: =-'App.2-B_FA Cont 2013 MIFRS '!K54 -> -64000 | H54: 0
A55: etc. | C55: ='App.2-B_FA Cont 2013 MIFRS '!F55 -> 0 | E55: 0 | F55: =IF(D55=0,'App.2-CG_MIFRS_DepExp_2012'!O55,+'App.2-CG_MIFRS_DepExp_2012'!O55+((C55*0.5)/D55)) -> 0 | H55: 0
E56: 0 | F56: =IF(D56=0,'App.2-CG_MIFRS_DepExp_2012'!O56,+'App.2-CG_MIFRS_DepExp_2012'!O56+((C56*0.5)/D56)) -> 0 | H56: 0
B57: Total | C57: =SUM(C16:C56) -> 1976365 | F57: =SUM(F16:F56) -> 1228566.217 | G57: =SUM(G16:G56) -> 1228565 | H57: =SUM(H16:H56) -> 1.216666667
B58: Depreciation expense adjustment resulting from amortization of Account 1576 | F58: -143383
B59: Total Depreciation expense to be included in the test year revenue requirement | F59: =+F58+F57 -> 1085183.217
A61: Notes:
A62: 1 | B62: Board policy of the "half-year" rule - the applicant must ensure that additions in the year attract a half-year depreciation expense in the first year. Deviations from this standard practice must be supported in the application.
A63: 2 | B63: The applicant must provide an explanation of material variances in evidence
A66: General: | B66: Applicants must provide a breakdown of depreciation and amortization expense in the above format for all relevant accounts. Asset Retirement Obligations (AROs), depreciation and accretion expense should be disclosed separately consistent with the Notes of historical Audited Financial Statements.

Sheet App.2-D_Overhead
L1: File Number: | M1: ='LDC Info'!$E$18 -> EB-2012-0173
L2: Exhibit: | M2: 2
L3: Tab: | M3: 3
L4: Schedule: | M4: 5
L5: Page: | M5: 4 of 6
L7: Date: | M7: Aug 31, 2012
A9: Appendix 2-D
A10: Overhead Expense
A12: The following table should be completed based on the information requested below. An explanation should be provided for any blank entries. The entries should include overhead costs that are currently capitalized on self-constructed assets under MIFRS or an alternate accounting standard.
E13: (A) 1 | F13: (B) | G13: (C) | H13: (D) | I13: (E) 1 | J13: (F) | K13: (G)
A14: Nature of the Overhead Costs | E14: Dollar | F14: Dollar | G14: Dollar | H14: Dollar Impact - | I14: Dollar Impact - | J14: Directly | K14: Reasons why the overhead costs are allowed to be
E15: Impact on PP&E | F15: Impact on PP&E | G15: Impact on PP&E | H15: PP&E Variance | I15: PP&E Variance | J15: Attributable? | K15: capitalized under MIFRS or an alternate accounting
E16: Historic Year | F16: Bridge Year | G16: Test Year | H16: Test versus Bridge | I16: Test versus Historic | J16: (Y/N) | K16: standard given limitations on capitalized overhead
A17: employee benefits | F17: 127329 | G17: 137725 | H17: =+G17-F17 -> 10396 | I17: =+G17-E17 -> 137725 | J17: Y | K17: Employee Benefits excluding safety training are capitalized
A18: costs of site preparation | H18: 0 | I18: 0 | K18: under IFRS
A19: initial delivery and handling costs | H19: 0 | I19: 0
A20: costs of testing whether the asset is functioning properly | H20: 0 | I20: 0
A21: professional fees | H21: 0 | I21: 0
H22: 0 | I22: 0
A23: costs of opening a new facility | H23: 0 | I23: 0
A24: costs of introducing a new product or service (including costs of advertising and promotional activities) | H24: 0 | I24: 0
A25: costs of conducting business in a new location or with a new class of customer (including costs of staff training) | H25: 0 | I25: 0
A26: administration and other general overhead costs | H26: 0 | I26: 0 | K26: Welland stopped capitalizing Adminstrative Overheads in
H27: 0 | I27: 0 | K27: 2010 and General Overheads in 2012
H28: 0 | I28: 0
H29: 0 | I29: 0
A30: Insert description of additional item(s) and new rows if needed. | H30: 0 | I30: 0
A31: Total | E31: =SUM(E17:E30) -> 0 | F31: =SUM(F17:F30) -> 127329 | G31: =SUM(G17:G30) -> 137725 | H31: =SUM(H17:H30) -> 10396 | I31: =SUM(I17:I30) -> 137725
A34: The following table should be completed based on the information requested below. An explanation should be provided for any blank entries. The entries should include overhead costs that were capitalized on self-constructed assets under CGAAP but are no longer capitalized under MIFRS or an alternate accounting standard and are included in OM&A.
E35: (A) 1 | F35: (B) | G35: (C) | H35: (D) | I35: (E) 1 | J35: (F) | K35: (G)
A36: Nature of the Overhead Costs | E36: Dollar | F36: Dollar | G36: Dollar | H36: Dollar Impact - | I36: Dollar Impact - | J36: Directly | K36: Reasons why the overhead costs are not allowed to be
E37: Impact on OM&A | F37: Impact on OM&A | G37: Impact on OM&A | H37: OM&A Variance | I37: OM&A Variance | J37: Attributable? | K37: capitalized under MIFRS or an alternate accounting
E38: Historic Year | F38: Bridge Year | G38: Test Year | H38: Test versus Bridge | I38: Test versus Historic | J38: (Y/N) | K38: standard given limitations on capitalized overhead
A39: employee benefits | H39: =+G39-F39 -> 0 | I39: =+G39-E39 -> 0 | K39: Should have small increase in OM&A due to safety training
A40: costs of site preparation | H40: =+G40-F40 -> 0 | I40: =+G40-E40 -> 0 | K40: no longer included in Burden Overheads
A41: initial delivery and handling costs | H41: =+G41-F41 -> 0 | I41: =+G41-E41 -> 0
A42: costs of testing whether the asset is functioning properly | H42: =+G42-F42 -> 0 | I42: =+G42-E42 -> 0
A43: professional fees | H43: =+G43-F43 -> 0 | I43: =+G43-E43 -> 0
A45: costs of opening a new facility | H45: =+G45-F45 -> 0 | I45: =+G45-E45 -> 0
A46: costs of introducing a new product or service (including costs of advertising and promotional activities) | H46: 0 | I46: 0
A47: costs of conducting business in a new location or with a new class of customer (including costs of staff training) | H47: 0 | I47: 0
A48: administration and other general overhead costs | H48: 0 | I48: 0
A49: Material Overhead-Stores | F49: 57845 | G49: 72435 | H49: 14590 | I49: 72435 | J49: N | K49: Not directly attributable and mainly building ovhd/storekeeper
A50: Truck Charges | F50: 149183 | G50: 128252 | H50: -20931 | I50: 128252 | J50: N | K50: Depreciation amount not material enough to capitalize
A51: Engineering Overhead | F51: 74042 | G51: 65954 | H51: -8088 | I51: 65954 | J51: N | K51: Mainly record keeping/GIS. Some hours charged directly
A52: Insert description of additional item(s) and new rows if needed. | H52: 0 | I52: 0 | K52: to Capital Projects By Engineers
A53: Total | E53: =SUM(E39:E52) -> 0 | F53: =SUM(F39:F52) -> 281070 | G53: =SUM(G39:G52) -> 266641 | H53: =SUM(H39:H52) -> -14429 | I53: =SUM(I39:I52) -> 266641
A55: Notes:
A56: 1 | B56: If the applicant chooses to adopt IFRS or an alternate accounting standard for financial reporting purposes in 2013, the applicant does not need to complete Columns A, E. If the applicant adopts IFRS or an alternate accounting standard for financial reporting purposes in 2012, the applicant must complete all columns.

Sheet App.2-EB_PP&E Deferral Account
H1: File Number: | I1: ='LDC Info'!$E$18 -> EB-2012-0173
H2: Exhibit: | I2: 2
H3: Tab: | I3: 3
H4: Schedule: | I4: 5
H5: Page: | I5: 6 of 6
H7: Date: | I7: Aug 31, 2012
A9: Appendix 2-EB
A10: CGAAP Transitional PP&E Amounts
A11: 2012 Adopters of Extended Lives & Overhead Capitalization
A13: For applicants that adopt IFRS on January 1, 2013 for financial reporting purposes
A15: Note: this sheet should be filled out if the applicant adopts IFRS for its financial reporting purpose as of January 1, 2013.
B17: 2009 Rebasing Year | C17: 2010 | D17: 2011 | E17: 2012 | F17: 2013 Rebasing Year | G17: 2014 | H17: 2015 | I17: 2016
A18: Reporting Basis | B18: CGAAP | C18: IRM | D18: IRM | E18: IRM | F18: MIFRS | G18: IRM | H18: IRM | I18: IRM
A19: Forecast vs. Actual Used in Rebasing Year | B19: Forecast | C19: Actual | D19: Actual | E19: Forecast | F19: Forecast
D20: $ | E20: $ | F20: $ | G20: $ | H20: $ | I20: $
A21: PP&E Values under CGAAP
A22: Opening net PP&E - Note 1 | E22: ='App.2-B_FA Cont 2012 CGAAP '!E57+'App.2-B_FA Cont 2012 CGAAP '!J57 -> 24387754
A23: Additions | E23: 2168085
A24: Depreciation (amounts should be negative) | E24: -2039191
A25: Closing net PP&E (1) | E25: =SUM(E22:E24) -> 24516648
A27: PP&E Values under MIFRS (Starts from 2012, the transition year)
A28: Opening net PP&E - Note 1 | E28: ='App.2-B_FA Cont 2012 MIFRS'!E57+'App.2-B_FA Cont 2012 MIFRS'!J57 -> 24387754
A29: Additions | E29: ='App.2-B_FA Cont 2012 MIFRS'!F57 -> 1887015
A30: Depreciation (amounts should be negative) | E30: ='App.2-B_FA Cont 2012 MIFRS'!K57 -> -1184590
A31: Closing net PP&E (2) | E31: =SUM(E28:E30) -> 25090179
A33: Difference in Closing net PP&E, CGAAP vs. MIFRS (Shown as adjustment to rate base on rebasing) | E33: =E25-E31 -> -573531
A35: Account 1576 CGAAP Transitional PP&E Amounts
A36: Opening balance | E36: =D40 -> 0 | F36: =E40 -> -573531 | G36: =F40 -> -430148.25 | H36: =G40 -> -286765.5 | I36: =H40 -> -143382.75
A37: Amounts added in the year | E37: =E33-D33 -> -573531
A38: Sub-total | E38: =E36+E37 -> -573531 | F38: =F36+F37 -> -573531 | G38: =G36+G37 -> -430148.25 | H38: =H36+H37 -> -286765.5 | I38: =I36+I37 -> -143382.75
A39: Amount of amortization, included in depreciation expense - Note 2 | F39: =IF(ISERROR(-E33/I44), 0, -E33/I44) -> 143382.75 | G39: =+F39 -> 143382.75 | H39: =+F39 -> 143382.75 | I39: =+F39 -> 143382.75
A40: Closing balance in deferral account | E40: =E38+E39 -> -573531 | F40: =IF(ISERROR(F38+F39), 0, F38+F39) -> -430148.25 | G40: =G38+G39 -> -286765.5 | H40: =H38+H39 -> -143382.75 | I40: =I38+I39 -> 0
A42: Effect on Revenue Requirement
A43: Amortization of deferred balance as above - Note 2 | F43: =IF(ISERROR(E33/I44), 0, E33/I44) -> -143382.75 | H43: WACC | I43: 0.0577
A44: Return on Rate Base Associated with deferred PP&E balance at WACC - Note 3 | F44: =E33*I43 -> -33092.7387 | H44: Disposition Period - Note 4 | I44: 4 | J44: Years
A45: Amount included in Revenue Requirement on rebasing | F45: =F43+F44 -> -176475.4887
A47: Notes:
A48: 1 For an applicant that adopts IFRS on January 1, 2013, the PP&E values as of January 1, 2012 under both CGAAP and MIFRS should be the same.
A49: 2 Amortization of the deferred balance in Account 1575 will start from the rebasing year.
A50: Assume the utility requests for a certain disposition period, the amortization that should be included in the depreciation expense is calculated as:
A51: the opening balance of Account 1575 / the approved disposition period
A52: 3 Return on rate base associated with deferred balance is calculated as:
A53: the deferred account opening balance as of 2013 rebasing year x WACC
A54: * Please note that the calculation should be adjusted once WACC is updated and finalized in the rate application.
A55: 4 Consistent with the 4 year normal rate cycle, the model is using a 4 year amortization period as a default selection to "clear" the PP&E deferral account through a one-time adjustment to ratebase to capture and remove the impact of the accounting policy changes as caused by the transition from CGAAP to MIFRS.

Sheet App.2-F_Other_Oper_Rev
H1: File Number: | I1: ='LDC Info'!$E$18 -> EB-2012-0173
H2: Exhibit: | I2: 3
H3: Tab: | I3: 3
H4: Schedule: | I4: 3
H5: Page: | I5: 1 to 4
H7: Date: | I7: Aug 31, 2012
A9: Appendix 2-F
A10: Other Operating Revenue
A12: USoA # | B12: USoA Description | C12: =G13-3 & " Actual" -> 2009 Actual | D12: =G13-2 & " Actual" -> 2010 Actual | E12: =G13-1 & " Actual"& CHAR(178) -> 2011 Actual² | F12: =G13-1 & " Actual"& CHAR(178) -> 2011 Actual² | G12: ="Bridge Year" & CHAR(179) -> Bridge Year³ | H12: ="Bridge Year" & CHAR(179) -> Bridge Year³ | I12: Test Year
G13: ='LDC Info'!E26 -> 2012 | H13: ='LDC Info'!E26 -> 2012 | I13: ='LDC Info'!E28 -> 2013
B14: Reporting Basis | G14: CGAAP | H14: MIFRS | I14: MIFRS
A15: 4235 | B15: Specific Service Charges | C15: 156418 | D15: 149379 | E15: 157412 | G15: 149069 | H15: 149069 | I15: 155775
A16: 4225 | B16: Late Payment Charges | C16: 71531 | D16: 3072 | E16: 143690 | G16: 68785 | H16: 68785 | I16: 71971
A20: Specific Service Charges | C20: =C15 -> 156418 | D20: 149379 | E20: 157412 | G20: 149069 | H20: =H15 -> 149069 | I20: =I15 -> 155775
A21: Late Payment Charges | C21: 71531 | D21: 3072 | E21: 143690 | G21: 68785 | H21: =H16 -> 68785 | I21: =I16 -> 71971
A22: Other Operating Revenues | C22: =C73+C63+C54 -> 325438 | D22: =D73+D63+D54 -> 149543 | E22: 241857 | F22: 0 | G22: 234491 | H22: 234491 | I22: 236973
A23: Other Income or Deductions | C23: =C85+C94+C106+C117+C127 -> 193826 | D23: =D85+D94+D106+D117+D127 -> 206649 | E23: 289265 | G23: 112475 | H23: 112475 | I23: 146531
A24: Total Other Operating Revenue | C24: =SUM(C20:C23) -> 747213 | D24: 508643 | E24: 832224 | F24: 0 | G24: 564820 | H24: 564820 | I24: 611250
A25: Less 4375 Non Distribution Revenue | C25: =C106 -> 85848 | D25: =D106 -> 96065 | E25: =E106 -> 79849 | G25: =G106 -> 23250 | H25: =H106 -> 23250 | I25: =I106 -> 36250
A26: Other Operating Revenues-Distribution | C26: =C24-C25 -> 661365 | D26: =D24-D25 -> 412578 | E26: =E24-E25 -> 752375 | G26: =G24-G25 -> 541570 | H26: =H24-H25 -> 541570 | I26: =I24-I25 -> 575000
A28: Description | C28: Account(s)
A29: Specific Service Charges: | C29: 4235
A30: Late Payment Charges: | C30: 4225
A31: Other Distribution Revenues: | C31: 4080, 4082, 4084, 4090, 4205, 4210, 4215, 4220, 4240, 4245
A32: Other Income and Expenses: | C32: 4305, 4310, 4315, 4320, 4325, 4330, 4335, 4340, 4345, 4350, 4355, 4360, 4365, 4370, 4375, 4380, 4385, 4390, 4395, 4398, 4405, 4415
A35: Note: Add all applicable accounts listed above to the table and include all relevant information.
A36: The above table assumes adoption of MIFRS as of January 1, 2013. If the adoption year differs, please adjust the table accordingly.
A39: Account Breakdown Details
A41: For each "Other Operating Revenue" and "Other Income or Deductions" Account, a detailed breakdown of the account components is required. See the example below for Account 4405, Interest and Dividend Income.
A44: Other Operating Revenues
A46: Account 4080 - Monthly Service Charges
C47: =$C$12 -> 2009 Actual | D47: =$D$12 -> 2010 Actual | E47: =$E$12 -> 2011 Actual² | F47: =$F$12 -> 2011 Actual² | G47: Bridge Year | H47: Bridge Year | I47: Test Year
G48: 2012 | H48: 2012 | I48: 2013
A49: Reporting Basis | C49: CGAAP | D49: CGAAP | E49: CGAAP | F49: MIFRS | G49: CGAAP | H49: MIFRS | I49: MIFRS
A50: SSA Administration | C50: 74544 | D50: -42912 | E50: 59382 | G50: 60501 | H50: 60501 | I50: 61575
A51: Microfits | C51: 0 | D51: 0 | E51: 0 | G51: 696 | H51: 696 | I51: 1425
A52: Retail Service Revenue | C52: 39496 | D52: 36881 | E52: 30135 | G52: 20525 | H52: 20525 | I52: 20515
A54: Total | C54: =SUM(C50:C53) -> 114040 | D54: -6031 | E54: 89517 | F54: 0 | G54: 81722 | H54: 81722 | I54: 83515
A57: Account 4084 - Service Trans Revenue
C58: =$C$12 -> 2009 Actual | D58: =$D$12 -> 2010 Actual | E58: =$E$12 -> 2011 Actual² | F58: =$F$12 -> 2011 Actual² | G58: Bridge Year | H58: Bridge Year | I58: Test Year
G59: 2012 | H59: 2012 | I59: 2013
A60: Reporting Basis | C60: CGAAP | D60: CGAAP | E60: CGAAP | F60: MIFRS | G60: CGAAP | H60: MIFRS | I60: MIFRS
A61: Service Trans Revenue | C61: 748 | D61: 1303 | E61: 789 | G61: 789 | H61: 789 | I61: 789
A63: Total | C63: =SUM(C61:C62) -> 748 | D63: 1303 | E63: 789 | F63: 0 | G63: 789 | H63: 789 | I63: 789
A66: Account 4210 - Rent from Electrical Property
C67: =$C$12 -> 2009 Actual | D67: =$D$12 -> 2010 Actual | E67: =$E$12 -> 2011 Actual² | F67: =$F$12 -> 2011 Actual² | G67: Bridge Year | H67: Bridge Year | I67: Test Year
G68: 2012 | H68: 2012 | I68: 2013
A69: Reporting Basis | C69: CGAAP | D69: CGAAP | E69: CGAAP | F69: MIFRS | G69: CGAAP | H69: MIFRS | I69: MIFRS
A70: Pole | C70: 189876 | D70: 132640 | E70: 130085 | G70: 130085 | H70: 130085 | I70: 129990
A71: Service Centre | C71: 20774 | D71: 21631 | E71: 21466 | G71: 21895 | H71: 21895 | I71: 22679
A73: Total | C73: =SUM(C70:C72) -> 210650 | D73: 154271 | E73: 151551 | F73: 0 | G73: 151980 | H73: 151980 | I73: 152669
A77: Other Income or Deductions
A79: Account 4355 - Gain on Disposition of Property
C80: =$C$12 -> 2009 Actual | D80: =$D$12 -> 2010 Actual | E80: =$E$12 -> 2011 Actual² | F80: =$F$12 -> 2011 Actual² | G80: Bridge Year | H80: Bridge Year | I80: Test Year
G81: 2012 | H81: 2012 | I81: 2013
A82: Reporting Basis | C82: CGAAP | D82: CGAAP | E82: CGAAP | F82: MIFRS | G82: CGAAP | H82: MIFRS | I82: MIFRS
A83: Gain on Disposition of Utility Property | C83: -69 | D83: 2849 | E83: 14409 | G83: 0 | H83: 0 | I83: 7911
A85: Total | C85: =SUM(C83:C84) -> -69 | D85: 2849 | E85: 14409 | F85: 0 | G85: 0 | H85: 0 | I85: 7911
A88: Account 4362 - Asset Retirement MIFRS
C89: =$C$12 -> 2009 Actual | D89: =$D$12 -> 2010 Actual | E89: =$E$12 -> 2011 Actual² | F89: =$F$12 -> 2011 Actual² | G89: Bridge Year | H89: Bridge Year | I89: Test Year
G90: 2012 | H90: 2012 | I90: 2013
A91: Reporting Basis | C91: CGAAP | D91: CGAAP | E91: CGAAP | F91: MIFRS | G91: CGAAP | H91: MIFRS | I91: MIFRS
A92: Asset Retirment MIFRS | C92: 0 | D92: 0 | E92: 0 | G92: 0 | H92: 0
A94: Total | C94: =SUM(C92:C93) -> 0 | D94: 0 | E94: 0 | F94: 0 | G94: 0 | H94: 0 | I94: 0
A97: Account 4375 - Revenues from Non-Utility Operations
C98: =$C$12 -> 2009 Actual | D98: =$D$12 -> 2010 Actual | E98: =$E$12 -> 2011 Actual² | F98: =$F$12 -> 2011 Actual² | G98: Bridge Year | H98: Bridge Year | I98: Test Year
G99: 2012 | H99: 2012 | I99: 2013
A100: Reporting Basis | C100: CGAAP | D100: CGAAP | E100: CGAAP | F100: MIFRS | G100: =IF(ISBLANK(G4), "", G4) ->  | H100: =IF(ISBLANK(H4), "", H4) -> Schedule: | I100: =IF(ISBLANK(I4), "", I4) -> 3
A101: Mark Up OPA Programs | C101: 82154 | D101: 90530 | E101: 45537 | G101: 0 | H101: 0 | I101: 0
A102: Solar Revenue | C102: 0 | D102: 0 | E102: 0 | G102: 23250 | H102: 23250 | I102: 36250
A103: Revenue Final Variance Accounts | C103: 0 | D103: 0 | E103: 28822 | G103: 0 | H103: 0 | I103: 0
A104: Miscellaneous Non Operating | C104: 3694 | D104: 5535 | E104: 5490 | G104: 0 | H104: 0 | I104: 0
A106: Total | C106: =SUM(C101:C105) -> 85848 | D106: 96065 | E106: 79849 | F106: 0 | G106: 23250 | H106: 23250 | I106: 36250
A109: Account 4390 - Miscellaneous Non Operating Income
C110: =$C$12 -> 2009 Actual | D110: =$D$12 -> 2010 Actual | E110: =$E$12 -> 2011 Actual² | F110: =$F$12 -> 2011 Actual² | G110: Bridge Year | H110: Bridge Year | I110: Test Year
G111: 2012 | H111: 2012 | I111: 2013
A112: Reporting Basis | C112: CGAAP | D112: CGAAP | E112: CGAAP | F112: MIFRS | G112: CGAAP | H112: MIFRS | I112: MIFRS
A113: Scrap Metal Sales | C113: 8920 | D113: 18221 | E113: 9812 | G113: 9812 | H113: 9812 | I113: 16570
A114: Misc Service-Other Revenue | C114: 18888 | D114: 7077 | E114: 8023 | G114: 8023 | H114: 8023 | I114: 9657
A115: PILS 1562 Adjustment | C115: 0 | D115: 0 | E115: 28779 | G115: 0 | H115: 0 | I115: 0
A117: Total | C117: =SUM(C113:C116) -> 27808 | D117: 25298 | E117: 46614 | F117: 0 | G117: 17835 | H117: 17835 | I117: 26227
A120: Account 4405 - Interest and Dividend Income
C121: =$C$12 -> 2009 Actual | D121: =$D$12 -> 2010 Actual | E121: =$E$12 -> 2011 Actual² | F121: =$F$12 -> 2011 Actual² | G121: Bridge Year | H121: Bridge Year | I121: Test Year
G122: 2012 | H122: 2012 | I122: 2013
A123: Reporting Basis | C123: CGAAP | D123: CGAAP | E123: CGAAP | F123: MIFRS | G123: =IF(ISBLANK(G14), "", G14) -> CGAAP | H123: =IF(ISBLANK(H14), "", H14) -> MIFRS | I123: =IF(ISBLANK(I14), "", I14) -> MIFRS
A124: Bank Deposit & Miscellaneous | C124: 59852 | D124: 58093 | E124: 97396 | G124: 62500 | H124: 62500 | I124: 76143
A125: RSVA & Other Variance Accounts | C125: 20387 | D125: 24344 | E125: 50997 | G125: 8890 | H125: 8890 | I125: 0
A127: Total | C127: =SUM(C124:C126) -> 80239 | D127: 82437 | E127: 148393 | F127: 0 | G127: 71390 | H127: 71390 | I127: 76143
A133: Notes:
A134: 1 | B134: List and specify any other interest revenue
A135: 2 | B135: If the applicant is adopting IFRS or an alternate accounting standard as of January 1, 2012 for financial reporting purposes, 2011 must be presented on both a CGAAP and MIFRS (or alternate accounting standard) basis.
A136: 3 | B136: If the applicant is adopting IFRS or an alternate accounting standard as of January 1, 2013 for financial reporting purposes, 2012 must be presented on both a CGAAP and MIFRS (or alternate accounting standard) basis.

Sheet App.2-G_Detailed_OM&A_Expenses
G1: File Number: | H1: ='LDC Info'!$E$18 -> EB-2012-0173
G2: Exhibit: | H2: 4
G3: Tab: | H3: 1
G4: Schedule: | H4: 2
G5: Page: | H5: 4 & 5
G7: Date: | H7: Aug 31, 2012
A9: Appendix 2-G
A10: Detailed, Account by Account, OM&A Expense Table
A11: (excluding Depreciation and Amortization)
A14: Account | B14: Description | C14: ="Last Rebasing Year (" & 'LDC Info'!E30 & " Actuals)" -> Last Rebasing Year (2009 Actuals) | D14: ='LDC Info'!E26-2 & " Actual" -> 2010 Actual | E14: ='LDC Info'!E26-1 & " Actual" & CHAR(178) -> 2011 Actual² | F14: ="Bridge Year " & 'LDC Info'!E26& CHAR(179) -> Bridge Year 2012³ | G14: ="Bridge Year " & 'LDC Info'!E26& CHAR(179) -> Bridge Year 2012³ | H14: ="Test Year " & 'LDC Info'!E28 -> Test Year 2013
A15: Reporting Basis | C15: CGAAP | D15: CGAAP | E15: CGAAP | F15: CGAAP | G15: MIFRS | H15: MIFRS
A16: Operations
A17: 5005 | B17: Operation Supervision and Engineering | C17: 104436 | D17: 136631 | E17: 114232 | F17: =127299+5504 -> 132803 | G17: 127299 | H17: 134256
A18: 5010 | B18: Load Dispatching | C18: 123056 | D18: 128513 | E18: 115993 | F18: =127528+4605 -> 132133 | G18: 127528 | H18: 133100
A19: 5012 | B19: Station Buildings and Fixtures Expense | C19: 16520 | D19: 8566 | E19: 22509 | F19: 23233 | G19: 23233 | H19: 21876
A20: 5014 | B20: Transformer Station Equipment - Operation Labour
A21: 5015 | B21: Transformer Station Equipment - Operation Supplies and Expenses
A22: 5016 | B22: Distribution Station Equipment - Operation Labour | C22: 6008 | D22: 2422 | E22: 16029 | F22: =17804+717 -> 18521 | G22: 17804 | H22: 18844
A23: 5017 | B23: Distribution Station Equipment - Operation Supplies and Expenses | C23: 111782 | D23: 112071 | E23: 112811 | F23: =117183+1848 -> 119031 | G23: 117183 | H23: 110495
A24: 5020 | B24: Overhead Distribution Lines and Feeders - Operation Labour | C24: 81357 | D24: 92003 | E24: 91382 | F24: =101575+4089 -> 105664 | G24: 101575 | H24: 107507
A25: 5025 | B25: Overhead Distribution Lines and Feeders - Operation Supplies and Expenses | C25: 55703 | D25: 27244 | E25: 45170 | F25: =47460+1162 -> 48622 | G25: 47460 | H25: 44838
A26: 5030 | B26: Overhead Sub-transmission Feeders - Operation | C26: 54233 | D26: 59547 | E26: 61803 | F26: =74131+7805 -> 81936 | G26: 74131 | H26: 77389
A27: 5035 | B27: Overhead Distribution Transformers - Operation | C27: 195 | D27: 1428 | E27: 0 | F27: 4750 | G27: 4750 | H27: 4473
A28: 5040 | B28: Underground Distribution Lines and Feeders - Operation Labour | C28: 137920 | D28: 179166 | E28: 128887 | F28: =177967+9230 -> 187197 | G28: 177967 | H28: 179097
A29: 5045 | B29: Underground Distribution Lines and Feeders - Operation Supplies and Expenses | C29: 21126 | D29: 15408 | E29: 5291 | F29: =9386+3529 -> 12915 | G29: 9386 | H29: 9120
A30: 5050 | B30: Underground Sub-transmission Feeders - Operation | C30: 38287 | D30: 42351 | E30: 39349 | F30: =46777+4572 -> 51349 | G30: 46777 | H30: 48911
A31: 5055 | B31: Underground Distribution Transformers - Operation | C31: 1284 | D31: 11104 | E31: 2720 | F31: =3156+363 -> 3519 | G31: 3156 | H31: 2990
A32: 5060 | B32: Street Lighting and Signal System Expense
A33: 5065 | B33: Meter Expense | C33: 328138 | D33: 325424 | E33: 244451 | F33: =278012+18394 -> 296406 | G33: 278012 | H33: 287652
A34: 5070 | B34: Customer Premises - Operation Labour
A35: 5075 | B35: Customer Premises - Operation Materials and Expenses | E35: 1100 | F35: 1122 | G35: 1122 | H35: 1057
A36: 5085 | B36: Miscellaneous Distribution Expenses | C36: 154186 | D36: 130315 | E36: 133946 | F36: =185055+4282 -> 189337 | G36: 185055 | H36: 186565
A37: 5090 | B37: Underground Distribution Lines and Feeders - Rental Paid
A38: 5095 | B38: Overhead Distribution Lines and Feeders - Rental Paid | C38: 83652 | D38: 25470 | E38: 25470 | F38: 25581 | G38: 25581 | H38: 24087
A39: 5096 | B39: Other Rent
A40: Total - Operations | C40: =SUM(C17:C39) -> 1317883 | D40: =SUM(D17:D39) -> 1297663 | E40: =SUM(E17:E39) -> 1161143 | F40: =SUM(F17:F39) -> 1434119 | G40: 1368019 | H40: =SUM(H17:H39) -> 1392257
A41: Account | B41: Description | C41: =C14 -> Last Rebasing Year (2009 Actuals) | D41: 2010 Actual | E41: 2011 Actual² | F41: Bridge Year 2012³ | G41: Bridge Year 2012³ | H41: Test Year 2013
A42: Maintenance
A43: 5105 | B43: Maintenance Supervision and Engineering | C43: 68494 | D43: 74720 | E43: 73241 | F43: =87148+8521 -> 95669 | G43: 87148 | H43: 90702
A44: 5110 | B44: Maintenance of Buildings and Fixtures - Distribution Stations | C44: 23412 | D44: 16250 | E44: 34626 | F44: =36054+542 -> 36596 | G44: 36054 | H44: 34409
A45: 5112 | B45: Maintenance of Transformer Station Equipment
A46: 5114 | B46: Maintenance of Distribution Station Equipment | C46: 13000 | D46: 31245 | E46: 45466 | F46: =55424+7515 -> 62939 | G46: 55424 | H46: 55059
A47: 5120 | B47: Maintenance of Poles, Towers and Fixtures | C47: 133966 | D47: 103120 | E47: 127596 | F47: =154531+19149 -> 173680 | G47: 154531 | H47: 193474
A48: 5125 | B48: Maintenance of Overhead Conductors and Devices | C48: 275994 | D48: 207830 | E48: 261068 | F48: =335997+55702 -> 391699 | G48: 335997 | H48: 345864
A49: 5130 | B49: Maintenance of Overhead Services | C49: 220601 | D49: 203536 | E49: 209843 | F49: =271274+47010 -> 318284 | G49: 271274 | H49: 276468
A50: 5135 | B50: Overhead Distribution Lines and Feeders - Right of Way | C50: 115523 | D50: 101407 | E50: 199793 | F50: =140547+5454 -> 146001 | G50: 140547 | H50: 170445
A51: 5145 | B51: Maintenance of Underground Conduit | C51: 4363 | D51: -21560 | E51: -7088 | F51: 0 | G51: 0 | H51: 0
A52: 5150 | B52: Maintenance of Underground Conductors and Devices | C52: 124719 | D52: 98512 | E52: 135874 | F52: =173674+27930 -> 201604 | G52: 173674 | H52: 177009
A53: 5155 | B53: Maintenance of Underground Services | C53: 84208 | D53: 62992 | E53: 91273 | F53: =110923+14174 -> 125097 | G53: 110923 | H53: 111345
A54: 5160 | B54: Maintenance of Line Transformers | C54: 122552 | D54: 51394 | E54: 57529 | F54: =75594+14544 -> 90138 | G54: 75594 | H54: 84948
A55: 5165 | B55: Maintenance of Street Lighting and Signal Systems | C55: 1378 | D55: 0 | E55: 0 | F55: 0 | G55: 0 | H55: 0
A56: 5170 | B56: Sentinel Lights - Labour
A57: 5172 | B57: Sentinel Lights - Materials and Expenses
A58: 5175 | B58: Maintenance of Meters | C58: 3206 | D58: 3142 | E58: 3028 | F58: 28168 | G58: 28168 | H58: 81829
A59: 5178 | B59: Customer Installations Expenses - Leased Property
A60: 5195 | B60: Maintenance of Other Installations on Customer Premises | C60: 554 | D60: 0 | E60: 0 | G60: 0
A61: Total - Maintenance | C61: =SUM(C43:C60) -> 1191970 | D61: 932588 | E61: 1232249 | F61: 1669875 | G61: 1469334 | H61: 1621552
A62: Account | B62: Description | C62: =C41 -> Last Rebasing Year (2009 Actuals) | D62: 2010 Actual | E62: 2011 Actual² | F62: Bridge Year 2012³ | G62: Bridge Year 2012³ | H62: Test Year 2013
A63: Billing and Collecting
A64: 5305 | B64: Supervision
A65: 5310 | B65: Meter Reading Expense | C65: 114896 | D65: 113514 | E65: 81501 | F65: 30479 | G65: 30479 | H65: 31725
A66: 5315 | B66: Customer Billing | C66: 374838 | D66: 417828 | E66: 608728 | F66: 862496 | G66: 862496 | H66: 906187
A67: 5320 | B67: Collecting | C67: 317569 | D67: 327780 | E67: 328891 | F67: 332975 | G67: 332975 | H67: 354093
A68: 5325 | B68: Collecting - Cash Over and Short | C68: 168 | D68: 77 | E68: -462 | F68: 0 | G68: 0
A69: 5330 | B69: Collection Charges
A70: 5335 | B70: Bad Debt Expense | C70: 66509 | D70: 87088 | E70: 96439 | F70: 98368 | G70: 98368 | H70: =100335-16000 -> 84335
A71: 5340 | B71: Miscellaneous Customer Accounts Expenses | C71: 25468 | D71: 23056 | E71: 28924 | F71: 29374 | G71: 29374 | H71: 30935
A72: Total - Billing and Collecting | C72: =SUM(C64:C71) -> 899448 | D72: =SUM(D64:D71) -> 969343 | E72: =SUM(E64:E71) -> 1144021 | F72: =SUM(F64:F71) -> 1353692 | G72: 1353692 | H72: =SUM(H64:H71) -> 1407275
A73: Account | B73: Description | C73: =C62 -> Last Rebasing Year (2009 Actuals) | D73: =D62 -> 2010 Actual | E73: =E62 -> 2011 Actual² | F73: =F62 -> Bridge Year 2012³ | G73: Bridge Year 2012³ | H73: =H62 -> Test Year 2013
A74: Community Relations
A75: 5405 | B75: Supervision | C75: 35455 | D75: 42011 | E75: 38716 | F75: 39223 | G75: 39223 | H75: 42200
A76: 5410 | B76: Community Relations - Sundry | C76: 3119 | D76: 2908 | E76: 2938 | F76: 2949 | G76: 2949 | H76: 3008
A77: 5415 | B77: Energy Conservation | C77: 38051 | D77: 57991 | E77: 69157 | F77: 69707 | G77: 69707 | H77: 71375
A78: 5420 | B78: Community Safety Program | C78: 4873 | D78: 4873 | E78: 4489 | F78: 4579 | G78: 4579 | H78: 4671
A79: 5425 | B79: Miscellaneous Customer Service and Informational Expenses | C79: 0 | D79: 0 | E79: 0
A80: 5505 | B80: Supervision
A81: 5510 | B81: Demonstrating and Selling Expense
A82: 5515 | B82: Advertising Expenses | C82: 2868 | D82: 10987 | E82: 6608 | F82: 12740 | G82: 12740 | H82: 12995
A83: 5520 | B83: Miscellaneous Sales Expense
A84: Total - Community Relations | C84: =SUM(C75:C83) -> 84366 | D84: =SUM(D75:D83) -> 118770 | E84: =SUM(E75:E83) -> 121908 | F84: =SUM(F75:F83) -> 129198 | G84: 129198 | H84: =SUM(H75:H83) -> 134249
A85: Account | B85: Description | C85: =C73 -> Last Rebasing Year (2009 Actuals) | D85: =D73 -> 2010 Actual | E85: =E73 -> 2011 Actual² | F85: =F73 -> Bridge Year 2012³ | G85: Bridge Year 2012³ | H85: =H73 -> Test Year 2013
A86: Administrative and General Expenses
A87: 5605 | B87: Executive Salaries and Expenses | C87: 349609 | D87: 356939 | E87: 371981 | F87: 385270 | G87: 385270 | H87: 394555
A88: 5610 | B88: Management Salaries and Expenses | C88: 437113 | D88: 481385 | E88: 489774 | F88: 514036 | G88: 514036 | H88: =556670-30000 -> 526670
A89: 5615 | B89: General Administrative Salaries and Expenses | C89: 256814 | D89: 290299 | E89: 336905 | F89: 374284 | G89: 374284 | H89: 385614
A90: 5620 | B90: Office Supplies and Expenses
A91: 5625 | B91: Administrative Expense Transferred - Credit | C91: -159344 | D91: -146212 | E91: -10691 | F91: -8596 | G91: -8596 | H91: -8930
A92: 5630 | B92: Outside Services Employed | C92: 144669 | D92: 168531 | E92: 130437 | F92: 140770 | G92: 140770 | H92: =144719-5415 -> 139304
A93: 5635 | B93: Property Insurance
A94: 5640 | B94: Injuries and Damages
A95: 5645 | B95: OMERS Pensions and Benefits | C95: 78207 | D95: 78422 | E95: 132940 | F95: 117484 | G95: 117484 | H95: =120243+35415 -> 155658
A96: 5646 | B96: Employee Pensions and OPEB
A97: 5647 | B97: Employee Sick Leave
A98: 5650 | B98: Franchise Requirements
A99: 5655 | B99: Regulatory Expenses | C99: 87520 | D99: 51642 | E99: 58621 | F99: =111000-11000 -> 100000 | G99: =111000-11000 -> 100000 | H99: =102184-11000 -> 91184
A100: 5660 | B100: General Advertising Expenses
A101: 5665 | B101: Miscellaneous General Expenses | C101: 96029 | D101: 124942 | E101: 99042 | F101: 107343 | G101: 107343 | H101: 109823
A102: 5670 | B102: Rent
A103: 5672 | B103: Lease Payment Charge
A104: 5675 | B104: Maintenance of General Plant
A105: 5680 | B105: Electrical Safety Authority Fees | C105: 9071 | D105: 9014 | E105: 9409 | F105: 9597 | G105: 9597 | H105: 9789
A106: 5681 | B106: Special Purpose Charge Expense
A107: 5685 | B107: Independent Electricity System Operator Fees and Penalties
A108: 5695 | B108: OM&A Contra Account
A109: 6205 | B109: Donations | C109: 27671 | D109: 29020 | E109: 52845 | F109: 23600 | G109: 23600 | H109: 23600
A110: 6205 | B110: Donations, Sub-account LEAP Funding | C110: 0 | D110: 0 | E110: 0 | F110: 11000 | G110: 11000 | H110: 11000
A111: Total - Administrative and General Expenses | C111: =SUM(C87:C110) -> 1327359 | D111: =SUM(D87:D110) -> 1443982 | E111: 1671263 | F111: 1774788 | G111: 1774788 | H111: 1838267
A112: Total OM&A | C112: =C40+C61+C72+C84+C111 -> 4821026 | D112: 4762346 | E112: 5330584 | F112: 6361672 | G112: 6095031 | H112: 6393600
A113: Adjustments for non-recoverable items
A114: 5681 | B114: Special Purpose Charge Expense
A115: 6205 | B115: Donations1 | C115: 27671 | D115: 29020 | E115: 52845 | F115: 23600 | G115: 23600 | H115: 23600
A116: 6215 | B116: Penalties | C116: 20 | D116: 0 | E116: 0 | F116: 0 | G116: 0 | H116: 0
A119: Total Recoverable OM&A | C119: =C112-SUM(C114:C118) -> 4793335 | D119: =D112-SUM(D114:D118) -> 4733326 | E119: 5277739 | F119: =F112-SUM(F114:F118) -> 6338072 | G119: 6071431 | H119: 6370000
A121: 1 Account 6205 - Donations is generally non-recoverable. However, the sub-account LEAP funding of account 6205 is generally recoverable.
A123: Note:
A124: 1 | B124: If it has been more than three years since the applicant last filed a cost of service application, additional years of historical actuals should be incorporated into the table, as necessary, to go back to the last cost of service application. If the applicant last filed a cost of service application less than three years ago, a minimum of three years of actual information is required.
A125: 2 | B125: If the applicant is adopting IFRS or an alternate accounting standard as of January 1, 2012 for financial reporting purposes, 2011 must be presented on both a CGAAP and MIFRS (or alternate accounting standard) basis.
A126: 3 | B126: If the applicant is adopting IFRS or an alternate accounting standard as of January 1, 2013 for financial reporting purposes, 2012 must be presented on both a CGAAP and MIFRS (or alternate accounting standard) basis.

Sheet App.2-H_OM&A_Detailed_Analysis
H1: File Number: | I1: ='LDC Info'!$E$18 -> EB-2012-0173
H2: Exhibit: | I2: 4
H3: Tab: | I3: 1
H4: Schedule: | I4: 3
H5: Page: | I5: 2 & 3
H7: Date: | I7: Aug 31, 2012
A9: Appendix 2-H
A10: OM&A Detailed Variance Analysis
A11: (excluding Depreciation and Amortization)
A14: Account | B14: Description | C14: ="Last Board-approved Rebasing Year ("&'LDC Info'!E30&" Year)" -> Last Board-approved Rebasing Year (2009 Year) | D14: Most Current Actuals Year 2011 | E14: ="Test Year " & 'LDC Info'!E28 -> Test Year 2013 | F14: Test Year Versus Last Rebasing | H14: Test Year Versus Most Current Actuals
F15: Variance ($) | G15: Percentage Change (%) | H15: Variance ($) | I15: Percentage Change (%)
A16: Reporting Basis | C16: CGAAP | D16: CGAAP | E16: MIFRS
A17: Operations
A18: 5005 | B18: Operation Supervision and Engineering | C18: 81046 | D18: ='App.2-G_Detailed_OM&A_Expenses'!E17 -> 114232 | E18: ='App.2-G_Detailed_OM&A_Expenses'!H17 -> 134256 | F18: =E18-C18 -> 53210 | G18: =IF(C18=0,"",(E18/C18)-1) -> 0.65654073 | H18: =E18-D18 -> 20024 | I18: =IF(D18=0,"",(E18/D18)-1) -> 0.1752923874
A19: 5010 | B19: Load Dispatching | C19: 79101 | D19: ='App.2-G_Detailed_OM&A_Expenses'!E18 -> 115993 | E19: ='App.2-G_Detailed_OM&A_Expenses'!H18 -> 133100 | F19: =E19-C19 -> 53999 | G19: =IF(C19=0,"",(E19/C19)-1) -> 0.6826588792 | H19: =E19-D19 -> 17107 | I19: =IF(D19=0,"",(E19/D19)-1) -> 0.1474830378
A20: 5012 | B20: Station Buildings and Fixtures Expense | C20: 12268 | D20: ='App.2-G_Detailed_OM&A_Expenses'!E19 -> 22509 | E20: ='App.2-G_Detailed_OM&A_Expenses'!H19 -> 21876 | F20: 9608 | G20: 0.7831757418 | H20: -633 | I20: -0.0281220845
A21: 5014 | B21: Transformer Station Equipment - Operation Labour | C21: 0 | D21: ='App.2-G_Detailed_OM&A_Expenses'!E20 -> 0 | E21: ='App.2-G_Detailed_OM&A_Expenses'!H20 -> 0 | F21: 0 | H21: 0
A22: 5015 | B22: Transformer Station Equipment - Operation Supplies and Expenses | C22: 0 | D22: ='App.2-G_Detailed_OM&A_Expenses'!E21 -> 0 | E22: ='App.2-G_Detailed_OM&A_Expenses'!H21 -> 0 | F22: 0 | H22: 0
A23: 5016 | B23: Distribution Station Equipment - Operation Labour | C23: 17280 | D23: ='App.2-G_Detailed_OM&A_Expenses'!E22 -> 16029 | E23: ='App.2-G_Detailed_OM&A_Expenses'!H22 -> 18844 | F23: 1564 | G23: 0.09050925926 | H23: 2815 | I23: 0.1756191902
A24: 5017 | B24: Distribution Station Equipment - Operation Supplies and Expenses | C24: 115650 | D24: ='App.2-G_Detailed_OM&A_Expenses'!E23 -> 112811 | E24: ='App.2-G_Detailed_OM&A_Expenses'!H23 -> 110495 | F24: -5155 | G24: -0.04457414613 | H24: -2316 | I24: -0.02052991286
A25: 5020 | B25: Overhead Distribution Lines and Feeders - Operation Labour | C25: 91528 | D25: ='App.2-G_Detailed_OM&A_Expenses'!E24 -> 91382 | E25: ='App.2-G_Detailed_OM&A_Expenses'!H24 -> 107507 | F25: 15979 | G25: 0.1745804563 | H25: 16125 | I25: 0.1764570703
A26: 5025 | B26: Overhead Distribution Lines and Feeders - Operation Supplies and Expenses | C26: 180955 | D26: ='App.2-G_Detailed_OM&A_Expenses'!E25 -> 45170 | E26: ='App.2-G_Detailed_OM&A_Expenses'!H25 -> 44838 | F26: -136117 | G26: -0.752214639 | H26: -332 | I26: -0.007350011069
A27: 5030 | B27: Overhead Sub-transmission Feeders - Operation | C27: 81780 | D27: ='App.2-G_Detailed_OM&A_Expenses'!E26 -> 61803 | E27: ='App.2-G_Detailed_OM&A_Expenses'!H26 -> 77389 | F27: -4391 | G27: -0.05369283443 | H27: 15586 | I27: 0.2521884051
A28: 5035 | B28: Overhead Distribution Transformers - Operation | C28: 14131 | D28: ='App.2-G_Detailed_OM&A_Expenses'!E27 -> 0 | E28: ='App.2-G_Detailed_OM&A_Expenses'!H27 -> 4473 | F28: -9658 | G28: -0.6834618923 | H28: 4473
A29: 5040 | B29: Underground Distribution Lines and Feeders - Operation Labour | C29: 149845 | D29: ='App.2-G_Detailed_OM&A_Expenses'!E28 -> 128887 | E29: ='App.2-G_Detailed_OM&A_Expenses'!H28 -> 179097 | F29: 29252 | G29: 0.1952150556 | H29: 50210 | I29: 0.389566054
A30: 5045 | B30: Underground Distribution Lines and Feeders - Operation Supplies and Expenses | C30: 27295 | D30: ='App.2-G_Detailed_OM&A_Expenses'!E29 -> 5291 | E30: ='App.2-G_Detailed_OM&A_Expenses'!H29 -> 9120 | F30: -18175 | G30: -0.6658728705 | H30: 3829 | I30: 0.7236817237
A31: 5050 | B31: Underground Sub-transmission Feeders - Operation | C31: 45687 | D31: ='App.2-G_Detailed_OM&A_Expenses'!E30 -> 39349 | E31: ='App.2-G_Detailed_OM&A_Expenses'!H30 -> 48911 | F31: 3224 | G31: 0.07056711975 | H31: 9562 | I31: 0.2430049048
A32: 5055 | B32: Underground Distribution Transformers - Operation | C32: 13444 | D32: ='App.2-G_Detailed_OM&A_Expenses'!E31 -> 2720 | E32: ='App.2-G_Detailed_OM&A_Expenses'!H31 -> 2990 | F32: -10454 | G32: -0.7775959536 | H32: 270 | I32: 0.09926470588
A33: 5060 | B33: Street Lighting and Signal System Expense | D33: ='App.2-G_Detailed_OM&A_Expenses'!E32 -> 0 | E33: ='App.2-G_Detailed_OM&A_Expenses'!H32 -> 0 | F33: 0 | H33: 0
A34: 5065 | B34: Meter Expense | C34: 339284 | D34: ='App.2-G_Detailed_OM&A_Expenses'!E33 -> 244451 | E34: ='App.2-G_Detailed_OM&A_Expenses'!H33 -> 287652 | F34: -51632 | G34: -0.1521792952 | H34: 43201 | I34: 0.1767266241
A35: 5070 | B35: Customer Premises - Operation Labour | C35: 8366 | D35: ='App.2-G_Detailed_OM&A_Expenses'!E34 -> 0 | E35: ='App.2-G_Detailed_OM&A_Expenses'!H34 -> 0 | F35: -8366 | G35: -1 | H35: 0
A36: 5075 | B36: Customer Premises - Operation Materials and Expenses | C36: 0 | D36: ='App.2-G_Detailed_OM&A_Expenses'!E35 -> 1100 | E36: ='App.2-G_Detailed_OM&A_Expenses'!H35 -> 1057 | F36: 1057 | H36: -43 | I36: -0.03909090909
A37: 5085 | B37: Miscellaneous Distribution Expenses | C37: 185704 | D37: ='App.2-G_Detailed_OM&A_Expenses'!E36 -> 133946 | E37: ='App.2-G_Detailed_OM&A_Expenses'!H36 -> 186565 | F37: 861 | G37: 0.004636410632 | H37: 52619 | I37: 0.3928374121
A38: 5090 | B38: Underground Distribution Lines and Feeders - Rental Paid | C38: 0 | D38: ='App.2-G_Detailed_OM&A_Expenses'!E37 -> 0 | E38: ='App.2-G_Detailed_OM&A_Expenses'!H37 -> 0 | F38: 0 | H38: 0
A39: 5095 | B39: Overhead Distribution Lines and Feeders - Rental Paid | C39: 22405 | D39: ='App.2-G_Detailed_OM&A_Expenses'!E38 -> 25470 | E39: ='App.2-G_Detailed_OM&A_Expenses'!H38 -> 24087 | F39: 1682 | G39: 0.07507252845 | H39: -1383 | I39: -0.0542991755
A40: 5096 | B40: Other Rent | D40: ='App.2-G_Detailed_OM&A_Expenses'!E39 -> 0 | E40: ='App.2-G_Detailed_OM&A_Expenses'!H39 -> 0 | F40: 0 | H40: 0
A41: Total - Operations | C41: =SUM(C18:C40) -> 1465769 | D41: =SUM(D18:D40) -> 1161143 | E41: =SUM(E18:E40) -> 1392257 | F41: -73512 | G41: -0.0501525138 | H41: 231114 | I41: 0.1990400838
A42: Account | B42: Description
A43: Maintenance
A44: 5105 | B44: Maintenance Supervision and Engineering | C44: 88868 | D44: ='App.2-G_Detailed_OM&A_Expenses'!E43 -> 73241 | E44: ='App.2-G_Detailed_OM&A_Expenses'!H43 -> 90702 | F44: =E44-C44 -> 1834 | G44: =IF(C44=0,"",(E44/C44)-1) -> 0.02063734978 | H44: =E44-D44 -> 17461 | I44: =IF(D44=0,"",(E44/D44)-1) -> 0.2384047187
A45: 5110 | B45: Maintenance of Buildings and Fixtures - Distribution Stations | C45: 18905 | D45: ='App.2-G_Detailed_OM&A_Expenses'!E44 -> 34626 | E45: ='App.2-G_Detailed_OM&A_Expenses'!H44 -> 34409 | F45: 15504 | G45: 0.8201005025 | H45: -217 | I45: -0.006266967019
A46: 5112 | B46: Maintenance of Transformer Station Equipment | D46: ='App.2-G_Detailed_OM&A_Expenses'!E45 -> 0 | E46: ='App.2-G_Detailed_OM&A_Expenses'!H45 -> 0 | F46: 0 | H46: 0
A47: 5114 | B47: Maintenance of Distribution Station Equipment | C47: 17736 | D47: ='App.2-G_Detailed_OM&A_Expenses'!E46 -> 45466 | E47: ='App.2-G_Detailed_OM&A_Expenses'!H46 -> 55059 | F47: 37323 | G47: 2.104364005 | H47: 9593 | I47: 0.2109928298
A48: 5120 | B48: Maintenance of Poles, Towers and Fixtures | C48: =47668+13042 -> 60710 | D48: ='App.2-G_Detailed_OM&A_Expenses'!E47 -> 127596 | E48: ='App.2-G_Detailed_OM&A_Expenses'!H47 -> 193474 | F48: 132764 | G48: 2.186855543 | H48: 65878 | I48: 0.5163014515
A49: 5125 | B49: Maintenance of Overhead Conductors and Devices | C49: =170116+69883 -> 239999 | D49: ='App.2-G_Detailed_OM&A_Expenses'!E48 -> 261068 | E49: ='App.2-G_Detailed_OM&A_Expenses'!H48 -> 345864 | F49: 105865 | G49: 0.4411060046 | H49: 84796 | I49: 0.3248042656
A50: 5130 | B50: Maintenance of Overhead Services | C50: 189462 | D50: ='App.2-G_Detailed_OM&A_Expenses'!E49 -> 209843 | E50: ='App.2-G_Detailed_OM&A_Expenses'!H49 -> 276468 | F50: 87006 | G50: 0.4592266523 | H50: 66625 | I50: 0.3174992733
A51: 5135 | B51: Overhead Distribution Lines and Feeders - Right of Way | C51: 169166 | D51: ='App.2-G_Detailed_OM&A_Expenses'!E50 -> 199793 | E51: ='App.2-G_Detailed_OM&A_Expenses'!H50 -> 170445 | F51: 1279 | G51: 0.007560620929 | H51: -29348 | I51: -0.1468920333
A52: 5145 | B52: Maintenance of Underground Conduit | C52: 23054 | D52: ='App.2-G_Detailed_OM&A_Expenses'!E51 -> -7088 | E52: ='App.2-G_Detailed_OM&A_Expenses'!H51 -> 0 | F52: -23054 | G52: -1 | H52: 7088 | I52: -1
A53: 5150 | B53: Maintenance of Underground Conductors and Devices | C53: =150889+21443 -> 172332 | D53: ='App.2-G_Detailed_OM&A_Expenses'!E52 -> 135874 | E53: ='App.2-G_Detailed_OM&A_Expenses'!H52 -> 177009 | F53: 4677 | G53: 0.02713947497 | H53: 41135 | I53: 0.3027437184
A54: 5155 | B54: Maintenance of Underground Services | C54: 59882 | D54: ='App.2-G_Detailed_OM&A_Expenses'!E53 -> 91273 | E54: ='App.2-G_Detailed_OM&A_Expenses'!H53 -> 111345 | F54: 51463 | G54: 0.8594068334 | H54: 20072 | I54: 0.2199116935
A55: 5160 | B55: Maintenance of Line Transformers | C55: 62609 | D55: ='App.2-G_Detailed_OM&A_Expenses'!E54 -> 57529 | E55: ='App.2-G_Detailed_OM&A_Expenses'!H54 -> 84948 | F55: 22339 | G55: 0.3568017378 | H55: 27419 | I55: 0.4766117958
A56: 5165 | B56: Maintenance of Street Lighting and Signal Systems | C56: 0 | D56: ='App.2-G_Detailed_OM&A_Expenses'!E55 -> 0 | E56: ='App.2-G_Detailed_OM&A_Expenses'!H55 -> 0 | F56: 0 | H56: 0
A57: 5170 | B57: Sentinel Lights - Labour | C57: 0 | D57: ='App.2-G_Detailed_OM&A_Expenses'!E56 -> 0 | E57: ='App.2-G_Detailed_OM&A_Expenses'!H56 -> 0 | F57: 0 | H57: 0
A58: 5172 | B58: Sentinel Lights - Materials and Expenses | C58: 0 | D58: ='App.2-G_Detailed_OM&A_Expenses'!E57 -> 0 | E58: ='App.2-G_Detailed_OM&A_Expenses'!H57 -> 0 | F58: 0 | H58: 0
A59: 5175 | B59: Maintenance of Meters | C59: 3813 | D59: ='App.2-G_Detailed_OM&A_Expenses'!E58 -> 3028 | E59: ='App.2-G_Detailed_OM&A_Expenses'!H58 -> 81829 | F59: 78016 | G59: 20.46052977 | H59: 78801 | I59: 26.02410832
A60: 5178 | B60: Customer Installations Expenses - Leased Property | C60: 0 | D60: ='App.2-G_Detailed_OM&A_Expenses'!E59 -> 0 | E60: ='App.2-G_Detailed_OM&A_Expenses'!H59 -> 0 | F60: 0 | H60: 0
A61: 5195 | B61: Maintenance of Other Installations on Customer Premises | C61: 5096 | D61: ='App.2-G_Detailed_OM&A_Expenses'!E60 -> 0 | E61: ='App.2-G_Detailed_OM&A_Expenses'!H60 -> 0 | F61: -5096 | G61: -1 | H61: 0
A62: Total - Maintenance | C62: =SUM(C44:C61) -> 1111632 | D62: =SUM(D44:D61) -> 1232249 | E62: =SUM(E44:E61) -> 1621552 | F62: 509920 | G62: 0.4587129554 | H62: 389303 | I62: 0.3159288423
A63: Account | B63: Description
A64: Billing and Collecting
A65: 5305 | B65: Supervision | C65: 0 | D65: ='App.2-G_Detailed_OM&A_Expenses'!E64 -> 0 | E65: ='App.2-G_Detailed_OM&A_Expenses'!H64 -> 0 | F65: =E65-C65 -> 0 | G65: =IF(C65=0,"",(E65/C65)-1) ->  | H65: =E65-D65 -> 0 | I65: =IF(D65=0,"",(E65/D65)-1) -> 
A66: 5310 | B66: Meter Reading Expense | C66: 132554 | D66: ='App.2-G_Detailed_OM&A_Expenses'!E65 -> 81501 | E66: ='App.2-G_Detailed_OM&A_Expenses'!H65 -> 31725 | F66: -100829 | G66: -0.7606635786 | H66: -49776 | I66: -0.6107409725
A67: 5315 | B67: Customer Billing | C67: 409365 | D67: ='App.2-G_Detailed_OM&A_Expenses'!E66 -> 608728 | E67: ='App.2-G_Detailed_OM&A_Expenses'!H66 -> 906187 | F67: 496822 | G67: 1.213640639 | H67: 297459 | I67: 0.4886566742
A68: 5320 | B68: Collecting | C68: 345711 | D68: ='App.2-G_Detailed_OM&A_Expenses'!E67 -> 328891 | E68: ='App.2-G_Detailed_OM&A_Expenses'!H67 -> 354093 | F68: 8382 | G68: 0.02424568498 | H68: 25202 | I68: 0.07662721084
A69: 5325 | B69: Collecting - Cash Over and Short | C69: 50 | D69: ='App.2-G_Detailed_OM&A_Expenses'!E68 -> -462 | E69: ='App.2-G_Detailed_OM&A_Expenses'!H68 -> 0 | F69: -50 | G69: -1 | H69: 462 | I69: -1
A70: 5330 | B70: Collection Charges | C70: 0 | D70: ='App.2-G_Detailed_OM&A_Expenses'!E69 -> 0 | E70: ='App.2-G_Detailed_OM&A_Expenses'!H69 -> 0 | F70: 0 | H70: 0
A71: 5335 | B71: Bad Debt Expense | C71: 59650 | D71: ='App.2-G_Detailed_OM&A_Expenses'!E70 -> 96439 | E71: ='App.2-G_Detailed_OM&A_Expenses'!H70 -> 84335 | F71: 24685 | G71: 0.413830679 | H71: -12104 | I71: -0.1255093894
A72: 5340 | B72: Miscellaneous Customer Accounts Expenses | C72: =30725+2119 -> 32844 | D72: ='App.2-G_Detailed_OM&A_Expenses'!E71 -> 28924 | E72: ='App.2-G_Detailed_OM&A_Expenses'!H71 -> 30935 | F72: -1909 | G72: -0.0581232493 | H72: 2011 | I72: 0.06952703637
A73: Total - Billing and Collecting | C73: =SUM(C65:C72) -> 980174 | D73: =SUM(D65:D72) -> 1144021 | E73: =SUM(E65:E72) -> 1407275 | F73: 427101 | G73: 0.4357399809 | H73: 263254 | I73: 0.2301129088
A74: Account | B74: Description
A75: Community Relations
A76: 5405 | B76: Supervision | C76: 40800 | D76: ='App.2-G_Detailed_OM&A_Expenses'!E75 -> 38716 | E76: ='App.2-G_Detailed_OM&A_Expenses'!H75 -> 42200 | F76: =E76-C76 -> 1400 | G76: =IF(C76=0,"",(E76/C76)-1) -> 0.03431372549 | H76: =E76-D76 -> 3484 | I76: =IF(D76=0,"",(E76/D76)-1) -> 0.08998863519
A77: 5410 | B77: Community Relations - Sundry | C77: 5536 | D77: ='App.2-G_Detailed_OM&A_Expenses'!E76 -> 2938 | E77: ='App.2-G_Detailed_OM&A_Expenses'!H76 -> 3008 | F77: -2528 | G77: -0.4566473988 | H77: 70 | I77: 0.02382573179
A78: 5415 | B78: Energy Conservation | C78: 95274 | D78: ='App.2-G_Detailed_OM&A_Expenses'!E77 -> 69157 | E78: ='App.2-G_Detailed_OM&A_Expenses'!H77 -> 71375 | F78: -23899 | G78: -0.2508449315 | H78: 2218 | I78: 0.03207195222
A79: 5420 | B79: Community Safety Program | C79: 6500 | D79: ='App.2-G_Detailed_OM&A_Expenses'!E78 -> 4489 | E79: ='App.2-G_Detailed_OM&A_Expenses'!H78 -> 4671 | F79: -1829 | G79: -0.2813846154 | H79: 182 | I79: 0.0405435509
A80: 5425 | B80: Miscellaneous Customer Service and Informational Expenses | C80: 100 | D80: ='App.2-G_Detailed_OM&A_Expenses'!E79 -> 0 | E80: ='App.2-G_Detailed_OM&A_Expenses'!H79 -> 0 | F80: -100 | G80: -1 | H80: 0
A81: 5505 | B81: Supervision | D81: ='App.2-G_Detailed_OM&A_Expenses'!E80 -> 0 | E81: ='App.2-G_Detailed_OM&A_Expenses'!H80 -> 0 | F81: 0 | H81: 0
A82: 5510 | B82: Demonstrating and Selling Expense | D82: ='App.2-G_Detailed_OM&A_Expenses'!E81 -> 0 | E82: ='App.2-G_Detailed_OM&A_Expenses'!H81 -> 0 | F82: 0 | H82: 0
A83: 5515 | B83: Advertising Expenses | C83: 11457 | D83: ='App.2-G_Detailed_OM&A_Expenses'!E82 -> 6608 | E83: ='App.2-G_Detailed_OM&A_Expenses'!H82 -> 12995 | F83: 1538 | G83: 0.1342410753 | H83: 6387 | I83: 0.9665556901
A84: 5520 | B84: Miscellaneous Sales Expense | D84: ='App.2-G_Detailed_OM&A_Expenses'!E83 -> 0 | E84: ='App.2-G_Detailed_OM&A_Expenses'!H83 -> 0 | F84: 0 | H84: 0
A85: Total - Community Relations | C85: =SUM(C76:C84) -> 159667 | D85: =SUM(D76:D84) -> 121908 | E85: =SUM(E76:E84) -> 134249 | F85: -25418 | G85: -0.1591938221 | H85: 12341 | I85: 0.1012320766
A86: Account | B86: Description
A87: Administrative and General Expenses
A88: 5605 | B88: Executive Salaries and Expenses | C88: 327398 | D88: ='App.2-G_Detailed_OM&A_Expenses'!E87 -> 371981 | E88: ='App.2-G_Detailed_OM&A_Expenses'!H87 -> 394555 | F88: =E88-C88 -> 67157 | G88: =IF(C88=0,"",(E88/C88)-1) -> 0.2051234278 | H88: =E88-D88 -> 22574 | I88: =IF(D88=0,"",(E88/D88)-1) -> 0.06068589525
A89: 5610 | B89: Management Salaries and Expenses | C89: 403669 | D89: ='App.2-G_Detailed_OM&A_Expenses'!E88 -> 489774 | E89: ='App.2-G_Detailed_OM&A_Expenses'!H88 -> 526670 | F89: 123001 | G89: 0.3047075698 | H89: 36896 | I89: 0.07533270447
A90: 5615 | B90: General Administrative Salaries and Expenses | C90: 283123 | D90: ='App.2-G_Detailed_OM&A_Expenses'!E89 -> 336905 | E90: ='App.2-G_Detailed_OM&A_Expenses'!H89 -> 385614 | F90: 102491 | G90: 0.3620016742 | H90: 48709 | I90: 0.1445778484
A91: 5620 | B91: Office Supplies and Expenses | C91: 0 | D91: ='App.2-G_Detailed_OM&A_Expenses'!E90 -> 0 | E91: ='App.2-G_Detailed_OM&A_Expenses'!H90 -> 0 | F91: 0 | H91: 0
A92: 5625 | B92: Administrative Expense Transferred - Credit | C92: -215178 | D92: ='App.2-G_Detailed_OM&A_Expenses'!E91 -> -10691 | E92: ='App.2-G_Detailed_OM&A_Expenses'!H91 -> -8930 | F92: 206248 | G92: -0.9584994749 | H92: 1761 | I92: -0.1647179871
A93: 5630 | B93: Outside Services Employed | C93: 146700 | D93: ='App.2-G_Detailed_OM&A_Expenses'!E92 -> 130437 | E93: ='App.2-G_Detailed_OM&A_Expenses'!H92 -> 139304 | F93: -7396 | G93: -0.05041581459 | H93: 8867 | I93: 0.06797917769
A94: 5635 | B94: Property Insurance | C94: 0 | D94: ='App.2-G_Detailed_OM&A_Expenses'!E93 -> 0 | E94: ='App.2-G_Detailed_OM&A_Expenses'!H93 -> 0 | F94: 0 | H94: 0
A95: 5640 | B95: Injuries and Damages | C95: 0 | D95: ='App.2-G_Detailed_OM&A_Expenses'!E94 -> 0 | E95: ='App.2-G_Detailed_OM&A_Expenses'!H94 -> 0 | F95: 0 | H95: 0
A96: 5645 | B96: OMERS Pensions and Benefits | C96: 74300 | D96: ='App.2-G_Detailed_OM&A_Expenses'!E95 -> 132940 | E96: ='App.2-G_Detailed_OM&A_Expenses'!H95 -> 155658 | F96: 81358 | G96: 1.094993271 | H96: 22718 | I96: 0.1708891229
A97: 5646 | B97: Employee Pensions and OPEB | C97: 0 | D97: ='App.2-G_Detailed_OM&A_Expenses'!E96 -> 0 | E97: ='App.2-G_Detailed_OM&A_Expenses'!H96 -> 0 | F97: =E97-C97 -> 0 | G97: =IF(C97=0,"",(E97/C97)-1) ->  | H97: =E97-D97 -> 0 | I97: =IF(D97=0,"",(E97/D97)-1) -> 
A98: 5647 | B98: Employee Sick Leave | C98: 0 | D98: ='App.2-G_Detailed_OM&A_Expenses'!E97 -> 0 | E98: ='App.2-G_Detailed_OM&A_Expenses'!H97 -> 0 | F98: 0 | H98: 0
A99: 5650 | B99: Franchise Requirements | C99: 0 | D99: ='App.2-G_Detailed_OM&A_Expenses'!E98 -> 0 | E99: ='App.2-G_Detailed_OM&A_Expenses'!H98 -> 0 | F99: 0 | H99: 0
A100: 5655 | B100: Regulatory Expenses | C100: 60250 | D100: ='App.2-G_Detailed_OM&A_Expenses'!E99 -> 58621 | E100: ='App.2-G_Detailed_OM&A_Expenses'!H99 -> 91184 | F100: 30934 | G100: 0.5134273859 | H100: 32563 | I100: 0.5554835298
A101: 5660 | B101: General Advertising Expenses | C101: 0 | D101: ='App.2-G_Detailed_OM&A_Expenses'!E100 -> 0 | E101: ='App.2-G_Detailed_OM&A_Expenses'!H100 -> 0 | F101: 0 | H101: 0
A102: 5665 | B102: Miscellaneous General Expenses | C102: 108070 | D102: ='App.2-G_Detailed_OM&A_Expenses'!E101 -> 99042 | E102: ='App.2-G_Detailed_OM&A_Expenses'!H101 -> 109823 | F102: 1753 | G102: 0.01622096789 | H102: 10781 | I102: 0.1088528099
A103: 5670 | B103: Rent | C103: 0 | D103: ='App.2-G_Detailed_OM&A_Expenses'!E102 -> 0 | E103: ='App.2-G_Detailed_OM&A_Expenses'!H102 -> 0 | F103: =E103-C103 -> 0 | G103: =IF(C103=0,"",(E103/C103)-1) ->  | H103: =E103-D103 -> 0
A104: 5672 | B104: Lease Payment Charge | C104: 0 | D104: ='App.2-G_Detailed_OM&A_Expenses'!E103 -> 0 | E104: ='App.2-G_Detailed_OM&A_Expenses'!H103 -> 0 | F104: 0 | H104: 0
A105: 5675 | B105: Maintenance of General Plant | C105: 0 | D105: ='App.2-G_Detailed_OM&A_Expenses'!E104 -> 0 | E105: ='App.2-G_Detailed_OM&A_Expenses'!H104 -> 0 | F105: 0 | H105: 0
A106: 5680 | B106: Electrical Safety Authority Fees | C106: 8263 | D106: ='App.2-G_Detailed_OM&A_Expenses'!E105 -> 9409 | E106: ='App.2-G_Detailed_OM&A_Expenses'!H105 -> 9789 | F106: 1526 | G106: 0.1846786881 | H106: 380 | I106: 0.04038686364
A107: 5681 | B107: Special Purpose Charge Expense | C107: 0 | D107: ='App.2-G_Detailed_OM&A_Expenses'!E106 -> 0 | E107: ='App.2-G_Detailed_OM&A_Expenses'!H106 -> 0 | F107: 0 | H107: 0
A108: 5685 | B108: Independent Electricity System Operator Fees and Penalties | C108: 0 | D108: ='App.2-G_Detailed_OM&A_Expenses'!E107 -> 0 | E108: ='App.2-G_Detailed_OM&A_Expenses'!H107 -> 0 | F108: 0 | H108: 0
A109: 5695 | B109: OM&A Contra Account | C109: 0 | D109: ='App.2-G_Detailed_OM&A_Expenses'!E108 -> 0 | E109: ='App.2-G_Detailed_OM&A_Expenses'!H108 -> 0 | F109: 0 | H109: 0
A110: 6205 | B110: Donations | C110: 0 | D110: ='App.2-G_Detailed_OM&A_Expenses'!E109 -> 52845 | E110: ='App.2-G_Detailed_OM&A_Expenses'!H109 -> 23600 | F110: =E110-C110 -> 23600 | G110: =IF(C110=0,"",(E110/C110)-1) ->  | H110: =E110-D110 -> -29245 | I110: =IF(D110=0,"",(E110/D110)-1) -> -0.5534109187
A111: 6205 | B111: Donations, Sub-account LEAP Funding | C111: 0 | D111: ='App.2-G_Detailed_OM&A_Expenses'!E110 -> 0 | E111: ='App.2-G_Detailed_OM&A_Expenses'!H110 -> 11000 | F111: 11000 | H111: 11000
A112: Total - Administrative and General Expenses | C112: =SUM(C88:C111) -> 1196595 | D112: =SUM(D88:D111) -> 1671263 | E112: =SUM(E88:E111) -> 1838267 | F112: 641672 | G112: 0.5362482711 | H112: 167004 | I112: 0.09992682181
A113: Total OM&A | C113: =C112+C85+C73+C62+C41 -> 4913837 | D113: =D112+D85+D73+D62+D41 -> 5330584 | E113: =E112+E85+E73+E62+E41 -> 6393600 | F113: 1479763 | G113: 0.3011420607 | H113: 1063016 | I113: 0.1994183001
A114: Adjustments for non-recoverable items
A115: 5681 | B115: Special Purpose Charge Expense | F115: =E115-C115 -> 0 | G115: =IF(C115=0,"",(E115/C115)-1) ->  | H115: =E115-D115 -> 0 | I115: =IF(D115=0,"",(E115/D115)-1) -> 
A116: 6205 | B116: Donations1 | C116: 0 | D116: ='App.2-G_Detailed_OM&A_Expenses'!E115 -> 52845 | E116: ='App.2-G_Detailed_OM&A_Expenses'!H115 -> 23600 | F116: =E116-C116 -> 23600 | G116: =IF(C116=0,"",(E116/C116)-1) ->  | H116: =E116-D116 -> -29245 | I116: =IF(D116=0,"",(E116/D116)-1) -> -0.5534109187
F117: =E117-C117 -> 0 | G117: =IF(C117=0,"",(E117/C117)-1) ->  | H117: =E117-D117 -> 0 | I117: =IF(D117=0,"",(E117/D117)-1) -> 
F118: =E118-C118 -> 0 | G118: =IF(C118=0,"",(E118/C118)-1) ->  | H118: =E118-D118 -> 0 | I118: =IF(D118=0,"",(E118/D118)-1) -> 
F119: =E119-C119 -> 0 | G119: =IF(C119=0,"",(E119/C119)-1) ->  | H119: =E119-D119 -> 0 | I119: =IF(D119=0,"",(E119/D119)-1) -> 
A120: Total Recoverable OM&A | C120: =C113-SUM(C115:C119) -> 4913837 | D120: =D113-SUM(D115:D119) -> 5277739 | E120: 6370000 | F120: 1456163 | G120: =IF(C120=0,"",(E120/C120)-1) -> 0.2963392966 | H120: 1092261 | I120: =IF(D120=0,"",(E120/D120)-1) -> 0.2069562364
A122: 1 Account 6205 - Donations is generally non-recoverable. However, the sub-account LEAP funding of account 6205 is generally recoverable.
A125: Note:
A127: 1 | B127: If the applicant is adopting IFRS or an alternate accounting standard as of January 1, 2013 for financial reporting purposes, Column D "Most Current Actual Year" must be provided on CGAAP.
A128: 2 | B128: If the applicant is adopting IFRS or an alternate accounting standard as of January 1, 2012 for financial reporting purposes, Column D "Most Current Actual Year" must be provided on that standard.

Sheet App.2-I_OM&A_Summary_Analys
K1: File Number: | L1: ='LDC Info'!$E$18 -> EB-2012-0173
K2: Exhibit: | L2: 4
K3: Tab: | L3: 1
K4: Schedule: | L4: 2
K5: Page: | L5: 3
K7: Date: | L7: Aug 31, 2012
A9: Appendix 2-I
A10: Summary of Recoverable OM&A Expenses
B13: ="Last Rebasing Year (" & 'LDC Info'!E30 & " BA)" -> Last Rebasing Year (2009 BA) | C13: ="Last Rebasing Year (" & 'LDC Info'!E30 & " Actuals)" -> Last Rebasing Year (2009 Actuals) | D13: ='LDC Info'!E26 -2 & " Actuals" -> 2010 Actuals | E13: ='LDC Info'!E26 -1 & " Actuals" -> 2011 Actuals | F13: ='LDC Info'!E26 & " Bridge Year" -> 2012 Bridge Year | G13: ='LDC Info'!E28 & " Test Year" -> 2013 Test Year
A14: Reporting Basis | B14: CGAAP | C14: CGAAP | D14: CGAAP | E14: CGAAP | F14: MIFRS | G14: MIFRS
A15: Operations | B15: ='App.2-H_OM&A_Detailed_Analysis'!C41 -> 1465769 | C15: ='App.2-G_Detailed_OM&A_Expenses'!C40 -> 1317883 | D15: ='App.2-G_Detailed_OM&A_Expenses'!D40 -> 1297663 | E15: ='App.2-G_Detailed_OM&A_Expenses'!E40 -> 1161143 | F15: ='App.2-G_Detailed_OM&A_Expenses'!G40 -> 1368019 | G15: ='App.2-G_Detailed_OM&A_Expenses'!H40 -> 1392257
A16: Maintenance | B16: ='App.2-H_OM&A_Detailed_Analysis'!C62 -> 1111632 | C16: ='App.2-G_Detailed_OM&A_Expenses'!C61 -> 1191970 | D16: ='App.2-G_Detailed_OM&A_Expenses'!D61 -> 932588 | E16: ='App.2-G_Detailed_OM&A_Expenses'!E61 -> 1232249 | F16: ='App.2-G_Detailed_OM&A_Expenses'!G61 -> 1469334 | G16: ='App.2-G_Detailed_OM&A_Expenses'!H61 -> 1621552
A17: SubTotal | B17: =SUM(B15:B16) -> 2577401 | C17: =SUM(C15:C16) -> 2509853 | D17: 2230251 | E17: 2393392 | F17: 2837353 | G17: 3013809
A18: %Change (year over year) | D18: =IF(ISERROR((D17-C17)/C17), "", (D17-C17)/C17) -> -0.1114017434 | E18: =IF(ISERROR((E17-D17)/D17), "", (E17-D17)/D17) -> 0.07314916572 | F18: 0.1854944781 | G18: 0.06219035841
A19: %Change (Test Year vs Last Rebasing Year - Actual) | G19: =IF(ISERROR((G17-C17)/C17), "", (G17-C17)/C17) -> 0.2007910423
A20: Billing and Collecting | B20: ='App.2-H_OM&A_Detailed_Analysis'!C73 -> 980174 | C20: ='App.2-G_Detailed_OM&A_Expenses'!C72 -> 899448 | D20: ='App.2-G_Detailed_OM&A_Expenses'!D72 -> 969343 | E20: ='App.2-G_Detailed_OM&A_Expenses'!E72 -> 1144021 | F20: ='App.2-G_Detailed_OM&A_Expenses'!G72 -> 1353692 | G20: ='App.2-G_Detailed_OM&A_Expenses'!H72 -> 1407275
A21: Community Relations | B21: ='App.2-H_OM&A_Detailed_Analysis'!C85 -> 159667 | C21: ='App.2-G_Detailed_OM&A_Expenses'!C84 -> 84366 | D21: ='App.2-G_Detailed_OM&A_Expenses'!D84 -> 118770 | E21: ='App.2-G_Detailed_OM&A_Expenses'!E84 -> 121908 | F21: ='App.2-G_Detailed_OM&A_Expenses'!G84 -> 129198 | G21: ='App.2-G_Detailed_OM&A_Expenses'!H84 -> 134249
A22: Administrative and General | B22: ='App.2-H_OM&A_Detailed_Analysis'!C112 -> 1196595 | C22: ='App.2-G_Detailed_OM&A_Expenses'!C111 -> 1327359 | D22: ='App.2-G_Detailed_OM&A_Expenses'!D111 -> 1443982 | E22: ='App.2-G_Detailed_OM&A_Expenses'!E111 -> 1671263 | F22: ='App.2-G_Detailed_OM&A_Expenses'!G111 -> 1774788 | G22: ='App.2-G_Detailed_OM&A_Expenses'!H111 -> 1838267
A23: SubTotal | B23: =SUM(B20:B22) -> 2336436 | C23: =SUM(C20:C22) -> 2311173 | D23: 2532095 | E23: 2937192 | F23: 3257678 | G23: 3379791
A24: %Change (year over year) | D24: =IF(ISERROR((D23-C23)/C23), "", (D23-C23)/C23) -> 0.09558869025 | E24: =IF(ISERROR((E23-D23)/D23), "", (E23-D23)/D23) -> 0.1599849137 | F24: =IF(ISERROR((F23-E23)/E23), "", (F23-E23)/E23) -> 0.1091130576 | G24: =IF(ISERROR((G23-F23)/F23), "", (G23-F23)/F23) -> 0.03748467467
A25: %Change (Test Year vs Last Rebasing Year - Actual) | G25: =IF(ISERROR((G23-C23)/C23), "", (G23-C23)/C23) -> 0.4623704067
A26: Total | B26: =SUM(B23,B17) -> 4913837 | C26: =SUM(C23,C17) -> 4821026 | D26: 4762346 | E26: 5330584 | F26: 6095031 | G26: 6393600
A27: %Change (year over year) | D27: =IF(ISERROR((D26-C26)/C26), "", (D26-C26)/C26) -> -0.01217168296 | E27: =IF(ISERROR((E26-D26)/D26), "", (E26-D26)/D26) -> 0.1193189239 | F27: =IF(ISERROR((F26-E26)/E26), "", (F26-E26)/E26) -> 0.1434077392 | G27: =IF(ISERROR((G26-F26)/F26), "", (G26-F26)/F26) -> 0.04898564093
B30: =B13 -> Last Rebasing Year (2009 BA) | C30: =C13 -> Last Rebasing Year (2009 Actuals) | D30: 2010 Actuals | E30: 2011 Actuals | F30: 2012 Bridge Year | G30: 2013 Test Year
A31: Operations | B31: =B15 -> 1465769 | C31: =C15 -> 1317883 | D31: 1297663 | E31: 1161143 | F31: 1368019 | G31: 1392257
A32: Maintenance | B32: =B16 -> 1111632 | C32: =C16 -> 1191970 | D32: 932588 | E32: 1232249 | F32: 1469334 | G32: 1621552
A33: Billing and Collecting | B33: =B20 -> 980174 | C33: =C20 -> 899448 | D33: 969343 | E33: 1144021 | F33: 1353692 | G33: 1407275
A34: Community Relations | B34: =B21 -> 159667 | C34: =C21 -> 84366 | D34: 118770 | E34: 121908 | F34: 129198 | G34: 134249
A35: Administrative and General | B35: =B22 -> 1196595 | C35: =C22 -> 1327359 | D35: 1443982 | E35: 1671263 | F35: 1774788 | G35: 1838267
A36: Total | B36: =SUM(B31:B35) -> 4913837 | C36: =SUM(C31:C35) -> 4821026 | D36: 4762346 | E36: 5330584 | F36: 6095031 | G36: 6393600
A37: %Change (year over year) | D37: =IF(ISERROR((D36-C36)/C36), "", (D36-C36)/C36) -> -0.01217168296 | E37: =IF(ISERROR((E36-D36)/D36), "", (E36-D36)/D36) -> 0.1193189239 | F37: =IF(ISERROR((F36-E36)/E36), "", (F36-E36)/E36) -> 0.1434077392 | G37: =IF(ISERROR((G36-F36)/F36), "", (G36-F36)/F36) -> 0.04898564093
B40: =B13 -> Last Rebasing Year (2009 BA) | C40: =C13 -> Last Rebasing Year (2009 Actuals) | D40: ="Variance " & 'LDC Info'!E30 & " BA – " & 'LDC Info'!E30 & " Actuals" -> Variance 2009 BA – 2009 Actuals | E40: =D13 -> 2010 Actuals | F40: ="Variance " & 'LDC Info'!E26 -2 & " Actuals vs. " & 'LDC Info'!E30 & " Actuals" -> Variance 2010 Actuals vs. 2009 Actuals | G40: =E13 -> 2011 Actuals | H40: ="Variance " & 'LDC Info'!E26 -1 & " Actuals vs. " & 'LDC Info'!E26-2 & " Actuals" -> Variance 2011 Actuals vs. 2010 Actuals | I40: =F13 -> 2012 Bridge Year | J40: ="Variance " & 'LDC Info'!E26 & " Bridge vs. " & 'LDC Info'!E26 -1 & " Actuals" -> Variance 2012 Bridge vs. 2011 Actuals | K40: =G13 -> 2013 Test Year | L40: ="Variance " & 'LDC Info'!E28 & " Test vs. " & 'LDC Info'!E26 & " Bridge" -> Variance 2013 Test vs. 2012 Bridge
A41: Operations | B41: =B15 -> 1465769 | C41: 1317883 | D41: =B41-C41 -> 147886 | E41: =D15 -> 1297663 | F41: =E41-C41 -> -20220 | G41: =E15 -> 1161143 | H41: =G41-E41 -> -136520 | I41: =F15 -> 1368019 | J41: =I41-G41 -> 206876 | K41: =G15 -> 1392257 | L41: =K41-I41 -> 24238
A42: Maintenance | B42: 1111632 | C42: 1191970 | D42: =B42-C42 -> -80338 | E42: =D16 -> 932588 | F42: =E42-C42 -> -259382 | G42: =E16 -> 1232249 | H42: =G42-E42 -> 299661 | I42: =F16 -> 1469334 | J42: 237085 | K42: =G16 -> 1621552 | L42: 152218
A43: Billing and Collecting | B43: =B20 -> 980174 | C43: 899448 | D43: 80726 | E43: =D20 -> 969343 | F43: 69895 | G43: =E20 -> 1144021 | H43: 174678 | I43: =F20 -> 1353692 | J43: 209671 | K43: =G20 -> 1407275 | L43: 53583
A44: Community Relations | B44: 159667 | C44: 84366 | D44: 75301 | E44: =D21 -> 118770 | F44: 34404 | G44: =E21 -> 121908 | H44: 3138 | I44: =F21 -> 129198 | J44: 7290 | K44: =G21 -> 134249 | L44: 5051
A45: Administrative and General | B45: 1196595 | C45: 1327359 | D45: -130764 | E45: 1443982 | F45: 116623 | G45: 1671263 | H45: 227281 | I45: 1774788 | J45: 103525 | K45: 1838267 | L45: 63479
A46: Total OM&A Expenses | B46: =SUM(B41:B45) -> 4913837 | C46: =SUM(C41:C45) -> 4821026 | D46: 92811 | E46: 4762346 | F46: -58680 | G46: 5330584 | H46: 568238 | I46: 6095031 | J46: 764447 | K46: 6393600 | L46: 298569
A47: Variance from previous year | E47: =E46-C46 -> -58680 | G47: =G46-E46 -> 568238 | I47: =I46-G46 -> 764447 | K47: =K46-I46 -> 298569
A48: Percent change (year over year) | E48: =IF(ISERROR(E47/C46), "", E47/C46) -> -0.01217168296 | G48: =IF(ISERROR(G47/E46), "", G47/E46) -> 0.1193189239 | I48: =IF(ISERROR(I47/G46), "", I47/G46) -> 0.1434077392 | K48: =IF(ISERROR(K47/I46), "", K47/I46) -> 0.04898564093
A49: Percent Change: Test year vs. Most Current Actual | G49: =IF(ISERROR((K46-G46)/G46), "", (K46-G46)/G46) -> 0.1994183001
A50: Simple average of % variance for all years | G50: =IF(ISERROR((K46-C46)/C46), "", (K46-C46)/C46) -> 0.326190732 | L50: =IF(ISERROR(AVERAGE(E48,G48,I48,K48)), "", AVERAGE(E48,G48,I48,K48)) -> 0.07488515527
A51: Compound Annual Growth Rate for all years | G51: =IF(ISERROR((K47-C47)/C47), "", (K47-C47)/C47) ->  | L51: 0.0842
A52: ="Compound Growth Rate (" & E13 & " vs. " & 'LDC Info'!E30 & " Actuals)" -> Compound Growth Rate (2011 Actuals vs. 2009 Actuals) | G52: =IF(ISERROR((G46/C46)^(1/(2010-2008)) - 1), "", (G46-C46)/C46) -> 0.1056949288
A54: Note:
A56: 1 "BA" = Board-Approved
A57: 2 If it has been more than three years since the applicant last filed a cost of service application, additional years of historical actuals should be incorporated into the table, as necessary, to go back to the last cost of service application. If the applicant last filed a cost of service application less than three years ago, a minimum of three years of actual information is required.
A59: 3 Recoverable OM&A that is included on these tables should be identical to the recoverable OM&A that is shown for the corresponding periods on Appendix 2-H.

Sheet App.2-J_OM&A_Cost _Drivers
F1: File Number: | G1: ='LDC Info'!$E$18 -> EB-2012-0173
F2: Exhibit: | G2: 4
F3: Tab: | G3: 1
F4: Schedule: | G4: 2
F5: Page: | G5: 2
F7: Date: | G7: Aug 31, 2012
A10: Appendix 2-J
A11: OM&A Cost Driver Table
A13: OM&A | B13: ="Last Rebasing Year (" & 'LDC Info'!E30 & " Actuals)" -> Last Rebasing Year (2009 Actuals) | C13: 2009 Actuals | D13: ='LDC Info'!E26 -2 & " Actuals" -> 2010 Actuals | E13: ='LDC Info'!E26 -1 & " Actuals" -> 2011 Actuals | F13: ='LDC Info'!E26 & " Bridge Year" -> 2012 Bridge Year | G13: ='LDC Info'!E28 & " Test Year" -> 2013 Test Year | I13: Total Change 2009 COS 2013 COS
A14: Reporting Basis | B14: CGAAP | D14: CGAAP | E14: CGAAP | F14: MIFRS | G14: MIFRS
A15: OM&A Labour (Appendix 2-K) | B15: 3227443 | D15: 3034601 | E15: 3122804 | F15: 3259864 | G15: 3636477
A16: OM&A Expenses | B16: =B17-B15 -> 1686394 | D16: =D17-D15 -> 1758734 | E16: 1610522 | F16: 1967875 | G16: 2434954
A17: Opening Balance | B17: 4913837 | C17: =B55 -> 4793335 | D17: =B55 -> 4793335 | E17: =D55 -> 4733326 | F17: =E55 -> 5227739 | G17: =F55 -> 6071431 | I17: 4913837
A18: CDM Employee Hired Jun/09 | B18: -38200 | D18: 38200 | E18: 0 | F18: 0 | G18: 0 | I18: =B18+D18+E18+F18+G18 -> 0
A19: Adjust Manage Wage vs 2009 COS | B19: 0 | D19: 0 | E19: -90000 | F19: 0 | G19: 0 | I19: =B19+D19+E19+F19+G19 -> -90000
A20: Adjust Manage Benefits vs 2009 COS | B20: 0 | D20: 0 | E20: -25139 | F20: 0 | G20: 0 | I20: -25139
A21: Adjust Union Wage vs 2009 COS | B21: 0 | D21: -18694 | E21: 12463 | F21: 6231 | G21: 0 | I21: 0
A22: Adjust Union Benefits vs 2009 COS | B22: 0 | D22: -4902 | E22: 3268 | F22: 1634 | G22: 0 | I22: 0
A23: Smart Meters-Add Salaried Wage | B23: 0 | D23: 0 | E23: 0 | F23: 68436 | G23: 9275 | I23: 77711
A24: Smart Meters-Add Salaried Benefits | B24: 0 | D24: 0 | E24: 0 | F24: 19520 | G24: 2626 | I24: 22146
A25: Upgrade Accounting Assistant Base | B25: 0 | D25: 0 | E25: 0 | F25: 0 | G25: 0 | I25: 0
A26: Union Apprentice Lineman-Wages | B26: 0 | D26: 0 | E26: 0 | F26: 0 | G26: 56397 | I26: 56397
A27: Union Apprentice Lineman-Benefits | B27: 0 | D27: 0 | E27: 0 | F27: 0 | G27: 18617 | I27: 18617
A28: Management Overtime | B28: 38703 | D28: 8599 | E28: 16786 | F28: 5388 | G28: -26272 | I28: 43204
A29: Union Overtime | B29: 9710 | D29: -21885 | E29: 31326 | F29: 395 | G29: -20514 | I29: -968
A30: Wagees Inflation | B30: -674 | D30: 93613 | E30: 54557 | F30: 84296 | G30: 123776 | I30: 355568
A31: Benefits Inflation | B31: -35582 | D31: 34215 | E31: 62093 | F31: 44542 | G31: 66093 | I31: 171361
A32: Compensation Capitalized | B32: -116084 | D32: -11919 | E32: -31112 | F32: -45461 | G32: -60040 | I32: -264616
A33: Compensation Third Party | B33: 30901 | D33: -44775 | E33: 20491 | F33: -716 | G33: -31882 | I33: -25981
A34: Compensation Charged to Affiliates | B34: -70666 | D34: 1638 | E34: 26941 | F34: 49562 | G34: 41981 | I34: 49456
A35: Retiree Benefits Premium Costs | B35: 0 | D35: 6769 | E35: 33068 | F35: -3300 | G35: =9923+35415 -> 45338 | I35: 81875
A36: Stores Ovhd Charged to Affiliates/3rd | B36: -11201 | D36: -6599 | E36: 26229 | F36: 1926 | G36: 2750 | I36: 13105
A37: Equipment Charged to Affiliates/3rd | B37: -4661 | D37: -1764 | E37: 2252 | F37: =15232+9232 -> 24464 | G37: 8434 | I37: 28725
A38: Bad Debt Expense | B38: =66509-59650 -> 6859 | D38: 20579 | E38: 9351 | F38: 2199 | G38: =1967-16000 -> -14033 | I38: 24955
A39: 2009 Regulatory Exp Actual vs 4 Year | B39: =87520-60250 -> 27270 | D39: -27270 | E39: 0 | F39: 0 | G39: 0 | I39: 0
A40: 2013 Cost of Service Regulatory | B40: 0 | D40: 0 | E40: 0 | F40: 40000 | G40: -10000 | I40: 30000
A41: Legal Fees | B41: 0 | D41: 0 | E41: -17453 | F41: 10000 | I41: -7453
A42: Tree Trimming Actual vs 4 Year | B42: -51439 | D42: -9748 | E42: 95915 | F42: -67359 | G42: 38817 | I42: 6186
A43: Transformer PCB Program/Testing | B43: 35335 | D43: -61645 | E43: 0 | F43: 0 | G43: 10000 | I43: -16310
A44: CIS/Financial Expenses | B44: -20259 | D44: 7086 | E44: 132769 | F44: 88144 | G44: 8181 | I44: 215921
A45: Smart Meter Expenses | B45: 0 | D45: 0 | E45: 106144 | F45: 169742 | G45: 68533 | I45: 344419
A46: Meter Reading Costs | B46: 0 | D46: 0 | E46: -36459 | F46: -47580 | G46: 0 | I46: -84039
A47: Receivable Insurance GS>50 Large Use | B47: 0 | D47: 6800 | E47: 27256 | F47: 10853 | G47: 900 | I47: 45809
A48: Bell Pole Rental Charges | B48: 61247 | D48: -61247 | E48: 0 | F48: 0 | G48: 0 | I48: 0
A49: Leap Payments to OMA | B49: 0 | D49: 0 | E49: 0 | F49: 11000 | G49: 0 | I49: 11000
A50: IFRS-Admin Ovhd Capital Adj | B50: =14398+14398 -> 28796 | D50: 0 | E50: 0 | F50: 0 | G50: 0 | I50: 28796
A51: IFRS-Indirect Wages Capital Adj | B51: 0 | D51: 0 | E51: 0 | F51: 158151 | G51: 0 | I51: 158151
A52: IFRS-General Ovhd Capital Adj | B52: 0 | D52: 0 | E52: 0 | F52: 108490 | G52: 0 | I52: 108490
A53: IFRS-Safety Exp Removed Burd Capital | B53: 0 | D53: 0 | E53: 0 | F53: 4911 | G53: 0 | I53: 4911
A54: All Other & Expense Inflation | B54: -10557 | D54: -7060 | E54: 33667 | F54: 98224 | G54: =60835-101243 -> -40408 | I54: 73866
A55: Closing Balance | B55: =SUM(B17:B54) -> 4793335 | C55: =SUM(C17:C54) -> 4793335 | D55: 4733326 | E55: 5227739 | F55: 6071431 | G55: 6370000 | I55: 6370000
A56: Balance Per Appendix 2-G | B56: 4793335 | D56: 4733326 | E56: 5227739 | F56: 6071431 | G56: 6370000
A58: Notes:
A60: 1 | B60: For each year, a detailed explanation for each cost driver and associated amount is
B61: required.
A62: 2 | B62: The closing balance for each year becomes the opening balance for the next year.
A63: 3 | B63: If it has been more than three years since the applicant last filed a cost of service application, additional years of historical actuals should be incorporated into the table, as necessary, to go back to the last cost of service application. If the applicant last filed a cost of service application less than three years ago, a minimum of three years of actual information is required.
A67: 4 | B67: Opening Balance for "Last Rebasing Year" (cell B15) should be equal to the Board-Approved amount.

Sheet App.2-K_Employee Costs
F1: File Number: | G1: ='LDC Info'!$E$18 -> EB-2012-0173
F2: Exhibit: | G2: 4
F3: Tab: | G3: 1
F4: Schedule: | G4: 4
F5: Page: | G5: 2 & 3
F7: Date: | G7: Aug 31, 2012
A9: Appendix 2-K
A10: Employee Costs
B12: ="Last Rebasing Year (" & 'LDC Info'!E30 & " Board-Approved)" -> Last Rebasing Year (2009 Board-Approved) | C12: ="Last Rebasing Year (" & 'LDC Info'!E30 & " Actuals)" -> Last Rebasing Year (2009 Actuals) | D12: ='LDC Info'!E26 -2 & " Actuals" -> 2010 Actuals | E12: ='LDC Info'!E26 -1 & " Actuals" -> 2011 Actuals | F12: ='LDC Info'!E26 & " Bridge Year" -> 2012 Bridge Year | G12: ='LDC Info'!E28 & " Test Year" -> 2013 Test Year
A13: Reporting Basis | B13: CGAAP | C13: CGAAP | D13: CGAAP | E13: CGAAP | F13: MIFRS | G13: MIFRS
A14: Number of Employees (FTEs including Part-Time)1
A15: Executive | B15: 0 | C15: 0 | D15: 0 | E15: 0 | F15: 0 | G15: 0
A16: Management | B16: 14 | C16: 13.5 | D16: 14 | E16: 13 | F16: 14 | G16: 14
A17: Non-Union | B17: 0 | C17: 0 | D17: 0 | E17: 0 | F17: 0 | G17: 0
A18: Union | B18: 27 | C18: 27 | D18: 26.7 | E18: 26.9 | F18: 27 | G18: 28
A19: Total | B19: =SUM(B15:B18) -> 41 | C19: 40.5 | D19: 40.7 | E19: 39.9 | F19: 41 | G19: 42
A20: Number of Part-Time Employees
A21: Executive | B21: 0 | C21: 0 | D21: 0 | E21: 0 | F21: 0 | G21: 0
A22: Management | B22: 0 | C22: 0 | D22: 0 | E22: 0 | F22: 0 | G22: 0
A23: Non-Union | B23: 1 | C23: 1 | D23: 1 | E23: 1 | F23: 1 | G23: 1
A24: Union | B24: 0 | C24: 0 | D24: 0 | E24: 0 | F24: 0 | G24: 0
A25: Total | B25: =SUM(B21:B24) -> 1 | C25: 1 | D25: 1 | E25: 1 | F25: 1 | G25: 1
A26: Total Salary and Wages
A27: Executive
A28: Management-Base | B28: 1237378 | C28: 1206887 | D28: 1282448 | E28: 1200600 | F28: 1290310 | G28: =1462700-90000-30000 -> 1342700
A29: Management-Overtime | B29: 0 | C29: 38703 | D29: 47302 | E29: 64088 | F29: 69476 | G29: 43204
A30: Non-Union | B30: 36802 | C30: 37234 | D30: 39244 | E30: 41841 | F30: 42992 | G30: 43852
A31: Union-Base | B31: 1637056 | C31: 1628241 | D31: 1663789 | E31: 1720060 | F31: 1788162 | G31: 1924361
A32: Union-Overtime | B32: 74529 | C32: 84239 | D32: 62354 | E32: 93680 | F32: 94075 | G32: =93561-20000 -> 73561
A33: Total | B33: =SUM(B27:B32) -> 2985765 | C33: 2995304 | D33: 3095137 | E33: 3120269 | F33: 3285015 | G33: 3427678
A34: Current Benefits
A35: Executive
A36: Management | B36: 273498 | C36: 250867 | D36: 269743 | E36: 276916 | F36: 310030 | G36: =361664-25139 -> 336525
A37: Non-Union | B37: 3574 | C37: 3661 | D37: 3801 | E37: 4283 | F37: 3826 | G37: 3947
A38: Union | B38: 439042 | C38: 426004 | D38: 436301 | E38: 468868 | F38: 501907 | G38: 562627
A39: Total | B39: =SUM(B35:B38) -> 716114 | C39: 680532 | D39: 709845 | E39: 750067 | F39: 815763 | G39: 903099
A40: Accrued Pension and Post-Retirement Benefits
A41: Executive
A42: Management
A43: Non-Union
A44: Union
A45: Total | B45: =SUM(B41:B44) -> 0 | C45: 0 | D45: 0 | E45: 0 | F45: 0 | G45: 0
A46: Total Benefits (Current + Accrued)
A47: Executive | B47: =B35+B41 -> 0 | C47: 0 | D47: 0 | E47: 0 | F47: 0 | G47: 0
A48: Management | B48: 273498 | C48: 250867 | D48: 269743 | E48: 276916 | F48: 310030 | G48: 336525
A49: Non-Union | B49: 3574 | C49: 3661 | D49: 3801 | E49: 4283 | F49: 3826 | G49: 3947
A50: Union | B50: 439042 | C50: 426004 | D50: 436301 | E50: 468868 | F50: 501907 | G50: 562627
A51: Total | B51: 716114 | C51: 680532 | D51: 709845 | E51: 750067 | F51: 815763 | G51: 903099
A52: Total Compensation (Salary, Wages, & Benefits)
A53: Executive | B53: =B27+B47 -> 0 | C53: =C27+C47 -> 0 | D53: 0 | E53: 0 | F53: 0 | G53: 0
A54: Management | B54: =B28+B48+B29 -> 1510876 | C54: =C28+C48+C29 -> 1496457 | D54: 1599493 | E54: 1541604 | F54: 1669816 | G54: 1722429
A55: Non-Union | B55: =B30+B49 -> 40376 | C55: =C30+C49 -> 40895 | D55: 43045 | E55: 46124 | F55: 46818 | G55: 47799
A56: Union | B56: =B32+B50+B31 -> 2150627 | C56: =C32+C50+C31 -> 2138484 | D56: 2162444 | E56: 2282608 | F56: 2384144 | G56: 2560549
A57: Total | B57: =SUM(B53:B56) -> 3701879 | C57: =SUM(C53:C56) -> 3675836 | D57: 3804982 | E57: 3870336 | F57: 4100778 | G57: 4330777
A58: Compensation - Average Yearly Base Wages
A59: Executive
A60: Management | B60: =B28/B16 -> 88384.14286 | C60: =C28/C16 -> 89399.03704 | D60: 91603.42857 | E60: 92353.84615 | F60: 92165 | G60: 95907.14286
A61: Non-Union | B61: =B30/B23 -> 36802 | C61: =C30/C23 -> 37234 | D61: 39244 | E61: 41841 | F61: 42992 | G61: 43852
A62: Union | B62: =B31/B18 -> 60631.7037 | C62: =C31/C18 -> 60305.22222 | D62: 62314.19476 | E62: 63942.75093 | F62: 66228.22222 | G62: 68727.17857
A63: Total | B63: =(B28+B30+B31)/(B19+B25) -> 69315.14286 | C63: =(C28+C30+C31)/(C19+C25) -> 69213.54217 | D63: 71594.26859 | E63: 72432.78729 | F63: 74320.57143 | G63: 76997.97674
A64: Compensation - Average Yearly Overtime
A65: Executive
A66: Management | B66: =B29/B16 -> 0 | C66: =C29/C16 -> 2866.888889 | D66: 3378.714286 | E66: 4929.846154 | F66: 4962.571429 | G66: 3086
A67: Non-Union
A68: Union | B68: =B32/B18 -> 2760.333333 | C68: =C32/C18 -> 3119.962963 | D68: 2335.355805 | E68: 3482.527881 | F68: 3484.259259 | G68: 2627.178571
A69: Total | B69: =(B29+B32)/(B19+B25) -> 1774.5 | C69: =(C29+C32)/(C19+C25) -> 2962.457831 | D69: 2629.640288 | E69: 3857.408313 | F69: 3894.071429 | G69: 2715.465116
A70: Compensation - Average Yearly Incentive Pay
A71: Executive
A72: Management
A73: Non-Union
A74: Union
A75: Total
A76: Compensation - Average Yearly Benefits
A77: Executive
A78: Management | B78: =B48/B16 -> 19535.57143 | C78: =C48/C16 -> 18582.74074 | D78: 19267.35714 | E78: 21301.23077 | F78: 22145 | G78: 24037.5
A79: Non-Union | B79: =B49/B23 -> 3574 | C79: =C49/C23 -> 3661 | D79: 3801 | E79: 4283 | F79: 3826 | G79: 3947
A80: Union | B80: =B50/B18 -> 16260.81481 | C80: =C50/C18 -> 15777.92593 | D80: 16340.86142 | E80: 17430.03717 | F80: 18589.14815 | G80: 20093.82143
A81: Total | B81: =B51/(B19+B25) -> 17050.33333 | C81: =C51/(C19+C25) -> 16398.36145 | D81: 17022.66187 | E81: 18339.04645 | F81: 19422.92857 | G81: 21002.30233
A83: Total Compensation Before Retiree | B83: =SUM(B53:B56) -> 3701879 | C83: =SUM(C53:C56) -> 3675836 | D83: 3804982 | E83: 3870336 | F83: 4100778 | G83: 4330777
A84: Retiree Benefits Premiums | B84: 71160 | C84: 73783 | D84: 80552 | E84: 113620 | F84: 110320 | G84: =120243+35415 -> 155658
A85: Retiree Benefits Accrual | B85: 3140 | C85: 4424 | D85: -2130 | E85: 19320 | F85: 7164 | G85: 0
A86: Total Compensation | B86: =B83+B84+B85 -> 3776179 | C86: =C83+C84+C85 -> 3754043 | D86: 3883404 | E86: 4003276 | F86: 4218262 | G86: 4486435
A87: Total Compensation Capitalized (CGAAP) | B87: 322122 | C87: 438206 | D87: 450125 | E87: 462460 | F87: 526698 | G87: 586738
A88: Total Compensation Capitalized Smart Meter 1555 | B88: 0 | C88: 255 | D88: 0 | E88: 18777
A89: Total Compensation Charged to Third Party | B89: 139982 | C89: 109081 | D89: 153856 | E89: 133365 | F89: 134081 | G89: =145963+20000 -> 165963
A90: Total Compensation Charged to Smart Meter 1556 | B90: 0 | C90: 14602 | D90: 959 | E90: 0
A91: Total Compensation Charged to Associate Companies | B91: 86632 | C91: 157298 | D91: 155660 | E91: 128719 | F91: 79157 | G91: 37176
A92: Total Compensation Charged to OM&A (CGAAP) | B92: =B86-B87-B88-B89-B90-B91 -> 3227443 | C92: =C86-C87-C88-C89-C90-C91 -> 3034601 | D92: 3122804 | E92: 3259955 | F92: 3478326 | G92: 3696558
A94: Total Compensation Capitalized (MIFRS) | E94: =198916+94774+7192+3427+12718+6059 -> 323086 | F94: 368547 | G94: 428587
A95: Total Compensation Charged to OM&A (MIFRS) | E95: =E86-E94-E89-E90-E91 -> 3418106 | F95: =F86-F94-F89-F90-F91 -> 3636477 | G95: =G86-G94-G89-G90-G91 -> 3854709
A98: 1 If an applicant wishes to use headcount, it must also file the same schedule on an FTE basis.
A100: Note:
A101: 1 Please report compensation on a CGAAP and MIFRS basis for your transition year.

Sheet App.2-L_OM&A_per_Cust_FTEE
G1: File Number: | H1: ='LDC Info'!$E$18 -> EB-2012-0173
G2: Exhibit: | H2: 4
G3: Tab: | H3: 1
G4: Schedule: | H4: 2
G5: Page: | H5: 7
G7: Date: | H7: Aug 31, 2012
A9: Appendix 2-L
A10: Recoverable OM&A Cost per Customer and per FTEE
C12: ="Last Rebasing Year (" & 'LDC Info'!E30 & " Board-Approved)" -> Last Rebasing Year (2009 Board-Approved) | D12: ="Last Rebasing Year (" & 'LDC Info'!E30 & " Actuals)" -> Last Rebasing Year (2009 Actuals) | E12: ='LDC Info'!E26 -2 & " Actuals" -> 2010 Actuals | F12: ='LDC Info'!E26 -1 & " Actuals" -> 2011 Actuals | G12: ='LDC Info'!E26 & " Bridge Year" -> 2012 Bridge Year | H12: ='LDC Info'!E28 & " Test Year" -> 2013 Test Year
A13: Reporting Basis | C13: CGAAP | D13: CGAAP | E13: CGAAP | F13: CGAAP | G13: MIFRS | H13: MIFRS
A14: Number of Customers | C14: 22637 | D14: 22053 | E14: 22205 | F14: 22466 | G14: 22740 | H14: 23098
A15: Total Recoverable OM&A from Appendix 2-I | C15: 4913837 | D15: 4793555 | E15: 4733326 | F15: 5277739 | G15: 6071431 | H15: 6370000
A16: OM&A cost per customer | C16: =IF(C14=0,"",C15/C14) -> 217.0710341 | D16: 217.3652111 | E16: 213.1648728 | F16: 234.9211698 | G16: 266.9934477 | H16: 275.7814529
A17: Number of FTEEs | C17: 42 | D17: 41.5 | E17: 41.7 | F17: 40.9 | G17: 42 | H17: 43
A18: Customers/FTEEs | C18: =IF(C17=0,"",C14/C17) -> 538.9761905 | D18: 531.3975904 | E18: 532.4940048 | F18: 549.2909535 | G18: 541.4285714 | H18: 537.1627907
A19: OM&A Cost per FTEE | C19: =IF(C17=0,"",C15/C17) -> 116996.119 | D19: 115507.3494 | E19: 113509.0168 | F19: 129040.0733 | G19: 144557.881 | H19: 148139.5349
A21: Number of Customers is based on Customers/Connects with the exception of Streetlights which has been counted as 1.
A23: Notes:
A25: 1 | B25: If it has been more than three years since the applicant last filed a cost of service application, additional years of historical actuals should be incorporated into the table, as necessary, to go back to the last cost of service application. If the applicant last filed a cost of service application less than three years ago, a minimum of three years of actual information is required.
A29: 2 | B29: The method of calculating the number of customers must be identified.
A30: 3 | B30: The method of calculating the number of FTEEs must be identified. See also Appendix 2-K
A31: 4 | B31: The number of customers and the number of FTEEs should correspond to mid-year or average of January 1 and December 31 figures.

Sheet App.2-M_Regulatory_Costs
J1: File Number: | K1: ='LDC Info'!$E$18 -> EB-2012-0173
J2: Exhibit: | K2: 4
J3: Tab: | K3: 1
J4: Schedule: | K4: 2
J5: Page: | K5: 6
J7: Date: | K7: Aug 31, 2012
A9: Appendix 2-M
A10: Regulatory Cost Schedule
E11: On-Going
E12: On-Time
A13: Regulatory Cost Category | C13: USoA Account | D13: USoA Account Balance | E13: Ongoing or One-time Cost? 2 | F13: ="Last Rebasing Year (" & 'LDC Info'!E30 & " Board Approved)" -> Last Rebasing Year (2009 Board Approved) | G13: Most Current Actuals Year 2011 | H13: ='LDC Info'!E26 & " Bridge Year" -> 2012 Bridge Year | I13: Annual % Change | J13: ='LDC Info'!E28 & " Test Year" -> 2013 Test Year | K13: Annual % Change
A14: (A) | C14: (B) | D14: (C ) | E14: (D) | F14: (E) | G14: (F) | H14: (G) | I14: (H) = [(G)-(F)]/(F) | J14: (I) | K14: (J) = [(I)-(G)]/(G)
A15: 1 | B15: OEB Annual Assessment | C15: 5655 | E15: On-Going | F15: 50057 | G15: 53298 | H15: 54200 | I15: =IF(G15=0,"",(H15-G15)/G15) -> 0.01692371196 | J15: 55284 | K15: =IF(H15=0,"",(J15-H15)/H15) -> 0.02
A16: 2 | B16: OEB Section 30 Costs (Applicant-originated) | I16: =IF(G16=0,"",(H16-G16)/G16) ->  | K16: =IF(H16=0,"",(J16-H16)/H16) -> 
A17: 3 | B17: OEB Section 30 Costs (OEB-initiated) | C17: 5655 | E17: On-Going | F17: 4715 | G17: 2293 | H17: 2500 | I17: 0.09027474924 | J17: 2550 | K17: 0.02
A18: 4 | B18: Expert Witness costs for regulatory matters
A19: 5 | B19: Legal costs for regulatory matters | C19: 5655
A20: 6 | B20: Consultants & Legal Fees 2013 COS | C20: 5655 | E20: On-Time | H20: 30000 | J20: =G42 -> 13750 | K20: -0.5416666667
A21: 7 | B21: Operating expenses associated with staff Overtime Costs 2013 COS | C21: 5655 | E21: On-Time | H21: 10000 | J21: =G43 -> 2500 | K21: -0.75
A22: 8 | B22: Operating expenses associated with other resources -Board Costs 2013 COS | E22: On-Time | J22: =G44 -> 2500
A23: 9 | B23: Other regulatory agency fees or assessments | C23: 5655 | E23: On-Going | F23: 800 | G23: 800 | H23: 800 | I23: 0 | J23: 800 | K23: 0
A24: 10 | B24: Any other costs for regulatory matters- Notice of Application-Newspapers Costs | C24: 5655 | E24: On-Going | F24: 2060 | G24: 2230 | H24: 2500 | I24: 0.1210762332 | J24: 2550 | K24: 0.02
A25: 11 | B25: Intervenor costs | C25: 5655 | E25: On-Time | F25: 29886 | G25: 0 | J25: =G45 -> 11250
A26: 12 | B26: Sub-total - Ongoing Costs 3 | D26: =SUMIF($E15:$E25,$E11,D15:D25) -> 0 | F26: =SUMIF($E15:$E25,$E11,F15:F25) -> 57632 | G26: =SUMIF($E15:$E25,$E11,G15:G25) -> 58621 | H26: =SUMIF($E15:$E25,$E11,H15:H25) -> 60000 | I26: 0.02352399311 | J26: =SUMIF($E15:$E25,$E11,J15:J25) -> 61184 | K26: 0.01973333333
A27: 13 | B27: Sub-total - One-time Costs 4 | D27: =SUMIF($E15:$E25,$E12,D15:D25) -> 0 | F27: =SUMIF($E15:$E25,$E12,F15:F25) -> 29886 | G27: =SUMIF($E15:$E25,$E12,G15:G25) -> 0 | H27: =SUMIF($E15:$E25,$E12,H15:H25) -> 40000 | J27: =SUMIF($E15:$E25,$E12,J15:J25) -> 30000 | K27: -0.25
A28: 14 | B28: Total | D28: =D26+D27 -> 0 | F28: =F26+F27 -> 87518 | G28: =G26+G27 -> 58621 | H28: =H26+H27 -> 100000 | I28: 0.7058733218 | J28: =J26+J27 -> 91184 | K28: -0.08816
A32: 1 | B32: Please identify the resources involved.
A33: 2 | B33: Where a category's costs include both one-time and ongoing costs, the applicant should prove a separate breakdown between one-time and ongoing costs.
A34: 3 | B34: Sum of all ongoing costs identified in rows 1 to 11 inclusive.
A35: 4 | B35: Sum of all one-time costs identified in rows 1 to 11 inclusive.
A38: Please fill out the following table for all one-time costs related to this cost of service application
C40: Historical Year(s) | D40: =H13 -> 2012 Bridge Year | E40: =J13 -> 2013 Test Year | F40: Total Costs | G40: Cost/4 yrs
A41: 4 | B41: Expert Witness costs for regulatory matters | D41: 0 | E41: 0 | F41: =D41+E41 -> 0 | G41: =F41/4 -> 0
A42: 6 | B42: Consultants & Legals Fees | D42: 30000 | E42: 25000 | F42: =D42+E42 -> 55000 | G42: =F42/4 -> 13750
A43: 7 | B43: Operating expenses associated with staff resources allocated to regulatory matters | D43: 10000 | E43: 0 | F43: =D43+E43 -> 10000 | G43: =F43/4 -> 2500
A44: 8 | B44: Board Costs | D44: 0 | E44: 10000 | F44: =D44+E44 -> 10000 | G44: =F44/4 -> 2500
A45: 11 | B45: Intervenor costs | D45: 0 | E45: 45000 | F45: =D45+E45 -> 45000 | G45: =F45/4 -> 11250
B46: Total Cost | D46: =SUM(D41:D45) -> 40000 | E46: =SUM(E41:E45) -> 80000 | F46: =SUM(F41:F45) -> 120000 | G46: =SUM(G41:G45) -> 30000

Sheet App.2-N_Corp_Cost_Allocation 09
F1: File Number: | G1: ='LDC Info'!$E$18 -> EB-2012-0173
F2: Exhibit: | G2: 4
F3: Tab: | G3: 1
F4: Schedule: | G4: 5
F5: Page: | G5: 2
F7: Date: | G7: Aug 31, 2012
A9: Appendix 2-N
A10: Shared Services and Corporate Cost Allocation
B12: Year: | C12: 2009
A14: Shared Services
A16: Name of Company | C16: Service Offered | D16: Pricing Methdology | E16: Price for the Service | F16: Cost for the Service
A17: From | B17: To
E18: $ | F18: $
A19: Systems Corp | B19: Energy Services | C19: Street Lights Labour | D19: Time Card | E19: =F19*1.07 -> 72896.96 | F19: 68128
A20: Systems Corp | B20: Energy Services | C20: Street Ligths Burden | D20: % Labour | E20: =F20*1.07 -> 36448.48 | F20: 34064
A21: Systems Corp | B21: Energy Services | C21: Material Burden | D21: % Material Issue | E21: =F21*1.07 -> 13315.08 | F21: 12444
A22: Systems Corp | B22: Energy Services | C22: Truck Charges | D22: Time Card | E22: 40110.02 | F22: 37486
C23: Total Street Light | E23: =SUM(E19:E22) -> 162770.54 | F23: =SUM(F19:F22) -> 152122
A25: Systems Corp | B25: Energy Services | C25: Sentinel Lights Labour | D25: Time Card | E25: =F25*1.07 -> 6235.96 | F25: 5828
A26: Systems Corp | B26: Energy Services | C26: Sentinel Lights Burden | D26: % Labour | E26: 2619.36 | F26: 2448
A27: Systems Corp | B27: Energy Services | C27: Material Burden | D27: % Material Issue | E27: 1009.01 | F27: 943
A28: Systems Corp | B28: Energy Services | C28: Truck Charges | D28: Time Card | E28: 3205.72 | F28: 2996
C29: Total Sentinel Light | E29: =SUM(E25:E28) -> 13070.05 | F29: =SUM(F25:F28) -> 12215
D31: Totals | E31: =E23+E29 -> 175840.59 | F31: =F29+F23 -> 164337
A33: Corporate Cost Allocation
A35: Name of Company | C35: Service Offered | D35: Pricing Methdology | E35: % of Corporate Costs Allocated | F35: Amount Allocated
A36: From | B36: To
E37: % | F37: $
A38: Systems Corp | B38: Holding Corp | C38: Administrative | D38: Estimated | E38: 16468 | F38: 16468
A39: Systems Corp | B39: Energy Services | C39: Administrative | D39: Estimated | E39: 8489 | F39: 8489
I43: =F31+F45 -> 189294
I44: ok
D45: Totals | E45: =SUM(E38:E44) -> 24957 | F45: =SUM(F38:F44) -> 24957
A47: Note:
A48: 1 | B48: This appendix must be completed in relation to each service provided or received for the Historical (actuals), Bridge and Test years.

Sheet App.2-N_Corp_Cost_Allocation 10
F1: File Number: | G1: ='LDC Info'!$E$18 -> EB-2012-0173
F2: Exhibit: | G2: 4
F3: Tab: | G3: 1
F4: Schedule: | G4: 5
F5: Page: | G5: 3
F7: Date: | G7: Aug 31, 2012
A9: Appendix 2-N
A10: Shared Services and Corporate Cost Allocation
B12: Year: | C12: 2010
A14: Shared Services
A16: Name of Company | C16: Service Offered | D16: Pricing Methdology | E16: Price for the Service | F16: Cost for the Service
A17: From | B17: To
E18: $ | F18: $
A19: Systems Corp | B19: Energy Services | C19: Street Lights Labour | D19: Time Card | E19: =F19*1.07 -> 75981.77 | F19: 71011
A20: Systems Corp | B20: Energy Services | C20: Street Ligths Burden | D20: % Labour | E20: =F20*1.07 -> 37991.42 | F20: 35506
A21: Systems Corp | B21: Energy Services | C21: Material Burden | D21: % Material Issue | E21: 13097.87 | F21: 12241
A22: Systems Corp | B22: Energy Services | C22: Truck Charges | D22: Time Card | E22: 35830.02 | F22: 33486
C23: Total Street Light | E23: =SUM(E19:E22) -> 162901.08 | F23: =SUM(F19:F22) -> 152244
A25: Systems Corp | B25: Energy Services | C25: Sentinel Lights Labour | D25: Time Card | E25: =F25*1.07 -> 6492.76 | F25: 6068
A26: Systems Corp | B26: Energy Services | C26: Sentinel Lights Burden | D26: % Labour | E26: 3246.38 | F26: 3034
A27: Systems Corp | B27: Energy Services | C27: Material Burden | D27: % Material Issue | E27: 907.36 | F27: 848 | I27: =F31+F45 -> 182485
A28: Systems Corp | B28: Energy Services | C28: Truck Charges | D28: Time Card | E28: 2683.56 | F28: 2508 | I28: ok
C29: Total Sentinel Light | E29: =SUM(E25:E28) -> 13330.06 | F29: =SUM(F25:F28) -> 12458
D31: Totals | E31: =E23+E29 -> 176231.14 | F31: =F29+F23 -> 164702
A33: Corporate Cost Allocation
A35: Name of Company | C35: Service Offered | D35: Pricing Methdology | E35: % of Corporate Costs Allocated | F35: Amount Allocated
A36: From | B36: To
E37: % | F37: $
A38: Systems Corp | B38: Holding Corp | C38: Administrative | D38: Estimated | E38: 10991 | F38: 10991
A39: Systems Corp | B39: Energy Services | C39: Administrative | D39: Estimated | E39: 6792 | F39: 6792
D45: Totals | E45: =SUM(E38:E44) -> 17783 | F45: =SUM(F38:F44) -> 17783
A47: Note:
A48: 1 | B48: This appendix must be completed in relation to each service provided or received for the Historical (actuals), Bridge and Test years.

Sheet App.2-N_Corp_Cost_Allocation 11
F1: File Number: | G1: ='LDC Info'!$E$18 -> EB-2012-0173
F2: Exhibit: | G2: 4
F3: Tab: | G3: 1
F4: Schedule: | G4: 5
F5: Page: | G5: 4
F7: Date: | G7: Aug 31, 2012
A9: Appendix 2-N
A10: Shared Services and Corporate Cost Allocation
B12: Year: | C12: 2011
A14: Shared Services
A16: Name of Company | C16: Service Offered | D16: Pricing Methdology | E16: Price for the Service | F16: Cost for the Service
A17: From | B17: To
E18: $ | F18: $
A19: Systems Corp | B19: Energy Services | C19: Street Lights Labour | D19: Time Card | E19: =F19*1.07 -> 62439.85 | F19: 58355
A20: Systems Corp | B20: Energy Services | C20: Street Ligths Burden | D20: % Labour | E20: =F20*1.07 -> 31220.46 | F20: 29178
A21: Systems Corp | B21: Energy Services | C21: Material Burden | D21: % Material Issue | E21: 6384.69 | F21: 5967
A22: Systems Corp | B22: Energy Services | C22: Truck Charges | D22: Time Card | E22: 26177.55 | F22: 24465
C23: Total Street Light | E23: =SUM(E19:E22) -> 126222.55 | F23: =SUM(F19:F22) -> 117965
A25: Systems Corp | B25: Energy Services | C25: Sentinel Lights Labour | D25: Time Card | E25: =F25*1.07 -> 3245.31 | F25: 3033
A26: Systems Corp | B26: Energy Services | C26: Sentinel Lights Burden | D26: % Labour | E26: 1622.12 | F26: 1516
A27: Systems Corp | B27: Energy Services | C27: Material Burden | D27: % Material Issue | E27: 86.67 | F27: 81
A28: Systems Corp | B28: Energy Services | C28: Truck Charges | D28: Time Card | E28: 1457.34 | F28: 1362
C29: Total Sentinel Light | E29: =SUM(E25:E28) -> 6411.44 | F29: =SUM(F25:F28) -> 5992
D31: Totals | E31: =E23+E29 -> 132633.99 | F31: =F29+F23 -> 123957 | I31: =F31+F45 -> 147236
I32: ok
A33: Corporate Cost Allocation
A35: Name of Company | C35: Service Offered | D35: Pricing Methdology | E35: % of Corporate Costs Allocated | F35: Amount Allocated
A36: From | B36: To
E37: % | F37: $
A38: Systems Corp | B38: Holding Corp | C38: Administrative | D38: Estimated | E38: 16487 | F38: 16487
A39: Systems Corp | B39: Energy Services | C39: Administrative | D39: Estimated | E39: 6792 | F39: 6792
D45: Totals | E45: =SUM(E38:E44) -> 23279 | F45: =SUM(F38:F44) -> 23279
A47: Note:
A48: 1 | B48: This appendix must be completed in relation to each service provided or received for the Historical (actuals), Bridge and Test years.

Sheet App.2-N_Corp_Cost_Allocatio 12
F1: File Number: | G1: ='LDC Info'!$E$18 -> EB-2012-0173
F2: Exhibit: | G2: 4
F3: Tab: | G3: 1
F4: Schedule: | G4: 5
F5: Page: | G5: 5
F7: Date: | G7: Aug 31, 2012
A9: Appendix 2-N
A10: Shared Services and Corporate Cost Allocation
B12: Year: | C12: 2012
A14: Shared Services
A16: Name of Company | C16: Service Offered | D16: Pricing Methdology | E16: Price for the Service | F16: Cost for the Service
A17: From | B17: To
E18: $ | F18: $
A19: Systems Corp | B19: Energy Services | C19: Street Lights Labour | D19: Time Card | E19: =F19*1.07 -> 32117.12 | F19: 30016
A20: Systems Corp | B20: Energy Services | C20: Street Ligths Burden | D20: % Labour | E20: =F20*1.07 -> 15344.87 | F20: 14341
A21: Systems Corp | B21: Energy Services | C21: Material Burden | D21: % Material Issue | E21: 3210 | F21: 3000
A22: Systems Corp | B22: Energy Services | C22: Truck Charges | D22: Time Card | E22: 9879.31 | F22: 9233
C23: Total Street Light | E23: =SUM(E19:E22) -> 60551.3 | F23: =SUM(F19:F22) -> 56590
A25: Systems Corp | B25: Energy Services | C25: Sentinel Lights Labour | D25: Time Card | E25: =F25*1.07 -> 3322.35 | F25: 3105
A26: Systems Corp | B26: Energy Services | C26: Sentinel Lights Burden | D26: % Labour | E26: 1587.88 | F26: 1484
A27: Systems Corp | B27: Energy Services | C27: Material Burden | D27: % Material Issue | E27: 545.7 | F27: 510
A28: Systems Corp | B28: Energy Services | C28: Truck Charges | D28: Time Card | E28: 1457.34 | F28: 1362
C29: Total Sentinel Light | E29: =SUM(E25:E28) -> 6913.27 | F29: =SUM(F25:F28) -> 6461
I30: =F31+F45 -> 86616
D31: Totals | E31: =E23+E29 -> 67464.57 | F31: =F29+F23 -> 63051 | I31: ok
A33: Corporate Cost Allocation
A35: Name of Company | C35: Service Offered | D35: Pricing Methdology | E35: % of Corporate Costs Allocated | F35: Amount Allocated
A36: From | B36: To
E37: % | F37: $
A38: Systems Corp | B38: Holding Corp | C38: Administrative | D38: Estimated | E38: 16690 | F38: 16690
A39: Systems Corp | B39: Energy Services | C39: Administrative | D39: Estimated | E39: 6875 | F39: 6875
D45: Totals | E45: =SUM(E38:E44) -> 23565 | F45: =SUM(F38:F44) -> 23565
A47: Note:
A48: 1 | B48: This appendix must be completed in relation to each service provided or received for the Historical (actuals), Bridge and Test years.

Sheet App.2-N_Corp_Cost_Allocatio 13
F1: File Number: | G1: ='LDC Info'!$E$18 -> EB-2012-0173
F2: Exhibit: | G2: 4
F3: Tab: | G3: 1
F4: Schedule: | G4: 5
F5: Page: | G5: 6
F7: Date: | G7: Aug 31, 2012
A9: Appendix 2-N
A10: Shared Services and Corporate Cost Allocation
B12: Year: | C12: 2013
A14: Shared Services
A16: Name of Company | C16: Service Offered | D16: Pricing Methdology | E16: Price for the Service | F16: Cost for the Service
A17: From | B17: To
E18: $ | F18: $
A19: Systems Corp | B19: Energy Services | C19: Street Lights Labour | D19: Time Card | E19: =F19*1.07 -> 5350 | F19: 5000
A20: Systems Corp | B20: Energy Services | C20: Street Ligths Burden | D20: % Labour | E20: =F20*1.07 -> 2533.76 | F20: 2368
A21: Systems Corp | B21: Energy Services | C21: Material Burden | D21: % Material Issue | E21: 0 | F21: 0
A22: Systems Corp | B22: Energy Services | C22: Truck Charges | D22: Time Card | E22: 0 | F22: 0
C23: Total Street Light | E23: =SUM(E19:E22) -> 7883.76 | F23: =SUM(F19:F22) -> 7368
A25: Systems Corp | B25: Energy Services | C25: Sentinel Lights Labour | D25: Time Card | E25: =F25*1.07 -> 3455.03 | F25: 3229
A26: Systems Corp | B26: Energy Services | C26: Sentinel Lights Burden | D26: % Labour | E26: 1636.03 | F26: 1529
A27: Systems Corp | B27: Energy Services | C27: Material Burden | D27: % Material Issue | E27: 545.7 | F27: 510
A28: Systems Corp | B28: Energy Services | C28: Truck Charges | D28: Time Card | E28: 1501.21 | F28: 1403
C29: Total Sentinel Light | E29: =SUM(E25:E28) -> 7137.97 | F29: =SUM(F25:F28) -> 6671
I30: =F45+F31 -> 38182
D31: Totals | E31: =E23+E29 -> 15021.73 | F31: =F29+F23 -> 14039 | I31: ok
A33: Corporate Cost Allocation
A35: Name of Company | C35: Service Offered | D35: Pricing Methdology | E35: % of Corporate Costs Allocated | F35: Amount Allocated
A36: From | B36: To
E37: % | F37: $
A38: Systems Corp | B38: Holding Corp | C38: Administrative | D38: Estimated | E38: 17099 | F38: 17099
A39: Systems Corp | B39: Energy Services | C39: Administrative | D39: Estimated | E39: 7044 | F39: 7044
E45: =SUM(E38:E44) -> 24143 | F45: =SUM(F38:F44) -> 24143
A47: Note:
A48: 1 | B48: This appendix must be completed in relation to each service provided or received for the Historical (actuals), Bridge and Test years.

Sheet App.2-OA Capital Structure 09
K1: File Number: | O1: ='LDC Info'!$E$18 -> EB-2012-0173
K2: Exhibit: | O2: 5
K3: Tab: | O3: 1
K4: Schedule: | O4: 1
K5: Page: | O5: 2
K7: Date: | O7: August 31, 2012
C10: Appendix 2-OA
C11: Capital Structure and Cost of Capital-2009
A13: This table must be completed for the required years of all historical years, the bridge year and the test year.
A15: Line No.
C16: Particulars | E16: Capitalization Ratio | K16: Cost Rate | O16: Return
C19: Application
E20: (%) | I20: ($) | K20: (%) | O20: ($)
C21: Debt
A22: 1 | C22: Long-term Debt | E22: 0.527 | I22: =$I$31*E22 -> 13873327.7 | K22: 0.0762 | O22: =K22*I22 -> 1057147.571
A23: 2 | C23: Short-term Debt | E23: 0.04 | G23: (1) | I23: =$I$31*E23 -> 1053004 | K23: 0.0133 | O23: =K23*I23 -> 14004.9532
A24: 3 | C24: Total Debt | E24: =SUM(E22:E23) -> 0.567 | I24: =SUM(I22:I23) -> 14926331.7 | K24: =IF(E24=0,0,SUMPRODUCT(E22:E23,K22:K23)/E24) -> 0.07176261023 | O24: =SUM(O22:O23) -> 1071152.524
C26: Equity
A27: 4 | C27: Common Equity | E27: 0.433 | I27: =$I$31*E27 -> 11398768.3 | K27: 0.0801 | O27: =K27*I27 -> 913041.3408
A28: 5 | C28: Preferred Shares | I28: =$I$31*E28 -> 0 | O28: =K28*I28 -> 0
A29: 6 | C29: Total Equity | E29: =SUM(E27:E28) -> 0.433 | I29: =SUM(I27:I28) -> 11398768.3 | K29: =IF(E29=0,0,SUMPRODUCT(E27:E28,K27:K28)/E29) -> 0.0801 | O29: =SUM(O27:O28) -> 913041.3408
A31: 7 | C31: Total | E31: =E24+E29 -> 1 | I31: 26325100 | K31: =(K24*E24)+(K29*E29) -> 0.0753727 | O31: =O24+O29 -> 1984193.865
A34: Notes
A35: (1) | C35: 4.0% unless an applicant has proposed or been approved for a different amount.

Sheet App.2-OA Capital Structure 10
K1: File Number: | O1: ='LDC Info'!$E$18 -> EB-2012-0173
K2: Exhibit: | O2: 5
K3: Tab: | O3: 1
K4: Schedule: | O4: 1
K5: Page: | O5: 3
K7: Date: | O7: August 31, 2012
C10: Appendix 2-OA
C11: Capital Structure and Cost of Capital-2010
A13: This table must be completed for the required years of all historical years, the bridge year and the test year.
A15: Line No.
C16: Particulars | E16: Capitalization Ratio | K16: Cost Rate | O16: Return
C19: Application
E20: (%) | I20: ($) | K20: (%) | O20: ($)
C21: Debt
A22: 1 | C22: Long-term Debt | E22: 0.56 | I22: =$I$31*E22 -> 15379673.12 | K22: 0.0762 | O22: =K22*I22 -> 1171931.092
A23: 2 | C23: Short-term Debt | E23: 0.04 | G23: (1) | I23: =$I$31*E23 -> 1098548.08 | K23: 0.0133 | O23: =K23*I23 -> 14610.68946
A24: 3 | C24: Total Debt | E24: =SUM(E22:E23) -> 0.6 | I24: =SUM(I22:I23) -> 16478221.2 | K24: =IF(E24=0,0,SUMPRODUCT(E22:E23,K22:K23)/E24) -> 0.07200666667 | O24: =SUM(O22:O23) -> 1186541.781
C26: Equity
A27: 4 | C27: Common Equity | E27: 0.4 | I27: =$I$31*E27 -> 10985480.8 | K27: 0.0801 | O27: =K27*I27 -> 879937.0121
A28: 5 | C28: Preferred Shares | I28: =$I$31*E28 -> 0 | O28: =K28*I28 -> 0
A29: 6 | C29: Total Equity | E29: =SUM(E27:E28) -> 0.4 | I29: =SUM(I27:I28) -> 10985480.8 | K29: =IF(E29=0,0,SUMPRODUCT(E27:E28,K27:K28)/E29) -> 0.0801 | O29: =SUM(O27:O28) -> 879937.0121
A31: 7 | C31: Total | E31: =E24+E29 -> 1 | I31: 27463702 | K31: =(K24*E24)+(K29*E29) -> 0.075244 | O31: =O24+O29 -> 2066478.793
A34: Notes
A35: (1) | C35: 4.0% unless an applicant has proposed or been approved for a different amount.

Sheet App.2-OA Capital Structure 11
K1: File Number: | O1: ='LDC Info'!$E$18 -> EB-2012-0173
K2: Exhibit: | O2: 5
K3: Tab: | O3: 1
K4: Schedule: | O4: 1
K5: Page: | O5: 4
K7: Date: | O7: August 31, 2012
C10: Appendix 2-OA
C11: Capital Structure and Cost of Capital-2011
A13: This table must be completed for the required years of all historical years, the bridge year and the test year.
A15: Line No.
C16: Particulars | E16: Capitalization Ratio | K16: Cost Rate | O16: Return
C19: Application
E20: (%) | I20: ($) | K20: (%) | O20: ($)
C21: Debt
A22: 1 | C22: Long-term Debt | E22: 0.56 | I22: =$I$31*E22 -> 16058659.12 | K22: 0.0762 | O22: =K22*I22 -> 1223669.825
A23: 2 | C23: Short-term Debt | E23: 0.04 | G23: (1) | I23: =$I$31*E23 -> 1147047.08 | K23: 0.0133 | O23: =K23*I23 -> 15255.72616
A24: 3 | C24: Total Debt | E24: =SUM(E22:E23) -> 0.6 | I24: =SUM(I22:I23) -> 17205706.2 | K24: =IF(E24=0,0,SUMPRODUCT(E22:E23,K22:K23)/E24) -> 0.07200666667 | O24: =SUM(O22:O23) -> 1238925.551
C26: Equity
A27: 4 | C27: Common Equity | E27: 0.4 | I27: =$I$31*E27 -> 11470470.8 | K27: 0.0801 | O27: =K27*I27 -> 918784.7111
A28: 5 | C28: Preferred Shares | I28: =$I$31*E28 -> 0 | O28: =K28*I28 -> 0
A29: 6 | C29: Total Equity | E29: =SUM(E27:E28) -> 0.4 | I29: =SUM(I27:I28) -> 11470470.8 | K29: =IF(E29=0,0,SUMPRODUCT(E27:E28,K27:K28)/E29) -> 0.0801 | O29: =SUM(O27:O28) -> 918784.7111
A31: 7 | C31: Total | E31: =E24+E29 -> 1 | I31: 28676177 | K31: =(K24*E24)+(K29*E29) -> 0.075244 | O31: =O24+O29 -> 2157710.262
A34: Notes
A35: (1) | C35: 4.0% unless an applicant has proposed or been approved for a different amount.

Sheet App.2-OA Capital Structure 12
K1: File Number: | O1: ='LDC Info'!$E$18 -> EB-2012-0173
K2: Exhibit: | O2: 5
K3: Tab: | O3: 1
K4: Schedule: | O4: 1
K5: Page: | O5: 5
K7: Date: | O7: August 31, 2012
C10: Appendix 2-OA
C11: Capital Structure and Cost of Capital-2012 Bridge Year
A13: This table must be completed for the required years of all historical years, the bridge year and the test year.
A15: Line No.
C16: Particulars | E16: Capitalization Ratio | K16: Cost Rate | O16: Return
C19: Application
E20: (%) | I20: ($) | K20: (%) | O20: ($)
C21: Debt
A22: 1 | C22: Long-term Debt | E22: 0.56 | I22: =$I$31*E22 -> 17988412.4 | K22: 0.0762 | O22: =K22*I22 -> 1370717.025
A23: 2 | C23: Short-term Debt | E23: 0.04 | G23: (1) | I23: =$I$31*E23 -> 1284886.6 | K23: 0.0133 | O23: =K23*I23 -> 17088.99178
A24: 3 | C24: Total Debt | E24: =SUM(E22:E23) -> 0.6 | I24: =SUM(I22:I23) -> 19273299 | K24: =IF(E24=0,0,SUMPRODUCT(E22:E23,K22:K23)/E24) -> 0.07200666667 | O24: =SUM(O22:O23) -> 1387806.017
C26: Equity
A27: 4 | C27: Common Equity | E27: 0.4 | I27: =$I$31*E27 -> 12848866 | K27: 0.0801 | O27: =K27*I27 -> 1029194.167
A28: 5 | C28: Preferred Shares | I28: =$I$31*E28 -> 0 | O28: =K28*I28 -> 0
A29: 6 | C29: Total Equity | E29: =SUM(E27:E28) -> 0.4 | I29: =SUM(I27:I28) -> 12848866 | K29: =IF(E29=0,0,SUMPRODUCT(E27:E28,K27:K28)/E29) -> 0.0801 | O29: =SUM(O27:O28) -> 1029194.167
A31: 7 | C31: Total | E31: =E24+E29 -> 1 | I31: 32122165 | K31: =(K24*E24)+(K29*E29) -> 0.075244 | O31: =O24+O29 -> 2417000.183
A34: Notes
A35: (1) | C35: 4.0% unless an applicant has proposed or been approved for a different amount.

Sheet App.2-OA Capital Structure 13
K1: File Number: | O1: ='LDC Info'!$E$18 -> EB-2012-0173
K2: Exhibit: | O2: 5
K3: Tab: | O3: 1
K4: Schedule: | O4: 1
K5: Page: | O5: 6
K7: Date: | O7: August 31, 2012
C10: Appendix 2-OA
C11: Capital Structure and Cost of Capital-2013 Test Year
A13: This table must be completed for the required years of all historical years, the bridge year and the test year.
A15: Line No.
C16: Particulars | E16: Capitalization Ratio | K16: Cost Rate | O16: Return
C19: Application
E20: (%) | I20: ($) | K20: (%) | O20: ($)
C21: Debt
A22: 1 | C22: Long-term Debt | E22: 0.56 | I22: =$I$31*E22 -> 17604085.52 | K22: 0.0378 | O22: =K22*I22 -> 665434.4327
A23: 2 | C23: Short-term Debt | E23: 0.04 | G23: (1) | I23: =$I$31*E23 -> 1257434.68 | K23: 0.0208 | O23: =K23*I23 -> 26154.64134
A24: 3 | C24: Total Debt | E24: =SUM(E22:E23) -> 0.6 | I24: =SUM(I22:I23) -> 18861520.2 | K24: =IF(E24=0,0,SUMPRODUCT(E22:E23,K22:K23)/E24) -> 0.03666666667 | O24: =SUM(O22:O23) -> 691589.074
C26: Equity
A27: 4 | C27: Common Equity | E27: 0.4 | I27: =$I$31*E27 -> 12574346.8 | K27: 0.0893 | O27: =K27*I27 -> 1122889.169
A28: 5 | C28: Preferred Shares | I28: =$I$31*E28 -> 0 | O28: =K28*I28 -> 0
A29: 6 | C29: Total Equity | E29: =SUM(E27:E28) -> 0.4 | I29: =SUM(I27:I28) -> 12574346.8 | K29: =IF(E29=0,0,SUMPRODUCT(E27:E28,K27:K28)/E29) -> 0.0893 | O29: =SUM(O27:O28) -> 1122889.169
A31: 7 | C31: Total | E31: =E24+E29 -> 1 | I31: 31435867 | K31: =(K24*E24)+(K29*E29) -> 0.05772 | O31: =O24+O29 -> 1814478.243
A34: Notes
A35: (1) | C35: 4.0% unless an applicant has proposed or been approved for a different amount.

Sheet App.2-OB_Debt Instruments 09
J1: File Number: | K1: ='LDC Info'!$E$18 -> EB-2012-0173
J2: Exhibit: | K2: 5
J3: Tab: | K3: 1
J4: Schedule: | K4: 1
J5: Page: | K5: 7
J7: Date: | K7: August 31, 2012
A10: Appendix 2-OB
A11: Debt Instruments
A13: This table must be completed for the required years of all historical years, the bridge year and the test year.
C14: 2009 to 2011 Years
A16: Row | B16: Description | C16: Lender | D16: Affiliated or Third-Party Debt? | E16: Fixed or Variable-Rate? | F16: Start Date | G16: Term (years) | H16: Principal ($) | I16: Rate (%) (Note 2) | J16: Interest ($) (Note 1)
A17: 1 | B17: Long Term Note Payable | C17: City of Welland | D17: Affiliated | E17: Fixed Rate | F17: 2005-10-16 | H17: 13499953 | I17: 0.0762 | J17: =H17*I17 -> 1028696.419 | K17: Actual Rate 6.25%
A18: 2 | B18: Long Term Loan | C18: TD Securities | D18: Third-Party | E18: Fixed Rate | F18: 2009-02-06 | G18: 5 | H18: 3700000 | I18: 0.0287 | J18: =H18*I18 -> 106190 | K18: Swap - Fixed Rate
A19: 3 | J19: 0
A20: 4 | J20: 0
A21: 5 | J21: 0
A22: 6 | J22: 0
A23: 7 | J23: 0
A24: 8 | J24: 0
A25: 9 | J25: 0
A26: 10 | J26: 0
A27: 11 | J27: 0
A28: 12 | J28: 0
A30: Total | H30: =SUM(H17:H28) -> 17199953 | I30: =IF(H30=0,"",J30/H30) -> 0.06598194882 | J30: =SUM(J17:J28) -> 1134886.419
A32: Notes
A34: 1 | B34: If financing is in place only part of the year, calculate the pro-rated interest and input in the cell.
A35: 2 | B35: Input actual or deemed long-term debt rate in accordance with the guidelines in The Report of the Board on the Cost of Capital for Ontario's Regulated Utilities, issued December 11, 2009
A36: 3 | B36: Add more lines above row 12 if necessary.

Sheet App.2-OB_Debt Instruments 12
J1: File Number: | K1: ='LDC Info'!$E$18 -> EB-2012-0173
J2: Exhibit: | K2: 5
J3: Tab: | K3: 1
J4: Schedule: | K4: 1
J5: Page: | K5: 8
J7: Date: | K7: August 31, 2012
A10: Appendix 2-OB
A11: Debt Instruments
A13: This table must be completed for the required years of all historical years, the bridge year and the test year.
D14: Bridge Year | E14: 2012
A16: Row | B16: Description | C16: Lender | D16: Affiliated or Third-Party Debt? | E16: Fixed or Variable-Rate? | F16: Start Date | G16: Term (years) | H16: Principal ($) | I16: Rate (%) (Note 2) | J16: Interest ($) (Note 1)
A17: 1 | B17: Long Term Note Payable | C17: City of Welland | D17: Affiliated | E17: Fixed Rate | F17: 2005-10-16 | H17: 13499953 | I17: 0.0762 | J17: =H17*I17 -> 1028696.419 | K17: Actual Rate 6.25%
A18: 2 | B18: Long Term Loan | C18: TD Securities | D18: Third-Party | E18: Fixed Rate | F18: 2009-02-06 | G18: 5 | H18: 3700000 | I18: 0.0287 | J18: =H18*I18 -> 106190 | K18: Swap - Fixed Rate
A19: 3 | J19: 0
A20: 4 | J20: 0
A21: 5 | J21: 0
A22: 6 | J22: 0
A23: 7 | J23: 0
A24: 8 | J24: 0
A25: 9 | J25: 0
A26: 10 | J26: 0
A27: 11 | J27: 0
A28: 12 | J28: 0
A30: Total | H30: =SUM(H17:H28) -> 17199953 | I30: =IF(H30=0,"",J30/H30) -> 0.06598194882 | J30: =SUM(J17:J28) -> 1134886.419
A32: Notes
A34: 1 | B34: If financing is in place only part of the year, calculate the pro-rated interest and input in the cell.
A35: 2 | B35: Input actual or deemed long-term debt rate in accordance with the guidelines in The Report of the Board on the Cost of Capital for Ontario's Regulated Utilities, issued December 11, 2009
A36: 3 | B36: Add more lines above row 12 if necessary.

Sheet App.2-OB_Debt Instruments 13
J1: File Number: | K1: ='LDC Info'!$E$18 -> EB-2012-0173
J2: Exhibit: | K2: 5
J3: Tab: | K3: 1
J4: Schedule: | K4: 1
J5: Page: | K5: 9
J7: Date: | K7: August 31, 2012
A10: Appendix 2-OB
A11: Debt Instruments
A13: This table must be completed for the required years of all historical years, the bridge year and the test year.
D14: Test Year | E14: 2013
A16: Row | B16: Description | C16: Lender | D16: Affiliated or Third-Party Debt? | E16: Fixed or Variable-Rate? | F16: Start Date | G16: Term (years) | H16: Principal ($) | I16: Rate (%) (Note 2) | J16: Interest ($) (Note 1)
A17: 1 | B17: Long Term Note Payable | C17: City of Welland | D17: Affiliated | E17: Fixed Rate | F17: 2005-10-16 | H17: 13499953 | I17: 0.0403 | J17: =H17*I17 -> 544048.1059 | K17: Actual Rate 6.25%
A18: 2 | B18: Long Term Loan | C18: TD Securities | D18: Third-Party | E18: Fixed Rate | F18: 2009-02-06 | G18: 5 | H18: 3700000 | I18: 0.0287 | J18: =H18*I18 -> 106190 | K18: Swap - Fixed Rate
A19: 3 | J19: 0
A20: 4 | J20: 0
A21: 5 | J21: 0
A22: 6 | J22: 0
A23: 7 | J23: 0
A24: 8 | J24: 0
A25: 9 | J25: 0
A26: 10 | J26: 0
A27: 11 | J27: 0
A28: 12 | J28: 0
A30: Total | H30: =SUM(H17:H28) -> 17199953 | I30: =IF(H30=0,"",J30/H30) -> 0.03780464434 | J30: =SUM(J17:J28) -> 650238.1059
A32: Notes
A34: 1 | B34: If financing is in place only part of the year, calculate the pro-rated interest and input in the cell.
A35: 2 | B35: Input actual or deemed long-term debt rate in accordance with the guidelines in The Report of the Board on the Cost of Capital for Ontario's Regulated Utilities, issued December 11, 2009
A36: 3 | B36: Add more lines above row 12 if necessary.

Sheet App.2-P_Cost_Allocation
E1: File Number: | F1: ='LDC Info'!$E$18 -> EB-2012-0173
E2: Exhibit: | F2: 7
E3: Tab: | F3: 1
E4: Schedule: | F4: 2
E5: Page: | F5: 6 & 7 of 7
E7: Date: | F7: Aug 31, 2012
A9: Appendix 2-P
A10: Cost Allocation
A12: Please complete the following four tables.
A14: A) Allocated Costs
A16: Classes | B16: Costs Allocated from Previous Study | C16: % | D16: Costs Allocated in Test Year Study (Column 7A) | E16: %
A17: Residential | B17: 4427397 | C17: =IF(B$27=0,"",B17/B$27) -> 0.5835049622 | D17: 5998831 | E17: =IF(D$27=0,"",D17/D$27) -> 0.6457272138
A18: GS < 50 kW | B18: 1115311 | C18: 0.1469914496 | D18: 1118010 | E18: 0.1203450276
A19: GS > 50 to 4999 kW | B19: 1344754 | C19: 0.1772306915 | D19: 1806382 | E19: 0.1944428866
A20: Large User, if applicable | B20: 182588 | C20: 0.0240640277 | D20: 101544 | E20: 0.01093041698
A21: Street Lighting | B21: 429341 | C21: 0.05658462613 | D21: 187006 | E21: 0.0201297325
A22: Sentinel Lighting | B22: 48748 | C22: 0.006424700541 | D22: 39282 | E22: 0.004228399902
A23: Unmetered Scattered Load (USL) | B23: 39452 | C23: 0.005199542253 | D23: 38984 | E23: 0.004196322534
A24: Other class, if applicable | C24: 0 | E24: 0
C25: 0 | E25: 0
A26: Embedded distributor class | C26: 0 | E26: 0
A27: Total | B27: =SUM(B17:B26) -> 7587591 | C27: =SUM(C17:C26) -> 1 | D27: =SUM(D17:D26) -> 9290039 | E27: =SUM(E17:E26) -> 1
A29: Notes
A31: 1 Customer Classification - If proposed rate classes differ from those in place in the previous Cost Allocation study, modify the rate classes to match the current application as closely as possible.
A34: 2 Host Distributors - Provide information on embedded distributor(s) as a separate class, if applicable. If embedded distributor(s) are billed as customers in a General Service class, include the allocated cost and revenue of the embedded distributor(s) in the applicable class. Also complete Appendix 2-Q.
A38: 3 Class Revenue Requirements - If using the Board-issued model, in column 7A enter the results from Worksheet O-1, Revenue Requirement (row 40 in the 2013 model). This excludes costs in deferral and variance accounts. Note to Embedded Distributor(s), it also does not include Account 4750 - Low Voltage (LV) Costs.
A42: B) Calculated Class Revenues
C44: Column 7B | D44: Column 7C | E44: Column 7D | F44: Column 7E
A45: Classes (same as previous table) | C45: Load Forecast (LF) X current approved rates | D45: L.F. X current approved rates X (1 + d) | E45: LF X proposed rates | F45: Miscellaneous Revenue
A47: =A17 -> Residential | C47: =4057795+2292174 -> 6349969 | D47: 6145770 | E47: 6007416 | F47: 379785
A48: =A18 -> GS < 50 kW | C48: =585120+465669-11558 -> 1039231 | D48: 1005810 | E48: =1005810 -> 1005810 | F48: 68092
A49: =A19 -> GS > 50 to 4999 kW | C49: =688486+553532-128634 -> 1113384 | D49: 1077580 | E49: =1342766 -> 1342766 | F49: 102339
A50: =A20 -> Large User, if applicable | C50: =155834+145251-118173 -> 182912 | D50: 177030 | E50: =108118 -> 108118 | F50: 0
A51: Street Lighting | C51: =203310+37553 -> 240863 | D51: 233118 | E51: 181212 | F51: 17901
A52: Sentinel Lighting | C52: =18184+13615 -> 31799 | D52: 30777 | E52: 30776 | F52: 4315
A53: Unmetered Scattered Load (USL) | C53: =36558+9890 -> 46448 | D53: 44954 | E53: 38941 | F53: 2568
A54: Other class, if applicable
A56: =A26 -> Embedded distributor class
A57: =A27 -> Total | C57: =SUM(C47:C56) -> 9004606 | D57: =SUM(D47:D56) -> 8715039 | E57: =SUM(E47:E56) -> 8715039 | F57: =SUM(F47:F56) -> 575000
A59: Notes:
A61: 1 Columns 7B to 7D - LF means Load Forecast of Annual Billing Quantities (i.e. customers or connections X 12, (kWh or kW, as applicable). Revenue Quantities should be net of Transfomrer Ownership Allowance. Exclude revenue from rate adders and rate riders.
A64: 2 Columns 7C and 7D - Column total in each column should equal the Base Revenue Requirement
A66: 3 Columns 7C - The Board cost allocation model calculates "1+d" in worksheet O-1, cell C21. "d" is defined as Revenue Deficiency/ Revenue at Current Rates.
A69: 4 Columns 7E - If using the Board-issued Cost Allocation model, enter Miscellaneous Revenue as it appears in Worksheet O-1, row 19.
A72: C) Rebalancing Revenue-to-Cost (R/C) Ratios
A74: Class | C74: Previously Approved Ratios | D74: Status Quo Ratios | E74: Proposed Ratios | F74: Policy Range
C75: Most Recent Year: | D75: (7C + 7E) / (7A) | E75: (7D + 7E) / (7A)
C76: 2010
C77: % | D77: % | E77: % | F77: %
A78: =A47 -> Residential | C78: 115.19 | D78: =IF(D17=0,"",(D47+F47)/D17*100) -> 108.7804441 | E78: =IF(D17=0,"",(E47+F47)/D17*100) -> 106.4740947 | F78: 85 - 115
A79: =A48 -> GS < 50 kW | C79: 80.05 | D79: 96.0547759 | E79: 96.0547759 | F79: 80 - 120
A80: =A49 -> GS > 50 to 4999 kW | C80: 80 | D80: 65.31946177 | E80: 79.99996678 | F80: 80 - 120
A81: =A50 -> Large User, if applicable | C81: 100.74 | D81: 174.3382179 | E81: 106.4740408 | F81: 85 - 115
A82: Street Lighting | C82: 70 | D82: 134.2304525 | E82: 106.4741238 | F82: 70 - 120
A83: Sentinel Lighting | C83: 70 | D83: 89.33353699 | E83: 89.33099129 | F83: 80 - 120
A84: Unmetered Scattered Load (USL) | C84: 101.44 | D84: 121.9012928 | E84: 106.4770162 | F84: 80 - 120
A85: Other class, if applicable
A87: =A56 -> Embedded distributor class
A89: Notes
A91: 1 Previously Approved Revenue-to-Cost Ratios - For most applicants, Most Recent Year would be the third year of the IRM 3 period, e.g. if the applicant rebased in 2009 with further adjustments over 2 years, the Most recent year is 2011. For applicants that have had rates adjusted only under IRM 2, the Most Recent Year is 2006, and the applicant should enter the ratios from their Informational Filing.
A94: 2 Status Quo Ratios - The Board's updated Cost Allocation Model yields the Status Quo Ratios in Worksheet O-1. Status Quo means "Before Rebalancing".
A96: D) Proposed Revenue-to-Cost Ratios
A98: Class | C98: Proposed Revenue-to-Cost Ratios | F98: Policy Range
C99: 2013 | D99: 2014 | E99: 2015
C100: % | D100: % | E100: % | F100: %
A101: =A78 -> Residential | C101: =E78 -> 106.4740947 | D101: 106.87 | E101: 106.87 | F101: =F78 -> 85 - 115
A102: =A79 -> GS < 50 kW | C102: =E79 -> 96.0547759 | D102: 95.13 | E102: 95.13 | F102: =F79 -> 80 - 120
A103: =A80 -> GS > 50 to 4999 kW | C103: =E80 -> 79.99996678 | D103: 80 | E103: 80 | F103: =F80 -> 80 - 120
A104: =A81 -> Large User, if applicable | C104: =E81 -> 106.4740408 | D104: 106.87 | E104: 106.87 | F104: =F81 -> 85 - 115
A105: Street Lighting | C105: 106.4741238 | D105: 106.87 | E105: 106.87 | F105: 70 - 120
A106: Sentinel Lighting | C106: 89.33099129 | D106: 106.87 | E106: 106.87 | F106: 80 - 120
A107: Unmetered Scattered Load (USL) | C107: 106.4770162 | D107: 106.87 | E107: 106.87 | F107: 80 - 120
A108: Other class, if applicable | F108: =F85 -> 0
F109: =F86 -> 0
A110: Embedded distributor class
A112: Note
A113: 1 The applicant should complete Table D if it is applying for approval of a revenue to cost ratio in 2012 that is outside the Board’s policy range for any customer class. Table (d) will show the information that the distributor would likely enter in the IRM model) in 2013. In 2013 Table (d), enter the planned ratios for the classes that will be ‘Change’ and ‘No Change’ in 2013 (in the current Revenue Cost Ratio Adjustment Workform, Worksheet C1.1 ‘Decision – Cost Revenue Adjustment’, column d), and enter TBD for class(es) that will be entered as ‘Rebalance’.

Sheet App.2-Q_Cost of Serv. Emb. Dx (hidden)
F1: File Number: | G1: ='LDC Info'!$E$18 -> EB-2012-0173
F2: Exhibit:
F3: Tab:
F4: Schedule:
F5: Page:
F7: Date:
A9: Appendix 2-Q
A10: Cost of Serving Embedded Distributor(s)
A12: To be completed by Host Distributors*
A13: (Not required if Host Distributor has an Embedded Distributor rate class, i.e. a separate row in Appendix 2-P.)
A17: Proposed Rate Class for Billing Embedded Distributor(s)
A19: Host's Distribution Facilities used by Embedded Distributor(s)
A21: (1) | B21: (2) | C21: (3) | D21: (4) | E21: (5) | F21: (6) = '(3) + (4)
A22: Asset Class | B22: Total OM&A costs asociated with asset class | C22: Original cost of asset class | D22: Accumulated amortization of asset class | E22: Annual amortization of asset class | F22: Net Book Value of asset class
A23: Totals for Host Distributor: | B23: ($) | C23: ($) | D23: ($) | E23: ($)
A24: Distribution Stations | F24: =C24+D24 -> 0
A25: Low Voltage Line | F25: 0
A26: LV Line category # 2 (if applcable) | F26: 0
A27: TS (owned by host) | F27: 0
A28: add rows if necessary... | F28: 0
F29: 0
F30: 0
A32: (1) | B32: (7) | C32: (8) | D32: (9) | E32: (10) | F32: (11)
A33: =A22 -> Asset Class | B33: Total line length or station capacity in asset class | C33: Line length or capacity required to provide LV service to Embedded Distributor(s) | D33: Annual total demand on station/line providing LV services (sum of 12 monthly peaks) | E33: Annual billed Embedded Distributor demand on station/line providing LV services | F33: Embedded Distributor(s)' Responsibility Share
A34: Embedded Distributor's share: | B34: kW or kVa; km | C34: kW or kVA; km | D34: kW or kVA | E34: kW or kVA | F34: percent
A35: Distribution Stations | F35: =IF(D35=0,0,(C35/B35)*(E35/D35)) -> 0
A36: Low Voltage Line | F36: =IF(D36=0,0,(C36/B36)*(E36/D36)) -> 0
A37: LV Line # 2 (if applicable) | F37: =IF(D37=0,0,(C37/B37)*(E37/D37)) -> 0
A38: TS (owned by host) | F38: =IF(D38=0,0,(C38/B38)*(E38/D38)) -> 0
A39: add rows if necessary | F39: =IF(D39=0,0,(C39/B39)*(E39/D39)) -> 0
A41: (1) | B41: (12) | C41: (12a) | D41: (13) | E41: (14) | F41: (15) | G41: (16)
A42: =A33 -> Asset Class | B42: Return on Assets used to Provide LV services | C42: Taxes/PILs | D42: Annual amortization on assets used to provide LV services | E42: OM&A costs with burden associated with assets used to provide LV services | F42: Total annual cost associated with assets used to provide LV services | G42: Monthly cost associated with the delivery of LV services
B43: ($) | C43: ($) | D43: ($) | E43: ($) | F43: ($) | G43: $/kW or $/kVA
A44: Distribution Stations | B44: =E$55*(F24+B24*E$60)*F35 -> 0 | C44: =(B44-(B$55*C$55*F35*(F24+B24*E58)+B$56*C$56*F35*(F24+B24*E$58)))*E$58/(1-E$58) -> 0 | D44: =E24*F35 -> 0 | E44: =B24*F35 -> 0 | F44: =SUM(B44:E44) -> 0 | G44: =IF(E35=0,0,(D44/E35)) -> 0
A45: Low Voltage Line | B45: =E$55*(F25+B25*E$60)*F36 -> 0 | C45: =(B45-(B$55*C$55*F36*(F25+B25*E59)+B$56*C$56*F36*(F25+B25*E59)))*E$58/(1-E$58) -> 0 | D45: =E25*F36 -> 0 | E45: =B25*F36 -> 0 | F45: =SUM(B45:E45) -> 0 | G45: =IF(E36=0,0,(D45/E36)) -> 0
A46: LV Line # 2 (if applicable) | B46: =E$55*(F26+B26*E$60)*F37 -> 0 | C46: =(B46-(B$55*C$55*F37*(F26+B26*E60)+B$56*C$56*F37*(F26+B26*E$60)))*E$58/(1-E$58) -> 0 | D46: =E26*F37 -> 0 | E46: =B26*F37 -> 0 | F46: =SUM(B46:E46) -> 0 | G46: =IF(E37=0,0,(D46/E37)) -> 0
A47: TS (owned by host) | B47: =E$55*(F27+B27*E$60)*F38 -> 0 | C47: =(B47-(B$55*C$55*F38*(F27+B27*E61)+B$56*C$56*F38*(F27+B27*E61)))*E$58/(1-E$58) -> 0 | D47: =E27*F38 -> 0 | E47: =B27*F38 -> 0 | F47: =SUM(B47:E47) -> 0 | G47: =IF(E38=0,0,(D47/E38)) -> 0
A48: add rows if necessary | B48: =E$55*(F28+B28*E$60)*F39 -> 0 | C48: =(B48-(B$55*C$55*F39*(F28+B28*I62)+B$56*C$56*F39*(F28+B28*I62)))*E$58/(1-E$58) -> 0 | D48: =E28*F39 -> 0 | E48: =B28*F39 -> 0 | F48: =SUM(B48:E48) -> 0 | G48: =IF(E39=0,0,(D48/E39)) -> 0
A50: Total | F50: =SUM(F44:F48) -> 0 | G50: =SUM(G44:G48) -> 0
A52: (17) | B52: (18) | C52: (19) | D52: (20) | E52: (21)
B53: Capital Structure | C53: Cost Rate
B54: (%) | C54: (%) | E54: (%)
A55: Long-Term Debt | D55: Weighted Average Cost of Capital | E55: =IF(B61=0%,0,SUMPRODUCT(B55:B59,C55:C59)/B61) -> 0
A56: Short-term Debt
A58: Common Equity | D58: Tax/PILs Rate
A59: Preferred Shares
D60: Working Capital Allowance Factor
A61: Total | B61: =SUM(B55:B59) -> 0

Sheet App.2-R_Loss Factors
G1: File Number: | H1: ='LDC Info'!$E$18 -> EB-2012-0173
G2: Exhibit: | H2: 8
G3: Tab: | H3: 1
G4: Schedule: | H4: 5
G5: Page: | H5: 2 of 2
G7: Date: | H7: Aug 31, 2012
A9: Appendix 2-R
A10: Loss Factors
C14: Historical Years | H14: 5-Year Average
C15: =IF(ISBLANK('LDC Info'!E26-5), "Year 5", 'LDC Info'!E26-5) -> 2007 | D15: =IF(ISBLANK('LDC Info'!E26-4), "Year 5", 'LDC Info'!E26-4) -> 2008 | E15: =IF(ISBLANK('LDC Info'!E26-3), "Year 5", 'LDC Info'!E26-3) -> 2009 | F15: =IF(ISBLANK('LDC Info'!E26-2), "Year 5", 'LDC Info'!E26-2) -> 2010 | G15: =IF(ISBLANK('LDC Info'!E26-1), "Year 5", 'LDC Info'!E26-1) -> 2011
B16: Losses Within Distributor's System
A17: A(1) | B17: "Wholesale" kWh delivered to distributor (higher value) | C17: 493927030 | D17: 487062910 | E17: 419617213 | F17: 443594623 | G17: 452100623 | H17: =IF(SUM(C17:G17)=0,0,AVERAGE(C17:G17)) -> 459260479.8
A18: A(2) | B18: "Wholesale" kWh delivered to distributor (lower value) | C18: =C17/1.0045 -> 491714315.6 | D18: =D17/1.0045 -> 484880945.7 | E18: 417737394.7 | F18: 441607389.7 | G18: 450075284.2 | H18: =IF(SUM(C18:G18)=0,0,AVERAGE(C18:G18)) -> 457203066
A19: B | B19: Portion of "Wholesale" kWh delivered to distributor for its Large Use Customer(s) | C19: =C22*1.01 -> 84878748.65 | D19: =D22*1.01 -> 103613833.5 | E19: 52428320.28 | F19: 59291406.63 | G19: 60593426.92 | H19: =IF(SUM(C19:G19)=0,0,AVERAGE(C19:G19)) -> 72161147.2
A20: C | B20: Net "Wholesale" kWh delivered to distributor = A(2) - B | C20: =C18-C19 -> 406835566.9 | D20: 381267112.2 | E20: 365309074.4 | F20: 382315983.1 | G20: 389481857.3 | H20: 385041918.8
A21: D | B21: "Retail" kWh delivered by distributor | C21: 470352000 | D21: 467550816 | E21: 401259942 | F21: 424292841 | G21: 429952199 | H21: =IF(SUM(C21:G21)=0,0,AVERAGE(C21:G21)) -> 438681559.6
A22: E | B22: Portion of "Retail" kWh delivered by distributor to its Large Use Customer(s) | C22: 84038365 | D22: 102587954 | E22: 51909228 | F22: 58704363 | G22: 59993492 | H22: =IF(SUM(C22:G22)=0,0,AVERAGE(C22:G22)) -> 71446680.4
A23: F | B23: Net "Retail" kWh delivered by distributor = D - E | C23: =C21-C22 -> 386313635 | D23: 364962862 | E23: 349350714 | F23: 365588478 | G23: 369958707 | H23: 367234879.2
A24: G | B24: Loss Factor in Distributor's system = C / F | C24: =IF(C23=0,"",C20/C23) -> 1.053122463 | D24: 1.044673724 | E24: 1.045680057 | F24: 1.045755012 | G24: 1.05277116 | H24: 1.048489511
B25: Losses Upstream of Distributor's System
A26: H | B26: Supply Facilities Loss Factor | C26: 1.0045 | D26: 1.0045 | E26: 1.0045 | F26: 1.0045 | G26: 1.0045 | H26: =IF(SUM(C26:G26)=0,0,AVERAGE(C26:G26)) -> 1.0045
B27: Total Losses
A28: I | B28: Total Loss Factor = G x H | C28: =IF(C24="","",C24*C26) -> 1.057861514 | D28: 1.049374756 | E28: 1.050385617 | F28: 1.050460909 | G28: 1.057508631 | H28: 1.053207713
A30: Notes
A33: A(1) | B33: If directly connected to the IESO-controlled grid, kWh pertains to the virtual meter on the primary or high voltage side of the transformer at the interface with the transmission grid. This corresponds to the "With Losses" kWh value provided by the IESO's MV-WEB. It is the higher of the two values provided by MV-WEB.
B37: If fully embedded within a host distributor, kWh pertains to the virtual meter on the primary or high voltage side of the transformer, at the interface between the host distributor and the transmission grid. For example, if the host distributor is Hydro One Networks Inc., kWh from the Hydro One Networks' invoice corresponding to "Total kWh w Losses" should be reported. This corresponds to the higher of the two kWh values provided in Hydro One Networks' invoice.
B42: If partially embedded, kWh pertains to the sum of the above.
A44: A(2) | B44: If directly connected to the IESO-controlled grid, kWh pertains to a metering installation on the secondary or low voltage side of the transformer at the interface with the transmission grid. This corresponds to the "Without Losses" kWh value provided by the IESO's MV-WEB. It is the lower of the two kWh values provided by MV-WEB.
B48: If fully embedded with the host distributor, kWh pertains to an actual or virtual meter at the interface between the embedded distributor and the host distributor. For example, if the host distributor is Hydro One Networks Inc., kWh from the Hydro One Networks' invoice corresponding to "Total kWh" should be reported. This corresponds to the lower of the two kWh values provided in Hydro One Networks' invoice.
B53: If partially embedded, kWh pertains to the sum of the above.
B55: Additionally, kWh pertaining to distributed generation directly connected to the distributor's own distribution network should be included in A(2).
A58: B | B58: If a Large Use Customer is metered on the secondary or low voltage side of the transformer, the default loss is 1% (i.e., B = 1.01 X E).
A61: D | B61: kWh corresponding to D should equal metered or estimated kWh at the customer’s delivery point.
A64: G and I | B64: These loss factors pertain to secondary-metered customers with demand less than 5,000 kW.
A66: H | B66: If directly connected to the IESO-controlled grid, SFLF = 1.0045.
B68: If fully embedded within a host distributor, SFLF = loss factor re losses in transformer at grid interface X loss factor re losses in host distributor's system. If the host distributor is Hydro One Networks Inc., SFLF = 1.0060 X 1.0278 = 1.0340. If partially embedded, SFLF should be calculated as the weighted average of above.
B72: Distributors that wish to propose a different SFLF should provide appropriate justification for any such proposal including supporting
B73: calculations and any other relevant material.

Sheet App.2-S_Stranded Meters
G1: File Number: | H1: ='LDC Info'!$E$18 -> EB-2012-0173
G2: Exhibit: | H2: 2
G3: Tab: | H3: 3
G4: Schedule: | H4: 6
G5: Page: | H5: 2 of 2
G7: Date: | H7: Aug 31, 2012
A9: Appendix 2-S
A10: Stranded Meter Treatment
A12: Year | B12: Notes | C12: Gross Asset Value | D12: Accumulated Amortization | E12: Contributed Capital (Net of Amortization) | F12: Net Asset | G12: Proceeds on Disposition | H12: Residual Net Book Value
C13: (A) | D13: (B) | E13: (C) | F13: (D ) = (A) - (B) - (C) | G13: (E) | H13: (F) = (D) - (E)
A14: 2006 | F14: =C14-D14-E14 -> 0 | H14: =F14-G14 -> 0
A15: 2007 | F15: 0 | H15: 0
A16: 2008 | F16: 0 | H16: 0
A17: 2009 | F17: 0 | H17: 0
A18: 2010 | B18: Actual | C18: 2194968 | D18: =D19-80453 -> 1555042 | F18: 639926 | G18: 2128 | H18: 637798
A19: 2011 | B19: Actual | C19: 2194968 | D19: 1635495 | F19: 559473 | G19: 3564 | H19: 555909
A20: 2012 | B20: Actual | C20: 2194968 | D20: =D19+75669 -> 1711164 | F20: 483804 | G20: 3564 | H20: 480240
A22: Note: | B22: For 2010 and 2011 Stranded Meters were recorded in 1860 and transferred to 1555 Effective January 1, 2012
B23: Depreciation Expense will continue in Account 1555 in 2012 and totals $75,669
B24: No Carrying Charges have been included in Account 1555 for Stranded Meters in 2012
B25: Welland is requesting disposition of the $480,240 Related to 1555 Smart Meters in this Rate Application
B26: As per response to Board Staff Interogatory 2b in EB-2011-0415 these charges will be split by class as follows:
E28: # Customers | F28: # Months | G28: Rate Rider/Mth
C29: Residential | D29: 441084 | E29: 20432 | F29: 48 | G29: =D29/E29/F29 -> 0.4497479444
C30: GS<50 | D30: 39156 | E30: 1696 | F30: 48 | G30: =D30/E30/F30 -> 0.4809846698
C31: Total | D31: 480240 | E31: =E29+E30 -> 22128
A33: Notes:
A35: (1) | B35: For 2012, please indicate whether the amounts provided are on a forecast or actual basis.
A37: Some distributors have transferred the cost of stranded meters from Account 1860 - Meters to "Sub-account Stranded Meter Costs of Account 1555", while in some cases distributors have left these costs in Account 1860. Depending on which treatment the applicant has chosen. please provide the information under either of the two scenarios (A and B below), as applicable.
A42: Scenario A: If the stranded meter costs were transferred to "Sub-account Stranded Meter Costs" of Account 1555, the above table should be completed and the following information should be provided.
A45: 1 | B45: A description of the accounting treatment followed by the applicant on stranded meter costs for financial accounting and reporting purposes.
A48: 2 | B48: The amount of the pooled residual net book value of the removed from service stranded meters, less any contributed capital (net of accumulated amortization), and less any net proceeds from sales, which were transferred to this sub-account as of December 31, 2010.
A52: 3 | B52: A statement as to whether or not, since transferring the removed stranded meter costs to the sub-account, the recording of depreciation expenses was continued in order to reduce the net book value through accumulated depreciation. If so, the total depreciation expense amount for the period from the time the costs for the stranded meters were transferred to the sub-account to December 31, 2010 should be provided.
B57: If no depreciation expenses were recorded to reduce the net book value of stranded meter costs through accumulated depreciation, the total depreciation expense amount that would have been applicable from the time that the stranded meter costs were transferred to the sub-account of Account 1555 to December 31, 2010 should be provided. In addition, the following information should be provided:
B62: a) | C62: Whether or not carrying charges were recorded for the stranded meter cost balances in the sub-account, and if so, the total carrying charges recorded to December 31, 2010.
B65: b) | C65: The estimated amount of the pooled residual net book value of the removed from service meters, less any net proceeds from sales and contributed capital, at the time when the smart meters will have been fully deployed (e.g., as of December 31, 2010). If the smart meters have been fully deployed, the actual amount should be provided.
B70: c) | C70: A description as to how the applicant intends to recover in rates the remaining costs for stranded meters, including the proposed accounting treatment, the proposed disposition period, and the associated bill impacts.
A74: Scenario B: If the stranded meter costs remained recorded in Account 1860, the above table should be completed and the following information should be provided:
A77: 1 | B77: A description of the accounting treatment followed by the applicant on stranded meter costs for financial accounting and reporting purposes.
A80: 2 | B80: The amount of the pooled residual net book value of the removed from service stranded meters, less any contributed capital (net of accumulated amortization), and less any net proceeds from sales, as of December 31, 2010.
A84: 3 | B84: A statement as to whether or not the recording of depreciation expenses continued in order to reduce the net book value through accumulated depreciation. If so, provision of the total (cumulative) depreciation expense for the period from the time that the meters became stranded to December 31, 2010.
A88: 4 | B88: If no depreciation expenses were recorded to reduce the net book value of stranded meters through accumulated depreciation, the total (cumulative) depreciation expense amount that would have been applicable for the period from the time that the meters became stranded to December 31, 2010.
A92: 5 | B92: The estimated amount of the pooled residual net book value of the removed from service meters, less any net proceeds from sales and contributed capital, at the time when smart meters will have been fully deployed. If the smart meters have been fully deployed, please provide the actual amount.
A96: 6 | B96: A description as to how the applicant intends to recover in rates the costs for stranded meters, including the proposed accounting treatment, the proposed disposition period and the associated bill impacts.
A99: Distributors should also provide the Net Book Value per class of meter as of December 31, 2010 as well as the number of meters that were removed / stranded. In preparing this information, distributors should review the Board's letter of January 16, 2007 Stranded Meter Costs Related to the Installation of Smart Meters which stated that records were to be kept of the type and number of each meter to support the stranded meter costs.

Sheet App.2-T_1592_Tax_Variance
C1: File Number: | E1: ='LDC Info'!$E$18 -> EB-2012-0173
C2: Exhibit: | E2: 2
C3: Tab: | E3: 3
C4: Schedule: | E4: 7
C5: Page: | E5: 2 of 7
C7: Date: | E7: Aug 31, 2012
A9: Table 2.4
A10: Appendix 2-T
A11: Deferred PILs Account 1592 Balances
A13: The following table should be completed based on the information requested below, in accordance with the notes following the table. An explanation should be provided for any blank entries.
A15: Tax Item | E15: Principal as of
E16: December 31,
E17: 2011
A18: Large Corporation Tax grossed-up proxy from 2006 EDR application PILs model for the period from May 1, 2006 to April 30, 2007
A19: Large Corporation Tax grossed-up proxy from 2006 EDR application PILs model for the period from January 1, 2006 to April 30, 2006 (4/12ths of the approved grossed-up proxy), if not recorded in PILs account 1562
A20: Ontario Capital Tax rate decrease and increase in capital deduction for 2007
A21: Ontario Capital Tax rate decrease and increase in capital deduction for 2008
A22: Ontario Capital Tax rate decrease and increase in capital deduction for 2009
A23: Ontario Capital Tax rate decrease and increase in capital deduction for 2010
A24: Capital Cost Allowance class changes from 2006 EDR application for 2006
A25: Capital Cost Allowance class changes from 2006 EDR application for 2007
A26: Capital Cost Allowance class changes from 2006 EDR application for 2008
A27: Capital Cost Allowance class changes from 2006 EDR application for 2009
A28: Capital Cost Allowance class changes from 2006 EDR application for 2010
A29: Capital Cost Allowance class changes from 2006 EDR application for 2011
A30: Capital Cost Allowance class changes from any prior application not recorded above. Please provide details and explanation separately.
A31: PST Capital and OM&A Expense Savings | E31: -157307
A32: PST Capital and OM&A Expense Savings - Contra | E32: 157307
A33: Insert description of additional item(s) and new rows if needed.
A34: Total | E34: =SUM(E18:E33) -> 0
A36: Notes:
A38: 1 | B38: Revise the deferral and variance account continuity schedule to include account 1592 as a group 2 account and enter all relevant information for transactions, adjustments, etc., for all relevant years.
A41: 2 | B41: Describe each type of tax item that has been recorded in account 1592.
A43: 3 | B43: Provide the calculations that show how each item was determined and provide any pertinent supporting evidence and documentation.
A46: 4 | B46: Please state whether or not the applicant followed the guidance provided in the FAQ of July 2007. If not, please provide an explanation.
A49: 5 | B49: Identify the account balance as of December 31, 2011 as per the 2011 Audited Financial Statements. Identify the account balance as of December 31, 2011 as per the April 2012 2.1.7 RRR filing to the Board. Provide a reconciliation if the balances provided are not identical to each other and to the total shown on the continuity schedule.
A54: 6 | B54: Complete the above table based on the answers to the previous. Add rows as required to complete the analysis in an informative manner. Please provide the completed table as a working Excel spreadsheet.

Sheet App.2-U_IFRS Transition Costs
J1: File Number: | K1: ='LDC Info'!$E$18 -> EB-2012-0173
J2: Exhibit: | K2: 9
J3: Tab: | K3: 1
J4: Schedule: | K4: 2
J5: Page: | K5: 4 of 7
J7: Date: | K7: Aug 31, 2012
A9: Appendix 2-U
A10: One-Time Incremental IFRS Transition Costs
A12: The following table should be completed based on the information requested below. An explanation should be provided for any blank entries. The entries should include one-time incremental IFRS transition costs that are currently included in Account 1508, Other Regulatory Assets, sub-account Deferred IFRS Transition Costs Account, or Account 1508, Other Regulatory Assets, sub-account IFRS Transition Costs Variance Account.
A14: Nature of One-Time Incremental IFRS Transition Costs 1 | E14: Audited Actual | F14: Audited Actual | G14: Audited Actual | H14: Audited Carrying | I14: Total Audited | J14: RRR 2.1.7 | K14: Variance 2 | L14: Reasons why the costs recorded meet the criteria of one-time IFRS administrative incremental costs
E15: Costs Incurred | F15: Costs Incurred | G15: Costs Incurred | H15: Charges | I15: Actual Costs | J15: Balance
E16: 2009 | F16: 2010 | G16: 2011 | H16: to Dec 31, 2011 | I16: to Dec 31, 2011 | J16: 2011-12-31
A17: professional accounting fees | E17: 19000 | F17: 5075 | G17: 20000 | H17: 605 | I17: =SUM(E17:H17) -> 44680 | L17: 2009 to 2010 Deloitte IFRS Review
A18: professional legal fees | E18: 0 | F18: 0 | G18: 0 | H18: 0 | I18: =SUM(E18:H18) -> 0 | L18: 2011 KPMG Fixed Assets Useful Lives
A19: salaries, wages and benefits of staff added to support the transition to IFRS | E19: 0 | F19: 0 | G19: 0 | H19: 0 | I19: 0 | L19: 2011 KPMG Overhead Analysis
A20: associated staff training and development costs | E20: 598 | H20: 8 | I20: 606 | L20: EDA Conference
A21: costs related to system upgrades, or replacements or changes where IFRS was the major reason for conversion | E21: 0 | F21: 0 | G21: 0 | H21: 0 | I21: 0
I22: 0
I23: 0 | L23: This account includes only outside consulting
I24: 0 | L24: expenses and does not include any costs
I25: 0 | L25: relating to completing the 2013 COS in both
I26: 0 | L26: CGAAP and MIFRS which was done by
I27: 0 | L27: Welland Hydro personnel.
I28: 0
A29: Insert description of additional item(s) and new rows if needed. | I29: 0
A30: Total | E30: =SUM(E17:E29) -> 19598 | F30: =SUM(F17:F29) -> 5075 | G30: =SUM(G17:G29) -> 20000 | H30: =SUM(H17:H29) -> 613 | I30: =SUM(I17:I29) -> 45286 | J30: 45286 | K30: =+I30-J30 -> 0
A33: Note:
A34: 1 | B34: The Deferred IFRS Transition Costs Account and the IFRS Transition Costs Variance Account are exclusively for necessary, incremental transition costs and shall not include ongoing IFRS compliance costs or impacts arising from adopting accounting policy changes that reflect changes in the timing of the recognition of income. The incremental costs in these accounts shall not include costs related to system upgrades, or replacements or changes where IFRS was not the major reason for conversion. In addition, incremental IFRS costs shall not include capital assets or expenditures.
A36: 2 | B36: Applicants are to provide an explanation of material variances in evidence

Sheet App.2-V_Rev_Reconciliation
O1: File Number: | P1: ='LDC Info'!$E$18 -> EB-2012-0173
O2: Exhibit: | P2: 8
O3: Appendix: | P3: A
O4: Schedule:
O5: Page: | P5: 1
O7: Date: | P7: Aug 31, 2012
A9: Appendix 2-V
A10: Revenue Reconciliation
A12: Rate Class | B12: Customers/ Connections | C12: Number of Customers/Connections | F12: Test Year Consumption | H12: Proposed Rates | K12: Revenues at Proposed Rates | M12: Class Specific Revenue Requirement | N12: Transformer Allowance Credit | O12: Total | P12: Difference
C13: Start of Test Year | D13: End of Test Year | E13: Average | F13: kWh | G13: kW | H13: Monthly Service Charge | I13: Volumetric
I14: kWh | J14: kW
A16: Residential | B16: Customers | C16: 20245 | D16: 20619 | E16: =IF(SUM(C16:D16)=0,0,AVERAGE(C16:D16)) -> 20432 | F16: 162565618 | H16: 15.66 | I16: 0.0133 | K16: =H16*E16*12+I16*F16+J16*G16 -> 6001704.159 | M16: 6007416 | O16: =SUM(M16:N16) -> 6007416 | P16: =O16-K16 -> 5711.8406
A17: GS < 50 kW | B17: Customers | C17: 1695 | D17: 1697 | E17: 1696 | F17: 54784534 | H17: 27.83 | I17: 0.0082 | K17: 1015629.339 | M17: 1005811 | N17: 11559 | O17: 1017370 | P17: 1740.6612
A18: GS > 50 to 4,999 kW | B18: Customers | C18: 169 | D18: 169 | E18: 169 | F18: 141530394 | G18: 396002 | H18: 267.94 | J18: 2.3435 | K18: 1471413.007 | M18: 1342766 | N18: 128634 | O18: 1471400 | P18: -13.007
A19: Large Use | B19: Customers | C19: 1 | D19: 1 | E19: 1 | F19: 59538701 | G19: 168818 | H19: 7676.01 | J19: 0.7948 | K19: 226288.6664 | M19: 108118 | N19: 118173 | O19: 226291 | P19: 2.3336
A20: Streetlighting | B20: Connections | C20: 6750 | D20: 6750 | E20: 6750 | F20: 1273281 | G20: 3552 | H20: 1.89 | J20: 7.9541 | K20: 181342.9632 | M20: 181212 | O20: 181212 | P20: -130.9632
A21: Sentinel Lighting | B21: Connections | C21: 574 | D21: 574 | E21: 574 | F21: 831977 | G21: 2297 | H21: 2.56 | J21: 5.7365 | K21: 30810.0205 | M21: 30776 | O21: 30776 | P21: -34.0205
A22: Unmetered Scattered Load | B22: Connections | C22: 225 | D22: 225 | E22: 225 | F22: 1111230 | H22: 11.35 | I22: 0.0075 | K22: 38979.225 | M22: 38941 | O22: 38941 | P22: -38.225
A23: Standby Power | E23: 0 | K23: 0 | O23: 0 | P23: 0
A24: Embedded Distributor Class | E24: 0 | K24: 0 | O24: 0 | P24: 0
A25: etc. | E25: 0 | K25: 0 | O25: 0 | P25: 0
E26: 0 | K26: 0 | O26: 0 | P26: 0
E27: 0 | K27: 0 | O27: 0 | P27: 0
E28: 0 | K28: 0 | O28: 0 | P28: 0
A30: Total | K30: =SUM(K16:K28) -> 8966167.38 | M30: =SUM(M16:M28) -> 8715040 | N30: =SUM(N16:N28) -> 258366 | O30: =M30+N30 -> 8973406 | P30: =O30-K30 -> 7238.6197
A32: Note
A34: 1 The class specific revenue requirements in column N must be the amounts used in the final rate design process. The total of column N should equate to the proposed base revenue requirement

Sheet App.2-W_Bill Imp Res 500
N1: File Number: | O1: ='LDC Info'!$E$18 -> EB-2012-0173 | T1: 1
N2: Exhibit: | O2: 8
N3: Tab: | O3: 1
N4: Schedule: | O4: 11
N5: Page: | O5: 2 of 17
N7: Date: | O7: Aug 31, 2012
B10: Appendix 2-W
B11: Bill Impacts
B14: Customer Class: | D14: Residential
D16: Consumption | F16: 500 | G16: kWh
F18: Current Board-Approved | J18: Proposed | N18: Impact
D19: Charge Unit | F19: Rate | G19: Volume | H19: Charge | J19: Rate | K19: Volume | L19: Charge | N19: $ Change | O19: % Change
F20: ($) | H20: ($) | J20: ($) | L20: ($)
B21: Monthly Service Charge | D21: Monthly | F21: 16.55 | G21: 1 | H21: =G21*F21 -> 16.55 | J21: 15.66 | K21: 1 | L21: =K21*J21 -> 15.66 | N21: =L21-H21 -> -0.89 | O21: =IF((H21)=0,"",(N21/H21)) -> -0.05377643505
B22: Smart Meter Rate Adder | G22: 1 | H22: =G22*F22 -> 0 | K22: 1 | L22: =K22*J22 -> 0 | N22: =L22-H22 -> 0 | O22: =IF((H22)=0,"",(N22/H22)) -> 
B23: Smart Meter Residual | D23: Monthly | F23: -0.24 | G23: 1 | H23: -0.24 | J23: 0 | K23: 1 | L23: =K23*J23 -> 0 | N23: =L23-H23 -> 0.24 | O23: =IF((H23)=0,"",(N23/H23)) -> -1
B24: Stranded Meter Rate Rider | D24: Monthly | G24: 1 | H24: 0 | J24: 0.45 | K24: 1 | L24: 0.45 | N24: 0.45
G25: 1 | H25: 0 | K25: 1 | L25: 0 | N25: 0
G26: 1 | H26: 0 | K26: 1 | L26: 0 | N26: 0
B27: Distribution Volumetric Rate | D27: per kWh | F27: 0.0141 | G27: =$F$16 -> 500 | H27: 7.05 | J27: 0.0133 | K27: =$F$16 -> 500 | L27: 6.65 | N27: -0.4 | O27: -0.05673758865
B28: Smart Meter Disposition Rider | G28: =$F$16 -> 500 | H28: 0 | K28: =$F$16 -> 500 | L28: 0 | N28: 0
B29: LRAM & SSM Rate Rider | G29: =$F$16 -> 500 | H29: 0 | K29: 500 | L29: 0 | N29: 0
B30: Disposition-Residual Smart | G30: =$F$16 -> 500 | H30: =G30*F30 -> 0 | K30: 500 | L30: =K30*J30 -> 0 | N30: =L30-H30 -> 0 | O30: =IF((H30)=0,"",(N30/H30)) -> 
G31: 500 | H31: 0 | K31: 500 | L31: 0 | N31: 0
G32: 500 | H32: 0 | K32: 500 | L32: 0 | N32: 0
G33: =$F$16 -> 500 | H33: 0 | K33: 500 | L33: 0 | N33: 0
G34: 500 | H34: 0 | K34: 500 | L34: 0 | N34: 0
G35: 500 | H35: 0 | K35: 500 | L35: 0 | N35: 0
G36: 500 | H36: 0 | K36: 500 | L36: 0 | N36: 0
B37: Sub-Total A | H37: =SUM(H21:H36) -> 23.36 | L37: =SUM(L21:L36) -> 22.76 | N37: -0.6 | O37: -0.02568493151
B38: Deferral/Variance Account Disposition Rate Rider 2012 | D38: per kWh | F38: -0.0016 | G38: =$F$16 -> 500 | H38: =G38*F38 -> -0.8 | J38: -0.0016 | K38: =$F$16 -> 500 | L38: =K38*J38 -> -0.8 | N38: =L38-H38 -> 0 | O38: =IF((H38)=0,"",(N38/H38)) -> 0
B39: Deferral/Variance Account Disposition Rate Rider 2013 | D39: per kWh | G39: =$F$16 -> 500 | H39: =G39*F39 -> 0 | J39: 0.0003 | K39: =$F$16 -> 500 | L39: =K39*J39 -> 0.15 | N39: =L39-H39 -> 0.15 | O39: =IF((H39)=0,"",(N39/H39)) -> 
G40: 500 | H40: 0 | K40: 500 | L40: 0 | N40: 0
G41: 500 | H41: 0 | K41: 500 | L41: 0 | N41: 0
B42: Low Voltage Service Charge | G42: 500 | H42: =G42*F42 -> 0 | K42: 500 | L42: =K42*J42 -> 0 | N42: =L42-H42 -> 0 | O42: =IF((H42)=0,"",(N42/H42)) -> 
B43: Smart Meter Entity Charge | K43: 500 | L43: =K43*J43 -> 0 | N43: =L43-H43 -> 0
B44: Sub-Total B - Distribution (includes Sub-Total A) | H44: =SUM(H38:H42)+H37 -> 22.56 | L44: =SUM(L38:L42)+L37 -> 22.11 | N44: =L44-H44 -> -0.45 | O44: =IF((H44)=0,"",(N44/H44)) -> -0.01994680851
B45: RTSR - Network | D45: per kWh | F45: 0.008 | G45: =F16*(1+F71) -> 526.6 | H45: =G45*F45 -> 4.2128 | J45: 0.0083 | K45: =F16*(1+J71) -> 526.6 | L45: =K45*J45 -> 4.37078 | N45: 0.15798 | O45: 0.0375
B46: RTSR - Line and Transformation Connection | D46: per kWh | F46: 0.0056 | G46: =G45 -> 526.6 | H46: =G46*F46 -> 2.94896 | J46: 0.0055 | K46: =K45 -> 526.6 | L46: =K46*J46 -> 2.8963 | N46: -0.05266 | O46: -0.01785714286
B47: Sub-Total C - Delivery (including Sub-Total B) | H47: =SUM(H44:H46) -> 29.72176 | L47: =SUM(L44:L46) -> 29.37708 | N47: -0.34468 | O47: -0.01159689063
B48: Wholesale Market Service Charge (WMSC) | D48: per kWh | F48: 0.0052 | G48: =G46 -> 526.6 | H48: =G48*F48 -> 2.73832 | J48: 0.0052 | K48: =K46 -> 526.6 | L48: =K48*J48 -> 2.73832 | N48: 0 | O48: 0
B49: Rural and Remote Rate Protection (RRRP) | D49: per kWh | F49: 0.0011 | G49: =G46 -> 526.6 | H49: 0.57926 | J49: =F49 -> 0.0011 | K49: =K46 -> 526.6 | L49: 0.57926 | N49: 0 | O49: 0
B50: Standard Supply Service Charge | D50: Monthly | F50: 0.25 | G50: 1 | H50: 0.25 | J50: 0.25 | K50: 1 | L50: 0.25 | N50: 0 | O50: 0
B51: Debt Retirement Charge (DRC) | D51: per kWh | F51: 0.007 | G51: =G49 -> 526.6 | H51: 3.6862 | J51: 0.007 | K51: =K49 -> 526.6 | L51: 3.6862 | N51: 0 | O51: 0
B52: Energy - RPP - Tier 1 | F52: 0.074 | G52: =IF($T$1=1,IF($F$16>=600,600,IF($F$16<600,$F$16*(1+$F$71),$F$16-600)),IF($T$1=2,IF($F$16>=1000,1000,IF($F$16<1000,$F$16*(1+$F$71),$F$16-1000)))) -> 526.6 | H52: =G52*F52 -> 38.9684 | J52: =F52 -> 0.074 | K52: =IF($T$1=1,IF($F$16>=600,600,IF($F$16<600,$F$16*(1+$J$71),$F$16-600)),IF($T$1=2,IF($F$16>=1000,1000,IF($F$16<1000,$F$16*(1+$J$71),$F$16-1000)))) -> 526.6 | L52: =K52*J52 -> 38.9684 | N52: 0 | O52: 0
B53: Energy - RPP - Tier 2 | F53: 0.087 | G53: =IF($T$1=1,IF($F$16>=600,$F$16*(1+$F$71)-600,IF($F$16<600,0,)), IF($T$1=2,IF($F$16>=1000,$F$16*(1+$F$71)-1000,IF($F$16<1000,0)))) -> 0 | H53: =G53*F53 -> 0 | J53: =F53 -> 0.087 | K53: =IF($T$1=1,IF($F$16>=600,$F$16*(1+$J$71)-600,IF($F$16<600,0,)), IF($T$1=2,IF($F$16>=1000,$F$16*(1+$J$71)-1000,IF($F$16<1000,0)))) -> 0 | L53: =K53*J53 -> 0 | N53: 0
B54: TOU - Off Peak | F54: 0.063 | G54: =0.64*$F$16*(1+$F$71) -> 337.024 | H54: 21.232512 | J54: =F54 -> 0.063 | K54: =0.64*$F$16*(1+$J$71) -> 337.024 | L54: 21.232512 | N54: 0 | O54: 0
B55: TOU - Mid Peak | F55: 0.099 | G55: =0.18*$F$16*(1+$F$71) -> 94.788 | H55: 9.384012 | J55: =F55 -> 0.099 | K55: =0.18*$F$16*(1+$J$71) -> 94.788 | L55: 9.384012 | N55: 0 | O55: 0
B56: TOU - On Peak | F56: 0.118 | G56: =0.18*$F$16*(1+$F$71) -> 94.788 | H56: 11.184984 | J56: =F56 -> 0.118 | K56: =0.18*$F$16*(1+$J$71) -> 94.788 | L56: 11.184984 | N56: 0 | O56: 0
B58: Total Bill on RPP (before Taxes) | H58: =SUM(H47:H53) -> 75.94394 | L58: =SUM(L47:L53) -> 75.59926 | N58: -0.34468 | O58: -0.004538610981
B59: HST | F59: 0.13 | H59: =H58*F59 -> 9.8727122 | J59: 0.13 | L59: =L58*J59 -> 9.8279038 | N59: =L59-H59 -> -0.0448084 | O59: =IF((H59)=0,"",(N59/H59)) -> -0.004538610981
B60: Total Bill (including HST) | H60: =H58+H59 -> 85.8166522 | L60: =L58+L59 -> 85.4271638 | N60: =L60-H60 -> -0.3894884 | O60: =IF((H60)=0,"",(N60/H60)) -> -0.004538610981
B61: Ontario Clean Energy Benefit 1 | H61: =ROUND(-H60*10%,2) -> -8.58 | L61: =ROUND(-L60*10%,2) -> -8.54 | N61: =L61-H61 -> 0.04 | O61: =IF((H61)=0,"",(N61/H61)) -> -0.004662004662
B62: Total Bill on RPP (including OCEB) | H62: =SUM(H60:H61) -> 77.2366522 | L62: =SUM(L60:L61) -> 76.8871638 | N62: -0.3494884 | O62: -0.004524903528
B64: Total Bill on TOU (before Taxes) | H64: =SUM(H47:H51,H54:H56) -> 78.777048 | L64: =SUM(L47:L51,L54:L56) -> 78.432368 | N64: =L64-H64 -> -0.34468 | O64: =IF((H64)=0,"",(N64/H64)) -> -0.00437538609
B65: HST | F65: 0.13 | H65: =H64*F65 -> 10.24101624 | J65: 0.13 | L65: =L64*J65 -> 10.19620784 | N65: -0.0448084 | O65: -0.00437538609
B66: Total Bill (including HST) | H66: =H64+H65 -> 89.01806424 | L66: =L64+L65 -> 88.62857584 | N66: -0.3894884 | O66: -0.00437538609
B67: Ontario Clean Energy Benefit 1 | H67: =ROUND(-H66*10%,2) -> -8.9 | L67: =ROUND(-L66*10%,2) -> -8.86 | N67: 0.04 | O67: -0.004494382022
B68: Total Bill on TOU (including OCEB) | H68: =H66+H67 -> 80.11806424 | L68: =L66+L67 -> 79.76857584 | N68: -0.3494884 | O68: -0.0043621673
B71: Loss Factor (%) | F71: 0.0532 | J71: 0.0532
A73: 1 Applicable to eligible customers only. Refer to the Ontario Clean Energy Benefit Act, 2010.
A75: Note that the "Charge $" columns provide breakdowns of the amounts that each bill component contributes to the total monthly bill at the referenced
A76: consumption level at existing and proposed rates.
A78: Applicants must provide bill impacts for residential at 800 kWh and GS<50kW at 2000 kWh. In addition, their filing should cover the range that is relevant
A79: to their service territory, class by class. A general guideline of consumption levels follows:
A81: Residential (kWh) - 100, 250, 500, 800, 1000, 1500, 2000
A82: GS<50kW (kWh) - 1000, 2000, 5000, 10000, 15000
A83: GS>50kW (kW) - 60, 100, 500, 1000
A84: Large User - range appropriate for utility
A85: Lighting Classes and USL - 150 kWh and 1 kW, range appropriate for utility.

Sheet App.2-W_Bill Imp Res 800
N1: File Number: | O1: ='LDC Info'!$E$18 -> EB-2012-0173 | P1: ='LDC Info'!$E$18 -> EB-2012-0173 | T1: 1
N2: Exhibit: | O2: 1 | P2: 8
N3: Tab: | O3: 2 | P3: 1
N4: Schedule: | O4: 1 | P4: 11
N5: Page: | O5: 4 of 7 | P5: 3 of 17
N7: Date: | O7: Aug 31, 2012 | P7: Aug 31, 2012
B10: Appendix 2-W
B11: Bill Impacts
B14: Customer Class: | D14: Residential
D16: Consumption | F16: 800 | G16: kWh
F18: Current Board-Approved | J18: Proposed | N18: Impact
D19: Charge Unit | F19: Rate | G19: Volume | H19: Charge | J19: Rate | K19: Volume | L19: Charge | N19: $ Change | O19: % Change
F20: ($) | H20: ($) | J20: ($) | L20: ($)
B21: Monthly Service Charge | D21: Monthly | F21: 16.55 | G21: 1 | H21: =G21*F21 -> 16.55 | J21: ='App.2-W_Bill Imp Res 500'!J21 -> 15.66 | K21: 1 | L21: =K21*J21 -> 15.66 | N21: =L21-H21 -> -0.89 | O21: =IF((H21)=0,"",(N21/H21)) -> -0.05377643505
B22: Smart Meter Rate Adder | G22: 1 | H22: =G22*F22 -> 0 | K22: 1 | L22: =K22*J22 -> 0 | N22: =L22-H22 -> 0 | O22: =IF((H22)=0,"",(N22/H22)) -> 
B23: Smart Meter Residual | D23: Monthly | F23: -0.24 | G23: 1 | H23: -0.24 | J23: 0 | K23: 1 | L23: =K23*J23 -> 0 | N23: =L23-H23 -> 0.24 | O23: =IF((H23)=0,"",(N23/H23)) -> -1
B24: Stranded Meter Rate Rider | D24: Monthly | G24: 1 | H24: 0 | J24: ='App.2-W_Bill Imp Res 500'!J24 -> 0.45 | K24: 1 | L24: 0.45 | N24: 0.45
G25: 1 | H25: 0 | K25: 1 | L25: 0 | N25: 0
G26: 1 | H26: 0 | K26: 1 | L26: 0 | N26: 0
B27: Distribution Volumetric Rate | D27: per kWh | F27: 0.0141 | G27: =$F$16 -> 800 | H27: 11.28 | J27: ='App.2-W_Bill Imp Res 500'!J27 -> 0.0133 | K27: =$F$16 -> 800 | L27: 10.64 | N27: -0.64 | O27: -0.05673758865
B28: Smart Meter Disposition Rider | G28: =$F$16 -> 800 | H28: 0 | K28: =$F$16 -> 800 | L28: 0 | N28: 0
B29: LRAM & SSM Rate Rider | G29: =$F$16 -> 800 | H29: 0 | K29: 800 | L29: 0 | N29: 0
B30: Disposition-Residual Smart | G30: =$F$16 -> 800 | H30: 0 | K30: 800 | L30: 0 | N30: 0
G31: 800 | H31: 0 | K31: 800 | L31: 0 | N31: 0
G32: 800 | H32: 0 | K32: 800 | L32: 0 | N32: 0
G33: 800 | H33: 0 | K33: 800 | L33: 0 | N33: 0
G34: 800 | H34: 0 | K34: 800 | L34: 0 | N34: 0
G35: 800 | H35: 0 | K35: 800 | L35: 0 | N35: 0
G36: 800 | H36: 0 | K36: 800 | L36: 0 | N36: 0
B37: Sub-Total A | H37: =SUM(H21:H36) -> 27.59 | L37: =SUM(L21:L36) -> 26.75 | N37: -0.84 | O37: -0.0304458137
B38: Deferral/Variance Account Disposition Rate Rider 2012 | D38: per kWh | F38: -0.0016 | G38: =$F$16 -> 800 | H38: =G38*F38 -> -1.28 | J38: ='App.2-W_Bill Imp Res 500'!J38 -> -0.0016 | K38: =$F$16 -> 800 | L38: =K38*J38 -> -1.28 | N38: =L38-H38 -> 0 | O38: =IF((H38)=0,"",(N38/H38)) -> 0
B39: Deferral/Variance Account Disposition Rate Rider 2013 | D39: per kWh | G39: =$F$16 -> 800 | H39: =G39*F39 -> 0 | J39: ='App.2-W_Bill Imp Res 500'!J39 -> 0.0003 | K39: =$F$16 -> 800 | L39: =K39*J39 -> 0.24 | N39: =L39-H39 -> 0.24 | O39: =IF((H39)=0,"",(N39/H39)) -> 
G40: 800 | H40: 0 | K40: 800 | L40: 0 | N40: 0
G41: 800 | H41: 0 | K41: 800 | L41: 0 | N41: 0
B42: Low Voltage Service Charge | G42: 800 | H42: =G42*F42 -> 0 | K42: 800 | L42: =K42*J42 -> 0 | N42: =L42-H42 -> 0 | O42: =IF((H42)=0,"",(N42/H42)) -> 
B43: Smart Meter Entity Charge | K43: 800 | L43: =K43*J43 -> 0 | N43: =L43-H43 -> 0
B44: Sub-Total B - Distribution (includes Sub-Total A) | H44: =SUM(H38:H42)+H37 -> 26.31 | L44: =SUM(L38:L42)+L37 -> 25.71 | N44: =L44-H44 -> -0.6 | O44: =IF((H44)=0,"",(N44/H44)) -> -0.0228050171
B45: RTSR - Network | D45: per kWh | F45: 0.008 | G45: =F16*(1+F71) -> 842.56 | H45: =G45*F45 -> 6.74048 | J45: ='App.2-W_Bill Imp Res 500'!J45 -> 0.0083 | K45: =F16*(1+J71) -> 842.56 | L45: =K45*J45 -> 6.993248 | N45: 0.252768 | O45: 0.0375
B46: RTSR - Line and Transformation Connection | D46: per kWh | F46: 0.0056 | G46: =G45 -> 842.56 | H46: =G46*F46 -> 4.718336 | J46: ='App.2-W_Bill Imp Res 500'!J46 -> 0.0055 | K46: =K45 -> 842.56 | L46: =K46*J46 -> 4.63408 | N46: -0.084256 | O46: -0.01785714286
B47: Sub-Total C - Delivery (including Sub-Total B) | H47: =SUM(H44:H46) -> 37.768816 | L47: =SUM(L44:L46) -> 37.337328 | N47: -0.431488 | O47: -0.01142445133
B48: Wholesale Market Service Charge (WMSC) | D48: per kWh | F48: 0.0052 | G48: =G46 -> 842.56 | H48: =G48*F48 -> 4.381312 | J48: ='App.2-W_Bill Imp Res 500'!J48 -> 0.0052 | K48: =K46 -> 842.56 | L48: =K48*J48 -> 4.381312 | N48: 0 | O48: 0
B49: Rural and Remote Rate Protection (RRRP) | D49: per kWh | F49: 0.0011 | G49: =G46 -> 842.56 | H49: 0.926816 | J49: ='App.2-W_Bill Imp Res 500'!J49 -> 0.0011 | K49: =K46 -> 842.56 | L49: 0.926816 | N49: 0 | O49: 0
B50: Standard Supply Service Charge | D50: Monthly | F50: 0.25 | G50: 1 | H50: 0.25 | J50: 0.25 | K50: 1 | L50: 0.25 | N50: 0 | O50: 0
B51: Debt Retirement Charge (DRC) | D51: per kWh | F51: 0.007 | G51: =G49 -> 842.56 | H51: 5.89792 | J51: 0.007 | K51: =K49 -> 842.56 | L51: 5.89792 | N51: 0 | O51: 0
B52: Energy - RPP - Tier 1 | F52: =J52 -> 0.074 | G52: =IF($T$1=1,IF($F$16>=600,600,IF($F$16<600,$F$16*(1+$F$71),$F$16-600)),IF($T$1=2,IF($F$16>=1000,1000,IF($F$16<1000,$F$16*(1+$F$71),$F$16-1000)))) -> 600 | H52: =G52*F52 -> 44.4 | J52: ='App.2-W_Bill Imp Res 500'!J52 -> 0.074 | K52: =IF($T$1=1,IF($F$16>=600,600,IF($F$16<600,$F$16*(1+$J$71),$F$16-600)),IF($T$1=2,IF($F$16>=1000,1000,IF($F$16<1000,$F$16*(1+$J$71),$F$16-1000)))) -> 600 | L52: =K52*J52 -> 44.4 | N52: 0 | O52: 0
B53: Energy - RPP - Tier 2 | F53: =J53 -> 0.087 | G53: =IF($T$1=1,IF($F$16>=600,$F$16*(1+$F$71)-600,IF($F$16<600,0,)), IF($T$1=2,IF($F$16>=1000,$F$16*(1+$F$71)-1000,IF($F$16<1000,0)))) -> 242.56 | H53: =G53*F53 -> 21.10272 | J53: ='App.2-W_Bill Imp Res 500'!J53 -> 0.087 | K53: =IF($T$1=1,IF($F$16>=600,$F$16*(1+$J$71)-600,IF($F$16<600,0,)), IF($T$1=2,IF($F$16>=1000,$F$16*(1+$J$71)-1000,IF($F$16<1000,0)))) -> 242.56 | L53: =K53*J53 -> 21.10272 | N53: 0 | O53: 0
B54: TOU - Off Peak | F54: =J54 -> 0.063 | G54: =0.64*$F$16*(1+$F$71) -> 539.2384 | H54: 33.9720192 | J54: ='App.2-W_Bill Imp Res 500'!J54 -> 0.063 | K54: =0.64*$F$16*(1+$J$71) -> 539.2384 | L54: 33.9720192 | N54: 0 | O54: 0
B55: TOU - Mid Peak | F55: =J55 -> 0.099 | G55: =0.18*$F$16*(1+$F$71) -> 151.6608 | H55: 15.0144192 | J55: ='App.2-W_Bill Imp Res 500'!J55 -> 0.099 | K55: =0.18*$F$16*(1+$J$71) -> 151.6608 | L55: 15.0144192 | N55: 0 | O55: 0
B56: TOU - On Peak | F56: =J56 -> 0.118 | G56: =0.18*$F$16*(1+$F$71) -> 151.6608 | H56: 17.8959744 | J56: ='App.2-W_Bill Imp Res 500'!J56 -> 0.118 | K56: =0.18*$F$16*(1+$J$71) -> 151.6608 | L56: 17.8959744 | N56: 0 | O56: 0
B58: Total Bill on RPP (before Taxes) | H58: =SUM(H47:H53) -> 114.727584 | L58: =SUM(L47:L53) -> 114.296096 | N58: -0.431488 | O58: -0.003760978702
B59: HST | F59: 0.13 | H59: =H58*F59 -> 14.91458592 | J59: 0.13 | L59: =L58*J59 -> 14.85849248 | N59: -0.05609344 | O59: -0.003760978702
B60: Total Bill (including HST) | H60: =H58+H59 -> 129.6421699 | L60: =L58+L59 -> 129.1545885 | N60: -0.48758144 | O60: -0.003760978702
B61: Ontario Clean Energy Benefit 1 | H61: =ROUND(-H60*10%,2) -> -12.96 | L61: =ROUND(-L60*10%,2) -> -12.92 | N61: 0.04 | O61: -0.003086419753
B62: Total Bill on RPP (including OCEB) | H62: =SUM(H60:H61) -> 116.6821699 | L62: =SUM(L60:L61) -> 116.2345885 | N62: -0.44758144 | O62: -0.003835902609
B64: Total Bill on TOU (before Taxes) | H64: =SUM(H47:H51,H54:H56) -> 116.1072768 | L64: =SUM(L47:L51,L54:L56) -> 115.6757888 | N64: =L64-H64 -> -0.431488 | O64: =IF((H64)=0,"",(N64/H64)) -> -0.003716287315
B65: HST | F65: 0.13 | H65: =H64*F65 -> 15.09394598 | J65: 0.13 | L65: =L64*J65 -> 15.03785254 | N65: -0.05609344 | O65: -0.003716287315
B66: Total Bill (including HST) | H66: =H64+H65 -> 131.2012228 | L66: =L64+L65 -> 130.7136413 | N66: -0.48758144 | O66: -0.003716287315
B67: Ontario Clean Energy Benefit 1 | H67: =ROUND(-H66*10%,2) -> -13.12 | L67: =ROUND(-L66*10%,2) -> -13.07 | N67: 0.05 | O67: -0.00381097561
B68: Total Bill on TOU (including OCEB) | H68: =H66+H67 -> 118.0812228 | L68: =L66+L67 -> 117.6436413 | N68: -0.43758144 | O68: -0.003705766503
B71: Loss Factor (%) | F71: 0.0532 | J71: 0.0532
A73: 1 Applicable to eligible customers only. Refer to the Ontario Clean Energy Benefit Act, 2010.
A75: Note that the "Charge $" columns provide breakdowns of the amounts that each bill component contributes to the total monthly bill at the referenced
A76: consumption level at existing and proposed rates.
A78: Applicants must provide bill impacts for residential at 800 kWh and GS<50kW at 2000 kWh. In addition, their filing should cover the range that is relevant
